Workbook

Sheet Instructions
B2: Highway Safety Manual (1st Edition) • Volume 2 (Chapters 10 - 12) - Predictive Methods with Empirical Bayes Analysis
O3: Michigan-specific SPFs (Revised: Summer 2018)
O4: Released: Spring 2013 (Updated: Fall 2013)
O5: Analysis years: 2005 - 2010
O6: Urban Sections
O7: Revised: Summer 2015 (Updated Summer 2016)
B8: Overview | O8: Analysis years: 2008 - 2012 (Updated: 2004-2014)
B10: This spreadsheet has been developed to utilize the predictive models for rural two-lane, two-way roads, rural multilane highways, and urban and suburban arterials as contained in the Highway Safety Manual. The factors used in calibrating the Highway Safety Manual are reviewed and updated by the Michigan Department of Transportation's Safety Programs Unit. Only full years (January through December) may be used for analysis; partial years are not compatible with the current calibration factors.
B12: In the HSM, the predictive method is a function of traffic volume and roadway characteristics. The expected number of crashes is a modification of the predicted number, weighted by the actual observed number of crashes.
B14: The page tabs shown at the bottom are color coded as follows:
D16: Instructions | G16: This sheet
D17: Inputs | G17: Project-wide inputs and formatting controls
D18: Rural Segments/Intersections | G18: Inputs for rural individual segments or intersections
D19: Urban Segments/Intersections | G19: Inputs for urban individual segments or intersections
D20: Outputs | G20: Output and summary sheets
B22: Color Coding Used in the Worksheets
B24: Colors are used to distinguish between user-editable cells and those reserved for displaying data and calculations. The user-editable cells are described as follows:
B26: Color Used | D26: Description
B28: Dropdown | D28: User input required; constrained values chosen by a dropdown menu within the cell
B30: Input | D30: User input required; value may be typed directly in the cell
B32: Lane and shoulder width values, for example, are limited to those available in the dropdown as they were evaluated when developing the Safety Performance Functions included in the HSM.
B34: Segment and Intersection Worksheets
B36: The data required for each individual segment or intersection type varies. For a summary of the data needed to use the methodologies in this spreadheet, please see http://onlinepubs.trb.org/onlinepubs/nchrp/nchrp_rrd_329.pdf.
L38: Please note that segments are defined as the "center of intersection to center of intersection." Removing the length included in the intersections is inconsistent with the calculations in the HSM.
B40: Buttons are placed on each sheet to facilitate adding and deleting rows. Resetting a sheet requires confirmation from the user. Sheets without data will only display the "Reset Sheet" Button.
B42: Adds a row above the currently selected row. | L42: Adds a row below the currently selected row.
L47: Deletes the currently selected row.
B48: Resets the current sheet, leaving only a single row with sample data ("Set Sheet" if blank).
B53: The colored shading is used to provide a visual snapshot of the relative crash frequencies/rates. The highest value in a given column will be red, with a gradation through orange, yellow, and green indicating progressively smaller values. Zero or negative values (in the case of Excess Expected crashes) will be display the brightest level of green. The colored shading can be enabled/disabled via the toggle on the Inputs tab, "Use colored formatting for rankings." Please note, that because of rounding, two values may display difference colors even when they appear to show the same value (e.g. the right-most shaded column in the graphic, where all values display "3.4").
B63: All rows on the Segment or Intersection Type worksheets are included on the Summary and Output sheets; please delete any rows that do not apply.
B65: Spreadsheet developed by:
C66: Andrew H. Ceifetz, P.E., RSP | J66: WSP Michigan Inc.
C67: Email: Andrew.Ceifetz@wsp.com | J67: 500 Griswold St., Ste 2600
C68: Phone: (313) 963-5760 | J68: Detroit, MI 48226
B69: Excel Macros
B71: This worksheet makes extensive use of the macro functionality built into Microsoft Excel. Macros must be enabled to use this worksheet. To enable macros, please see below:
B73: 1. Click the Excel Options button.
E106: Excel 2007 | L106: Excel 2010
B108: 2. Click the Trust Center button on the left. Then, at the bottom right, select Trust Center Settings.
B135: 3. In the new window that appears, choose Macro Settings from the sidebar and select Disable all macros with notification from the list of options that appear. This option keeps macros disabled but notifies users when macros attempt to run, allowing users to decide on a case-by-case basis which macros to enable. Click OK to exit this window.
B160: 4. For the new settings to take effect, it will be necessary to close Excel and reopen it. A security dialog box should appear beneath the Office ribbon the next time you attempt to run a spreadsheet that contains macros.
B174: 5. When the notification appears, click the Options button. Choose Enable this content from the options that appear to allow macros to run within the current spreadsheet. Click 5. When the notification appears, click the Options button. Choose Enable this content from the options that appear to allow macros to run within the current spreadsheet. Click OK to close the window. to close the window.
B202: Referenced from: Microsoft.com

Sheet Build History
A2: MDOT HSM Spreadsheet Build History
A3: Date: | B3: Notes:
A4: 2014-08-13 | B4: Original Spreadsheet
A5: 2014-01-14 | B5: Fix to enable calibration factor use
A6: 2015-03-15 | B6: Minor calculation changes; added CMFs for median on urban 2U; urban 4-lane to 3-lane Road Diet
A7: 2015-06-15 | B7: Added Urban and Suburban Intersection SPFs
A8: 2015-09-15 | B8: Added CMFs from Michigan Older Driver research
A9: 2016-08-16 | B9: Added Urban and Suburban Segment SPFs
A10: September 2018 | B10: Added Michigan Rural SPFs

Sheet Inputs
E1: Rural 2-Lane | F1: Rural multilane | G1: Urban & Suburban | L1: 0 | M1: 0
A3: HSM or Michigan Derived Values: | B3: Michigan
A4: Site-Specific or Project Level Empirical Bayes (EB): | B4: Site | D4: Observed Crashes per Year:
A5: Hide Calculations: | B5: Y
A6: Use colored formatting for rankings: | B6: Y
A8: Display Empirical Bayes on Output? | B8: Y
A9: Display Excess Crashes on Output? | B9: Y
A10: Display Predicted Total Crashes on Output? | B10: Y
A11: Display Predicted Fatal & Injury Crashes on Output? | B11: Y
A14: Analyst: | B14: John Doe
A15: Organization: | B15: MDOT
A16: Date Performed: | B16: 2019-12-11
A18: Project Name: | B18: Example
A19: Control Section(s):
A20: PR Number(s):
A21: Job Number(s):
A22: Job Description: | B22: Example Project

Sheet Formats (hidden)
A16: Urban & Suburban Segments
A17: Example 1 | B17: SH 321 | C17: MP 0.0 to MP 1.5 | D17: Anywhere, USA | E17: 4D | F17: 1.5 | G17: 11000 | H17: 0 | I17: None | J17: 0 | K17: 16 | L17: NP | M17: NP | N17: 10 | O17: 3 | P17: 8 | Q17: 10 | R17: 12 | S17: 1 | T17: 1.5 | U17: Chippewa | V17: =VLOOKUP($U17,'Construction - Do Not Delete'!$K$83:$N$166,2,FALSE) -> Superior | W17: =VLOOKUP($U17,'Construction - Do Not Delete'!$K$83:$N$166,3,FALSE) -> Superior | X17: =VLOOKUP($U17,'Construction - Do Not Delete'!$K$83:$N$166,4,FALSE) -> Eastern UP Prosperity Region | Y17: =IF(OR($E17="2U55E",$E17="2U55L"),V17&"2UFI",$V17&$E17&"FI") -> Superior4DFI | Z17: =IF(OR($E17="2U55E",$E17="2U55L"),V17&"2UPDO",$V17&$E17&"PDO") -> Superior4DPDO | AA17: 25 | AB17: 15 | AC17: N/A (1.000) | AD17: N/A (1.000) | AE17: N/A (1.000) | AG17: 1 | AL17: =CS17 -> 0.7898894155 | AM17: =DB17 -> 0.7418397626 | AN17: =FD17 -> 1.262626263 | AO17: =FM17 -> 2.475247525 | AP17: =1/(1+AL17*AH17) -> 1 | AQ17: =1/(1+AM17*AI17) -> 1 | AR17: =1/(1+AN17*AJ17) -> 1 | AS17: =1/(1+AO17*AK17) -> 1 | AT17: =IF(AH17="","",AP17*CW17+(1-AP17)*AH17) ->  | AU17: =IF(AI17="","",AQ17*FH17+(1-AQ17)*AI17) ->  | AV17: =IF(AT17&AU17="","",IF(AT17="",0,AT17)+IF(AU17="",0,AU17)) ->  | AW17: =IF(AH17&AI17="","",AV17-HT17) ->  | AX17: =IF(AJ17="","",AR17*DF17+(1-AR17)*AJ17) ->  | AY17: =IF(AK17="","",AS17*FQ17+(1-AS17)*AK17) ->  | AZ17: =IF(AX17&AY17="","",IF(AX17="",0,AX17)+IF(AY17="",0,AY17)) ->  | BA17: =IF(AJ17&AK17="","",AZ17-HQ17) ->  | BB17: =IF(AV17&AZ17="","",IF(AV17="",0,AV17)+IF(AZ17="",0,AZ17)) ->  | BC17: =IF(AW17&BA17="","",IF(AW17="",0,AW17)+IF(BA17="",0,BA17)) ->  | BD17: =AL17*(CW17)^2 -> 0.1546644064 | BE17: =AM17*(FH17)^2 -> 0.01907528524 | BF17: =AN17*DF17^2 -> 5.339397853 | BG17: =AO17*FQ17^2 -> 4.17665673 | BH17: =SQRT(AL17*(CW17)) -> 0.5912064566 | BI17: =SQRT(AM17*(FH17)) -> 0.344901662 | BJ17: =SQRT(AN17*(DF17)) -> 1.611357019 | BK17: =SQRT(FQ17*(FJ17)) -> 0.7602957145 | BL17: =1+$J17*(IF($I17="None",1,(IF($I17="Parallel (Residential)",VLOOKUP($E17,Tables!$G$718:$K$728,2,FALSE),(IF($I17="Parallel (Comm/Ind)",VLOOKUP($E17,Tables!$G$718:$K$728,3,FALSE),(IF($I17="Angle (Residential)",(VLOOKUP($E17,Tables!$G$718:$K$728,4,FALSE)),(VLOOKUP($E17,Tables!$G$718:$K$728,5,FALSE)))))))))-1) -> 1 | BM17: =$BW17 -> 1.035038972 | BN17: =IF($L17="P",IF(OR($E17="2O",$E17="3O",$E17="4O",$E17="6D",$E17="8D"),1,(1-($BZ17*(1-(0.72*$BX17)-(0.83*$BY17))))),1) -> 1 | BO17: =IF($M17="P",0.95,1) -> 1 | BP17: =OFFSET(Tables!$AZ$1,MATCH(AC17,Tables!$AZ:$AZ,0)-1,1) -> 1 | BQ17: =OFFSET(Tables!$AZ$1,MATCH(AD17,Tables!$AZ:$AZ,0)-1,1) -> 1 | BR17: =OFFSET(Tables!$AZ$1,MATCH(AE17,Tables!$AZ:$AZ,0)-1,1) -> 1 | BS17: =IF(AF17="",1,AF17) -> 1 | BT17: =$BL17*$BM17*$BN17*$BO17*$BP17*$BQ17*$BR17*$BS17 -> 1.035038972 | BU17: =POWER(IF(OR($AB17>30,$AB17=""),30,$AB17),-0.614)*0.3566 -> 0.06761784192 | BV17: =1+0.01*$AA17/EXP(0.131*IF(OR($AB17>30,$AB17=""),30,$AB17)) -> 1.035038972 | BW17: =IF(+BV17<1,1,BV17) -> 1.035038972 | BX17: =IF(Inputs!$B$3="HSM",(VLOOKUP(IF(OR($E17="2U55L",$E17="2U55E"),"2U",$E17),Tables!$B$257:$N$262,4,FALSE)),(VLOOKUP(IF(OR($E17="2U55L",$E17="2U55E"),"2U",$E17),Tables!$B$257:$N$262,9,FALSE))) -> 0.364 | BY17: =IF(Inputs!$B$3="HSM",(VLOOKUP(IF(OR($E17="2U55L",$E17="2U55E"),"2U",$E17),Tables!$B$257:$N$262,6,FALSE)),(VLOOKUP(IF(OR($E17="2U55L",$E17="2U55E"),"2U",$E17),Tables!$B$257:$N$262,11,FALSE))) -> 0.636 | BZ17: =IF(Inputs!$B$3="HSM",(VLOOKUP(IF(OR($E17="2U55L",$E17="2U55E"),"2U",$E17),Tables!$B$257:$N$262,7,FALSE)),(VLOOKUP(IF(OR($E17="2U55L",$E17="2U55E"),"2U",$E17),Tables!$B$257:$N$262,12,FALSE))) -> 0.41 | CA17: =N17/$F17 -> 6.666666667 | CB17: =O17/$F17 -> 2 | CC17: =P17/$F17 -> 5.333333333 | CD17: =Q17/$F17 -> 6.666666667 | CE17: =IF(OR($E17="2O",$E17="3O",$E17="4O"),1,EXP(Tables!$E$517*($R17-12))) -> 1 | CF17: =IF(OR($E17="2O",$E17="3O",$E17="4O"),EXP(-0.0201*($T17-4))/EXP(0.0804),EXP(Tables!$E$518*($S17-1))) -> 1 | CG17: =IF(NOT(OR($E17="4D",$E17="6D",$E17="8D")),1,EXP(Tables!$E$519*(SQRT($K17)-4))) -> 1 | CH17: =IF(OR($E17="2O",$E17="3O",$E17="4O"),EXP(Tables!$U$484*($CA17-10)),EXP(Tables!$E$520*($CA17-10))*EXP(Tables!$E$521*($CB17-3))*EXP(Tables!$E$522*($CC17-8))*EXP(Tables!$E$523*($CD17-10))) -> 0.9351952013 | CI17: =IF(OR($E17="2O",$E17="3O",$E17="4O"),1,EXP(Tables!$E$520*(CA17-10))*EXP(Tables!$E$521*($CB17-3))*EXP(Tables!$E$522*($CC17-8))*EXP(Tables!$E$523*($CD17-10))) -> 0.9351952013 | CJ17: =IF(OR($E17="2O",$E17="3O",$E17="4O"),1,EXP(Tables!$M$517*($R17-12))) -> 1 | CK17: =IF(OR($E17="2O",$E17="3O",$E17="4O"),EXP(-0.0201*($T17-4))/EXP(0.0804),EXP(Tables!$M$518*($S17-1))) -> 1 | CL17: =IF(NOT(OR($E17="4D",$E17="6D",$E17="8D")),1,EXP(Tables!$M$519*(SQRT($K17)-4))) -> 1 | CM17: =IF(OR($E17="2O",$E17="3O",$E17="4O"),EXP(Tables!$U$484*($CA17-10)),EXP(Tables!$M$520*(CA17-10))*EXP(Tables!$M$521*($CB17-3))*EXP(Tables!$M$522*($CC17-8))*EXP(Tables!$M$523*($CD17-10))) -> 0.9320830738 | CN17: =IF(OR($E17="2O",$E17="3O",$E17="4O"),1,EXP(Tables!$M$520*(CA17-10))*EXP(Tables!$M$521*($CB17-3))*EXP(Tables!$M$522*($CC17-8))*EXP(Tables!$M$523*($CD17-10))) -> 0.9320830738 | CO17: =IF(OR($E17="2O",$E17="3O",$E17="4O"),VLOOKUP($E17,Tables!$T$476:$Z$478,2,FALSE),VLOOKUP($E17,Tables!$D$476:$G$483,2,FALSE)) -> -16.829 | CP17: =IF(OR($E17="2O",$E17="3O",$E17="4O"),Tables!$U$479,VLOOKUP($E17,Tables!$D$484:$G$491,2, FALSE)) -> 1.702 | CQ17: =IF(OR($E17="2O",$E17="3O",$E17="4O"),VLOOKUP($V17,Tables!$S$485:$U$492,3,FALSE),VLOOKUP($V17,Tables!$C$509:$E$516,3,FALSE)) -> -0.163 | CR17: =IF(OR($E17="2O",$E17="3O",$E17="4O"),1,Tables!$E$508) -> 1.144 | CS17: =IF(OR($E17="2O",$E17="3O",$E17="4O"),1/VLOOKUP($E17,Tables!$T$493:$Z$495,2,FALSE),1/VLOOKUP($E17,Tables!$D$524:$G$531,2, FALSE)) -> 0.7898894155 | CT17: =EXP($CO17+($CP17*LN($G17))+LN($F17)+$CQ17*1+$CR17*$H17) -> 0.4731619061 | CU17: =+$BT17*$CE17*$CF17*$CG17*$CH17/BM17 -> 0.9351952013 | CV17: =$AG17 -> 1 | CW17: =CT17*CU17*CV17 -> 0.4424987441 | CX17: =IF(OR($E17="2O",$E17="3O",$E17="4O"),VLOOKUP($E17,Tables!$AE$476:$AH$478,2,FALSE),VLOOKUP($E17,Tables!$L$476:$O$483,2, FALSE)) -> -12.67 | CY17: =IF(OR($E17="2O",$E17="3O",$E17="4O"),Tables!$AF$479,VLOOKUP($E17,Tables!$L$484:$O$491,2,FALSE)) -> 1.403 | CZ17: =IF(OR($E17="2O",$E17="3O",$E17="4O"),VLOOKUP($V17,Tables!$AD$485:$AF$492,3,FALSE),VLOOKUP($V17,Tables!$K$509:$M$516,3,FALSE)) -> 0 | DA17: =IF(OR($E17="2O",$E17="3O",$E17="4O"),1,Tables!$M$508) -> 1.486 | DB17: =IF(OR($E17="2O",$E17="3O",$E17="4O"),1/VLOOKUP($E17,Tables!$AE$493:$AH$495,2,FALSE),1/VLOOKUP($E17,Tables!$L$524:$O$531,2, FALSE)) -> 0.7418397626 | DC17: =EXP($CX17+($CY17*LN($G17))+LN($F17)+$CZ17*1+$DA17*$H17) -> 2.20624689 | DD17: =+$BT17*$CJ17*$CK17*$CL17*$CM17/BM17 -> 0.9320830738 | DE17: =$AG17 -> 1 | DF17: =DD17*DE17*DC17 -> 2.056405383 | DG17: =VLOOKUP($Y17,Tables!$P$545:$AB$704,2,FALSE) -> 0.4761904762 | DH17: =+$CW17*DG17 -> 0.2107136877 | DI17: =VLOOKUP($Z17,Tables!$P$545:$AB$704,2,FALSE) -> 0.4054054054 | DJ17: =+$DF17*DI17 -> 0.833677858 | DK17: =DH17+DJ17 -> 1.044391546 | DL17: =VLOOKUP($Y17,Tables!$P$545:$AB$704,3,FALSE) -> 0.01052631579 | DM17: =+$CW17*DL17 -> 0.004657881517 | DN17: =VLOOKUP($Z17,Tables!$P$545:$AB$704,3,FALSE) -> 0 | DO17: =+$DF17*DN17 -> 0 | DP17: =DM17+DO17 -> 0.004657881517 | DQ17: =VLOOKUP($Y17,Tables!$P$545:$AB$704,4,FALSE) -> 0.02105263158 | DR17: =+$CW17*DQ17 -> 0.009315763033 | DS17: =VLOOKUP($Z17,Tables!$P$545:$AB$704,4,FALSE) -> 0.02380952381 | DT17: =+$DF17*DS17 -> 0.04896203293 | DU17: =DR17+DT17 -> 0.05827779596 | DV17: =VLOOKUP($Y17,Tables!$P$545:$AB$704,5,FALSE) -> 0.03157894737 | DW17: =+$CW17*DV17 -> 0.01397364455 | DX17: =VLOOKUP($Z17,Tables!$P$545:$AB$704,5,FALSE) -> 0.02380952381 | DY17: =+$DF17*DX17 -> 0.04896203293 | DZ17: =DW17+DY17 -> 0.06293567748 | EA17: =VLOOKUP($Y17,Tables!$P$545:$AB$704,6,FALSE) -> 0.03859649123 | EB17: =+$CW17*EA17 -> 0.01707889889 | EC17: =VLOOKUP($Z17,Tables!$P$545:$AB$704,6,FALSE) -> 0.02380952381 | ED17: =+$DF17*EC17 -> 0.04896203293 | EE17: =EB17+ED17 -> 0.06604093183 | EF17: =VLOOKUP($Y17,Tables!$P$545:$AB$704,7,FALSE) -> 0.2561403509 | EG17: =+$CW17*EF17 -> 0.1133417836 | EH17: =VLOOKUP($Z17,Tables!$P$545:$AB$704,7,FALSE) -> 0.1666666667 | EI17: =+$DF17*EH17 -> 0.3427342305 | EJ17: =EG17+EI17 -> 0.4560760141 | EK17: =VLOOKUP($Y17,Tables!$P$545:$AB$704,8,FALSE) -> 0 | EL17: =+$CW17*EK17 -> 0 | EM17: =VLOOKUP($Z17,Tables!$P$545:$AB$704,8,FALSE) -> 0 | EN17: =+$DF17*EM17 -> 0 | EO17: =EL17+EN17 -> 0 | EP17: =VLOOKUP($Y17,Tables!$P$545:$AB$704,9,FALSE) -> 0 | EQ17: =+$CW17*EP17 -> 0 | ER17: =VLOOKUP($Z17,Tables!$P$545:$AB$704,9,FALSE) -> 0 | ES17: =+$DF17*ER17 -> 0 | ET17: =EQ17+ES17 -> 0 | EU17: =VLOOKUP($Y17,Tables!$P$545:$AB$704,10,FALSE) -> 0 | EV17: =+$CW17*EU17 -> 0 | EW17: =VLOOKUP($Z17,Tables!$P$545:$AB$704,10,FALSE) -> 0 | EX17: =+$DF17*EW17 -> 0 | EY17: =EV17+EX17 -> 0 | EZ17: =IF(OR($E17="2O",$E17="3O",$E17="4O"),VLOOKUP($E17,Tables!$T$480:$Z$482,2,FALSE),VLOOKUP($E17,Tables!$D$492:$G$499,2,FALSE)) -> -7.847 | FA17: =IF(OR($E17="2O",$E17="3O",$E17="4O"),Tables!$U$483,VLOOKUP($E17,Tables!$D$500:$G$507,2, FALSE)) -> 0.624 | FB17: =IF(OR($E17="2O",$E17="3O",$E17="4O"),VLOOKUP($V17,Tables!$S$485:$U$492,3,FALSE),VLOOKUP($V17,Tables!$C$509:$E$516,3,FALSE)) -> -0.163 | FC17: =IF(OR($E17="2O",$E17="3O",$E17="4O"),1,Tables!$E$508) -> 1.144 | FD17: =IF(OR($E17="2O",$E17="3O",$E17="4O"),1/VLOOKUP($E17,Tables!$T$496:$Z$498,2,FALSE),1/VLOOKUP($E17,Tables!$D$532:$G$539,2, FALSE)) -> 1.262626263 | FE17: =EXP($EZ17+($FA17*LN($G17))+LN($F17)+$FB17*1+$FC17*$H17) -> 0.1656614638 | FF17: =+$BT17*$CE17*$CF17*$CG17*$CH17 -> 0.9679634795 | FG17: =$AG17 -> 1 | FH17: =FE17*FF17*FG17 -> 0.1603542469 | FI17: =IF(OR($E17="2O",$E17="3O",$E17="4O"),VLOOKUP($E17,Tables!$AE$480:$AH$482,2,FALSE),VLOOKUP($E17,Tables!$L$492:$O$499,2, FALSE)) -> -4.249 | FJ17: =IF(OR($E17="2O",$E17="3O",$E17="4O"),Tables!$AF$483,VLOOKUP($E17,Tables!$L$500:$O$507,2,FALSE)) -> 0.445 | FK17: =IF(OR($E17="2O",$E17="3O",$E17="4O"),VLOOKUP($V17,Tables!$AD$485:$AF$492,3,FALSE),VLOOKUP($V17,Tables!$K$509:$M$516,3,FALSE)) -> 0 | FL17: =IF(OR($E17="2O",$E17="3O",$E17="4O"),1,Tables!$M$508) -> 1.486 | FM17: =IF(OR($E17="2O",$E17="3O",$E17="4O"),1/VLOOKUP($E17,Tables!$AE$496:$AH$498,2,FALSE),1/VLOOKUP($E17,Tables!$L$532:$O$539,2, FALSE)) -> 2.475247525 | FN17: =EXP($FI17+($FJ17*LN($G17))+LN($F17)+$FK17*1+$FL17*$H17) -> 1.346460912 | FO17: =+$BT17*$CJ17*$CK17*$CL17*$CM17 -> 0.9647423062 | FP17: =$AG17 -> 1 | FQ17: =FO17*FP17*FN17 -> 1.298987806 | FR17: =CW17 -> 0.4424987441 | FS17: =FH17 -> 0.1603542469 | FT17: =FR17+FS17 -> 0.602852991 | FU17: =VLOOKUP($E17,Tables!$A$712:$D$722,2,FALSE) -> 0.0025 | FV17: =$AG17 -> 1 | FW17: =+$FT17*$FU17*$FV17 -> 0.001507132478 | FX17: =CW17+DF17 -> 2.498904127 | FY17: =FH17+FQ17 -> 1.459342053 | FZ17: =FX17+FY17 -> 3.95824618 | GA17: =VLOOKUP($E17,Tables!$A$712:$D$722,3,FALSE) -> 0.0022 | GB17: =$AG17 -> 1 | GC17: =+$FZ17*$GA17*$GB17 -> 0.008708141595 | GD17: =VLOOKUP($E17,Tables!$A$712:$D$722,4,FALSE) -> 0.87 | GE17: =$AG17 -> 1 | GF17: =GC17*GD17*GE17 -> 0.007576083188 | GG17: =DH17 -> 0.2107136877 | GH17: =DM17 -> 0.004657881517 | GI17: =DR17 -> 0.009315763033 | GJ17: =DW17 -> 0.01397364455 | GK17: =EB17 -> 0.01707889889 | GL17: =EG17 -> 0.1133417836 | GM17: =EL17 -> 0 | GN17: =EQ17 -> 0 | GO17: =EV17 -> 0 | GP17: =SUM(GG17:GO17) -> 0.3690816592 | GQ17: =FH17 -> 0.1603542469 | GR17: =GP17+GQ17 -> 0.5294359062 | GS17: =DJ17 -> 0.833677858 | GT17: =DO17 -> 0 | GU17: =DT17 -> 0.04896203293 | GV17: =DY17 -> 0.04896203293 | GW17: =ED17 -> 0.04896203293 | GX17: =EI17 -> 0.3427342305 | GY17: =EN17 -> 0 | GZ17: =ES17 -> 0 | HA17: =EX17 -> 0 | HB17: =SUM(GS17:HA17) -> 1.323298187 | HC17: =FQ17 -> 1.298987806 | HD17: =HB17+HC17 -> 2.622285993 | HE17: =GG17+GS17 -> 1.044391546 | HF17: 0.004657881517 | HG17: 0.05827779596 | HH17: 0.06293567748 | HI17: 0.06604093183 | HJ17: 0.4560760141 | HK17: 0 | HL17: 0 | HM17: 0 | HN17: =SUM(HE17:HM17) -> 1.692379847 | HO17: =GQ17+HC17 -> 1.459342053 | HP17: =SUM(HN17+HO17) -> 3.151721899 | HQ17: =+HD17 -> 2.622285993 | HR17: =+F17 -> 1.5 | HS17: =+HQ17/HR17 -> 1.748190662 | HT17: =+GR17 -> 0.5294359062 | HU17: =+F17 -> 1.5 | HV17: =+HT17/HU17 -> 0.3529572708 | HW17: =+HP17 -> 3.151721899 | HX17: =+F17 -> 1.5 | HY17: =IF(ISERROR(+HW17/HX17),"-",+HW17/HX17) -> 2.101147933
A22: Urban and Suburban Intersections
A23: Example 1 | B23: SH-321 | C23: 3rd Avenue | D23: Anywhere, USA | E23: 4SG | F23: Two-Way | G23: One-Way | H23: 15000 | I23: 7500 | J23: Not Present | K23: Not Present | L23: 4 | M23: 2 | N23: 40 | O23: Permitted | P23: Not Present | Q23: Not Present | R23: Statewide | S23: =VLOOKUP($R23,'Construction - Do Not Delete'!$K$83:$N$166,2,FALSE) -> Statewide | T23: =VLOOKUP($R23,'Construction - Do Not Delete'!$K$83:$N$166,3,FALSE) -> Statewide | U23: =VLOOKUP($R23,'Construction - Do Not Delete'!$K$83:$N$166,4,FALSE) -> Statewide | V23: =S23&E23 -> Statewide4SG | W23: N/A (1.000) | X23: N/A (1.000) | Y23: N/A (1.000) | AE23: =IF(AND(AA23="",AB23=""),"",SUM(AA23:AB23)) ->  | AF23: =IF(AND(AC23="",AD23=""),"",SUM(AC23:AD23)) ->  | AG23: =IF(AND($F23<>"One-Way",$G23<>"One-Way"),1/VLOOKUP($V23,'MI Specific Tables'!$E$4:$AA$35,22,FALSE),"NA") -> NA | AH23: =IF(AND($F23<>"One-Way",$G23<>"One-Way"),1/VLOOKUP($V23,'MI Specific Tables'!$E$4:$AA$35,23,FALSE),"NA") -> NA | AI23: =IF(AND($F23<>"One-Way",$G23<>"One-Way"),"NA",1/VLOOKUP($V23,'MI Specific Tables'!$AG$4:$AR$35,12,FALSE)) -> 0.3679175865 | AJ23: =IF(AND($F23<>"One-Way",$G23<>"One-Way"),1/VLOOKUP($V23,'MI Specific Tables'!$E$36:$AA$67,22,FALSE),"NA") -> NA | AK23: =IF(AND($F23<>"One-Way",$G23<>"One-Way"),1/VLOOKUP($V23,'MI Specific Tables'!$E$36:$AA$67,23,FALSE),"NA") -> NA | AL23: =IF(AND($F23<>"One-Way",$G23<>"One-Way"),"NA",1/VLOOKUP($V23,'MI Specific Tables'!$AG$36:$AR$67,12,FALSE)) -> 0.3799392097 | AM23: =IF(AND($F23<>"One-Way",$G23<>"One-Way"),1/(1+$AG23*$CH23),"NA") -> NA | AN23: =IF(AND($F23<>"One-Way",$G23<>"One-Way"),1/(1+$AH23*$CI23),"NA") -> NA | AO23: =IF(AND($F23<>"One-Way",$G23<>"One-Way"),"NA",1/(1+$AI23*$CL23)) -> 0.738633105 | AP23: =IF(AND($F23<>"One-Way",$G23<>"One-Way"),1/(1+$AJ23*$CJ23),"NA") -> NA | AQ23: =IF(AND($F23<>"One-Way",$G23<>"One-Way"),1/(1+$AK23*$CK23),"NA") -> NA | AR23: =IF(AND($F23<>"One-Way",$G23<>"One-Way"),"NA",1/(1+$AL23*$CM23)) -> 0.3904188849 | AS23: =IF($AA23="","",IF($AM23="NA","NA",$AM23*$CH23+((1-$AM23)*$AA23))) ->  | AT23: =IF($AB23="","",IF($AN23="NA","NA",$AN23*$CI23+((1-$AN23)*$AB23))) ->  | AU23: =IF(AE23="","",IF(AND($F23<>"One-Way",$G23<>"One-Way"),"NA",($AO23*$CL23+((1-$AO23)*$AE23)))) ->  | AV23: =IF($AC23="","",IF($AP23="NA","NA",$AP23*$CJ23+((1-$AP23)*$AC23))) ->  | AW23: =IF($AD23="","",IF($AQ23="NA","NA",$AQ23*$CK23+((1-$AQ23)*$AD23))) ->  | AX23: =IF(AF23="","",IF(AND($F23<>"One-Way",$G23<>"One-Way"),"NA",($AR23*$CM23+((1-$AR23)*$AF23)))) ->  | AY23: =IF(AND($AS23="",$AV23=""),"",IF(AND($F23<>"One-Way",$G23<>"One-Way"),SUM($AS23,$AV23),"NA")) ->  | AZ23: =IF(AND($AT23="",$AW23=""),"",IF(AND($F23<>"One-Way",$G23<>"One-Way"),SUM($AT23,$AW23),"NA")) ->  | BA23: =IF(AND(AU23="",AX23=""),"",IF(AND($F23<>"One-Way",$G23<>"One-Way"),"NA",SUM($AU23,$AX23))) ->  | BB23: =IF(AA23&AB23&AC23&AD23="","",IF(AND($F23<>"One-Way",$G23<>"One-Way"),SUM($AY23:$AZ23),$BA23)) ->  | BC23: =IF(AA23&AB23&AC23&AD23="","",$BB23-$DO23) ->  | BD23: =IF(AND($F23<>"One-Way",$G23<>"One-Way"),SUM($AS23)*$CH23^2,"NA") -> NA | BE23: =IF(AND($F23<>"One-Way",$G23<>"One-Way"),SUM($AT23)*$CI23^2,"NA") -> NA | BF23: =IF(AND($F23<>"One-Way",$G23<>"One-Way"),"NA",SUM($AU23)*$CL23^2) -> 0 | BG23: =IF(AND($F23<>"One-Way",$G23<>"One-Way"),SUM($AV23)*$CJ23^2,"NA") -> NA | BH23: =IF(AND($F23<>"One-Way",$G23<>"One-Way"),SUM($AW23)*$CK23^2,"NA") -> NA | BI23: =IF(AND($F23<>"One-Way",$G23<>"One-Way"),"NA",SUM($AX23)*$CM23^2) -> 0 | BJ23: =IF(AND($F23<>"One-Way",$G23<>"One-Way"),SQRT(SUM($AS23)*$CH23),"NA") -> NA | BK23: =IF(AND($F23<>"One-Way",$G23<>"One-Way"),SQRT(SUM($AT23)*$CI23),"NA") -> NA | BL23: =IF(AND($F23<>"One-Way",$G23<>"One-Way"),"NA",SQRT(SUM($AU23)*$CL23)) -> 0 | BM23: =IF(AND($F23<>"One-Way",$G23<>"One-Way"),SQRT(SUM($AV23)*$CJ23),"NA") -> NA | BN23: =IF(AND($F23<>"One-Way",$G23<>"One-Way"),SQRT(SUM($AW23)*$CK23),"NA") -> NA | BO23: =IF(AND($F23<>"One-Way",$G23<>"One-Way"),"NA",SQRT(SUM($AX23)*$CM23)) -> 0 | BP23: =H23/(H23+I23) -> 0.6666666667 | BQ23: =1-BP23 -> 0.3333333333 | BR23: =IF(OR($F23="One-Way",$G23="One-Way"),1,EXP(VLOOKUP($V23,'MI Specific Tables'!$E$4:$AA$35,15,FALSE)*IF($J23="Present",1,0))*EXP(VLOOKUP($V23,'MI Specific Tables'!$E$4:$AA$35,16,FALSE)*IF($K23="Present",1,0))) -> 1 | BS23: =IF(OR($F23="One-Way",$G23="One-Way"),1,EXP(VLOOKUP($V23,'MI Specific Tables'!$E$4:$AA$35,17,FALSE)*IF($P23="Present",1,0))) -> 1 | BT23: =(IF(OR($F23="One-Way",$G23="One-Way"),(EXP(VLOOKUP($V23,'MI Specific Tables'!$AG$4:$AR$35,11,FALSE)*($L23-4))*$BP23+(1-$BP23))*(EXP(VLOOKUP($V23,'MI Specific Tables'!$AG$4:$AR$35,11,FALSE)*($M23-2))*$BQ23+(1-$BQ23)),(EXP(VLOOKUP($V23,'MI Specific Tables'!$E$4:$AA$35,18,FALSE)*($L23-4))*$BP23+(1-$BP23))*(EXP(VLOOKUP($V23,'MI Specific Tables'!$E$4:$AA$35,18,FALSE)*($M23-2))*$BQ23+(1-$BQ23)))) -> 1 | BU23: =IF(OR($F23="One-Way",$G23="One-Way"),1,EXP(VLOOKUP($V23,'MI Specific Tables'!$E$4:$AA$35,19,FALSE)*($N23-40))) -> 1 | BV23: =IF(OR($F23="One-Way",$G23="One-Way"),1,EXP(VLOOKUP($V23,'MI Specific Tables'!$E$4:$AA$35,20,FALSE)*(1-IF($O23="Prohibited",0,1)))) -> 1 | BW23: =IF(OR($F23="One-Way",$G23="One-Way"),1,EXP(VLOOKUP($V23,'MI Specific Tables'!$E$4:$AA$35,21,FALSE)*IF($Q23="Present",1,0))) -> 1 | BX23: =IF(OR($F23="One-Way",$G23="One-Way"),1,EXP(VLOOKUP($V23,'MI Specific Tables'!$E$36:$AA$67,15,FALSE)*IF($J23="Present",1,0))*EXP(VLOOKUP($V23,'MI Specific Tables'!$E$36:$AA$67,16,FALSE)*IF($K23="Present",1,0))) -> 1 | BY23: =IF(OR($F23="One-Way",$G23="One-Way"),1,EXP(VLOOKUP($V23,'MI Specific Tables'!$E$36:$AA$67,17,FALSE)*IF($P23="Present",1,0))) -> 1 | BZ23: =(IF(OR($F23="One-Way",$G23="One-Way"),(EXP(VLOOKUP($V23,'MI Specific Tables'!$AG$36:$AR$67,11,FALSE)*($L23-4))*$BP23+(1-$BP23))*(EXP(VLOOKUP($V23,'MI Specific Tables'!$AG$36:$AR$67,11,FALSE)*($M23-2))*$BQ23+(1-$BQ23)),(EXP(VLOOKUP($V23,'MI Specific Tables'!$E$36:$AA$67,18,FALSE)*($L23-4))*$BP23+(1-$BP23))*(EXP(VLOOKUP($V23,'MI Specific Tables'!$E$36:$AA$67,18,FALSE)*($M23-2))*$BQ23+(1-$BQ23)))) -> 1 | CA23: =IF(OR($F23="One-Way",$G23="One-Way"),1,EXP(VLOOKUP($V23,'MI Specific Tables'!$E$36:$AA$67,19,FALSE)*($N23-40))) -> 1 | CB23: =IF(OR($F23="One-Way",$G23="One-Way"),1,EXP(VLOOKUP($V23,'MI Specific Tables'!$E$36:$AA$67,20,FALSE)*(1-IF($O23="Permitted",1,0)))) -> 1 | CC23: =IF(OR($F23="One-Way",$G23="One-Way"),1,EXP(VLOOKUP($V23,'MI Specific Tables'!$E$36:$AA$67,21,FALSE)*IF($Q23="Present",1,0))) -> 1 | CD23: =IF(AND($F23="Two-Way",$G23="Two-Way"),EXP(VLOOKUP($V23,'MI Specific Tables'!$E$4:$AA$35,2,FALSE)+VLOOKUP($V23,'MI Specific Tables'!$E$4:$AA$35,3,FALSE)*LN($H23)+VLOOKUP($V23,'MI Specific Tables'!$E$4:$AA$35,4,FALSE)*LN($I23)+VLOOKUP($V23,'MI Specific Tables'!$E$4:$AA$35,8,FALSE)+VLOOKUP($V23,'MI Specific Tables'!$E$4:$AA$35,9,FALSE)+VLOOKUP($V23,'MI Specific Tables'!$E$4:$AA$35,10,FALSE)+VLOOKUP($V23,'MI Specific Tables'!$E$4:$AA$35,11,FALSE)+VLOOKUP($V23,'MI Specific Tables'!$E$4:$AA$35,12,FALSE)+VLOOKUP($V23,'MI Specific Tables'!$E$4:$AA$35,13,FALSE)+VLOOKUP($V23,'MI Specific Tables'!$E$4:$AA$35,14,FALSE)),(EXP(VLOOKUP($V23,'MI Specific Tables'!$AG$4:$AR$35,2,FALSE)+VLOOKUP($V23,'MI Specific Tables'!$AG$4:$AR$35,3,FALSE)*LN(SUM($H23:$I23))+VLOOKUP($V23,'MI Specific Tables'!$AG$4:$AR$35,4,FALSE)+VLOOKUP($V23,'MI Specific Tables'!$AG$4:$AR$35,5,FALSE)+VLOOKUP($V23,'MI Specific Tables'!$AG$4:$AR$35,6,FALSE)+VLOOKUP($V23,'MI Specific Tables'!$AG$4:$AR$35,7,FALSE)+VLOOKUP($V23,'MI Specific Tables'!$AG$4:$AR$35,8,FALSE)+VLOOKUP($V23,'MI Specific Tables'!$AG$4:$AR$35,9,FALSE)+VLOOKUP($V23,'MI Specific Tables'!$AG$4:$AR$35,10,FALSE))*(1-VLOOKUP($E23,'MI Specific Tables'!$BJ$4:$BL$7,3,FALSE)))) -> 0.9425346785 | CE23: =IF(AND($F23="Two-Way",$G23="Two-Way"),EXP(VLOOKUP($V23,'MI Specific Tables'!$E$4:$AA$35,5,FALSE)+VLOOKUP($V23,'MI Specific Tables'!$E$4:$AA$35,6,FALSE)*LN($H23)+VLOOKUP($V23,'MI Specific Tables'!$E$4:$AA$35,7,FALSE)*LN($I23)+VLOOKUP($V23,'MI Specific Tables'!$E$4:$AA$35,8,FALSE)+VLOOKUP($V23,'MI Specific Tables'!$E$4:$AA$35,9,FALSE)+VLOOKUP($V23,'MI Specific Tables'!$E$4:$AA$35,10,FALSE)+VLOOKUP($V23,'MI Specific Tables'!$E$4:$AA$35,11,FALSE)+VLOOKUP($V23,'MI Specific Tables'!$E$4:$AA$35,12,FALSE)+VLOOKUP($V23,'MI Specific Tables'!$E$4:$AA$35,13,FALSE)+VLOOKUP($V23,'MI Specific Tables'!$E$4:$AA$35,14,FALSE)),(EXP(VLOOKUP($V23,'MI Specific Tables'!$AG$4:$AR$35,2,FALSE)+VLOOKUP($V23,'MI Specific Tables'!$AG$4:$AR$35,3,FALSE)*LN(SUM($H23:$I23))+VLOOKUP($V23,'MI Specific Tables'!$AG$4:$AR$35,4,FALSE)+VLOOKUP($V23,'MI Specific Tables'!$AG$4:$AR$35,5,FALSE)+VLOOKUP($V23,'MI Specific Tables'!$AG$4:$AR$35,6,FALSE)+VLOOKUP($V23,'MI Specific Tables'!$AG$4:$AR$35,7,FALSE)+VLOOKUP($V23,'MI Specific Tables'!$AG$4:$AR$35,8,FALSE)+VLOOKUP($V23,'MI Specific Tables'!$AG$4:$AR$35,9,FALSE)+VLOOKUP($V23,'MI Specific Tables'!$AG$4:$AR$35,10,FALSE))*(VLOOKUP($E23,'MI Specific Tables'!$BJ$4:$BL$7,3,FALSE)))) -> 0.0192354016 | CF23: =IF(AND($F23="Two-Way",$G23="Two-Way"),EXP(VLOOKUP($V23,'MI Specific Tables'!$E$36:$AA$67,2,FALSE)+VLOOKUP($V23,'MI Specific Tables'!$E$36:$AA$67,3,FALSE)*LN($H23)+VLOOKUP($V23,'MI Specific Tables'!$E$36:$AA$67,4,FALSE)*LN($I23)+VLOOKUP($V23,'MI Specific Tables'!$E$36:$AA$67,8,FALSE)+VLOOKUP($V23,'MI Specific Tables'!$E$36:$AA$67,9,FALSE)+VLOOKUP($V23,'MI Specific Tables'!$E$36:$AA$67,10,FALSE)+VLOOKUP($V23,'MI Specific Tables'!$E$36:$AA$67,11,FALSE)+VLOOKUP($V23,'MI Specific Tables'!$E$36:$AA$67,12,FALSE)+VLOOKUP($V23,'MI Specific Tables'!$E$36:$AA$67,13,FALSE)+VLOOKUP($V23,'MI Specific Tables'!$E$36:$AA$67,14,FALSE)),(EXP(VLOOKUP($V23,'MI Specific Tables'!$AG$36:$AR$67,2,FALSE)+VLOOKUP($V23,'MI Specific Tables'!$AG$36:$AR$67,3,FALSE)*LN(SUM($H23:$I23))+VLOOKUP($V23,'MI Specific Tables'!$AG$36:$AR$67,4,FALSE)+VLOOKUP($V23,'MI Specific Tables'!$AG$36:$AR$67,5,FALSE)+VLOOKUP($V23,'MI Specific Tables'!$AG$36:$AR$67,6,FALSE)+VLOOKUP($V23,'MI Specific Tables'!$AG$36:$AR$67,7,FALSE)+VLOOKUP($V23,'MI Specific Tables'!$AG$36:$AR$67,8,FALSE)+VLOOKUP($V23,'MI Specific Tables'!$AG$36:$AR$67,9,FALSE)+VLOOKUP($V23,'MI Specific Tables'!$AG$36:$AR$67,10,FALSE))*(1-VLOOKUP($E23,'MI Specific Tables'!$BJ$8:$BL$11,3,FALSE)))) -> 3.986192857 | CG23: =IF(AND($F23="Two-Way",$G23="Two-Way"),EXP(VLOOKUP($V23,'MI Specific Tables'!$E$36:$AA$67,5,FALSE)+VLOOKUP($V23,'MI Specific Tables'!$E$36:$AA$67,6,FALSE)*LN($H23)+VLOOKUP($V23,'MI Specific Tables'!$E$36:$AA$67,7,FALSE)*LN($I23)+VLOOKUP($V23,'MI Specific Tables'!$E$36:$AA$67,8,FALSE)+VLOOKUP($V23,'MI Specific Tables'!$E$36:$AA$67,9,FALSE)+VLOOKUP($V23,'MI Specific Tables'!$E$36:$AA$67,10,FALSE)+VLOOKUP($V23,'MI Specific Tables'!$E$36:$AA$67,11,FALSE)+VLOOKUP($V23,'MI Specific Tables'!$E$36:$AA$67,12,FALSE)+VLOOKUP($V23,'MI Specific Tables'!$E$36:$AA$67,13,FALSE)+VLOOKUP($V23,'MI Specific Tables'!$E$36:$AA$67,14,FALSE)),(EXP(VLOOKUP($V23,'MI Specific Tables'!$AG$36:$AR$67,2,FALSE)+VLOOKUP($V23,'MI Specific Tables'!$AG$36:$AR$67,3,FALSE)*LN(SUM($H23:$I23))+VLOOKUP($V23,'MI Specific Tables'!$AG$36:$AR$67,4,FALSE)+VLOOKUP($V23,'MI Specific Tables'!$AG$36:$AR$67,5,FALSE)+VLOOKUP($V23,'MI Specific Tables'!$AG$36:$AR$67,6,FALSE)+VLOOKUP($V23,'MI Specific Tables'!$AG$36:$AR$67,7,FALSE)+VLOOKUP($V23,'MI Specific Tables'!$AG$36:$AR$67,8,FALSE)+VLOOKUP($V23,'MI Specific Tables'!$AG$36:$AR$67,9,FALSE)+VLOOKUP($V23,'MI Specific Tables'!$AG$36:$AR$67,10,FALSE))*(VLOOKUP($E23,'MI Specific Tables'!$BJ$8:$BL$11,3,FALSE)))) -> 0.1232843152 | CH23: =CD23*PRODUCT($BR23:$BW23)*VLOOKUP($W23,Tables!$BB$6:$BC$16,2,FALSE)*VLOOKUP($X23,Tables!$BB$6:$BC$16,2,FALSE)*VLOOKUP($Y23,Tables!$BB$6:$BC$16,2,FALSE)*IF($Z23="",1,$Z23) -> 0.9425346785 | CI23: =CE23*PRODUCT($BR23:$BW23)*VLOOKUP($W23,Tables!$BB$6:$BC$16,2,FALSE)*VLOOKUP($X23,Tables!$BB$6:$BC$16,2,FALSE)*VLOOKUP($Y23,Tables!$BB$6:$BC$16,2,FALSE)*IF($Z23="",1,$Z23) -> 0.0192354016 | CJ23: =CF23*PRODUCT($BX23:$CC23)*VLOOKUP($W23,Tables!$BB$6:$BC$16,2,FALSE)*VLOOKUP($X23,Tables!$BB$6:$BC$16,2,FALSE)*VLOOKUP($Y23,Tables!$BB$6:$BC$16,2,FALSE)*IF($Z23="",1,$Z23) -> 3.986192857 | CK23: =CG23*PRODUCT($BX23:$CC23)*VLOOKUP($W23,Tables!$BB$6:$BC$16,2,FALSE)*VLOOKUP($X23,Tables!$BB$6:$BC$16,2,FALSE)*VLOOKUP($Y23,Tables!$BB$6:$BC$16,2,FALSE)*IF($Z23="",1,$Z23) -> 0.1232843152 | CL23: =SUM($CH23:$CI23) -> 0.9617700801 | CM23: =SUM($CJ23:$CK23) -> 4.109477172 | CN23: =SUM($CL23:$CM23) -> 5.071247253 | CO23: =IF(AND($F23="Two-Way",$G23="Two-Way"),$CN23*VLOOKUP($E23,'MI Specific Tables'!$BW$4:$BZ$7,4,FALSE),$CN23*VLOOKUP($E23,'MI Specific Tables'!$CI$4:$CL$7,4,FALSE)) -> 0.08621120329 | CP23: =IF(AND($F23="Two-Way",$G23="Two-Way"),$CN23*VLOOKUP($E23,'MI Specific Tables'!$CB$5:$CG$8,6,FALSE),$CN23*VLOOKUP($E23,'MI Specific Tables'!$CN$5:$CS$8,6,FALSE)) -> 0.06541908956 | CQ23: =IF(AND($F23="Two-Way",$G23="Two-Way"),$CP23*VLOOKUP($E23,'MI Specific Tables'!$CB$5:$CG$8,4,FALSE),$CP23*VLOOKUP($E23,'MI Specific Tables'!$CN$5:$CS$8,4,FALSE)) -> 0.04710174448 | CR23: =$CP23-$CQ23 -> 0.01831734508 | CS23: =$CE23*PRODUCT($BR23:$BW23) -> 0.0192354016 | CT23: =$CG23*PRODUCT($BX23:$CC23) -> 0.1232843152 | CU23: =IF(AND($F23="Two-Way",$G23="Two-Way"),$CH23*VLOOKUP($V23,'MI Specific Tables'!$AX$4:$BG$35,2,FALSE),$CL23*VLOOKUP($E23,'MI Specific Tables'!$BJ$4:$BU$7,4,FALSE)) -> 0.2308248192 | CV23: =IF(AND($F23="Two-Way",$G23="Two-Way"),$CJ23*VLOOKUP($V23,'MI Specific Tables'!$AX$36:$BG$67,2,FALSE),$CM23*VLOOKUP($E23,'MI Specific Tables'!$BJ$8:$BU$11,4,FALSE)) -> 1.19174838 | CW23: =IF(AND($F23="Two-Way",$G23="Two-Way"),$CH23*VLOOKUP($V23,'MI Specific Tables'!$AX$4:$BG$35,3,FALSE),$CL23*VLOOKUP($E23,'MI Specific Tables'!$BJ$4:$BU$7,5,FALSE)) -> 0.009617700801 | CX23: =IF(AND($F23="Two-Way",$G23="Two-Way"),$CJ23*VLOOKUP($V23,'MI Specific Tables'!$AX$36:$BG$67,3,FALSE),$CM23*VLOOKUP($E23,'MI Specific Tables'!$BJ$8:$BU$11,5,FALSE)) -> 0.04109477172 | CY23: =IF(AND($F23="Two-Way",$G23="Two-Way"),$CH23*VLOOKUP($V23,'MI Specific Tables'!$AX$4:$BG$35,4,FALSE),$CL23*VLOOKUP($E23,'MI Specific Tables'!$BJ$4:$BU$7,6,FALSE)) -> 0.009617700801 | CZ23: =IF(AND($F23="Two-Way",$G23="Two-Way"),$CJ23*VLOOKUP($V23,'MI Specific Tables'!$AX$36:$BG$67,4,FALSE),$CM23*VLOOKUP($E23,'MI Specific Tables'!$BJ$8:$BU$11,6,FALSE)) -> 0.04109477172 | DA23: =IF(AND($F23="Two-Way",$G23="Two-Way"),$CH23*VLOOKUP($V23,'MI Specific Tables'!$AX$4:$BG$35,5,FALSE),$CL23*VLOOKUP($E23,'MI Specific Tables'!$BJ$4:$BU$7,7,FALSE)) -> 0.009617700801 | DB23: =IF(AND($F23="Two-Way",$G23="Two-Way"),$CJ23*VLOOKUP($V23,'MI Specific Tables'!$AX$36:$BG$67,5,FALSE),$CM23*VLOOKUP($E23,'MI Specific Tables'!$BJ$8:$BU$11,7,FALSE)) -> 0.04109477172 | DC23: =IF(AND($F23="Two-Way",$G23="Two-Way"),$CH23*VLOOKUP($V23,'MI Specific Tables'!$AX$4:$BG$35,6,FALSE),$CL23*VLOOKUP($E23,'MI Specific Tables'!$BJ$4:$BU$7,8,FALSE)) -> 0.0288531024 | DD23: =IF(AND($F23="Two-Way",$G23="Two-Way"),$CJ23*VLOOKUP($V23,'MI Specific Tables'!$AX$36:$BG$67,6,FALSE),$CM23*VLOOKUP($E23,'MI Specific Tables'!$BJ$8:$BU$11,8,FALSE)) -> 0.08218954345 | DE23: =IF(AND($F23="Two-Way",$G23="Two-Way"),$CH23*VLOOKUP($V23,'MI Specific Tables'!$AX$4:$BG$35,7,FALSE),$CL23*VLOOKUP($E23,'MI Specific Tables'!$BJ$4:$BU$7,9,FALSE)) -> 0.5385912449 | DF23: =IF(AND($F23="Two-Way",$G23="Two-Way"),$CJ23*VLOOKUP($V23,'MI Specific Tables'!$AX$36:$BG$67,7,FALSE),$CM23*VLOOKUP($E23,'MI Specific Tables'!$BJ$8:$BU$11,9,FALSE)) -> 1.561601326 | DG23: =IF(AND($F23="Two-Way",$G23="Two-Way"),$CH23*VLOOKUP($V23,'MI Specific Tables'!$AX$4:$BG$35,8,FALSE),$CL23*VLOOKUP($E23,'MI Specific Tables'!$BJ$4:$BU$7,10,FALSE)) -> 0.07694160641 | DH23: =IF(AND($F23="Two-Way",$G23="Two-Way"),$CJ23*VLOOKUP($V23,'MI Specific Tables'!$AX$36:$BG$67,8,FALSE),$CM23*VLOOKUP($E23,'MI Specific Tables'!$BJ$8:$BU$11,10,FALSE)) -> 0.8629902062 | DI23: =IF(AND($F23="Two-Way",$G23="Two-Way"),$CH23*VLOOKUP($V23,'MI Specific Tables'!$AX$4:$BG$35,9,FALSE),$CL23*VLOOKUP($E23,'MI Specific Tables'!$BJ$4:$BU$7,11,FALSE)) -> 0.009617700801 | DJ23: =IF(AND($F23="Two-Way",$G23="Two-Way"),$CJ23*VLOOKUP($V23,'MI Specific Tables'!$AX$36:$BG$67,9,FALSE),$CM23*VLOOKUP($E23,'MI Specific Tables'!$BJ$8:$BU$11,11,FALSE)) -> 0.04109477172 | DK23: =IF(AND($F23="Two-Way",$G23="Two-Way"),$CH23*VLOOKUP($V23,'MI Specific Tables'!$AX$4:$BG$35,10,FALSE),$CL23*VLOOKUP($E23,'MI Specific Tables'!$BJ$4:$BU$7,12,FALSE)) -> 0.0384708032 | DL23: =IF(AND($F23="Two-Way",$G23="Two-Way"),$CJ23*VLOOKUP($V23,'MI Specific Tables'!$AX$36:$BG$67,10,FALSE),$CM23*VLOOKUP($E23,'MI Specific Tables'!$BJ$8:$BU$11,12,FALSE)) -> 0.1232843152 | DM23: =SUM($CN23:$CP23) -> 5.222877545 | DN23: =SUM($CL23,$CO23,$CQ23) -> 1.095083028 | DO23: =SUM($CM23,$CR23) -> 4.127794517
A26: Rural 2-Lane Trunkline Segments (MI)
A27: Example 1 | B27: SH-111 | C27: MP 0.0 to MP 1.5 | D27: Anywhere, USA | E27: Keweenaw | F27: =VLOOKUP($E27,'Construction - Do Not Delete'!$K$83:$N$166,3,FALSE) -> Superior | G27: 1 | H27: 10000 | I27: 6 | J27: 0 | K27: Level | L27: 0 | M27: 15 | N27: NP | O27: N/A (1.000) | P27: N/A (1.000) | Q27: N/A (1.000) | W27: =1/(G27*EXP(0.65)) -> 0.5220457768 | X27: =1/(G27*EXP(0.889)) -> 0.4110666139 | Y27: =1/(G27*EXP(1.069)) -> 0.3433516975 | Z27: =1/(G27*EXP(0.622)) -> 0.5368696239 | AA27: =1/(1+W27*BR27) -> 0.9254340133 | AB27: =1/(1+X27*BS27) -> 0.7943228722 | AC27: =1/(1+Y27*BT27) -> 0.9241492739 | AD27: =1/(1+Z27*BU27) -> 0.7841196363 | AE27: =IF(S27="","",AA27*BR27+((1-AA27)*S27)) ->  | AF27: =IF(T27="","",AB27*BS27+((1-AB27)*T27)) ->  | AG27: =IF(U27="","",AC27*BT27+((1-AC27)*U27)) ->  | AH27: =IF(V27="","",AD27*BU27+((1-AD27)*V27)) ->  | AI27: =IF(AND(S27="",U27=""),"",IF(AE27="",0,AE27)+IF(AG27="",0,AG27)) ->  | AJ27: =IF(AND(T27="",V27=""),"",IF(AF27="",0,AF27)+IF(AH27="",0,AH27)) ->  | AK27: =IF(AND(AI27="",AJ27=""),"",IF(AI27="",0,AI27)+IF(AJ27="",0,AJ27)) ->  | AL27: =IF(S27="","",AE27-BR27) ->  | AM27: =IF(T27="","",AF27-BS27) ->  | AN27: =IF(U27="","",AG27-BT27) ->  | AO27: =IF(V27="","",AH27-BU27) ->  | AP27: =IF(AND(AL27="",AN27=""),"",IF(AL27="",0,AL27)+IF(AN27="",0,AN27)) ->  | AQ27: =IF(AND(AM27="",AO27=""),"",IF(AM27="",0,AM27)+IF(AO27="",0,AO27)) ->  | AR27: =IF(AND(AP27="",AQ27=""),"",IF(AP27="",0,AP27)+IF(AQ27="",0,AQ27)) ->  | AS27: =EXP(-0.024*(I27-6)) -> 1 | AT27: =EXP(0.714*(J27/G27)) -> 1 | AU27: =EXP(0.021*(M27-15)) -> 1 | AV27: =IF(K27="Rolling",1.07,1) -> 1 | AW27: =EXP(0.005*L27*100) -> 1 | AX27: =OFFSET(Tables!$AP$1,MATCH(O27,Tables!$AP:$AP,0)-1,1) -> 1 | AY27: =OFFSET(Tables!$AP$1,MATCH(P27,Tables!$AP:$AP,0)-1,1) -> 1 | AZ27: =OFFSET(Tables!$AP$1,MATCH(Q27,Tables!$AP:$AP,0)-1,1) -> 1 | BA27: =IF(R27="",1,R27) -> 1 | BB27: =AS27*AT27*AV27*AW27*AX27*AY27*AZ27*BA27 -> 1 | BC27: =AS27*AT27*AV27*AW27*AX27*AY27*AZ27*BA27*AU27 -> 1 | BD27: =G27*EXP(BH27+(BN27*LN(H27))+BL27) -> 0.1543429244 | BE27: =G27*EXP(BI27+(BO27*LN(H27))+BM27) -> 0.6299074215 | BF27: =G27*EXP(BJ27+(BP27*LN(H27))+BL27) -> 0.2390443137 | BG27: =G27*EXP(BK27+(BQ27*LN(H27))+BM27) -> 0.5128164868 | BH27: -6.868 | BI27: -6.891 | BJ27: -14.333 | BK27: -13.461 | BL27: =VLOOKUP(F27,Rural_MI_Tables!$AC$3:$AE$9,2,FALSE) -> -0.186 | BM27: =VLOOKUP(F27,Rural_MI_Tables!$AC$3:$AE$9,3,FALSE) -> 0 | BN27: 0.563 | BO27: 0.698 | BP27: 1.421 | BQ27: 1.389 | BR27: =BD27*BB27 -> 0.1543429244 | BS27: =BE27*BB27 -> 0.6299074215 | BT27: =BF27*BC27 -> 0.2390443137 | BU27: =BG27*BC27 -> 0.5128164868 | BV27: =BR27+BT27 -> 0.393387238 | BW27: =BS27+BU27 -> 1.142723908 | BX27: =BV27+BW27 -> 1.536111146 | BY27: =IF(Inputs!$B$3="HSM",(Tables!$G$25/100),(Tables!$K$25/100)) -> 0.685 | BZ27: =+$BX27*BY27 -> 1.052236135 | CA27: =IF(Inputs!$B$3="HSM",Tables!$E$25/100,Tables!$I$25/100) -> 0.142 | CB27: =+$BV27*CA27 -> 0.0558609878 | CC27: =IF(Inputs!$B$3="HSM",Tables!$F$25/100,Tables!$J$25/100) -> 0.744 | CD27: =+$BW27*CC27 -> 0.8501865878 | CE27: =IF(Inputs!$B$3="HSM",(Tables!$G$26/100),(Tables!$K$26/100)) -> 0.001 | CF27: =+$BX27*CE27 -> 0.001536111146 | CG27: =IF(Inputs!$B$3="HSM",Tables!$E$26/100,Tables!$I$26/100) -> 0.009 | CH27: =+$BV27*CG27 -> 0.003540485142 | CI27: =IF(Inputs!$B$3="HSM",Tables!$F$26/100,Tables!$J$26/100) -> 0 | CJ27: =+$BW27*CI27 -> 0 | CK27: =IF(Inputs!$B$3="HSM",(Tables!$G$27/100),(Tables!$K$27/100)) -> 0.002 | CL27: =+$BX27*CK27 -> 0.003072222293 | CM27: =IF(Inputs!$B$3="HSM",Tables!$E$27/100,Tables!$I$27/100) -> 0.013 | CN27: =+$BV27*CM27 -> 0.005114034094 | CO27: =IF(Inputs!$B$3="HSM",Tables!$F$27/100,Tables!$J$27/100) -> 0 | CP27: =+$BW27*CO27 -> 0 | CQ27: =IF(Inputs!$B$3="HSM",(Tables!$G$28/100),(Tables!$K$28/100)) -> 0.04 | CR27: =+$BX27*CQ27 -> 0.06144444585 | CS27: =IF(Inputs!$B$3="HSM",Tables!$E$28/100,Tables!$I$28/100) -> 0.162 | CT27: =+$BV27*CS27 -> 0.06372873256 | CU27: =IF(Inputs!$B$3="HSM",Tables!$F$28/100,Tables!$J$28/100) -> 0.025 | CV27: =+$BW27*CU27 -> 0.02856809771 | CW27: =IF(Inputs!$B$3="HSM",(Tables!$G$29/100),(Tables!$K$29/100)) -> 0.129 | CX27: =+$BX27*CW27 -> 0.1981583379 | CY27: =IF(Inputs!$B$3="HSM",Tables!$E$29/100,Tables!$I$29/100) -> 0.267 | CZ27: =+$BV27*CY27 -> 0.1050343926 | DA27: =IF(Inputs!$B$3="HSM",Tables!$F$29/100,Tables!$J$29/100) -> 0.112 | DB27: =+$BW27*DA27 -> 0.1279850777 | DC27: =IF(Inputs!$B$3="HSM",(Tables!$G$30/100),(Tables!$K$30/100)) -> 0.022 | DD27: =+$BX27*DC27 -> 0.03379444522 | DE27: =IF(Inputs!$B$3="HSM",Tables!$E$30/100,Tables!$I$30/100) -> 0.013 | DF27: =+$BV27*DE27 -> 0.005114034094 | DG27: =IF(Inputs!$B$3="HSM",Tables!$F$30/100,Tables!$J$30/100) -> 0.029 | DH27: =+$BW27*DG27 -> 0.03313899334 | DI27: =BY27+CE27+CK27+CQ27+CW27+DC27 -> 0.879 | DJ27: =+$BX27*DI27 -> 1.350241698 | DK27: =CA27+CG27+CM27+CS27+CY27+DE27 -> 0.606 | DL27: =+$BV27*DK27 -> 0.2383926662 | DM27: =CC27+CI27+CO27+CU27+DA27+DG27 -> 0.91 | DN27: =+$BW27*DM27 -> 1.039878757 | DO27: =IF(Inputs!$B$3="HSM",(Tables!$G$33/100),(Tables!$K$33/100)) -> 0.011 | DP27: =+$BX27*DO27 -> 0.01689722261 | DQ27: =IF(Inputs!$B$3="HSM",Tables!$E$33/100,Tables!$I$33/100) -> 0.043 | DR27: =+$BV27*DQ27 -> 0.01691565124 | DS27: =IF(Inputs!$B$3="HSM",Tables!$F$33/100,Tables!$J$33/100) -> 0.008 | DT27: =+$BW27*DS27 -> 0.009141791267 | DU27: =IF(Inputs!$B$3="HSM",(Tables!$G$34/100),(Tables!$K$34/100)) -> 0.013 | DV27: =+$BX27*DU27 -> 0.0199694449 | DW27: =IF(Inputs!$B$3="HSM",Tables!$E$34/100,Tables!$I$34/100) -> 0.089 | DX27: =+$BV27*DW27 -> 0.03501146418 | DY27: =IF(Inputs!$B$3="HSM",Tables!$F$34/100,Tables!$J$34/100) -> 0.005 | DZ27: =+$BW27*DY27 -> 0.005713619542 | EA27: =IF(Inputs!$B$3="HSM",(Tables!$G$35/100),(Tables!$K$35/100)) -> 0.054 | EB27: =+$BX27*EA27 -> 0.0829500019 | EC27: =IF(Inputs!$B$3="HSM",Tables!$E$35/100,Tables!$I$35/100) -> 0.173 | ED27: =+$BV27*EC27 -> 0.06805599218 | EE27: =IF(Inputs!$B$3="HSM",Tables!$F$35/100,Tables!$J$35/100) -> 0.04 | EF27: =+$BW27*EE27 -> 0.04570895633 | EG27: =IF(Inputs!$B$3="HSM",(Tables!$G$36/100),(Tables!$K$36/100)) -> 0.026 | EH27: =+$BX27*EG27 -> 0.03993888981 | EI27: =IF(Inputs!$B$3="HSM",Tables!$E$36/100,Tables!$I$36/100) -> 0.059 | EJ27: =+$BV27*EI27 -> 0.02320984704 | EK27: =IF(Inputs!$B$3="HSM",Tables!$F$36/100,Tables!$J$36/100) -> 0.022 | EL27: =+$BW27*EK27 -> 0.02513992598 | EM27: =IF(Inputs!$B$3="HSM",(Tables!$G$37/100),(Tables!$K$37/100)) -> 0.017 | EN27: =+$BX27*EM27 -> 0.02611388949 | EO27: =IF(Inputs!$B$3="HSM",Tables!$E$37/100,Tables!$I$37/100) -> 0.03 | EP27: =+$BV27*EO27 -> 0.01180161714 | EQ27: =IF(Inputs!$B$3="HSM",Tables!$F$37/100,Tables!$J$37/100) -> 0.015 | ER27: =+$BW27*EQ27 -> 0.01714085862 | ES27: =DO27+DU27+EA27+EG27+EM27 -> 0.121 | ET27: =+$BX27*ES27 -> 0.1858694487 | EU27: =DQ27+DW27+EC27+EI27+EO27 -> 0.394 | EV27: =+$BV27*EU27 -> 0.1549945718 | EW27: =DS27+DY27+EE27+EK27+EQ27 -> 0.09 | EX27: =DT27+DZ27+EF27+EL27+ER27 -> 0.1028451517 | EY27: =+BW27 -> 1.142723908 | EZ27: =+$G27 -> 1 | FA27: =+EY27/EZ27 -> 1.142723908 | FB27: =+BV27 -> 0.393387238 | FC27: =+$G27 -> 1 | FD27: =+FB27/FC27 -> 0.393387238 | FE27: =+BX27 -> 1.536111146 | FF27: =+$G27 -> 1 | FG27: =+FE27/FF27 -> 1.536111146
A30: Rural Multlilane Trunkline (MI)
A31: Example 1 | B31: SH-222 | C31: MP 0.0 to MP 1.5 | D31: Anywhere, USA | E31: Macomb | F31: =VLOOKUP($E31,'Construction - Do Not Delete'!$K$83:$N$166,3,FALSE) -> Metro | G31: 4D | H31: 1 | I31: 15000 | J31: 2 | K31: 6 | L31: 0 | M31: 20 | N31: N/A (1.000) | O31: N/A (1.000) | P31: N/A (1.000) | V31: =IF(G31="4U",(1/(H31*EXP(4.961))),(1/(H31*EXP(6.877)))) -> 0.001031233109 | W31: =IF(G31="4U",(1/(H31*EXP(21.535))),(1/(H31*EXP(1.649)))) -> 0.1922420546 | X31: =IF(G31="4U",(1/(H31*EXP(0.396))),(1/(H31*EXP(0.886)))) -> 0.4123016654 | Y31: =IF(G31="4U",(1/(H31*EXP(2.443))),(1/(H31*EXP(1.551)))) -> 0.2120358319 | Z31: =1/(1+V31*BP31) -> 0.9996510063 | AA31: =1/(1+W31*BQ31) -> 0.7682835366 | AB31: =1/(1+X31*BR31) -> 0.8857496177 | AC31: =1/(1+Y31*BS31) -> 0.8101355483 | AD31: =IF(R31="","",Z31*BP31+((1-Z31)*R31)) ->  | AE31: =IF(S31="","",AA31*BQ31+((1-AA31)*S31)) ->  | AF31: =IF(T31="","",AB31*BR31+((1-AB31)*T31)) ->  | AG31: =IF(U31="","",AC31*BS31+((1-AC31)*U31)) ->  | AH31: =IF(AND(AD31="",AF31=""),"",IF(AD31="",0,AD31)+IF(AF31="",0,AF31)) ->  | AI31: =IF(AND(AE31="",AG31=""),"",IF(AE31="",0,AE31)+IF(AG31="",0,AG31)) ->  | AJ31: =IF(AND(AH31="",AI31=""),"",IF(AH31="",0,AH31)+IF(AI31="",0,AI31)) ->  | AK31: =IF(AD31="","",AD31-BP31) ->  | AL31: =IF(AE31="","",AE31-BQ31) ->  | AM31: =IF(AF31="","",AF31-BR31) ->  | AN31: =IF(AG31="","",AG31-BS31) ->  | AO31: =IF(AND(AK31="",AM31=""),"",IF(AK31="",0,AK31)+IF(AM31="",0,AM31)) ->  | AP31: =IF(AND(AL31="",AN31=""),"",IF(AL31="",0,AL31)+IF(AN31="",0,AN31)) ->  | AQ31: =IF(AND(AO31="",AP31=""),"",IF(AO31="",0,AO31)+IF(AP31="",0,AP31)) ->  | AR31: =IF(G31="4D",EXP(-0.064*(J31-2)),1) -> 1 | AS31: =EXP(-0.037*(K31-6)) -> 1 | AT31: =EXP(0.902*(L31/H31)) -> 1 | AU31: =IF(G31="4U",(EXP(0.0136*(M31-20))),(EXP(0.01*(M31-20)))) -> 1 | AV31: =OFFSET(Tables!$AP$1,MATCH(N31,Tables!$AP:$AP,0)-1,1) -> 1 | AW31: =OFFSET(Tables!$AP$1,MATCH(O31,Tables!$AP:$AP,0)-1,1) -> 1 | AX31: =OFFSET(Tables!$AP$1,MATCH(P31,Tables!$AP:$AP,0)-1,1) -> 1 | AY31: =IF(Q31="",1,Q31) -> 1 | AZ31: =AR31*AS31*AT31*AV31*AW31*AX31*AY31 -> 1 | BA31: =AR31*AS31*AT31*AV31*AW31*AX31*AY31*AU31 -> 1 | BB31: =H31*EXP(BF31+(BL31*LN(I31))+BJ31) -> 0.3385418396 | BC31: =H31*EXP(BG31+(BM31*LN(I31))+BK31) -> 1.568870025 | BD31: =H31*EXP(BH31+(BN31*LN(I31))+BJ31) -> 0.3128467151 | BE31: =H31*EXP(BI31+(BO31*LN(I31))+BK31) -> 1.105291199 | BF31: =IF(G31="4D",-9.17,-10.091) -> -9.17 | BG31: =IF(G31="4D",-7.675,-6.056) -> -7.675 | BH31: =IF(G31="4D",-10.749,-14.38) -> -10.749 | BI31: =IF(G31="4D",-14.689,-14.467) -> -14.689 | BJ31: =VLOOKUP(F31,Rural_MI_Tables!$AC$10:$AE$16,2,FALSE) -> 0 | BK31: =VLOOKUP(F31,Rural_MI_Tables!$AC$10:$AE$16,3,FALSE) -> 0 | BL31: =IF(G31="4D",0.841,0.883) -> 0.841 | BM31: =IF(G31="4D",0.845,0.639) -> 0.845 | BN31: =IF(G31="4D",0.997,1.412) -> 0.997 | BO31: =IF(G31="4D",1.538,1.503) -> 1.538 | BP31: =BB31*AZ31 -> 0.3385418396 | BQ31: =BC31*AZ31 -> 1.568870025 | BR31: =BD31*BA31 -> 0.3128467151 | BS31: =BE31*BA31 -> 1.105291199 | BT31: =BP31+BR31 -> 0.6513885548 | BU31: =BQ31+BS31 -> 2.674161223 | BV31: =BT31+BU31 -> 3.325549778 | BW31: =BY31+CA31 -> 0.006513885548 | BX31: =IF(G31="4U",0.01,0.01) -> 0.01 | BY31: =+$BT31*BX31 -> 0.006513885548 | BZ31: =IF(G31="4U",0,0) -> 0 | CA31: =+$BU31*BZ31 -> 0 | CB31: =CD31+CF31 -> 0.0130277711 | CC31: =IF(G31="4U",0.05,0.02) -> 0.02 | CD31: =+$BT31*CC31 -> 0.0130277711 | CE31: 0 | CF31: 0 | CG31: =CI31+CK31 -> 0.3507244944 | CH31: =IF($G31="4U",0.1,0.21) -> 0.21 | CI31: =+$BT31*CH31 -> 0.1367915965 | CJ31: =IF($G31="4U",0.06,0.08) -> 0.08 | CK31: =+$BU31*CJ31 -> 0.2139328979 | CL31: =CN31+CP31 -> 1.625749786 | CM31: =IF($G31="4U",0.21,0.32) -> 0.32 | CN31: =+$BT31*CM31 -> 0.2084443375 | CO31: =IF($G31="4U",0.47,0.53) -> 0.53 | CP31: =+$BU31*CO31 -> 1.417305448 | CQ31: =CS31+CU31 -> 0.1258220355 | CR31: =IF($G31="4U",0.15,0.07) -> 0.07 | CS31: =+$BT31*CR31 -> 0.04559719883 | CT31: =IF($G31="4U",0.06,0.03) -> 0.03 | CU31: =+$BU31*CT31 -> 0.08022483669 | CV31: =CX31+CZ31 -> 0.05279715442 | CW31: =IF($G31="4U",0.09,0.04) -> 0.04 | CX31: =+$BT31*CW31 -> 0.02605554219 | CY31: =IF($G31="4U",0.02,0.01) -> 0.01 | CZ31: =+$BU31*CY31 -> 0.02674161223 | DA31: =DC31+DE31 -> 0.5372297099 | DB31: =IF($G31="4U",0.23,0.25) -> 0.25 | DC31: =+$BT31*DB31 -> 0.1628471387 | DD31: =IF($G31="4U",0.16,0.14) -> 0.14 | DE31: =+$BU31*DD31 -> 0.3743825712 | DF31: =DH31+DJ31 -> 0.4604352234 | DG31: =IF($G31="4U",0.09,0.05) -> 0.05 | DH31: =+$BT31*DG31 -> 0.03256942774 | DI31: =IF($G31="4U",0.16,0.16) -> 0.16 | DJ31: =+$BU31*DI31 -> 0.4278657957 | DK31: =DM31+DO31 -> 0.1532497178 | DL31: =IF($G31="4U",0.06,0.03) -> 0.03 | DM31: =+$BT31*DL31 -> 0.01954165664 | DN31: =IF($G31="4U",0.06,0.05) -> 0.05 | DO31: =+$BU31*DN31 -> 0.1337080612 | DP31: =+BU31 -> 2.674161223 | DQ31: =+$H31 -> 1 | DR31: =+DP31/DQ31 -> 2.674161223 | DS31: =+BT31 -> 0.6513885548 | DT31: =+$H31 -> 1 | DU31: =+DS31/DT31 -> 0.6513885548 | DV31: =+BV31 -> 3.325549778 | DW31: =+$H31 -> 1 | DX31: =+DV31/DW31 -> 3.325549778
A34: Rural County Federal Aid Segments (MI)
A35: Example 1 | B35: SH-333 | C35: MP 0.0 to MP 1.5 | D35: Anywhere, USA | E35: 1 | F35: 10000 | G35: 6 | H35: 0 | I35: 15 | J35: N/A (1.000) | K35: N/A (1.000) | L35: N/A (1.000) | R35: =(1/(E35*EXP(1.435))) -> 0.238115364 | S35: =(1/(E35*EXP(1.549))) -> 0.212460328 | T35: =(1/(E35*EXP(1.668))) -> 0.1886239365 | U35: =(1/(E35*EXP(1.637))) -> 0.1945628562 | V35: =1/(1+R35*BK35) -> 0.916026524 | W35: =1/(1+S35*BL35) -> 0.8224779805 | X35: =1/(1+T35*BM35) -> 0.9471186749 | Y35: =1/(1+U35*BN35) -> 0.9121043746 | Z35: =IF(N35="","",V35*BK35+((1-V35)*N35)) ->  | AA35: =IF(O35="","",W35*BL35+((1-W35)*O35)) ->  | AB35: =IF(P35="","",X35*BM35+((1-X35)*P35)) ->  | AC35: =IF(Q35="","",Y35*BN35+((1-Y35)*Q35)) ->  | AD35: =IF(AND(Z35="",AB35=""),"",IF(Z35="",0,Z35)+IF(AB35="",0,AB35)) ->  | AE35: =IF(AND(AA35="",AC35=""),"",IF(AA35="",0,AA35)+IF(AC35="",0,AC35)) ->  | AF35: =IF(AND(AD35="",AE35=""),"",IF(AD35="",0,AD35)+IF(AE35="",0,AE35)) ->  | AG35: =IF(N35="","",Z35-BK35) ->  | AH35: =IF(O35="","",AA35-BL35) ->  | AK35: =IF(AND(AG35="",AI35=""),"",IF(AG35="",0,AG35)+IF(AI35="",0,AI35)) ->  | AL35: =IF(AND(AH35="",AJ35=""),"",IF(AH35="",0,AH35)+IF(AJ35="",0,AJ35)) ->  | AM35: =IF(AND(AK35="",AL35=""),"",IF(AK35="",0,AK35)+IF(AL35="",0,AL35)) ->  | AN35: =EXP(-0.029*(G35-6)) -> 1 | AO35: =EXP(0.869*(H35/E35)) -> 1 | AP35: =EXP(0.01*(I35-15)) -> 1 | AQ35: =OFFSET(Tables!$AP$1,MATCH(J35,Tables!$AP:$AP,0)-1,1) -> 1 | AR35: =OFFSET(Tables!$AP$1,MATCH(K35,Tables!$AP:$AP,0)-1,1) -> 1 | AS35: =OFFSET(Tables!$AP$1,MATCH(L35,Tables!$AP:$AP,0)-1,1) -> 1 | AT35: =IF(M35="",1,M35) -> 1 | AU35: =AN35*AO35*AQ35*AR35*AS35*AT35 -> 1 | AV35: =AN35*AO35*AQ35*AR35*AS35*AT35*AP35 -> 1 | AW35: 1 | AX35: 1 | AY35: =E35*EXP(BC35+(BG35*LN(F35))) -> 0.3849875306 | AZ35: =E35*EXP(BD35+(BH35*LN(F35))) -> 1.015897993 | BA35: =E35*EXP(BE35+(BI35*LN(F35))) -> 0.2960064165 | BB35: =E35*EXP(BF35+(BJ35*LN(F35))) -> 0.4952936831 | BC35: -7.061 | BD35: -6.017 | BE35: =-11.929 -> -11.929 | BF35: -9.784 | BG35: 0.663 | BH35: 0.655 | BI35: 1.163 | BJ35: 0.986 | BK35: =AY35*AU35*AW35 -> 0.3849875306 | BL35: =AZ35*AU35*AX35 -> 1.015897993 | BM35: =BA35*AW35*AV35 -> 0.2960064165 | BN35: =BB35*AX35*AV35 -> 0.4952936831 | BO35: =BK35+BM35 -> 0.6809939471 | BP35: =BL35+BN35 -> 1.511191676 | BQ35: =BO35+BP35 -> 2.192185623 | BR35: =BT35+BV35 -> 0.006809939471 | BS35: 0.01 | BT35: =+$BO35*BS35 -> 0.006809939471 | BU35: 0 | BV35: =+$BP35*BU35 -> 0 | BW35: =BY35+CA35 -> 0.006809939471 | BX35: 0.01 | BY35: =+$BO35*BX35 -> 0.006809939471 | BZ35: 0 | CA35: 0 | CB35: =CD35+CF35 -> 0.32435173 | CC35: 0.21 | CD35: =+$BO35*CC35 -> 0.1430087289 | CE35: 0.12 | CF35: =+$BP35*CE35 -> 0.1813430011 | CG35: =CI35+CK35 -> 1.300849707 | CH35: 0.49 | CI35: =+$BO35*CH35 -> 0.3336870341 | CJ35: 0.64 | CK35: =+$BP35*CJ35 -> 0.9671626728 | CL35: =CN35+CP35 -> 0.0657655687 | CM35: 0.03 | CN35: =+$BO35*CM35 -> 0.02042981841 | CO35: 0.03 | CP35: =+$BP35*CO35 -> 0.04533575029 | CQ35: =CS35+CU35 -> 0.06278149306 | CR35: 0.07 | CS35: =+$BO35*CR35 -> 0.0476695763 | CT35: 0.01 | CU35: =+$BP35*CT35 -> 0.01511191676 | CV35: =CX35+CZ35 -> 0.1972967061 | CW35: 0.09 | CX35: =+$BO35*CW35 -> 0.06128945524 | CY35: 0.09 | CZ35: =+$BP35*CY35 -> 0.1360072509 | DA35: =DC35+DE35 -> 0.148135092 | DB35: 0.04 | DC35: =+$BO35*DB35 -> 0.02723975788 | DD35: 0.08 | DE35: =+$BP35*DD35 -> 0.1208953341 | DF35: =DH35+DJ35 -> 0.07406754599 | DG35: 0.02 | DH35: =+$BO35*DG35 -> 0.01361987894 | DI35: 0.04 | DJ35: =+$BP35*DI35 -> 0.06044766705 | DK35: =+BP35 -> 1.511191676 | DL35: =+$E35 -> 1 | DM35: =+DK35/DL35 -> 1.511191676 | DN35: =+BO35 -> 0.6809939471 | DO35: =+$E35 -> 1 | DP35: =+DN35/DO35 -> 0.6809939471 | DQ35: =+BQ35 -> 2.192185623 | DR35: =+$E35 -> 1 | DS35: =+DQ35/DR35 -> 2.192185623
A38: Rural County Non-Federal Aid Segments (MI)
A39: Example 1 | B39: SH-444 | C39: MP 0.0 to MP 1.5 | D39: Anywhere, USA | E39: Paved | F39: 1 | G39: 250 | H39: 16 | I39: 0 | J39: 0 | K39: N/A (1.000) | L39: N/A (1.000) | M39: N/A (1.000) | Q39: =(1/(F39*EXP(1.593))) -> 0.2033147516 | R39: =(1/(F39*EXP(1.396))) -> 0.2475853272 | S39: =1/(1+Q39*AQ39) -> 0.9911095755 | T39: =1/(1+R39*AR39) -> 0.9806397936 | U39: =IF(O39="","",S39*AQ39+((1-S39)*O39)) ->  | V39: =IF(P39="","",T39*AR39+((1-T39)*P39)) ->  | W39: =IF(AND(U39="",V39=""),"",IF(U39="",0,U39)+IF(V39="",0,V39)) ->  | X39: =IF(U39="","",U39-CP39) ->  | Y39: =IF(V39="","",V39-CM39) ->  | Z39: =IF(AND(X39="",Y39=""),"",IF(X39="",0,X39)+IF(Y39="",0,Y39)) ->  | AA39: =IF(E39="Paved",0.59,1) -> 0.59 | AB39: =IF(H39>=18,0.7,1) -> 1 | AC39: =EXP(0.869*(I39/F39)) -> 1 | AD39: =IF(J39>=5,1.14,1) -> 1 | AE39: =OFFSET(Tables!$AP$1,MATCH(K39,Tables!$AP:$AP,0)-1,1) -> 1 | AF39: =OFFSET(Tables!$AP$1,MATCH(L39,Tables!$AP:$AP,0)-1,1) -> 1 | AG39: =OFFSET(Tables!$AP$1,MATCH(M39,Tables!$AP:$AP,0)-1,1) -> 1 | AH39: =IF(N39="",1,N39) -> 1 | AI39: =AA39*AB39*AC39*AD39*AE39*AF39*AG39*AH39 -> 0.59 | AJ39: 1 | AK39: =F39*EXP(AM39+(AO39*LN(G39))) -> 0.07477904635 | AL39: =F39*EXP(AN39+(AP39*LN(G39))) -> 0.1351523354 | AM39: -6.911 | AN39: -6.413 | AO39: 0.782 | AP39: 0.799 | AQ39: =AK39*AI39*AJ39 -> 0.04411963735 | AR39: =AL39*AJ39*AI39 -> 0.07973987786 | AS39: =AR39+AQ39 -> 0.1238595152 | AT39: =AV39+AX39 -> 0.0004411963735 | AU39: =IF(E39="Paved",0.01,0.01) -> 0.01 | AV39: =+AQ39*AU39 -> 0.0004411963735 | AW39: 0 | AX39: 0 | AY39: =BA39+BC39 -> 0.001764785494 | AZ39: =IF(E39="Paved",0.04,0.01) -> 0.04 | BA39: =+AQ39*AZ39 -> 0.001764785494 | BB39: 0 | BC39: 0 | BD39: =BF39+BH39 -> 0.01387952858 | BE39: =IF(E39="Paved",0.17,0.27) -> 0.17 | BF39: =+AQ39*BE39 -> 0.007500338349 | BG39: =IF(E39="Paved",0.08,0.12) -> 0.08 | BH39: =+AR39*BG39 -> 0.006379190229 | BI39: =BK39+BM39 -> 0.07662291149 | BJ39: =IF(E39="Paved",0.58,0.6) -> 0.58 | BK39: =+AQ39*BJ39 -> 0.02558938966 | BL39: =IF(E39="Paved",0.64,0.65) -> 0.64 | BM39: =+AR39*BL39 -> 0.05103352183 | BN39: =BP39+BR39 -> 0.005395576982 | BO39: =IF(E39="Paved",0.05,0.02) -> 0.05 | BP39: =+AQ39*BO39 -> 0.002205981867 | BQ39: =IF(E39="Paved",0.04,0.05) -> 0.04 | BR39: =+AR39*BQ39 -> 0.003189595115 | BS39: =BU39+BW39 -> 0.003800779425 | BT39: =IF(E39="Paved",0.05,0.02) -> 0.05 | BU39: =+AQ39*BT39 -> 0.002205981867 | BV39: =IF(E39="Paved",0.02,0.02) -> 0.02 | BW39: =+AR39*BV39 -> 0.001594797557 | BX39: =BZ39+CB39 -> 0.008585172096 | BY39: =IF(E39="Paved",0.05,0.02) -> 0.05 | BZ39: =+AQ39*BY39 -> 0.002205981867 | CA39: =IF(E39="Paved",0.08,0.04) -> 0.08 | CB39: =+AR39*CA39 -> 0.006379190229 | CC39: =CE39+CG39 -> 0.008500178128 | CD39: =IF(E39="Paved",0.03,0.03) -> 0.03 | CE39: =+AQ39*CD39 -> 0.00132358912 | CF39: =IF(E39="Paved",0.09,0.09) -> 0.09 | CG39: =+AR39*CF39 -> 0.007176589008 | CH39: =CJ39+CL39 -> 0.00486938664 | CI39: =IF(E39="Paved",0.02,0.01) -> 0.02 | CJ39: =+AQ39*CI39 -> 0.000882392747 | CK39: =IF(E39="Paved",0.05,0.03) -> 0.05 | CL39: =+AR39*CK39 -> 0.003986993893 | CM39: =+AR39 -> 0.07973987786 | CN39: =+$F39 -> 1 | CO39: =+CM39/CN39 -> 0.07973987786 | CP39: =AQ39 -> 0.04411963735 | CQ39: =+$F39 -> 1 | CR39: =+CP39/CQ39 -> 0.04411963735 | CS39: =+AS39 -> 0.1238595152 | CT39: =+$F39 -> 1 | CU39: =+CS39/CT39 -> 0.1238595152
A42: Rural Unsignalized Intersections (MI)
A43: Example 1 | B43: SH-555 | C43: 1st Street | D43: Anywhere, USA | E43: Bay | F43: =VLOOKUP($E43,'Construction - Do Not Delete'!$K$83:$N$166,3,FALSE) -> Bay | G43: 4ST | H43: 8000 | I43: 1000 | J43: 0 | K43: 0 | L43: 0 | M43: 0 | N43: NP | O43: N/A (1.000) | P43: N/A (1.000) | T43: =1/AX43 -> 0.4861448712 | U43: =1/AY43 -> 0.2499375156 | V43: =1/(1+T43*EV43) -> 0.8121796372 | W43: =1/(1+U43*EU43) -> 0.7950320274 | X43: =IF(R43="","",V43*EV43+((1-V43)*R43)) ->  | Y43: =IF(S43="","",W43*EU43+((1-W43)*S43)) ->  | Z43: =IF(AND(X43="",Y43=""),"",IF(X43="",0,X43)+IF(Y43="",0,Y43)) ->  | AA43: =IF(R43="","",X43-EV43) ->  | AB43: =IF(S43="","",Y43-EU43) ->  | AC43: =IF(AND(R43="",S43=""),"",IF(AA43="",0,AA43)+IF(AB43="",0,AB43)) ->  | AD43: =IF($J43>=10,1.1,1) -> 1 | AE43: =IF($G43="3ST",(IF($L43=0,1,(HLOOKUP($L43,Tables!$AF$20:$AI$26,3,FALSE)))),(IF($G43="4ST",(IF($L43=0,1,(HLOOKUP($L43,Tables!$AF$20:$AI$26,5,FALSE)))),(IF($L43=0,1,(HLOOKUP($L43,Tables!$AF$20:$AI$26,7,FALSE))))))) -> 1 | AF43: =IF($G43="3ST",(IF($M43=0,1,(HLOOKUP($M43,Tables!$AF$36:$AI$42,3,FALSE)))),(IF($G43="4ST",(IF($M43=0,1,(HLOOKUP($M43,Tables!$AF$36:$AI$42,5,FALSE)))),(IF($M43=0,1,(HLOOKUP($M43,Tables!$AF$36:$AI$42,7,FALSE))))))) -> 1 | AG43: =IF(($N43="NP"),1,(1-0.38*(IF(Inputs!$B$3="HSM",(VLOOKUP( $G43,Tables!$B$97:$F$99,4,FALSE)),(VLOOKUP($G43,Tables!$B$97:$H$99,6,FALSE)))))) -> 1 | AH43: =IF($K43>2,1.12,1) -> 1 | AI43: =OFFSET(Tables!$AR$1,MATCH(O43,Tables!$AR:$AR,0)-1,1) -> 1 | AJ43: =OFFSET(Tables!$AR$1,MATCH(P43,Tables!$AR:$AR,0)-1,1) -> 1 | AK43: =IF(Q43="",1,Q43) -> 1 | AL43: =+AD43*AE43*AF43*AG43*AH43*AI43*AJ43*AK43 -> 1 | AM43: =IF($G43="3ST",Rural_MI_Tables!$K$4,IF($G43="4ST",Rural_MI_Tables!$C$4,"ERROR")) -> -8.607 | AN43: =IF($G43="3ST",Rural_MI_Tables!$N$4,IF($G43="4ST",Rural_MI_Tables!$F$4,"ERROR")) -> -7.178 | AO43: =IF($G43="3ST",Rural_MI_Tables!$K$5,IF($G43="4ST",Rural_MI_Tables!$C$5,"ERROR")) -> 0.414 | AP43: =IF($G43="3ST",Rural_MI_Tables!$N$5,IF($G43="4ST",Rural_MI_Tables!$F$5,"ERROR")) -> 0.497 | AQ43: =IF($G43="3ST",Rural_MI_Tables!$K$6,IF($G43="4ST",Rural_MI_Tables!$C$6,"ERROR")) -> 0.582 | AR43: =IF($G43="3ST",Rural_MI_Tables!$N$6,IF($G43="4ST",Rural_MI_Tables!$F$6,"ERROR")) -> 0.397 | AS43: =AVERAGEIFS(Rural_MI_Tables!T:T,Rural_MI_Tables!R:R,G43,Rural_MI_Tables!S:S,F43) -> 0.123 | AT43: =AVERAGEIFS(Rural_MI_Tables!U:U,Rural_MI_Tables!R:R,G43,Rural_MI_Tables!S:S,F43) -> 0 | AU43: =(H43^AO43)*(I43^AQ43)*EXP(AM43+AS43) -> 0.4756909293 | AV43: =(H43^AP43)*(I43^AR43)*EXP(AN43+AT43) -> 1.031501663 | AW43: =AU43+AV43 -> 1.507192592 | AX43: =IF($G43="3ST",2.283,(IF($G43="4ST",2.057,))) -> 2.057 | AY43: =IF($G43="3ST",2.555,(IF($G43="4ST",4.001,))) -> 4.001 | AZ43: =IF($G43="3ST",IF(Inputs!$B$3="HSM",Tables!$E$55,Tables!$K$55),(IF($G43="4ST",(IF(Inputs!$B$3="HSM",Tables!$G$55,Tables!$M$55)),(IF(Inputs!$B$3="HSM",Tables!$I$55,Tables!$O$55)))))/100 -> 1 | BA43: =+AW43*AZ43 -> 1.507192592 | BB43: =+$AL43 -> 1 | BC43: =+AW43*BB43 -> 1.507192592 | BD43: =IF($G43="3ST",IF(Inputs!$B$3="HSM",Tables!$E$53,Tables!$K$53),(IF($G43="4ST",(IF(Inputs!$B$3="HSM",Tables!$G$53,Tables!$M$53)),(IF(Inputs!$B$3="HSM",Tables!$I$53,Tables!$O$53)))))/100 -> 0.275 | BE43: =+AW43*BD43 -> 0.4144779628 | BF43: =+$AL43 -> 1 | BG43: =+AU43*BF43 -> 0.4756909293 | BH43: =IF($G43="3ST",IF(Inputs!$B$3="HSM",Tables!$E$54,Tables!$K$54),(IF($G43="4ST",(IF(Inputs!$B$3="HSM",Tables!$G$54,Tables!$M$54)),(IF(Inputs!$B$3="HSM",Tables!$I$54,Tables!$O$54)))))/100 -> 0.725 | BI43: =+AW43*BH43 -> 1.092714629 | BJ43: =+$AL43 -> 1 | BK43: =+AV43*BJ43 -> 1.031501663 | BL43: =IF(Inputs!$B$3="HSM",(IF($G43="3ST",Tables!$G$80,(IF($G43="4ST",Tables!$J$80,Tables!$M$80)))/100),(IF($G43="3ST",Tables!$P$80,(IF($G43="4ST",+Tables!$S$80,+Tables!$V$80)))/100)) -> 1 | BM43: =+BC43 -> 1.507192592 | BN43: =IF(Inputs!$B$3="HSM",(IF($G43="3ST",Tables!$E$80,(IF($G43="4ST",Tables!$H$80,Tables!$K$80)))/100),(IF($G43="3ST",Tables!$N$80,(IF($G43="4ST",+Tables!$Q$80,+Tables!$T$80)))/100)) -> 1 | BO43: =+BG43 -> 0.4756909293 | BP43: =IF(Inputs!$B$3="HSM",(IF($G43="3ST",Tables!$F$80,(IF($G43="4ST",Tables!$I$80,Tables!$L$80)))/100),(IF($G43="3ST",Tables!$O$80,(IF($G43="4ST",+Tables!$R$80,+Tables!$U$80)))/100)) -> 1 | BQ43: =+BK43 -> 1.031501663 | BR43: =IF(Inputs!$B$3="HSM",(IF($G43="3ST",Tables!$G$66,(IF($G43="4ST",Tables!$J$66,Tables!$M$66)))/100),(IF($G43="3ST",Tables!$P$66,(IF($G43="4ST",+Tables!$S$66,+Tables!$V$66)))/100)) -> 0.213 | BS43: =IF(Inputs!$B$3="HSM",(IF($G43="3ST",Tables!$G$67,(IF($G43="4ST",Tables!$J$67,Tables!$M$67)))/100),(IF($G43="3ST",Tables!$P$67,(IF($G43="4ST",+Tables!$S$67,+Tables!$V$67)))/100)) -> 0.001 | BT43: =IF(Inputs!$B$3="HSM",(IF($G43="3ST",Tables!$G$68,(IF($G43="4ST",Tables!$J$68,Tables!$M$68)))/100),(IF($G43="3ST",Tables!$P$68,(IF($G43="4ST",+Tables!$S$68,+Tables!$V$68)))/100)) -> 0.003 | BU43: =IF(Inputs!$B$3="HSM",(IF($G43="3ST",Tables!$G$69,(IF($G43="4ST",Tables!$J$69,Tables!$M$69)))/100),(IF($G43="3ST",Tables!$P$69,(IF($G43="4ST",+Tables!$S$69,+Tables!$V$69)))/100)) -> 0.018 | BV43: =IF(Inputs!$B$3="HSM",(IF($G43="3ST",Tables!$G$70,(IF($G43="4ST",Tables!$J$70,Tables!$M$70)))/100),(IF($G43="3ST",Tables!$P$70,(IF($G43="4ST",+Tables!$S$70,+Tables!$V$70)))/100)) -> 0.11 | BW43: =IF(Inputs!$B$3="HSM",(IF($G43="3ST",Tables!$G$71,(IF($G43="4ST",Tables!$J$71,Tables!$M$71)))/100),(IF($G43="3ST",Tables!$P$71,(IF($G43="4ST",+Tables!$S$71,+Tables!$V$71)))/100)) -> 0.014 | BX43: =IF(Inputs!$B$3="HSM",(IF($G43="3ST",Tables!$G$72,(IF($G43="4ST",Tables!$J$72,Tables!$M$72)))/100),(IF($G43="3ST",Tables!$P$72,(IF($G43="4ST",+Tables!$S$72,+Tables!$V$72)))/100)) -> 0.359 | BY43: =BR43*$BM43 -> 0.3210320221 | BZ43: 0.001507192592 | CA43: 0.004521577776 | CB43: 0.02712946666 | CC43: 0.1657911851 | CD43: 0.02110069629 | CE43: 0.5410821406 | CF43: =IF(Inputs!$B$3="HSM",(IF($G43="3ST",Tables!$E$66,(IF($G43="4ST",Tables!$H$66,Tables!$K$66)))/100),(IF($G43="3ST",Tables!$N$66,(IF($G43="4ST",+Tables!$Q$66,+Tables!$T$66)))/100)) -> 0.012 | CG43: =IF(Inputs!$B$3="HSM",(IF($G43="3ST",Tables!$E$67,(IF($G43="4ST",Tables!$H$67,Tables!$K$67)))/100),(IF($G43="3ST",Tables!$N$67,(IF($G43="4ST",+Tables!$Q$67,+Tables!$T$67)))/100)) -> 0.003 | CH43: =IF(Inputs!$B$3="HSM",(IF($G43="3ST",Tables!$E$68,(IF($G43="4ST",Tables!$H$68,Tables!$K$68)))/100),(IF($G43="3ST",Tables!$N$68,(IF($G43="4ST",+Tables!$Q$68,+Tables!$T$68)))/100)) -> 0.008 | CI43: =IF(Inputs!$B$3="HSM",(IF($G43="3ST",Tables!$E$69,(IF($G43="4ST",Tables!$H$69,Tables!$K$69)))/100),(IF($G43="3ST",Tables!$N$69,(IF($G43="4ST",+Tables!$Q$69,+Tables!$T$69)))/100)) -> 0.026 | CJ43: =IF(Inputs!$B$3="HSM",(IF($G43="3ST",Tables!$E$70,(IF($G43="4ST",Tables!$H$70,Tables!$K$70)))/100),(IF($G43="3ST",Tables!$N$70,(IF($G43="4ST",+Tables!$Q$70,+Tables!$T$70)))/100)) -> 0.07 | CK43: =IF(Inputs!$B$3="HSM",(IF($G43="3ST",Tables!$E$71,(IF($G43="4ST",Tables!$H$71,Tables!$K$71)))/100),(IF($G43="3ST",Tables!$N$71,(IF($G43="4ST",+Tables!$Q$71,+Tables!$T$71)))/100)) -> 0 | CL43: =IF(Inputs!$B$3="HSM",(IF($G43="3ST",Tables!$E$72,(IF($G43="4ST",Tables!$H$72,Tables!$K$72)))/100),(IF($G43="3ST",Tables!$N$72,(IF($G43="4ST",+Tables!$Q$72,+Tables!$T$72)))/100)) -> 0.119 | CM43: =CF43*$BO43 -> 0.005708291151 | CN43: 0.001427072788 | CO43: 0.003805527434 | CP43: 0.01236796416 | CQ43: 0.03329836505 | CR43: 0 | CS43: 0.05660722058 | CT43: =IF(Inputs!$B$3="HSM",(IF($G43="3ST",Tables!$F$66,(IF($G43="4ST",Tables!$I$66,Tables!$L$66)))/100),(IF($G43="3ST",Tables!$O$66,(IF($G43="4ST",+Tables!$R$66,+Tables!$U$66)))/100)) -> 0.29 | CU43: =IF(Inputs!$B$3="HSM",(IF($G43="3ST",Tables!$F$67,(IF($G43="4ST",Tables!$I$67,Tables!$L$67)))/100),(IF($G43="3ST",Tables!$O$67,(IF($G43="4ST",+Tables!$R$67,+Tables!$U$67)))/100)) -> 0 | CV43: =IF(Inputs!$B$3="HSM",(IF($G43="3ST",Tables!$F$68,(IF($G43="4ST",Tables!$I$68,Tables!$L$68)))/100),(IF($G43="3ST",Tables!$O$68,(IF($G43="4ST",+Tables!$R$68,+Tables!$U$68)))/100)) -> 0 | CW43: =IF(Inputs!$B$3="HSM",(IF($G43="3ST",Tables!$F$69,(IF($G43="4ST",Tables!$I$69,Tables!$L$69)))/100),(IF($G43="3ST",Tables!$O$69,(IF($G43="4ST",+Tables!$R$69,+Tables!$U$69)))/100)) -> 0.015 | CX43: =IF(Inputs!$B$3="HSM",(IF($G43="3ST",Tables!$F$70,(IF($G43="4ST",Tables!$I$70,Tables!$L$70)))/100),(IF($G43="3ST",Tables!$O$70,(IF($G43="4ST",+Tables!$R$70,+Tables!$U$70)))/100)) -> 0.118 | CY43: =IF(Inputs!$B$3="HSM",(IF($G43="3ST",Tables!$F$71,(IF($G43="4ST",Tables!$I$71,Tables!$L$71)))/100),(IF($G43="3ST",Tables!$O$71,(IF($G43="4ST",+Tables!$R$71,+Tables!$U$71)))/100)) -> 0.026 | CZ43: =IF(Inputs!$B$3="HSM",(IF($G43="3ST",Tables!$F$72,(IF($G43="4ST",Tables!$I$72,Tables!$L$72)))/100),(IF($G43="3ST",Tables!$O$72,(IF($G43="4ST",+Tables!$R$72,+Tables!$U$72)))/100)) -> 0.449 | DA43: =CT43*$BQ43 -> 0.2991354822 | DB43: 0 | DC43: 0 | DD43: 0.01547252494 | DE43: 0.1217171962 | DF43: 0.02681904323 | DG43: 0.4631442466 | DH43: =IF(Inputs!$B$3="HSM",(IF($G43="3ST",Tables!$G$74,(IF($G43="4ST",Tables!$J$74,Tables!$M$74)))/100),(IF($G43="3ST",Tables!$P$74,(IF($G43="4ST",+Tables!$S$74,+Tables!$V$74)))/100)) -> 0.3 | DI43: =IF(Inputs!$B$3="HSM",(IF($G43="3ST",Tables!$G$75,(IF($G43="4ST",Tables!$J$75,Tables!$M$75)))/100),(IF($G43="3ST",Tables!$P$75,(IF($G43="4ST",+Tables!$S$75,+Tables!$V$75)))/100)) -> 0.04 | DJ43: =IF(Inputs!$B$3="HSM",(IF($G43="3ST",Tables!$G$76,(IF($G43="4ST",Tables!$J$76,Tables!$M$76)))/100),(IF($G43="3ST",Tables!$P$76,(IF($G43="4ST",+Tables!$S$76,+Tables!$V$76)))/100)) -> 0.198 | DK43: =IF(Inputs!$B$3="HSM",(IF($G43="3ST",Tables!$G$77,(IF($G43="4ST",Tables!$J$77,Tables!$M$77)))/100),(IF($G43="3ST",Tables!$P$77,(IF($G43="4ST",+Tables!$S$77,+Tables!$V$77)))/100)) -> 0.063 | DL43: =IF(Inputs!$B$3="HSM",(IF($G43="3ST",Tables!$G$78,(IF($G43="4ST",Tables!$J$78,Tables!$M$78)))/100),(IF($G43="3ST",Tables!$P$78,(IF($G43="4ST",+Tables!$S$78,+Tables!$V$78)))/100)) -> 0.04 | DM43: =IF(Inputs!$B$3="HSM",(IF($G43="3ST",Tables!$G$79,(IF($G43="4ST",Tables!$J$79,Tables!$M$79)))/100),(IF($G43="3ST",Tables!$P$79,(IF($G43="4ST",+Tables!$S$79,+Tables!$V$79)))/100)) -> 0.641 | DN43: =+$DH43*$BM43 -> 0.4521577776 | DO43: =+$DI43*$BM43 -> 0.06028770369 | DP43: =+$DJ43*$BM43 -> 0.2984241332 | DQ43: =+$DK43*$BM43 -> 0.09495313331 | DR43: =+$DL43*$BM43 -> 0.06028770369 | DS43: =+$DM43*$BM43 -> 0.9661104516 | DT43: =IF(Inputs!$B$3="HSM",(IF($G43="3ST",Tables!$E$74,(IF($G43="4ST",Tables!$H$74,Tables!$K$74)))/100),(IF($G43="3ST",Tables!$N$74,(IF($G43="4ST",+Tables!$Q$74,+Tables!$T$74)))/100)) -> 0.538 | DU43: =IF(Inputs!$B$3="HSM",(IF($G43="3ST",Tables!$E$75,(IF($G43="4ST",Tables!$H$75,Tables!$K$75)))/100),(IF($G43="3ST",Tables!$N$75,(IF($G43="4ST",+Tables!$Q$75,+Tables!$T$75)))/100)) -> 0.091 | DV43: =IF(Inputs!$B$3="HSM",(IF($G43="3ST",Tables!$E$76,(IF($G43="4ST",Tables!$H$76,Tables!$K$76)))/100),(IF($G43="3ST",Tables!$N$76,(IF($G43="4ST",+Tables!$Q$76,+Tables!$T$76)))/100)) -> 0.193 | DW43: =IF(Inputs!$B$3="HSM",(IF($G43="3ST",Tables!$E$77,(IF($G43="4ST",Tables!$H$77,Tables!$K$77)))/100),(IF($G43="3ST",Tables!$N$77,(IF($G43="4ST",+Tables!$Q$77,+Tables!$T$77)))/100)) -> 0.034 | DX43: =IF(Inputs!$B$3="HSM",(IF($G43="3ST",Tables!$E$78,(IF($G43="4ST",Tables!$H$78,Tables!$K$78)))/100),(IF($G43="3ST",Tables!$N$78,(IF($G43="4ST",+Tables!$Q$78,+Tables!$T$78)))/100)) -> 0.025 | DY43: =IF(Inputs!$B$3="HSM",(IF($G43="3ST",Tables!$E$79,(IF($G43="4ST",Tables!$H$79,Tables!$K$79)))/100),(IF($G43="3ST",Tables!$N$79,(IF($G43="4ST",+Tables!$Q$79,+Tables!$T$79)))/100)) -> 0.881 | DZ43: =+$BO43*$DT43 -> 0.25592172 | EA43: =+$BO43*$DU43 -> 0.04328787456 | EB43: =+$BO43*$DV43 -> 0.09180834935 | EC43: =+$BO43*$DW43 -> 0.0161734916 | ED43: =+$BO43*$DX43 -> 0.01189227323 | EE43: =+$BO43*$DY43 -> 0.4190837087 | EF43: =IF(Inputs!$B$3="HSM",(IF($G43="3ST",Tables!$F$74,(IF($G43="4ST",Tables!$I$74,Tables!$L$74)))/100),(IF($G43="3ST",Tables!$O$74,(IF($G43="4ST",+Tables!$R$74,+Tables!$U$74)))/100)) -> 0.211 | EG43: =IF(Inputs!$B$3="HSM",(IF($G43="3ST",Tables!$F$75,(IF($G43="4ST",Tables!$I$75,Tables!$L$75)))/100),(IF($G43="3ST",Tables!$O$75,(IF($G43="4ST",+Tables!$R$75,+Tables!$U$75)))/100)) -> 0.02 | EH43: =IF(Inputs!$B$3="HSM",(IF($G43="3ST",Tables!$F$76,(IF($G43="4ST",Tables!$I$76,Tables!$L$76)))/100),(IF($G43="3ST",Tables!$O$76,(IF($G43="4ST",+Tables!$R$76,+Tables!$U$76)))/100)) -> 0.201 | EI43: =IF(Inputs!$B$3="HSM",(IF($G43="3ST",Tables!$F$77,(IF($G43="4ST",Tables!$I$77,Tables!$L$77)))/100),(IF($G43="3ST",Tables!$O$77,(IF($G43="4ST",+Tables!$R$77,+Tables!$U$77)))/100)) -> 0.074 | EJ43: =IF(Inputs!$B$3="HSM",(IF($G43="3ST",Tables!$F$78,(IF($G43="4ST",Tables!$I$78,Tables!$L$78)))/100),(IF($G43="3ST",Tables!$O$78,(IF($G43="4ST",+Tables!$R$78,+Tables!$U$78)))/100)) -> 0.045 | EK43: =IF(Inputs!$B$3="HSM",(IF($G43="3ST",Tables!$F$79,(IF($G43="4ST",Tables!$I$79,Tables!$L$79)))/100),(IF($G43="3ST",Tables!$O$79,(IF($G43="4ST",+Tables!$R$79,+Tables!$U$79)))/100)) -> 0.551 | EL43: =+$BQ43*$EF43 -> 0.2176468509 | EM43: =+$BQ43*$EG43 -> 0.02063003326 | EN43: =+$BQ43*$EH43 -> 0.2073318342 | EO43: =+$BQ43*$EI43 -> 0.07633112305 | EP43: =+$BQ43*$EJ43 -> 0.04641757483 | EQ43: =+$BQ43*$EK43 -> 0.5683574162 | ER43: =+$AZ43 -> 1 | ES43: =+$BD43 -> 0.275 | ET43: =+$BH43 -> 0.725 | EU43: =+$BK43 -> 1.031501663 | EV43: =+$BG43 -> 0.4756909293 | EW43: =+$BC43 -> 1.507192592
A46: Rural Signalized Intersections (MI)
A47: Example 1 | B47: SH-666 | C47: 1st Street | D47: Anywhere, USA | E47: Eaton | F47: =VLOOKUP($E47,'Construction - Do Not Delete'!$K$83:$N$166,3,FALSE) -> University | G47: Yes | H47: 4SG | I47: 8000 | J47: 1000 | K47: N/A (1.000) | L47: N/A (1.000) | P47: =1/AT47 -> 0.1468428781 | Q47: =1/AU47 -> 0.1692047377 | R47: =1/(1+P47*ER47) -> 0.9448111422 | S47: =1/(1+Q47*EQ47) -> 0.7995979581 | T47: =IF(N47="","",R47*ER47+((1-R47)*N47)) ->  | U47: =IF(O47="","",S47*EQ47+((1-S47)*O47)) ->  | V47: =IF(AND(T47="",U47=""),"",IF(T47="",0,T47)+IF(U47="",0,U47)) ->  | W47: =IF(T47="","",T47-ER47) ->  | X47: =IF(U47="","",U47-EQ47) ->  | Y47: =IF(AND(W47="",X47=""),"",IF(W47="",0,W47)+IF(X47="",0,X47)) ->  | Z47: =OFFSET(Tables!$AX$1,MATCH(K47,Tables!$AX:$AX,0)-1,1) -> 1 | AA47: =OFFSET(Tables!$AX$1,MATCH(L47,Tables!$AX:$AX,0)-1,1) -> 1 | AB47: =IF(M47="",1,M47) -> 1 | AC47: =Z47*AA47*AB47 -> 1 | AD47: -10.745 | AE47: -9.576 | AF47: 1.146 | AG47: =I47+J47 -> 9000 | AH47: =J47/(I47+J47) -> 0.1111111111 | AI47: 1.127 | AJ47: -0.05 | AK47: -0.018 | AL47: =AVERAGEIFS(Rural_MI_Tables!Y:Y,Rural_MI_Tables!W:W,H47,Rural_MI_Tables!X:X,F47) -> 0 | AM47: 0 | AN47: =IF($G47="Yes",-0.448,) -> -0.448 | AO47: -0.273 | AP47: -0.332 | AQ47: =(AG47^AF47)*(AH47^AJ47)*EXP(AD47+AL47+AN47+AO47) -> 0.3977896799 | AR47: =(AG47^AI47)*(AH47^AK47)*EXP(AE47+AM47+AP47) -> 1.481214472 | AS47: =AQ47+AR47 -> 1.879004152 | AT47: =IF($G47="Yes",6.81,5.49) -> 6.81 | AU47: 5.91 | AV47: =IF($H47="3ST",IF(Inputs!$B$3="HSM",Tables!$E$55,Tables!$K$55),(IF($H47="4ST",(IF(Inputs!$B$3="HSM",Tables!$G$55,Tables!$M$55)),(IF(Inputs!$B$3="HSM",Tables!$I$55,Tables!$O$55)))))/100 -> 1 | AW47: =+AS47*AV47 -> 1.879004152 | AX47: =+$AC47 -> 1 | AY47: =+AS47*AX47 -> 1.879004152 | AZ47: =IF($H47="3SG",IF(Inputs!$B$3="HSM",Tables!$Q$53,Tables!$Q$53),(IF($H47="4SG",(IF(Inputs!$B$3="HSM",Tables!$I$53,Tables!$O$53)),(IF(Inputs!$B$3="HSM",Tables!$I$53,Tables!$O$53)))))/100 -> 0.23 | BA47: =+AS47*AZ47 -> 0.4321709549 | BB47: =+$AC47 -> 1 | BC47: =+AQ47*BB47 -> 0.3977896799 | BD47: =IF($H47="3SG",IF(Inputs!$B$3="HSM",Tables!$Q$54,Tables!$Q$54),(IF($H47="4SG",(IF(Inputs!$B$3="HSM",Tables!$I$54,Tables!$O$54)),(IF(Inputs!$B$3="HSM",Tables!$I$54,Tables!$O$54)))))/100 -> 0.77 | BE47: =+AS47*BD47 -> 1.446833197 | BF47: =+$AC47 -> 1 | BG47: =+AR47*BF47 -> 1.481214472 | BH47: 1 | BI47: =+AY47 -> 1.879004152 | BJ47: 1 | BK47: =+BC47 -> 0.3977896799 | BL47: 1 | BM47: =+BG47 -> 1.481214472 | BN47: =IF(Inputs!$B$3="HSM",(IF($H47="3SG",Tables!$Y$66,(IF($H47="4SG",Tables!$M$66,Tables!$M$66)))/100),(IF($H47="3SG",Tables!$Y$66,(IF($H47="4SG",+Tables!$V$66,+Tables!$V$66)))/100)) -> 0.03 | BO47: =IF(Inputs!$B$3="HSM",(IF($H47="3SG",Tables!$Y$67,(IF($H47="4SG",Tables!$M$67,Tables!$M$67)))/100),(IF($H47="3SG",Tables!$Y$67,(IF($H47="4SG",+Tables!$V$67,+Tables!$V$67)))/100)) -> 0.006 | BP47: =IF(Inputs!$B$3="HSM",(IF($H47="3SG",Tables!$Y$68,(IF($H47="4SG",Tables!$M$68,Tables!$M$68)))/100),(IF($H47="3SG",Tables!$Y$68,(IF($H47="4SG",+Tables!$V$68,+Tables!$V$68)))/100)) -> 0.012 | BQ47: =IF(Inputs!$B$3="HSM",(IF($H47="3SG",Tables!$Y$69,(IF($H47="4SG",Tables!$M$69,Tables!$M$69)))/100),(IF($H47="3SG",Tables!$Y$69,(IF($H47="4SG",+Tables!$V$69,+Tables!$V$69)))/100)) -> 0.004 | BR47: =IF(Inputs!$B$3="HSM",(IF($H47="3SG",Tables!$Y$70,(IF($H47="4SG",Tables!$M$70,Tables!$M$70)))/100),(IF($H47="3SG",Tables!$Y$70,(IF($H47="4SG",+Tables!$V$70,+Tables!$V$70)))/100)) -> 0.047 | BS47: =IF(Inputs!$B$3="HSM",(IF($H47="3SG",Tables!$Y$71,(IF($H47="4SG",Tables!$M$71,Tables!$M$71)))/100),(IF($H47="3SG",Tables!$Y$71,(IF($H47="4SG",+Tables!$V$71,+Tables!$V$71)))/100)) -> 0.009 | BT47: =IF(Inputs!$B$3="HSM",(IF($H47="3SG",Tables!$Y$72,(IF($H47="4SG",Tables!$M$72,Tables!$M$72)))/100),(IF($H47="3SG",Tables!$Y$72,(IF($H47="4SG",+Tables!$V$72,+Tables!$V$72)))/100)) -> 0.108 | BU47: =BN47*$BI47 -> 0.05637012456 | BV47: 0.01127402491 | BW47: 0.02254804982 | BX47: 0.007516016608 | BY47: 0.08831319514 | BZ47: 0.01691103737 | CA47: 0.2029324484 | CB47: =IF(Inputs!$B$3="HSM",(IF($H47="3SG",Tables!$W$66,(IF($H47="4SG",Tables!$K$66,Tables!$K$66)))/100),(IF($H47="3SG",Tables!$W$66,(IF($H47="4SG",+Tables!$T$66,+Tables!$T$66)))/100)) -> 0 | CC47: =IF(Inputs!$B$3="HSM",(IF($H47="3SG",Tables!$W$67,(IF($H47="4SG",Tables!$K$67,Tables!$K$67)))/100),(IF($H47="3SG",Tables!$W$67,(IF($H47="4SG",+Tables!$T$67,+Tables!$T$67)))/100)) -> 0.022 | CD47: =IF(Inputs!$B$3="HSM",(IF($H47="3SG",Tables!$W$68,(IF($H47="4SG",Tables!$K$68,Tables!$K$68)))/100),(IF($H47="3SG",Tables!$W$68,(IF($H47="4SG",+Tables!$T$68,+Tables!$T$68)))/100)) -> 0.046 | CE47: =IF(Inputs!$B$3="HSM",(IF($H47="3SG",Tables!$W$69,(IF($H47="4SG",Tables!$K$69,Tables!$K$69)))/100),(IF($H47="3SG",Tables!$W$69,(IF($H47="4SG",+Tables!$T$69,+Tables!$T$69)))/100)) -> 0.01 | CF47: =IF(Inputs!$B$3="HSM",(IF($H47="3SG",Tables!$W$70,(IF($H47="4SG",Tables!$K$70,Tables!$K$70)))/100),(IF($H47="3SG",Tables!$W$70,(IF($H47="4SG",+Tables!$T$70,+Tables!$T$70)))/100)) -> 0.037 | CG47: =IF(Inputs!$B$3="HSM",(IF($H47="3SG",Tables!$W$71,(IF($H47="4SG",Tables!$K$71,Tables!$K$71)))/100),(IF($H47="3SG",Tables!$W$71,(IF($H47="4SG",+Tables!$T$71,+Tables!$T$71)))/100)) -> 0.002 | CH47: =IF(Inputs!$B$3="HSM",(IF($H47="3ST",Tables!$E$72,(IF($H47="4ST",Tables!$H$72,Tables!$K$72)))/100),(IF($H47="3ST",Tables!$N$72,(IF($H47="4ST",+Tables!$Q$72,+Tables!$T$72)))/100)) -> 0.117 | CI47: =CB47*$BK47 -> 0 | CJ47: 0.008751372958 | CK47: 0.01829832528 | CL47: 0.003977896799 | CM47: 0.01471821816 | CN47: 0.0007955793598 | CO47: 0.04654139255 | CP47: =IF(Inputs!$B$3="HSM",(IF($H47="3SG",Tables!$X$66,(IF($H47="4SG",Tables!$L$66,Tables!$L$66)))/100),(IF($H47="3SG",Tables!$X$66,(IF($H47="4SG",+Tables!$U$66,+Tables!$U$66)))/100)) -> 0.039 | CQ47: =IF(Inputs!$B$3="HSM",(IF($H47="3SG",Tables!$X$67,(IF($H47="4SG",Tables!$L$67,Tables!$L$67)))/100),(IF($H47="3SG",Tables!$X$67,(IF($H47="4SG",+Tables!$U$67,+Tables!$U$67)))/100)) -> 0.001 | CR47: =IF(Inputs!$B$3="HSM",(IF($H47="3SG",Tables!$X$68,(IF($H47="4SG",Tables!$L$68,Tables!$L$68)))/100),(IF($H47="3SG",Tables!$X$68,(IF($H47="4SG",+Tables!$U$68,+Tables!$U$68)))/100)) -> 0.001 | CS47: =IF(Inputs!$B$3="HSM",(IF($H47="3SG",Tables!$X$69,(IF($H47="4SG",Tables!$L$69,Tables!$L$69)))/100),(IF($H47="3SG",Tables!$X$69,(IF($H47="4SG",+Tables!$U$69,+Tables!$U$69)))/100)) -> 0.001 | CT47: =IF(Inputs!$B$3="HSM",(IF($H47="3SG",Tables!$X$70,(IF($H47="4SG",Tables!$L$70,Tables!$L$70)))/100),(IF($H47="3SG",Tables!$X$70,(IF($H47="4SG",+Tables!$U$70,+Tables!$U$70)))/100)) -> 0.05 | CU47: =IF(Inputs!$B$3="HSM",(IF($H47="3SG",Tables!$X$71,(IF($H47="4SG",Tables!$L$71,Tables!$L$71)))/100),(IF($H47="3SG",Tables!$X$71,(IF($H47="4SG",+Tables!$U$71,+Tables!$U$71)))/100)) -> 0.013 | CV47: =IF(Inputs!$B$3="HSM",(IF($H47="3SG",Tables!$X$72,(IF($H47="4SG",Tables!$L$72,Tables!$L$72)))/100),(IF($H47="3SG",Tables!$X$72,(IF($H47="4SG",+Tables!$U$72,+Tables!$U$72)))/100)) -> 0.105 | CW47: =CP47*$BM47 -> 0.05776736441 | CX47: 0.001481214472 | CY47: 0.001481214472 | CZ47: 0.001481214472 | DA47: 0.0740607236 | DB47: 0.01925578814 | DC47: 0.1555275196 | DD47: =IF(Inputs!$B$3="HSM",(IF($H47="3SG",Tables!$Y$74,(IF($H47="4SG",Tables!$M$74,Tables!$M$74)))/100),(IF($H47="3SG",Tables!$Y$74,(IF($H47="4SG",+Tables!$V$74,+Tables!$V$74)))/100)) -> 0.27 | DE47: =IF(Inputs!$B$3="HSM",(IF($H47="3SG",Tables!$Y$75,(IF($H47="4SG",Tables!$M$75,Tables!$M$75)))/100),(IF($H47="3SG",Tables!$Y$75,(IF($H47="4SG",+Tables!$V$75,+Tables!$V$75)))/100)) -> 0.089 | DF47: =IF(Inputs!$B$3="HSM",(IF($H47="3SG",Tables!$Y$76,(IF($H47="4SG",Tables!$M$76,Tables!$M$76)))/100),(IF($H47="3SG",Tables!$Y$76,(IF($H47="4SG",+Tables!$V$76,+Tables!$V$76)))/100)) -> 0.367 | DG47: =IF(Inputs!$B$3="HSM",(IF($H47="3SG",Tables!$Y$77,(IF($H47="4SG",Tables!$M$77,Tables!$M$77)))/100),(IF($H47="3SG",Tables!$Y$77,(IF($H47="4SG",+Tables!$V$77,+Tables!$V$77)))/100)) -> 0.117 | DH47: =IF(Inputs!$B$3="HSM",(IF($H47="3SG",Tables!$Y$78,(IF($H47="4SG",Tables!$M$78,Tables!$M$78)))/100),(IF($H47="3SG",Tables!$Y$78,(IF($H47="4SG",+Tables!$V$78,+Tables!$V$78)))/100)) -> 0.049 | DI47: =IF(Inputs!$B$3="HSM",(IF($H47="3SG",Tables!$Y$79,(IF($H47="4SG",Tables!$M$79,Tables!$M$79)))/100),(IF($H47="3SG",Tables!$Y$79,(IF($H47="4SG",+Tables!$V$79,+Tables!$V$79)))/100)) -> 0.892 | DJ47: =+$DD47*$BI47 -> 0.507331121 | DK47: =+$DE47*$BI47 -> 0.1672313695 | DL47: =+$DF47*$BI47 -> 0.6895945238 | DM47: =+$DG47*$BI47 -> 0.2198434858 | DN47: =+$DH47*$BI47 -> 0.09207120344 | DO47: =+$DI47*$BI47 -> 1.676071704 | DP47: =IF(Inputs!$B$3="HSM",(IF($H47="3SG",Tables!$W$74,(IF($H47="4SG",Tables!$K$74,Tables!$K$74)))/100),(IF($H47="3SG",Tables!$W$74,(IF($H47="4SG",+Tables!$T$74,+Tables!$T$74)))/100)) -> 0.422 | DQ47: =IF(Inputs!$B$3="HSM",(IF($H47="3SG",Tables!$W$75,(IF($H47="4SG",Tables!$K$75,Tables!$K$75)))/100),(IF($H47="3SG",Tables!$W$75,(IF($H47="4SG",+Tables!$T$75,+Tables!$T$75)))/100)) -> 0.163 | DR47: =IF(Inputs!$B$3="HSM",(IF($H47="3SG",Tables!$W$76,(IF($H47="4SG",Tables!$K$76,Tables!$K$76)))/100),(IF($H47="3SG",Tables!$W$76,(IF($H47="4SG",+Tables!$T$76,+Tables!$T$76)))/100)) -> 0.238 | DS47: =IF(Inputs!$B$3="HSM",(IF($H47="3SG",Tables!$W$77,(IF($H47="4SG",Tables!$K$77,Tables!$K$77)))/100),(IF($H47="3SG",Tables!$W$77,(IF($H47="4SG",+Tables!$T$77,+Tables!$T$77)))/100)) -> 0.031 | DT47: =IF(Inputs!$B$3="HSM",(IF($H47="3SG",Tables!$W$78,(IF($H47="4SG",Tables!$K$78,Tables!$K$78)))/100),(IF($H47="3SG",Tables!$W$78,(IF($H47="4SG",+Tables!$T$78,+Tables!$T$78)))/100)) -> 0.029 | DU47: =IF(Inputs!$B$3="HSM",(IF($H47="3SG",Tables!$W$79,(IF($H47="4SG",Tables!$K$79,Tables!$K$79)))/100),(IF($H47="3SG",Tables!$W$79,(IF($H47="4SG",+Tables!$T$79,+Tables!$T$79)))/100)) -> 0.883 | DV47: =+$BK47*$DP47 -> 0.1678672449 | DW47: =+$BK47*$DQ47 -> 0.06483971783 | DX47: =+$BK47*$DR47 -> 0.09467394382 | DY47: =+$BK47*$DS47 -> 0.01233148008 | DZ47: =+$BK47*$DT47 -> 0.01153590072 | EA47: =+$BK47*$DU47 -> 0.3512482874 | EB47: =IF(Inputs!$B$3="HSM",(IF($H47="3SG",Tables!$X$74,(IF($H47="4SG",Tables!$L$74,Tables!$L$74)))/100),(IF($H47="3SG",Tables!$X$74,(IF($H47="4SG",+Tables!$U$74,+Tables!$U$74)))/100)) -> 0.225 | EC47: =IF(Inputs!$B$3="HSM",(IF($H47="3SG",Tables!$X$75,(IF($H47="4SG",Tables!$L$75,Tables!$L$75)))/100),(IF($H47="3SG",Tables!$X$75,(IF($H47="4SG",+Tables!$U$75,+Tables!$U$75)))/100)) -> 0.067 | ED47: =IF(Inputs!$B$3="HSM",(IF($H47="3SG",Tables!$X$76,(IF($H47="4SG",Tables!$L$76,Tables!$L$76)))/100),(IF($H47="3SG",Tables!$X$76,(IF($H47="4SG",+Tables!$U$76,+Tables!$U$76)))/100)) -> 0.406 | EE47: =IF(Inputs!$B$3="HSM",(IF($H47="3SG",Tables!$X$77,(IF($H47="4SG",Tables!$L$77,Tables!$L$77)))/100),(IF($H47="3SG",Tables!$X$77,(IF($H47="4SG",+Tables!$U$77,+Tables!$U$77)))/100)) -> 0.143 | EF47: =IF(Inputs!$B$3="HSM",(IF($H47="3SG",Tables!$X$78,(IF($H47="4SG",Tables!$L$78,Tables!$L$78)))/100),(IF($H47="3SG",Tables!$X$78,(IF($H47="4SG",+Tables!$U$78,+Tables!$U$78)))/100)) -> 0.054 | EG47: =IF(Inputs!$B$3="HSM",(IF($H47="3SG",Tables!$X$79,(IF($H47="4SG",Tables!$L$79,Tables!$L$79)))/100),(IF($H47="3SG",Tables!$X$79,(IF($H47="4SG",+Tables!$U$79,+Tables!$U$79)))/100)) -> 0.895 | EH47: =+$BM47*$EB47 -> 0.3332732562 | EI47: =+$BM47*$EC47 -> 0.09924136962 | EJ47: =+$BM47*$ED47 -> 0.6013730756 | EK47: =+$BM47*$EE47 -> 0.2118136695 | EL47: =+$BM47*$EF47 -> 0.07998558149 | EM47: =+$BM47*$EG47 -> 1.325686952 | EN47: =+$AV47 -> 1 | EO47: =+$AZ47 -> 0.23 | EP47: =+$BD47 -> 0.77 | EQ47: =+$BG47 -> 1.481214472 | ER47: =+$BC47 -> 0.3977896799 | ES47: =+$AY47 -> 1.879004152

Sheet Rural 2-Lane Segments (MI)
A1: Worksheet 1A -- General Information and Input Data for Rural Two-Lane Two-Way Trunkline Roadway Segments | S1: Empirical Bayes Analysis | AS1: Crash Modification Factor Calculations | BD1: Base Safety Performance Function Calculations | BY1: Crashes by Severity and Type for Rural Two-Lane Two-Way Trunkline Roadway Segments | EY1: Summary of Results for Rural Two-Lane Two-Way Trunkline Roadway Segments
BY2: Single-Vehicle | DO2: Multiple-Vehicle | EY2: PDO | FB2: FI | FE2: Total
E3: Y | F3: Y | G3: Y | H3: Y | BY3: Collision with animal | CE3: Collision with bicycle | CK3: Collision with pedestrian | CQ3: Overturned | CW3: Ran off road | DC3: Other single-vehicle collision | DI3: Total single-vehicle crashes | DO3: Angle collision | DU3: Head-on collision | EA3: Rear-end collision | EG3: Sideswipe collision | EM3: Other multiple-vehicle collision | ES3: Total multiple-vehicle crashes
A4: # | B4: Roadway | C4: Roadway Section | D4: Jurisdiction | E4: County | F4: MDOT Region | G4: Length of segment, L (miles) | H4: AADT (vehicles/day) | I4: Average Paved Shoulder Width | J4: Length of horizontal curve under 1,570' (in miles) | K4: Terrain | L4: Proportion of Segment with Passing Restriction (%) | M4: Driveway density (driveways/mile) | N4: Passing lanes [present (1 lane) / present (2 lane) / not present)] | O4: Additional CMF - 1 | P4: Additional CMF - 2 | Q4: Additional CMF - 3 | R4: Additional CMF - Numeric | S4: Observed Non-Deer Single Vehicle Fatal and Injury Crashes (crashes/year) | T4: Observed Non-Deer Single Vehicle PDO Crashes (crashes/year) | U4: Observed Non-Deer Multiple-Vehicle Fatal and Injury Crashes (crashes/year) | V4: Observed Non-Deer Multiple-Vehicle PDO Crashes (crashes/year) | W4: Ovedispersion Parameter FI SV | X4: Ovedispersion Parameter PDO SV | Y4: Ovedispersion Parameter FI MV | Z4: Ovedispersion Parameter PDO MV | AA4: Weighted Adjustment FI SV | AB4: Weighted Adjustment PDO SV | AC4: Weighted Adjustment FI MV | AD4: Weighted Adjustment PDO MV | AE4: Expected Average Crash Frequency FI SV | AF4: Expected Average Crash Frequency PDO SV | AG4: Expected Average Crash Frequency FI MV | AH4: Expected Average Crash Frequency PDO MV | AI4: Expected Average Crash Frequency FI | AJ4: Expected Average Crash Frequency PDO | AK4: Expected Average Crash Frequency Total | AL4: Excess Expected Crash Frequency FI SV | AM4: Excess Expected Crash Frequency PDO SV | AN4: Excess Expected Crash Frequency FI MV | AO4: Excess Expected Crash Frequency PDO MV | AP4: Excess Expected Crash Frequency FI | AQ4: Excess Expected Crash Frequency PDO | AR4: Excess Expected Crash Frequency Total | AS4: CMF for Average Shoulder Width | AT4: CMF for Horizontal Curvature | AU4: CMF for Driveway Density | AV4: CMF for Terrian | AW4: CMF for Passing Restriction | AX4: Additional CMF - 1 | AY4: Additional CMF - 2 | AZ4: Additional CMF - 3 | BA4: Additional CMF - Numeric | BB4: Combined CMF Single Vehicle | BC4: Combined CMF Multiple-Vehicle | BD4: N SPF FI SV | BE4: N SPF PDO SV | BF4: N SPF FI MV | BG4: N SPF PDO MV | BH4: Intercept FI SV | BI4: Intercept PDO SV | BJ4: Intercept FI MV | BK4: Intercept PDO MV | BL4: Regional Coefficient FI | BM4: Regional Coefficient PDO | BN4: AADT Coefficient FI SV | BO4: AADT Coefficient PDO SV | BP4: AADT Coefficient FI MV | BQ4: AADT Coefficient PDO MV | BR4: Predicted FI SV | BS4: Predicted PDO SV | BT4: Predicted FI MV | BU4: Predicted PDO MV | BV4: Predicted FI Crash Frequency | BW4: Predicted PDO Crash Frequency | BX4: Predicted Total Crash Frequency | BY4: (2) Proportion of Collision Type(TOTAL) from Table 10-4 | BZ4: (3) N predicted rs (TOTAL) (crashes/year) (8)TOTAL from Worksheet 1C | CA4: (4) Proportion of Collision Type(FI) from Table 10-4 | CB4: (5) N predicted rs (FI) (crashes/year) (8)FI from Worksheet 1C | CC4: (6) Proportion of Collision Type(PDO) from Table 10-4 | CD4: (7) N predicted rs (PDO) (crashes/year) (8)PDO from Worksheet 1C | CE4: (2) Proportion of Collision Type(TOTAL) from Table 10-4 | CF4: (3) N predicted rs (TOTAL) (crashes/year) (8)TOTAL from Worksheet 1C | CG4: (4) Proportion of Collision Type(FI) from Table 10-4 | CH4: (5) N predicted rs (FI) (crashes/year) (8)FI from Worksheet 1C | CI4: (6) Proportion of Collision Type(PDO) from Table 10-4 | CJ4: (7) N predicted rs (PDO) (crashes/year) (8)PDO from Worksheet 1C | CK4: (2) Proportion of Collision Type(TOTAL) from Table 10-4 | CL4: (3) N predicted rs (TOTAL) (crashes/year) (8)TOTAL from Worksheet 1C | CM4: (4) Proportion of Collision Type(FI) from Table 10-4 | CN4: (5) N predicted rs (FI) (crashes/year) (8)FI from Worksheet 1C | CO4: (6) Proportion of Collision Type(PDO) from Table 10-4 | CP4: (7) N predicted rs (PDO) (crashes/year) (8)PDO from Worksheet 1C | CQ4: (2) Proportion of Collision Type(TOTAL) from Table 10-4 | CR4: (3) N predicted rs (TOTAL) (crashes/year) (8)TOTAL from Worksheet 1C | CS4: (4) Proportion of Collision Type(FI) from Table 10-4 | CT4: (5) N predicted rs (FI) (crashes/year) (8)FI from Worksheet 1C | CU4: (6) Proportion of Collision Type(PDO) from Table 10-4 | CV4: (7) N predicted rs (PDO) (crashes/year) (8)PDO from Worksheet 1C | CW4: (2) Proportion of Collision Type(TOTAL) from Table 10-4 | CX4: (3) N predicted rs (TOTAL) (crashes/year) (8)TOTAL from Worksheet 1C | CY4: (4) Proportion of Collision Type(FI) from Table 10-4 | CZ4: (5) N predicted rs (FI) (crashes/year) (8)FI from Worksheet 1C | DA4: (6) Proportion of Collision Type(PDO) from Table 10-4 | DB4: (7) N predicted rs (PDO) (crashes/year) (8)PDO from Worksheet 1C | DC4: (2) Proportion of Collision Type(TOTAL) from Table 10-4 | DD4: (3) N predicted rs (TOTAL) (crashes/year) (8)TOTAL from Worksheet 1C | DE4: (4) Proportion of Collision Type(FI) from Table 10-4 | DF4: (5) N predicted rs (FI) (crashes/year) (8)FI from Worksheet 1C | DG4: (6) Proportion of Collision Type(PDO) from Table 10-4 | DH4: (7) N predicted rs (PDO) (crashes/year) (8)PDO from Worksheet 1C | DI4: (2) Proportion of Collision Type(TOTAL) from Table 10-4 | DJ4: (3) N predicted rs (TOTAL) (crashes/year) (8)TOTAL from Worksheet 1C | DK4: (4) Proportion of Collision Type(FI) from Table 10-4 | DL4: (5) N predicted rs (FI) (crashes/year) (8)FI from Worksheet 1C | DM4: (6) Proportion of Collision Type(PDO) from Table 10-4 | DN4: (7) N predicted rs (PDO) (crashes/year) (8)PDO from Worksheet 1C | DO4: (2) Proportion of Collision Type(TOTAL) from Table 10-4 | DP4: (3) N predicted rs (TOTAL) (crashes/year) (8)TOTAL from Worksheet 1C | DQ4: (4) Proportion of Collision Type(FI) from Table 10-4 | DR4: (5) N predicted rs (FI) (crashes/year) (8)FI from Worksheet 1C | DS4: (6) Proportion of Collision Type(PDO) from Table 10-4 | DT4: (7) N predicted rs (PDO) (crashes/year) (8)PDO from Worksheet 1C | DU4: (2) Proportion of Collision Type(TOTAL) from Table 10-4 | DV4: (3) N predicted rs (TOTAL) (crashes/year) (8)TOTAL from Worksheet 1C | DW4: (4) Proportion of Collision Type(FI) from Table 10-4 | DX4: (5) N predicted rs (FI) (crashes/year) (8)FI from Worksheet 1C | DY4: (6) Proportion of Collision Type(PDO) from Table 10-4 | DZ4: (7) N predicted rs (PDO) (crashes/year) (8)PDO from Worksheet 1C | EA4: (2) Proportion of Collision Type(TOTAL) from Table 10-4 | EB4: (3) N predicted rs (TOTAL) (crashes/year) (8)TOTAL from Worksheet 1C | EC4: (4) Proportion of Collision Type(FI) from Table 10-4 | ED4: (5) N predicted rs (FI) (crashes/year) (8)FI from Worksheet 1C | EE4: (6) Proportion of Collision Type(PDO) from Table 10-4 | EF4: (7) N predicted rs (PDO) (crashes/year) (8)PDO from Worksheet 1C | EG4: (2) Proportion of Collision Type(TOTAL) from Table 10-4 | EH4: (3) N predicted rs (TOTAL) (crashes/year) (8)TOTAL from Worksheet 1C | EI4: (4) Proportion of Collision Type(FI) from Table 10-4 | EJ4: (5) N predicted rs (FI) (crashes/year) (8)FI from Worksheet 1C | EK4: (6) Proportion of Collision Type(PDO) from Table 10-4 | EL4: (7) N predicted rs (PDO) (crashes/year) (8)PDO from Worksheet 1C | EM4: (2) Proportion of Collision Type(TOTAL) from Table 10-4 | EN4: (3) N predicted rs (TOTAL) (crashes/year) (8)TOTAL from Worksheet 1C | EO4: (4) Proportion of Collision Type(FI) from Table 10-4 | EP4: (5) N predicted rs (FI) (crashes/year) (8)FI from Worksheet 1C | EQ4: (6) Proportion of Collision Type(PDO) from Table 10-4 | ER4: (7) N predicted rs (PDO) (crashes/year) (8)PDO from Worksheet 1C | ES4: (2) Proportion of Collision Type(TOTAL) from Table 10-4 | ET4: (3) N predicted rs (TOTAL) (crashes/year) (8)TOTAL from Worksheet 1C | EU4: (4) Proportion of Collision Type(FI) from Table 10-4 | EV4: (5) N predicted rs (FI) (crashes/year) (8)FI from Worksheet 1C | EW4: (6) Proportion of Collision Type(PDO) from Table 10-4 | EX4: (7) N predicted rs (PDO) (crashes/year) (8)PDO from Worksheet 1C | EY4: Predicted average crash frequency (crashes/year) | EZ4: Roadway segment length (miles) | FA4: Crash rate (crashes/mile/year) | FB4: Predicted average crash frequency (crashes/year) | FC4: Roadway segment length (miles) | FD4: Crash rate (crashes/mile/year) | FE4: Predicted average crash frequency (crashes/year) | FF4: Roadway segment length (miles) | FG4: Crash rate (crashes/mile/year)

Sheet Rural County FA Segs (MI)
A1: Worksheet 1A -- General Information and Input Data for Rural County Federal Aid Roadway Segments | N1: Empirical Bayes Analysis | AN1: Crash Modification Factor Calculations | AY1: Base Safety Performance Function Calculations | BR1: Crashes by Type and Severity for Rural County Federal Aid Roadway Segments | DK1: Summary of Results for Rural County Federal Aid Roadway Segments
BR2: Single Vehicle | CL2: Multiple-Vehicle | DK2: PDO | DN2: FI | DQ2: Total
E3: Y | F3: Y | BR3: Collision with bicycle | BW3: Collision with pedestrian | CB3: Overturned | CG3: Fixed object/other SV | CL3: Angle collision | CQ3: Head-on collision | CV3: Rear-end collision | DA3: Sideswipe collision | DF3: Other multiple-vehicle collision
A4: # | B4: Roadway | C4: Roadway Section | D4: Jurisdiction | E4: Length of segment, L (miles) | F4: AADT (vehicles/day) | G4: Average Shoulder Width | H4: Length of horizontal curve under 1,570' (in miles) | I4: Driveway density (driveways/mile) | J4: Additional CMF - 1 | K4: Additional CMF - 2 | L4: Additional CMF - 3 | M4: Additional CMF - Numeric | N4: Observed Non-Deer Single Vehicle Fatal and Injury Crashes (crashes/year) | O4: Observed Non-Deer Single Vehicle PDO Crashes (crashes/year) | P4: Observed Non-Deer Multiple-Vehicle Fatal and Injury Crashes (crashes/year) | Q4: Observed Non-Deer Multiple-Vehicle PDO Crashes (crashes/year) | R4: Ovedispersion Parameter FI SV | S4: Ovedispersion Parameter PDO SV | T4: Ovedispersion Parameter FI MV | U4: Ovedispersion Parameter PDO MV | V4: Weighted Adjustment FI SV | W4: Weighted Adjustment PDO SV | X4: Weighted Adjustment FI MV | Y4: Weighted Adjustment PDO MV | Z4: Expected Average Crash Frequency FI SV | AA4: Expected Average Crash Frequency PDO SV | AB4: Expected Average Crash Frequency FI MV | AC4: Expected Average Crash Frequency PDO MV | AD4: Expected Average Crash Frequency FI | AE4: Expected Average Crash Frequency PDO | AF4: Expected Average Crash Frequency Total | AG4: Excess Expected Crash Frequency FI SV | AH4: Excess Expected Crash Frequency PDO SV | AI4: Excess Expected Crash Frequency FI MV | AJ4: Excess Expected Crash Frequency PDO MV | AK4: Excess Expected Crash Frequency FI | AL4: Excess Expected Crash Frequency PDO | AM4: Excess Expected Crash Frequency Total | AN4: CMF for Shoulder Width | AO4: CMF for Horizontal Curvature | AP4: CMF for Driveway Density | AQ4: Additional CMF - 1 | AR4: Additional CMF - 2 | AS4: Additional CMF - 3 | AT4: Additional CMF - Numeric | AU4: Combined CMF Single Vehicle | AV4: Combined CMF Multiple-Vehicle | AW4: County Level Effect FI | AX4: County Level Effect PDO | AY4: N SPF FI SV | AZ4: N SPF PDO SV | BA4: N SPF FI MV | BB4: N SPF PDO MV | BC4: Intercept FI SV | BD4: Intercept PDO SV | BE4: Intercept FI MV | BF4: Intercept PDO MV | BG4: AADT Coefficient FI SV | BH4: AADT Coefficient PDO SV | BI4: AADT Coefficient FI MV | BJ4: AADT Coefficient PDO MV | BK4: Predicted FI SV | BL4: Predicted PDO SV | BM4: Predicted FI MV | BN4: Predicted PDO MV | BO4: Predicted FI Crash Frequency | BP4: Predicted PDO Crash Frequency | BQ4: Predicted Total Crash Frequency | BR4: Predicted Total Crashes | BS4: Proportion of Collision Type(FI) | BT4: Predicted FI Crashes | BU4: Proportion of Collision Type(PDO) | BV4: Predicted PDO Crashes | BW4: Predicted Total Crashes | BX4: Proportion of Collision Type(FI) | BY4: Predicted FI Crashes | BZ4: Proportion of Collision Type(PDO) | CA4: Predicted PDO Crashes | CB4: Predicted Total Crashes | CC4: Proportion of Collision Type(FI) | CD4: Predicted FI Crashes | CE4: Proportion of Collision Type(PDO) | CF4: Predicted PDO Crashes | CG4: Predicted Total Crashes | CH4: Proportion of Collision Type(FI) | CI4: Predicted FI Crashes | CJ4: Proportion of Collision Type(PDO) | CK4: Predicted PDO Crashes | CL4: Predicted Total Crashes | CM4: Proportion of Collision Type(FI) | CN4: Predicted FI Crashes | CO4: Proportion of Collision Type(PDO) | CP4: Predicted PDO Crashes | CQ4: Predicted Total Crashes | CR4: Proportion of Collision Type(FI) | CS4: Predicted FI Crashes | CT4: Proportion of Collision Type(PDO) | CU4: Predicted PDO Crashes | CV4: Predicted Total Crashes | CW4: Proportion of Collision Type(FI) | CX4: Predicted FI Crashes | CY4: Proportion of Collision Type(PDO) | CZ4: Predicted PDO Crashes | DA4: Predicted Total Crashes | DB4: Proportion of Collision Type(FI) | DC4: Predicted FI Crashes | DD4: Proportion of Collision Type(PDO) | DE4: Predicted PDO Crashes | DF4: Predicted Total Crashes | DG4: Proportion of Collision Type(FI) | DH4: Predicted FI Crashes | DI4: Proportion of Collision Type(PDO) | DJ4: Predicted PDO Crashes | DK4: Predicted average crash frequency (crashes/year) | DL4: Roadway segment length (miles) | DM4: Crash rate (crashes/mile/year) | DN4: Predicted average crash frequency (crashes/year) | DO4: Roadway segment length (miles) | DP4: Crash rate (crashes/mile/year) | DQ4: Predicted average crash frequency (crashes/year) | DR4: Roadway segment length (miles) | DS4: Crash rate (crashes/mile/year)

Sheet Rural County Non-FA Segs (MI)
A1: Worksheet 1A -- General Information and Input Data for Rural County Non-Federal Aid Roadway Segments | O1: Empirical Bayes Analysis | AA1: Crash Modification Factor Calculations | AK1: Base Safety Performance Function Calculations | AT1: Crashes by Type and Severity for Rural County Non-Federal Aid Roadway Segments | CM1: Summary of Results for Rural County Non-Federal Aid Roadway Segments
AT2: Single Vehicle | BN2: Multiple-Vehicle | CM2: PDO | CP2: FI | CS2: Total
E3: Y | F3: Y | AT3: Collision with bicycle | AY3: Collision with pedestrian | BD3: Overturned | BI3: Fixed object/other SV | BN3: Angle collision | BS3: Head-on collision | BX3: Rear-end collision | CC3: Sideswipe collision | CH3: Other multiple-vehicle collision
A4: # | B4: Roadway | C4: Roadway Section | D4: Jurisdiction | E4: Surface Type | F4: Length of segment, L (miles) | G4: AADT (vehicles/day) | H4: Traveled Way Width | I4: Length of horizontal curve under 1,570' (in miles) | J4: Driveway density (driveways/mile) | K4: Additional CMF - 1 | L4: Additional CMF - 2 | M4: Additional CMF - 3 | N4: Additional CMF - Numeric | O4: Observed Non-Deer Fatal and Injury Crashes (crashes/year) | P4: Observed Non-Deer PDO Crashes (crashes/year) | Q4: Ovedispersion Parameter FI | R4: Ovedispersion Parameter PDO | S4: Weighted Adjustment FI | T4: Weighted Adjustment PDO | U4: Expected Average Crash Frequency FI | V4: Expected Average Crash Frequency PDO | W4: Expected Average Crash Frequency Total | X4: Excess Expected Crash Frequency FI | Y4: Excess Expected Crash Frequency PDO | Z4: Excess Expected Crash Frequency Total | AA4: CMF for Surface Type | AB4: CMF for Traveled Way Width | AC4: CMF for Horizontal Curvature | AD4: CMF for Driveway Density | AE4: Additional CMF - 1 | AF4: Additional CMF - 2 | AG4: Additional CMF - 3 | AH4: Additional CMF - Numeric | AI4: Combined CMF | AJ4: County Level Effect | AK4: N SPF FI | AL4: N SPF PDO | AM4: Intercept FI | AN4: Intercept PDO | AO4: AADT Coefficient FI | AP4: AADT Coefficient PDO | AQ4: Predicted FI | AR4: Predicted PDO | AS4: Predicted Total | AT4: Predicted Total Crashes | AU4: Proportion of Collision Type(FI) | AV4: Predicted FI Crashes | AW4: Proportion of Collision Type(PDO) | AX4: Predicted PDO Crashes | AY4: Predicted Total Crashes | AZ4: Proportion of Collision Type(FI) | BA4: Predicted FI Crashes | BB4: Proportion of Collision Type(PDO) | BC4: Predicted PDO Crashes | BD4: Predicted Total Crashes | BE4: Proportion of Collision Type(FI) | BF4: Predicted FI Crashes | BG4: Proportion of Collision Type(PDO) | BH4: Predicted PDO Crashes | BI4: Predicted Total Crashes | BJ4: Proportion of Collision Type(FI) | BK4: Predicted FI Crashes | BL4: Proportion of Collision Type(PDO) | BM4: Predicted PDO Crashes | BN4: Predicted Total Crashes | BO4: Proportion of Collision Type(FI) | BP4: Predicted FI Crashes | BQ4: Proportion of Collision Type(PDO) | BR4: Predicted PDO Crashes | BS4: Predicted Total Crashes | BT4: Proportion of Collision Type(FI) | BU4: Predicted FI Crashes | BV4: Proportion of Collision Type(PDO) | BW4: Predicted PDO Crashes | BX4: Predicted Total Crashes | BY4: Proportion of Collision Type(FI) | BZ4: Predicted FI Crashes | CA4: Proportion of Collision Type(PDO) | CB4: Predicted PDO Crashes | CC4: Predicted Total Crashes | CD4: Proportion of Collision Type(FI) | CE4: Predicted FI Crashes | CF4: Proportion of Collision Type(PDO) | CG4: Predicted PDO Crashes | CH4: Predicted Total Crashes | CI4: Proportion of Collision Type(FI) | CJ4: Predicted FI Crashes | CK4: Proportion of Collision Type(PDO) | CL4: Predicted PDO Crashes | CM4: Predicted average crash frequency (crashes/year) | CN4: Roadway segment length (miles) | CO4: Crash rate (crashes/mile/year) | CP4: Predicted average crash frequency (crashes/year) | CQ4: Roadway segment length (miles) | CR4: Crash rate (crashes/mile/year) | CS4: Predicted average crash frequency (crashes/year) | CT4: Roadway segment length (miles) | CU4: Crash rate (crashes/mile/year)

Sheet Rural Multilane Segments (MI)
A1: Worksheet 1A -- General Information and Input Data for Rural Multilane Trunkline Roadway Segments | R1: Empirical Bayes Analysis | AR1: Crash Modification Factor Calculations | BB1: Base Safety Performance Function Calculations | BW1: Crashes by Type and Severity for Rural Multilane Trunkline Intersections | DP1: Summary of Results for Rural Mutlilane Trunkline Roadway Segments
BW2: Single Vehicle | CQ2: Multiple-Vehicle | DP2: PDO | DS2: FI | DV2: Total
E3: Y | F3: Y | H3: Y | I3: Y | BW3: Collision with bicycle | CB3: Collision with pedestrian | CG3: Overturned | CL3: Fixed object/other SV | CQ3: Angle collision | CV3: Head-on collision | DA3: Rear-end collision | DF3: Sideswipe collision | DK3: Other multiple-vehicle collision
A4: # | B4: Roadway | C4: Roadway Section | D4: Jurisdiction | E4: County | F4: MDOT Region | G4: Segment Type | H4: Length of segment, L (miles) | I4: AADT (vehicles/day) | J4: Left Shoulder Width | K4: Right Shoulder Width | L4: Length of horizontal curve under 1,570' (in miles) | M4: Driveway density (driveways/mile) | N4: Additional CMF - 1 | O4: Additional CMF - 2 | P4: Additional CMF - 3 | Q4: Additional CMF - Numeric | R4: Observed Non-Deer Single Vehicle Fatal and Injury Crashes (crashes/year) | S4: Observed Non-Deer Single Vehicle PDO Crashes (crashes/year) | T4: Observed Non-Deer Multiple-Vehicle Fatal and Injury Crashes (crashes/year) | U4: Observed Non-Deer Multiple-Vehicle PDO Crashes (crashes/year) | V4: Ovedispersion Parameter FI SV | W4: Ovedispersion Parameter PDO SV | X4: Ovedispersion Parameter FI MV | Y4: Ovedispersion Parameter PDO MV | Z4: Weighted Adjustment FI SV | AA4: Weighted Adjustment PDO SV | AB4: Weighted Adjustment FI MV | AC4: Weighted Adjustment PDO MV | AD4: Expected Average Crash Frequency FI SV | AE4: Expected Average Crash Frequency PDO SV | AF4: Expected Average Crash Frequency FI MV | AG4: Expected Average Crash Frequency PDO MV | AH4: Expected Average Crash Frequency FI | AI4: Expected Average Crash Frequency PDO | AJ4: Expected Average Crash Frequency Total | AK4: Excess Expected Crash Frequency FI SV | AL4: Excess Expected Crash Frequency PDO SV | AM4: Excess Expected Crash Frequency FI MV | AN4: Excess Expected Crash Frequency PDO MV | AO4: Excess Expected Crash Frequency FI | AP4: Excess Expected Crash Frequency PDO | AQ4: Excess Expected Crash Frequency Total | AR4: CMF for Left Shoulder Width (Divided Only) | AS4: CMF for Right Shoulder Width | AT4: CMF for Horizontal Curvature | AU4: CMF for Driveway Density | AV4: Additional CMF - 1 | AW4: Additional CMF - 2 | AX4: Additional CMF - 3 | AY4: Additional CMF - Numeric | AZ4: Combined CMF Single Vehicle | BA4: Combined CMF Multiple-Vehicle | BB4: N SPF FI SV | BC4: N SPF PDO SV | BD4: N SPF FI MV | BE4: N SPF PDO MV | BF4: Intercept FI SV | BG4: Intercept PDO SV | BH4: Intercept FI MV | BI4: Intercept PDO MV | BJ4: Regional Coefficient FI | BK4: Regional Coefficient PDO | BL4: AADT Coefficient FI SV | BM4: AADT Coefficient PDO SV | BN4: AADT Coefficient FI MV | BO4: AADT Coefficient PDO MV | BP4: Predicted FI SV | BQ4: Predicted PDO SV | BR4: Predicted FI MV | BS4: Predicted PDO MV | BT4: Predicted FI Crash Frequency | BU4: Predicted PDO Crash Frequency | BV4: Predicted Total Crash Frequency | BW4: Predicted Total Crashes | BX4: Proportion of Collision Type(FI) | BY4: Predicted FI Crashes | BZ4: Proportion of Collision Type(PDO) | CA4: Predicted PDO Crashes | CB4: Predicted Total Crashes | CC4: Proportion of Collision Type(FI) | CD4: Predicted FI Crashes | CE4: Proportion of Collision Type(PDO) | CF4: Predicted PDO Crashes | CG4: Predicted Total Crashes | CH4: Proportion of Collision Type(FI) | CI4: Predicted FI Crashes | CJ4: Proportion of Collision Type(PDO) | CK4: Predicted PDO Crashes | CL4: Predicted Total Crashes | CM4: Proportion of Collision Type(FI) | CN4: Predicted FI Crashes | CO4: Proportion of Collision Type(PDO) | CP4: Predicted PDO Crashes | CQ4: Predicted Total Crashes | CR4: Proportion of Collision Type(FI) | CS4: Predicted FI Crashes | CT4: Proportion of Collision Type(PDO) | CU4: Predicted PDO Crashes | CV4: Predicted Total Crashes | CW4: Proportion of Collision Type(FI) | CX4: Predicted FI Crashes | CY4: Proportion of Collision Type(PDO) | CZ4: Predicted PDO Crashes | DA4: Predicted Total Crashes | DB4: Proportion of Collision Type(FI) | DC4: Predicted FI Crashes | DD4: Proportion of Collision Type(PDO) | DE4: Predicted PDO Crashes | DF4: Predicted Total Crashes | DG4: Proportion of Collision Type(FI) | DH4: Predicted FI Crashes | DI4: Proportion of Collision Type(PDO) | DJ4: Predicted PDO Crashes | DK4: Predicted Total Crashes | DL4: Proportion of Collision Type(FI) | DM4: Predicted FI Crashes | DN4: Proportion of Collision Type(PDO) | DO4: Predicted PDO Crashes | DP4: Predicted average crash frequency (crashes/year) | DQ4: Roadway segment length (miles) | DR4: Crash rate (crashes/mile/year) | DS4: Predicted average crash frequency (crashes/year) | DT4: Roadway segment length (miles) | DU4: Crash rate (crashes/mile/year) | DV4: Predicted average crash frequency (crashes/year) | DW4: Roadway segment length (miles) | DX4: Crash rate (crashes/mile/year)

Sheet Rural Unsignalized Int (MI)
A1: Worksheet 2A -- General Information and Input Data for Rural Unsignalized Intersections | R1: Empirical Bayes Analysis | AD1: Worksheet 2B -- Crash Modification Factors for Unsignalized Intersections | AM1: Base Safety Performance Function Calculations | AW1: Worksheet 2C -- Intersection Crashes for Rural Unsignalized Intersections | BL1: Worksheet 2D -- Crashes by Severity Level and Collision Type for Rural Unsignalized Intersections | ER1: Worksheet 2E -- Summary Results for Rural Unsignalized Intersections
AW2: Total | BD2: Fatal and Injury (FI) | BH2: Property Damage Only (PDO) | BL2: Total | BR2: Single Vehicle | DH2: Multiple Vehicle | ER2: Crash Severity Distribution | EU2: Predicted average crash frequency (crashes / year)
E3: Y | F3: Y | G3: Y | H3: Y | BR3: (2) Proportion of Collision Type(TOTAL) from Table 10-6 | BY3: (3) Npredicted int (TOTAL) (crashes/year) (8)TOTAL from Worksheet 2C | CF3: (4) Proportion of Collision Type(FI) from Table 10-6 | CM3: (5) Npredicted int (FI) (crashes/year) (8)FI from Worksheet 2C | CT3: (6) Proportion of Collision Type(PDO) from Table 10-6 | DA3: (7) Npredicted int (PDO) (crashes/year) (8)FI from Worksheet 2C | DH3: (2) Proportion of Collision Type(TOTAL) from Table 10-6 | DN3: (3) Npredicted int (TOTAL) (crashes/year) (8)TOTAL from Worksheet 2C | DT3: (4) Proportion of Collision Type(FI) from Table 10-6 | DZ3: (5) Npredicted int (FI) (crashes/year) (8)FI from Worksheet 2C | EF3: (6) Proportion of Collision Type(PDO) from Table 10-6 | EL3: (7) Npredicted int (PDO) (crashes/year) (8)FI from Worksheet 2C
A4: # | B4: Major Roadway | C4: Minor Roadway | D4: Jurisdiction | E4: County | F4: MDOT Region | G4: Intersection Type | H4: AADT major (vehicles/day) | I4: AADT minor (vehicles/day) | J4: Skew Angle | K4: Driveways within 211' (0.04 miles) of Intersection | L4: Number of uncontrolled approaches with a left-turn lane (0, 1, 2, 3, 4) | M4: Number of uncontrolled approaches with a right-turn lane (0, 1, 2, 3, 4) | N4: Intersection lighting | O4: Additional CMF - 1 | P4: Additional CMF - 2 | Q4: Additional CMF - Numeric | R4: Observed Fatal and Injury Crashes (crashes/year) | S4: Observed PDO Crashes (crashes/year) | T4: Ovedispersion Parameter FI | U4: Ovedispersion Parameter PDO | V4: Weighted Adjustment FI | W4: Weighted Adjustment PDO | X4: Expected Average FI Crash Frequency | Y4: Expected Average PDO Crash Frequency | Z4: Expected Average Total Crash Frequency | AA4: Excess Expected FI Crashes | AB4: Excess Expected PDO Crashes | AC4: Excess Expected Total Crashes | AD4: (1) CMF for Skew Angle from Michigan Research | AE4: (2) CMF for Left-Turn Lanes, CMF 2i, from Table 10-13 | AF4: (3) CMF for Right-Turn Lanes, CMF 3i, from Table 10-14 | AG4: (4) CMF for Lighting, CMF 4i, from Equation 10-24 | AH4: (5) CMF for Driveways from Michigan Research | AI4: Additional CMF - 1 | AJ4: Additional CMF - 2 | AK4: Additional CMF - Numeric | AL4: Combined CMF | AM4: Intercept_FI | AN4: Intercept_PDO | AO4: Coefficient_MajorAADT_FI | AP4: Coefficient_MajorAADT_PDO | AQ4: Coefficient_MinorAADT_FI | AR4: Coefficient_MinorAADT_PDO | AS4: Cofficient_Region_FI | AT4: Cofficient_Region_PDO | AU4: N_base_FI | AV4: N_base_PDO | AW4: N_base_TOTAL | AX4: Overdispersion Parameter FI | AY4: Overdispersion Parameter PDO | AZ4: Crash Severity Distribution from Table 10-5 | BA4: N spf 3ST, 4ST or 4SG by Severity Distribution (2)TOTAL * (4) | BB4: Combined CMFs from (5) of Worksheet 2B | BC4: Predicted average crash frequency, N predicted int (5)*(6)*(7) | BD4: Crash Severity Distribution from Table 10-5 | BE4: N spf 3ST, 4ST or 4SG by Severity Distribution (2)TOTAL * (4) | BF4: Combined CMFs from (5) of Worksheet 2B | BG4: Predicted average crash frequency, N predicted int (5)*(6)*(7) | BH4: Crash Severity Distribution from Table 10-5 | BI4: N spf 3ST, 4ST or 4SG by Severity Distribution (2)TOTAL * (4) | BJ4: Combined CMFs from (5) of Worksheet 2B | BK4: Predicted average crash frequency, N predicted int (5)*(6)*(7) | BL4: (2) Proportion of Collision Type(TOTAL) from Table 10-6 | BM4: (3) Npredicted int (TOTAL) (crashes/year) (8)TOTAL from Worksheet 2C | BN4: (4) Proportion of Collision Type(FI) from Table 10-6 | BO4: (5) Npredicted int (FI) (crashes/year) (8)FI from Worksheet 2C | BP4: (6) Proportion of Collision Type(PDO) from Table 10-6 | BQ4: (7) Npredicted int (PDO) (crashes/year) (8)FI from Worksheet 2C | BR4: Collision with Animal | BS4: Collision with bicycle | BT4: Collision with pedestrian | BU4: Overturned | BV4: Ran off road | BW4: Other single-vehicle collision | BX4: Total single vehicle crashes | BY4: Collision with Animal | BZ4: Collision with bicycle | CA4: Collision with pedestrian | CB4: Overturned | CC4: Ran off road | CD4: Other single-vehicle collision | CE4: Total single vehicle crashes | CF4: Collision with Animal | CG4: Collision with bicycle | CH4: Collision with pedestrian | CI4: Overturned | CJ4: Ran off road | CK4: Other single-vehicle collision | CL4: Total single vehicle crashes | CM4: Collision with Animal | CN4: Collision with bicycle | CO4: Collision with pedestrian | CP4: Overturned | CQ4: Ran off road | CR4: Other single-vehicle collision | CS4: Total single vehicle crashes | CT4: Collision with Animal | CU4: Collision with bicycle | CV4: Collision with pedestrian | CW4: Overturned | CX4: Ran off road | CY4: Other single-vehicle collision | CZ4: Total single vehicle crashes | DA4: Collision with Animal | DB4: Collision with bicycle | DC4: Collision with pedestrian | DD4: Overturned | DE4: Ran off road | DF4: Other single-vehicle collision | DG4: Total single vehicle crashes | DH4: Angle Collision | DI4: Head-on collision | DJ4: Rear-end collision | DK4: Sideswipe collision | DL4: Other multiple-vehicle collision | DM4: Total Multiple vehicle crashes | DN4: Angle Collision | DO4: Head-on collision | DP4: Rear-end collision | DQ4: Sideswipe collision | DR4: Other multiple-vehicle collision | DS4: Total Multiple vehicle crashes | DT4: Angle Collision | DU4: Head-on collision | DV4: Rear-end collision | DW4: Sideswipe collision | DX4: Other multiple-vehicle collision | DY4: Total Multiple vehicle crashes | DZ4: Angle Collision | EA4: Head-on collision | EB4: Rear-end collision | EC4: Sideswipe collision | ED4: Other multiple-vehicle collision | EE4: Total Multiple vehicle crashes | EF4: Angle Collision | EG4: Head-on collision | EH4: Rear-end collision | EI4: Sideswipe collision | EJ4: Other multiple-vehicle collision | EK4: Total Multiple vehicle crashes | EL4: Angle Collision | EM4: Head-on collision | EN4: Rear-end collision | EO4: Sideswipe collision | EP4: Other multiple-vehicle collision | EQ4: Total Multiple vehicle crashes | ER4: Total | ES4: Fatal and Injury (FI) | ET4: Property Damage Only (PDO) | EU4: Property Damage Only (PDO) | EV4: Fatal and Injury (FI) | EW4: Total

Sheet Rural Signalized Int (MI)
A1: Worksheet 2A -- General Information and Input Data for Rural Signalized Intersections | N1: Empirical Bayes Analysis | Z1: Crash Modification Factors | AD1: Base Safety Performance Function Calculations | AS1: Worksheet 2C -- Intersection Crashes for Rural Signalized Intersections | BH1: Worksheet 2D -- Crashes by Severity Level and Collision Type for Rural Signalized Intersections | EN1: Worksheet 2E -- Summary Results for Rural Signalized Intersections
AS2: Total | AZ2: Fatal and Injury (FI) | BD2: Property Damage Only (PDO) | BH2: Total | BN2: Single Vehicle | DD2: Multiple Vehicle | EN2: Crash Severity Distribution | EQ2: Predicted average crash frequency (crashes / year)
E3: Y | F3: Y | H3: Y | I3: Y | BN3: (2) Proportion of Collision Type(TOTAL) from Table 10-6 | BU3: (3) Npredicted int (TOTAL) (crashes/year) (8)TOTAL from Worksheet 2C | CB3: (4) Proportion of Collision Type(FI) from Table 10-6 | CI3: (5) Npredicted int (FI) (crashes/year) (8)FI from Worksheet 2C | CP3: (6) Proportion of Collision Type(PDO) from Table 10-6 | CW3: (7) Npredicted int (PDO) (crashes/year) (8)FI from Worksheet 2C | DD3: (2) Proportion of Collision Type(TOTAL) from Table 10-6 | DJ3: (3) Npredicted int (TOTAL) (crashes/year) (8)TOTAL from Worksheet 2C | DP3: (4) Proportion of Collision Type(FI) from Table 10-6 | DV3: (5) Npredicted int (FI) (crashes/year) (8)FI from Worksheet 2C | EB3: (6) Proportion of Collision Type(PDO) from Table 10-6 | EH3: (7) Npredicted int (PDO) (crashes/year) (8)FI from Worksheet 2C
A4: # | B4: Major Roadway | C4: Minor Roadway | D4: Jurisdiction | E4: County | F4: MDOT Region | G4: Intersection located within Census Designated Place (CDP) | H4: Intersection Type | I4: AADT major (vehicles/day) | J4: AADT minor (vehicles/day) | K4: Additional CMF - 1 | L4: Additional CMF - 2 | M4: Additional CMF - Numeric | N4: Observed Fatal and Injury Crashes (crashes/year) | O4: Observed PDO Crashes (crashes/year) | P4: Ovedispersion Parameter FI | Q4: Ovedispersion Parameter PDO | R4: Weighted Adjustment FI | S4: Weighted Adjustment PDO | T4: Expected Average FI Crash Frequency | U4: Expected Average PDO Crash Frequency | V4: Expected Average Total Crash Frequency | W4: Excess Expected FI Crashes | X4: Excess Expected PDO Crashes | Y4: Excess Expected Total Crashes | Z4: Additional CMF - 1 | AA4: Additional CMF - 2 | AB4: Additional CMF - Numeric | AC4: (5) Combined CMF, CMF COMB, (1)*(2)*(3) | AD4: Intercept_FI | AE4: Intercept_PDO | AF4: Coefficient_TotalAADT_FI | AG4: Total AADT | AH4: Proportin of Minor AADT to Total AADT | AI4: Coefficient_TotalAADT_PDO | AJ4: Coefficient_MinorAADT_FI | AK4: Coefficient_MinorAADT_PDO | AL4: Cofficient_Region_FI | AM4: Cofficient_Region_PDO | AN4: Added Effect of CDP FI | AO4: Added Effect of 3-Leg FI | AP4: Added Effect of 3-Leg PDO | AQ4: N_base_FI | AR4: N_base_PDO | AS4: N_base_TOTAL | AT4: Overdispersion Parameter FI | AU4: Overdispersion Parameter PDO | AV4: Crash Severity Distribution from Table 10-5 | AW4: N spf 3ST, 4ST or 4SG by Severity Distribution (2)TOTAL * (4) | AX4: Combined CMFs from (5) of Worksheet 2B | AY4: Predicted average crash frequency, N predicted int (5)*(6)*(7) | AZ4: Crash Severity Distribution from Table 10-5 | BA4: N spf 3ST, 4ST or 4SG by Severity Distribution (2)TOTAL * (4) | BB4: Combined CMFs from (5) of Worksheet 2B | BC4: Predicted average crash frequency, N predicted int (5)*(6)*(7) | BD4: Crash Severity Distribution from Table 10-5 | BE4: N spf 3ST, 4ST or 4SG by Severity Distribution (2)TOTAL * (4) | BF4: Combined CMFs from (5) of Worksheet 2B | BG4: Predicted average crash frequency, N predicted int (5)*(6)*(7) | BH4: (2) Proportion of Collision Type(TOTAL) from Table 10-6 | BI4: (3) Npredicted int (TOTAL) (crashes/year) (8)TOTAL from Worksheet 2C | BJ4: (4) Proportion of Collision Type(FI) from Table 10-6 | BK4: (5) Npredicted int (FI) (crashes/year) (8)FI from Worksheet 2C | BL4: (6) Proportion of Collision Type(PDO) from Table 10-6 | BM4: (7) Npredicted int (PDO) (crashes/year) (8)FI from Worksheet 2C | BN4: Collision with Animal | BO4: Collision with bicycle | BP4: Collision with pedestrian | BQ4: Overturned | BR4: Ran off road | BS4: Other single-vehicle collision | BT4: Total single vehicle crashes | BU4: Collision with Animal | BV4: Collision with bicycle | BW4: Collision with pedestrian | BX4: Overturned | BY4: Ran off road | BZ4: Other single-vehicle collision | CA4: Total single vehicle crashes | CB4: Collision with Animal | CC4: Collision with bicycle | CD4: Collision with pedestrian | CE4: Overturned | CF4: Ran off road | CG4: Other single-vehicle collision | CH4: Total single vehicle crashes | CI4: Collision with Animal | CJ4: Collision with bicycle | CK4: Collision with pedestrian | CL4: Overturned | CM4: Ran off road | CN4: Other single-vehicle collision | CO4: Total single vehicle crashes | CP4: Collision with Animal | CQ4: Collision with bicycle | CR4: Collision with pedestrian | CS4: Overturned | CT4: Ran off road | CU4: Other single-vehicle collision | CV4: Total single vehicle crashes | CW4: Collision with Animal | CX4: Collision with bicycle | CY4: Collision with pedestrian | CZ4: Overturned | DA4: Ran off road | DB4: Other single-vehicle collision | DC4: Total single vehicle crashes | DD4: Angle Collision | DE4: Head-on collision | DF4: Rear-end collision | DG4: Sideswipe collision | DH4: Other multiple-vehicle collision | DI4: Total Multiple vehicle crashes | DJ4: Angle Collision | DK4: Head-on collision | DL4: Rear-end collision | DM4: Sideswipe collision | DN4: Other multiple-vehicle collision | DO4: Total Multiple vehicle crashes | DP4: Angle Collision | DQ4: Head-on collision | DR4: Rear-end collision | DS4: Sideswipe collision | DT4: Other multiple-vehicle collision | DU4: Total Multiple vehicle crashes | DV4: Angle Collision | DW4: Head-on collision | DX4: Rear-end collision | DY4: Sideswipe collision | DZ4: Other multiple-vehicle collision | EA4: Total Multiple vehicle crashes | EB4: Angle Collision | EC4: Head-on collision | ED4: Rear-end collision | EE4: Sideswipe collision | EF4: Other multiple-vehicle collision | EG4: Total Multiple vehicle crashes | EH4: Angle Collision | EI4: Head-on collision | EJ4: Rear-end collision | EK4: Sideswipe collision | EL4: Other multiple-vehicle collision | EM4: Total Multiple vehicle crashes | EN4: Total | EO4: Fatal and Injury (FI) | EP4: Property Damage Only (PDO) | EQ4: Property Damage Only (PDO) | ER4: Fatal and Injury (FI) | ES4: Total

Sheet Urban & Suburban Segments (MI)
A1: Worksheet 1A -- General Information and Input Data for Urban and Suburban Roadway Segments | AH1: Empirical Bayes Analysis | BL1: Worksheet 1B -- Crash Modification Factors for Urban and Suburban Roadway Segments | BU1: Calculations for CMF for Roadside Fixed Objects | BX1: Nightime crash proportion for CMF for Lighting | CA1: Driveway Density Calculations | CE1: CMF Calculations | CO1: Worksheet 1C -- Multiple-Vehicle Collisions by Severity Level for Urban and Suburban Roadway Segments | DG1: Worksheet 1D -- Multiple-Vehicle Collisions by Collision Type for Urban and Suburban Roadway Segments | EZ1: Worksheet 1E -- Single-Vehicle Collisions by Severity Level for Urban and Suburban Roadway Segments | FR1: Worksheet 1I -- Vehicle-Pedestrian Collisions for Urban and Suburban Roadway Segments | FX1: Worksheet 1J -- Vehicle-Bicycle Collisions for Urban and Suburban Roadway Segments | GG1: Worksheet 1K -- Crash Severity Distribution for Urban and Suburban Roadway Segments | HQ1: Worksheet 1L -- Summary Results for Urban and Suburban Roadway Segments
AH2: Observed FI Crashes Nobserved (crashes/year) | AJ2: Observed PDO Crashes Nobserved (crashes/year) | AL2: Ovedispersion Parameter for FI, k | AN2: Ovedispersion Parameter for PDO, k | AP2: Weighted Adjustment for FI, w (Equation A-5 from Part C Appendix) | AR2: Weighted Adjustment for PDO, w (Equation A-5 from Part C Appendix) | AT2: Expected Average Crash Frequency for FI, Nexpected (Equation A-4 from Part C Appendix) | AX2: Expected Average Crash Frequency for PDO, Nexpected (Equation A-4 from Part C Appendix) | BB2: Totals | BD2: FI N predicted w0 (Equation A-8) | BF2: PDO N predicted w0 (Equation A-8) | BH2: FI N predicted w1 (Equation A-9) | BJ2: PDO N predicted w1 (Equation A-9) | CE2: Fatal/Injury | CJ2: PDO | CO2: Fatal and Injury (FI) | CX2: Property Damage Only (PDO) | DG2: Rear-end | DL2: Rear-end Left-turn | DQ2: Rear-end Right-turn | DV2: Head-on | EA2: Head-on Left-turn | EF2: Angle | EK2: Sideswipe, same direction | EP2: Sideswipe, opposite direction | EU2: Other multiple-vehicle collision | EZ2: Fatal and Injury (FI) | FI2: Property Damage Only (PDO) | FR2: Total (Assumed FI Only) | FX2: Total | GD2: Fatal and Injury (FI) | GG2: Fatal and Injury (FI) | GS2: Property Damage Only (PDO) | HE2: Total | HQ2: Property Damage Only (PDO) | HT2: Fatal and Injury (FI) | HW2: Total
E3: Y | F3: Y | GG3: Multiple-Vehicle | GQ3: Single Vehicle | GR3: Total | GS3: Multiple-Vehicle | HC3: Single Vehicle | HD3: Total | HE3: Multiple-Vehicle | HO3: Single Vehicle | HP3: Total
A4: # | B4: Roadway | C4: Roadway Section | D4: Jurisdiction | E4: Roadway type (2U55E, 2U55L, 3T, 4U, 5T, 4D, 6D, 8D, 2O, 3O, 4O) | F4: Length of segment, L (miles) | G4: AADT (vehicles/day) | H4: Commercial Vehicle Proportion | I4: Type of on-street parking (none/parallel/angle) | J4: Proportion of curb length with on-street parking (2U55E, 2U55L, 3T, 4U, 4D, or 5T) | K4: Median width (feet) - for divided only | L4: Lighting (present / not present) | M4: Auto speed enforcement (present / not present) | N4: Commercial driveways (number) | O4: Industrial driveways (number) | P4: Residential driveways (number) | Q4: Other driveways (number) | R4: Lane Width (feet) | S4: Left Shoulder Width (feet) | T4: Right Shoulder Width (feet) | U4: County | V4: Old MDOT Region | W4: New MDOT Region | X4: Economic Prosperity Region | Y4: Proportion Table Lookup Value - F/I (Hidden) | Z4: Proportion Table Lookup Value - PDO (Hidden) | AA4: Roadside fixed object density (fixed objects / mi) | AB4: Offset to roadside fixed objects (feet) | AC4: Additional CMF - 1 | AD4: Additional CMF - 2 | AE4: Additional CMF - 3 | AF4: Additional CMF - Numeric | AG4: Calibration Factor, Cr | AH4: Multiple-vehicle crashes/year | AI4: Single-vehicle crashes/year | AJ4: Multiple-vehicle crashes/year | AK4: Single-vehicle crashes/year | AL4: Multiple-vehicle | AM4: Single-vehicle | AN4: Multiple-vehicle | AO4: Single-vehicle | AP4: Multiple-vehicle | AQ4: Single-vehicle | AR4: Multiple-vehicle | AS4: Single-vehicle | AT4: Multiple-vehicle | AU4: Single-vehicle | AV4: Total Expected Average Crash Frequency | AW4: Excess Expected Crashes Nexpected - Npredicted | AX4: Multiple-vehicle | AY4: Single-vehicle | AZ4: Total Expected Average Crash Frequency | BA4: Excess Expected Crashes Nexpected - Npredicted | BB4: Total Expected Average Crash Frequency | BC4: Total Excess Expected Crashes | BD4: Multiple-vehicle | BE4: Single-vehicle | BF4: Multiple-vehicle | BG4: Single-vehicle | BH4: Multiple-vehicle | BI4: Single-vehicle | BJ4: Multiple-vehicle | BK4: Single-vehicle | BL4: CMF for On-Street Parking CMF 1r from Equation 12-32 | BM4: (2) CMF for Roadside Fixed Objects CMF 2r from Equation 12-33 | BN4: (4) CMF for Lighting CMF 4r from Equation 12-34 | BO4: (5) CMF for Automated Speed Enforcement CMR 5r from Section 12.7.1 | BP4: Additional CMF - 1 | BQ4: Additional CMF - 2 | BR4: Additional CMF - 3 | BS4: Additional CMF - Numeric | BT4: (6) Combined CMF | BU4: foffset | BV4: Calculated CMF 2r | BW4: Adjusted CMF2r : | BX4: pinr | BY4: ppnr | BZ4: pnr | CA4: Commercial Driveway Density | CB4: Industrial Driveway Density | CC4: Residential Driveway Density | CD4: Other Type Driveway Density | CE4: Lane Width CMF | CF4: Shoulder Width CMF | CG4: Median Width CMF | CH4: MV Driveway Density CMF | CI4: SV Driveway Density CMF | CJ4: Lane Width CMF | CK4: Shoulder Width CMF | CL4: Median Width CMF | CM4: MV Driveway Density CMF | CN4: SV Driveway Density CMF | CO4: (1) SPF Coefficient, Intercept | CP4: (2) SPF Coefficient, AADT | CQ4: (3) SPF Coefficient, Region | CR4: (4) SPF Coefficient, Commercial Vehicle Proportion | CS4: (5) Overdispersion Parameter, k | CT4: (6) Initial Nbrmv from SPF | CU4: (7) Combined CMFs | CV4: (8) Calibration Factor, Cr | CW4: (9) Predicted Nbrmv | CX4: (1) SPF Coefficient, Intercept | CY4: (2) SPF Coefficient, AADT | CZ4: (3) SPF Coefficient, Region | DA4: (4) SPF Coefficient, Commercial Vehicle Proportion | DB4: (5) Overdispersion Parameter, k | DC4: (6) Initial Nbrmv from SPF | DD4: (7) Combined CMFs from Worksheet 1B | DE4: (8) Calibration Factor, Cr | DF4: (9) Predicted Nbrmv | DG4: (1) Proportion of Collision Type(FI) | DH4: (2) Predicted N brmv (FI) (crashes/year) | DI4: (3) Proportion of Collision Type(PDO) | DJ4: (4) Predicted N brmv (PDO) (crashes/year) | DK4: (5) Predicted N brmv (TOTAL) (crashes/year) | DL4: (1) Proportion of Collision Type(FI) | DM4: (2) Predicted N brmv (FI) (crashes/year) | DN4: (3) Proportion of Collision Type(PDO) | DO4: (4) Predicted N brmv (PDO) (crashes/year) | DP4: (5) Predicted N brmv (TOTAL) (crashes/year) | DQ4: (1) Proportion of Collision Type(FI) | DR4: (2) Predicted N brmv (FI) (crashes/year) | DS4: (3) Proportion of Collision Type(PDO) | DT4: (4) Predicted N brmv (PDO) (crashes/year) | DU4: (5) Predicted N brmv (TOTAL) (crashes/year) | DV4: (1) Proportion of Collision Type(FI) | DW4: (2) Predicted N brmv (FI) (crashes/year) | DX4: (3) Proportion of Collision Type(PDO) | DY4: (4) Predicted N brmv (PDO) (crashes/year) | DZ4: (5) Predicted N brmv (TOTAL) (crashes/year) | EA4: (1) Proportion of Collision Type(FI) | EB4: (2) Predicted N brmv (FI) (crashes/year) | EC4: (3) Proportion of Collision Type(PDO) | ED4: (4) Predicted N brmv (PDO) (crashes/year) | EE4: (5) Predicted N brmv (TOTAL) (crashes/year) | EF4: (1) Proportion of Collision Type(FI) | EG4: (2) Predicted N brmv (FI) (crashes/year) | EH4: (3) Proportion of Collision Type(PDO) | EI4: (4) Predicted N brmv (PDO) (crashes/year) | EJ4: (5) Predicted N brmv (TOTAL) (crashes/year) | EK4: (1) Proportion of Collision Type(FI) | EL4: (2) Predicted N brmv (FI) (crashes/year) | EM4: (3) Proportion of Collision Type(PDO) | EN4: (4) Predicted N brmv (PDO) (crashes/year) | EO4: (5) Predicted N brmv (TOTAL) (crashes/year) | EP4: (1) Proportion of Collision Type(FI) | EQ4: (2) Predicted N brmv (FI) (crashes/year) | ER4: (3) Proportion of Collision Type(PDO) | ES4: (4) Predicted N brmv (PDO) (crashes/year) | ET4: (5) Predicted N brmv (TOTAL) (crashes/year) | EU4: (1) Proportion of Collision Type(FI) | EV4: (2) Predicted N brmv (FI) (crashes/year) | EW4: (3) Proportion of Collision Type(PDO) | EX4: (4) Predicted N brmv (PDO) (crashes/year) | EY4: (5) Predicted N brmv (TOTAL) (crashes/year) | EZ4: (1) SPF Coefficient, Intercept | FA4: (2) SPF Coefficient, AADT | FB4: (3) SPF Coefficient, Region | FC4: (4) SPF Coefficient, Commercial Vehicle Proportion | FD4: (5) Overdispersion Parameter, k | FE4: (6) Initial Nbrsv from SPF | FF4: (7) Combined CMFs | FG4: (8) Calibration Factor, Cr | FH4: (9) Predicted Nbrsv | FI4: (1) SPF Coefficient, Intercept | FJ4: (2) SPF Coefficient, AADT | FK4: (3) SPF Coefficient, Region | FL4: (4) SPF Coefficient, Commercial Vehicle Proportion | FM4: (5) Overdispersion Parameter, k | FN4: (6) Initial Nbrsv from SPF | FO4: (7) Combined CMFs from Worksheet 1B | FP4: (8) Calibration Factor, Cr | FQ4: (9) Predicted Nbrsv | FR4: (1) Predicted N brmv (9)from Worksheet 1C | FS4: (2) Predicted N brsv (9) from Worksheet 1E | FT4: (3) Predicted N br (2) + (3) + (4) | FU4: (4) f pedr | FV4: (5) Calibration Factor, Cr | FW4: (6) Predicted Npedr (3) * (4) * (5) | FX4: (1) Predicted N brmv (9)from Worksheet 1C | FY4: (2) Predicted N brsv (9) from Worksheet 1E | FZ4: (3) Predicted N br (2) + (3) + (4) | GA4: (4) f biker | GB4: (5) Calibration Factor, Cr | GC4: (6) Predicted N biker (3) * (4) * (5) | GD4: (7) f biker-FI | GE4: (8) Calibration Factor, Cr | GF4: (9) Predicted N biker(FI) (6) * (7) * (8) | GG4: Rear-end collisions | GH4: Rear-end Left-turn collisions | GI4: Rear-end Right-turn collisions | GJ4: Head-on collisions | GK4: Head-on Left-turn collisions | GL4: Angle collisions | GM4: Sideswipe, same direction | GN4: Sideswipe, opposite direction | GO4: Other Multiple Vehicle collisions | GP4: Subtotal | GQ4: Single Vehicle | GS4: Rear-end collisions | GT4: Rear-end Left-turn collisions | GU4: Rear-end Right-turn collisions | GV4: Head-on collisions | GW4: Head-on Left-turn collisions | GX4: Angle collisions | GY4: Sideswipe, same direction | GZ4: Sideswipe, opposite direction | HA4: Other Multiple Vehicle collisions | HB4: Subtotal | HC4: Single Vehicle | HE4: Rear-end collisions | HF4: Rear-end Left-turn collisions | HG4: Rear-end Right-turn collisions | HH4: Head-on collisions | HI4: Head-on Left-turn collisions | HJ4: Angle collisions | HK4: Sideswipe, same direction | HL4: Sideswipe, opposite direction | HM4: Other Multiple Vehicle collisions | HN4: Subtotal | HO4: Single Vehicle | HQ4: Predicted average crash frequency N predicted rs (crashes/year) | HR4: Roadway segment length, L (miles) | HS4: Crash rate (crashes/mile/year) | HT4: Predicted average crash frequency N predicted rs (crashes/year) | HU4: Roadway segment length, L (miles) | HV4: Crash rate (crashes/mile/year) | HW4: Predicted average crash frequency N predicted rs (crashes/year) | HX4: Roadway segment length, L (miles) | HY4: Crash rate (crashes/mile/year)

Sheet Urban & Suburban Ints (MI)
AA1: Empirical Bayes Analysis | BP1: Calculations for CMFs | CD1: Predicted Crashes Prior to CMF Application (crashes/year) | CH1: Predicted Crashes with CMFs Applied (crashes/year) | CL1: Predicted Motor Vehicle Only Crashes (crashes/year) | CO1: Predicted Pedestrian and Bicycle Crashes (crashes/year) | CS1: Predicted Distribution of Motor Vehicle Only Crashes by Manner of Collsion and Severity (crashes/year) | DM1: Predicted Crashes, All Types and Severities (crashes/year)
L2: Intersection Information | AA2: Observed Crash Frequency Nobserved (crashes/year) | AG2: Overdispersion Parameter, k | AM2: Weighted Adjustment, w (Equation A-5 from Part C Appendix) | AS2: Expected Crash Frequency, Nexpected (crashes/year) (Equation A-4 from Part C Appendix) | BD2: Npredicted w0, Equation A-8 | BJ2: Npredicted w1, Equation A-9
E3: Y | F3: Y
A4: # | B4: Major Roadway | C4: Minor Roadway | D4: Jurisdiction | E4: Intersection Type | F4: Major Road Flow Type | G4: Minor Road Flow Type | H4: Major AADT | I4: Minor AADT | J4: Major Road Median Presence | K4: Minor Road Median Presence | L4: Total Major Road Through Lanes (Both Directions) | M4: Total Minor Road Through Lanes (Both Directions) | N4: Major Road Speed Limit | O4: Right Turn on Red Status | P4: Lighting Presence | Q4: Major Street Left Turn Lane on all approaches | R4: County | S4: 1997 MDOT Region | T4: 2016 MDOT Region | U4: Economic Prosperity Region | V4: Intersection Type | W4: Additional CMF - 1 | X4: Additional CMF - 2 | Y4: Additional CMF - 3 | Z4: Additional CMF - Numeric | AA4: Multiple-Vehicle F-I Observed Crashes | AB4: Single-Vehicle F-I Observed Crashes | AC4: Multiple-Vehicle PDO Observed Crashes | AD4: Single-Vehicle PDO Observed Crashes | AE4: Motor Vehicle Only F-I Observed Crashes | AF4: Motor Vehicle Only PDO Observed Crashes | AG4: Multiple-Vehicle F-I Overdispersion | AH4: Single-Vehicle F-I Overdispersion | AI4: Motor Vehicle Only F-I Crashes Overdispersion | AJ4: Multiple-Vehicle PDO Overdispersion | AK4: Single-Vehicle PDO Overdispersion | AL4: Motor Vehicle Only PDO Overdispersion | AM4: Multiple-Vehicle F-I Weighted Adjustment | AN4: Single-Vehicle F-I Weighted Adjustment | AO4: Motor Vehicle Only Weighted Adjustment | AP4: Multiple-Vehicle PDO Weighted Adjustment | AQ4: Single-Vehicle PDO Weighted Adjustment | AR4: Motor Vehicle Only Weighted Adjustment | AS4: Multiple-Vehicle F-I Expected Crash Frequency | AT4: Single-Vehicle F-I Expected Crash Frequency | AU4: Motor Vehicle Only F-I Expected Crash Frequency | AV4: Multiple-Vehicle PDO Expected Crash Frequency | AW4: Single-Vehicle PDO Expected Crash Frequency | AX4: Motor Vehicle Only PDO Expected Crash Frequency | AY4: Multiple-Vehicle All-Severity Expected Crash Frequency | AZ4: Single-Vehicle All-Severity Expected Crash Frequency | BA4: Motor Vehicle Only All-Severity Expected Crash Frequency | BB4: Total Expected Crashes (crashes/year) | BC4: Excess Expected Crashes (crashes/year) Nexpected - Npredicted | BD4: Multiple-Vehicle F-I Npredicted w0 | BE4: Single-Vehicle F-I Npredicted w0 | BF4: Motor Vehicle Only F-I Npredicted w0 | BG4: Multiple-Vehicle PDO Npredicted w0 | BH4: Single-Vehicle PDO Npredicted w0 | BI4: Motor Vehicle Only PDO Npredicted w0 | BJ4: Multiple-Vehicle F-I Npredicted w1 | BK4: Single-Vehicle F-I Npredicted w1 | BL4: Motor Vehicle Only F-I Npredicted w1 | BM4: Multiple-Vehicle F-I Npredicted w1 | BN4: Single-Vehicle F-I Npredicted w1 | BO4: Motor Vehicle Only F-I Npredicted w1 | BP4: Pmaj | BQ4: Pmin | BR4: FI Median Presence CMF | BS4: FI Lighting Presnece CMF | BT4: FI Number of Lanes CMF | BU4: FI Posted Speed Limit CMF | BV4: FI RTOR CMF | BW4: FI LTL CMF | BX4: PDO Median Presence CMF | BY4: PDO Lighting Presnece CMF | BZ4: PDO Number of Lanes CMF | CA4: PDO Posted Speed Limit CMF | CB4: PDO RTOR CMF | CC4: PDO LTL CMF | CD4: FI MV Crashes Prior to CMFs | CE4: FI SV Crashes Prior to CMFs | CF4: PDO MV Crashes Prior to CMFs | CG4: PDO SV Crashes Prior to CMFs | CH4: FI MV Crashes with CMFs | CI4: FI SV Crashes with CMFs | CJ4: PDO MV Crashes with CMFs | CK4: PDO SV Crashes with CMFs | CL4: Predicted FI Motor Vehicle Only Crashes | CM4: Predicted PDO Motor Vehicle Only Crashes | CN4: Predicted All Severity Motor Vehicle Only Crashes | CO4: Pedestrian Involved Crashes | CP4: Bicycle Involved Crashes | CQ4: FI Bicycle Involved Crashes | CR4: PDO Bicycle Involved Crashes | CS4: FI Single-Motor Vehicle Crashes | CT4: PDO Single-Motor Vehiclce Crashes | CU4: FI Rear-end Crashes | CV4: PDO Rear-End Crashes | CW4: FI Rear-end Left-turn Crashes | CX4: PDO Rear-end Left-turn Crashes | CY4: FI Rear-end Right-turn Crashes | CZ4: PDO Rear-end Right-turn Crashes | DA4: FI Head-on Crashes | DB4: PDO Head-on Crashes | DC4: FI Head-on Left-turn Crashes | DD4: PDO Head-on Left-turn Crashes | DE4: FI Angle Crashes | DF4: PDO Angle Crashes | DG4: FI Sideswipe-Same Crashes | DH4: PDO Sideswipe-Same Crashes | DI4: FI Sideswipe-Opposite Crashes | DJ4: PDO Sideswipe-Opposite Crashes | DK4: FI Other Multiple-Vehicle Crashes | DL4: PDO Other Multiple-Vehicle Crashes | DM4: Predicted All Crash types and severities | DN4: Predicted All Crash types F-I | DO4: Predicted All Crash types PDO

Sheet MI Specific Tables (hidden)
E1: 1 | F1: 2 | G1: 3 | H1: 4 | I1: 5 | J1: 6 | K1: 7 | L1: 8 | M1: 9 | N1: 10 | O1: 11 | P1: 12 | Q1: 13 | R1: 14 | S1: 15 | T1: 16 | U1: 17 | V1: 18 | W1: 19 | X1: 20 | Y1: 21 | Z1: 22 | AA1: 23 | AG1: 1 | AH1: 2 | AI1: 3 | AJ1: 4 | AK1: 5 | AL1: 6 | AM1: 7 | AN1: 8 | AO1: 9 | AP1: 10 | AQ1: 11 | AR1: 12 | AX1: 1 | AY1: 2 | AZ1: 3 | BA1: 4 | BB1: 5 | BC1: 6 | BD1: 7 | BE1: 8 | BF1: 9 | BG1: 10 | BJ1: 1 | BK1: 2 | BL1: 3 | BM1: 4 | BN1: 5 | BO1: 6 | BP1: 7 | BQ1: 8 | BR1: 9 | BS1: 10 | BT1: 11 | BU1: 12
B2: Two-Way Model Coefficients | AD2: One-Way Model Coefficients | AU2: Two-Way Intersection Crash Proportions | BI2: One-Way Proportion of Crashes by Severity Level for Specific Intersection Types | BW2: Two-Way, Pedestrian | CB2: Two-Way, Bicycle | CI2: One-Way, Pedestrian | CN2: One-Way, Bicycle
B3: 1997 MDOT Region | C3: Intersection Type | E3: Combined Type | F3: MVIntercept | G3: MVMajorAADT | H3: MVMinorAADT | I3: SVIntercept | J3: SVMajorAADT | K3: SVMinorAADT | L3: Superior | M3: North | N3: Grand | O3: Bay | P3: Southwest | Q3: University | R3: Metro | S3: MajorMedian | T3: MinorMedian | U3: Lighting | V3: NumberofLanes | W3: SpeedLimit | X3: RTOR | Y3: LeftTurn | Z3: MVInverseDisperion | AA3: SVInverseDispersion | AD3: 1997 MDOT Region | AE3: Intersection Type | AG3: Combined Type | AH3: Intercept | AI3: AADT | AJ3: Superior | AK3: North | AL3: Grand | AM3: Bay | AN3: Southwest | AO3: University | AP3: Metro | AQ3: NumberofLanes | AR3: InverseOverdispersion | AU3: 1997 MDOT Region | AV3: Intersection Type | AX3: Combined Type | AY3: Rear-end | AZ3: Rear-end Left-turn | BA3: Rear-end Right-turn | BB3: Head-on | BC3: Head-on Left-turn | BD3: Angle | BE3: Sideswipe- Same | BF3: Sideswipe- Opposite | BG3: Other MV | BI3: Manner of Collision | BL3: Single-Vehicle | BM3: Rear-end | BN3: Rear-end Left-turn | BO3: Rear-end Right-turn | BP3: Head-on | BQ3: Head-on Left-turn | BR3: Angle | BS3: Sideswipe- Same | BT3: Sideswipe- Opposite | BU3: Other MV | BW3: Intersection Type | BX3: Total Pedestrian Crashes | BY3: Total MV and SV Crashes* | CB3: Intersection Type | CC3: Bicycle Crashes | CF3: Total MV and SV Crashes* | CI3: Intersection Type | CJ3: Total Pedestrian Crashes | CK3: Total MV and SV Crashes* | CN3: Intersection Type | CO3: Bicycle Crashes | CR3: Total MV and SV Crashes*
B4: Statewide | C4: 3SG | D4: FI | E4: =B4&C4 -> Statewide3SG | F4: -8.611 | G4: 0.715 | H4: 0.17 | I4: -8.805 | J4: 0.194 | K4: 0.44 | L4: 0 | M4: 0 | N4: 0 | O4: 0 | P4: 0 | Q4: 0 | R4: 0 | S4: -0.347 | T4: -0.333 | U4: 0 | V4: 0.044 | W4: 0.021 | X4: -0.277 | Y4: -0.098 | Z4: 1.965 | AA4: 0.726 | AD4: Statewide | AE4: 3SG | AF4: FI | AG4: =AD4&AE4 -> Statewide3SG | AH4: -7.743 | AI4: 0.661 | AJ4: 0 | AK4: 0 | AL4: 0 | AM4: 0 | AN4: 0 | AO4: 0 | AP4: 0 | AQ4: 0.064 | AR4: 0.952 | AU4: Statewide | AV4: 3SG | AW4: FI | AX4: =AU4&AV4 -> Statewide3SG | AY4: 0.47 | AZ4: 0.01 | BA4: 0.01 | BB4: 0.02 | BC4: 0.16 | BD4: 0.29 | BE4: 0.01 | BF4: 0.01 | BG4: 0.02 | BI4: Statewide | BJ4: 3SG | BK4: FI | BL4: 0.03 | BM4: 0.56 | BN4: 0 | BO4: 0.06 | BP4: 0.01 | BQ4: 0.01 | BR4: 0.24 | BS4: 0.04 | BT4: 0.01 | BU4: 0.02 | BW4: 3SG | BX4: 33 | BY4: 3486 | BZ4: 0.0095 | CC4: Total | CD4: Fatal and Injury only | CI4: 3SG | CJ4: 6 | CK4: 471 | CL4: 0.0127 | CO4: Total | CP4: Fatal and Injury only
B5: Statewide | C5: 3ST | D5: FI | E5: Statewide3ST | F5: -15.373 | G5: 0.978 | H5: 0.586 | I5: -8.069 | J5: 0.061 | K5: 0.298 | L5: 0 | M5: 0 | N5: 0 | O5: 0 | P5: 0 | Q5: 0 | R5: 0 | S5: -0.347 | T5: -0.333 | U5: -0.308 | V5: 0.036 | W5: 0.011 | X5: 0 | Y5: -0.049 | Z5: 1.342 | AA5: 1.259 | AD5: Statewide | AE5: 3ST | AF5: FI | AG5: Statewide3ST | AH5: -14.268 | AI5: 1.113 | AJ5: 0 | AK5: 0 | AL5: 0 | AM5: 0 | AN5: 0 | AO5: 0 | AP5: 0 | AQ5: 0.016 | AR5: 0.351 | AU5: Statewide | AV5: 4SG | AW5: FI | AX5: Statewide4SG | AY5: 0.31 | AZ5: 0.06 | BA5: 0.03 | BB5: 0.03 | BC5: 0.15 | BD5: 0.36 | BE5: 0.04 | BF5: 0.01 | BG5: 0.01 | BJ5: 3ST | BK5: FI | BL5: 0.06 | BM5: 0.47 | BN5: 0 | BO5: 0.06 | BP5: 0.12 | BQ5: 0 | BR5: 0.24 | BS5: 0.06 | BT5: 0 | BU5: 0 | BW5: 3ST | BX5: 9 | BY5: 700 | BZ5: 0.0129 | CB5: 3SG | CC5: 35 | CD5: 25 | CE5: 0.71 | CF5: 3486 | CG5: 0.01 | CI5: 3ST | CJ5: 2 | CK5: 138 | CL5: 0.0145 | CN5: 3SG | CO5: 8 | CP5: 6 | CQ5: 0.75 | CR5: 471 | CS5: 0.017
B6: Statewide | C6: 4SG | D6: FI | E6: Statewide4SG | F6: -8.545 | G6: 0.715 | H6: 0.221 | I6: -6.891 | J6: 0.194 | K6: 0.201 | L6: 0 | M6: 0 | N6: 0 | O6: 0 | P6: 0 | Q6: 0 | R6: 0 | S6: -0.347 | T6: -0.333 | U6: 0 | V6: 0.044 | W6: 0.021 | X6: -0.277 | Y6: 0 | Z6: 3.614 | AA6: 4.708 | AD6: Statewide | AE6: 4SG | AF6: FI | AG6: Statewide4SG | AH6: -1.933 | AI6: 0.189 | AJ6: 0 | AK6: 0 | AL6: 0 | AM6: 0 | AN6: 0 | AO6: 0 | AP6: 0 | AQ6: 0.064 | AR6: 2.718 | AU6: Statewide | AV6: 3ST | AW6: FI | AX6: Statewide3ST | AY6: 0.41 | AZ6: 0.01 | BA6: 0.02 | BB6: 0.02 | BC6: 0.11 | BD6: 0.38 | BE6: 0.02 | BF6: 0.01 | BG6: 0.02 | BJ6: 4SG | BK6: FI | BL6: 0.02 | BM6: 0.24 | BN6: 0.01 | BO6: 0.01 | BP6: 0.01 | BQ6: 0.03 | BR6: 0.56 | BS6: 0.08 | BT6: 0.01 | BU6: 0.04 | BW6: 4SG | BX6: 97 | BY6: 12433 | BZ6: 0.0078 | CB6: 3ST | CC6: 15 | CD6: 11 | CE6: 0.73 | CF6: 700 | CG6: 0.0214 | CI6: 4SG | CJ6: 33 | CK6: 1937 | CL6: 0.017 | CN6: 3ST | CO6: 3 | CP6: 1 | CQ6: 0.33 | CR6: 138 | CS6: 0.0217
B7: Statewide | C7: 4ST | D7: FI | E7: Statewide4ST | F7: -10.283 | G7: 0.621 | H7: 0.452 | I7: -6.725 | J7: 0.061 | K7: 0.298 | L7: 0 | M7: 0 | N7: 0 | O7: 0 | P7: 0 | Q7: 0 | R7: 0 | S7: -0.347 | T7: -0.333 | U7: -0.308 | V7: 0.036 | W7: 0.011 | X7: 0 | Y7: 0 | Z7: 1.259 | AA7: 1.259 | AD7: Statewide | AE7: 4ST | AF7: FI | AG7: Statewide4ST | AH7: -9.861 | AI7: 0.849 | AJ7: 0 | AK7: 0 | AL7: 0 | AM7: 0 | AN7: 0 | AO7: 0 | AP7: 0 | AQ7: 0.016 | AR7: 2.421 | AU7: Statewide | AV7: 4ST | AW7: FI | AX7: Statewide4ST | AY7: 0.19 | AZ7: 0.03 | BA7: 0.01 | BB7: 0.01 | BC7: 0.09 | BD7: 0.6 | BE7: 0.03 | BF7: 0.01 | BG7: 0.03 | BJ7: 4ST | BK7: FI | BL7: 0.05 | BM7: 0.14 | BN7: 0.02 | BO7: 0.02 | BP7: 0.02 | BQ7: 0.05 | BR7: 0.65 | BS7: 0.08 | BT7: 0 | BU7: 0 | BW7: 4ST | BX7: 16 | BY7: 1792 | BZ7: 0.0089 | CB7: 4SG | CC7: 140 | CD7: 113 | CE7: 0.81 | CF7: 12433 | CG7: 0.0113 | CI7: 4ST | CJ7: 6 | CK7: 313 | CL7: 0.0192 | CN7: 4SG | CO7: 25 | CP7: 18 | CQ7: 0.72 | CR7: 1937 | CS7: 0.0129
B8: Superior | C8: 3SG | D8: FI | E8: Superior3SG | F8: -10.228 | G8: 0.831 | H8: 0.17 | I8: -10.205 | J8: 0.279 | K8: 0.45 | L8: 0.596 | M8: 0 | N8: 0 | O8: 0 | P8: 0 | Q8: 0 | R8: 0 | S8: -0.344 | T8: -0.326 | U8: 0 | V8: 0.068 | W8: 0.019 | X8: -0.301 | Y8: -0.067 | Z8: 2.123 | AA8: 0.938 | AD8: Superior | AE8: 3SG | AF8: FI | AG8: Superior3SG | AH8: -11.284 | AI8: 0.966 | AJ8: 0 | AK8: 0 | AL8: 0 | AM8: 0 | AN8: 0 | AO8: 0 | AP8: 0 | AQ8: 0.058 | AR8: 1.138 | AU8: Superior | AV8: 3SG | AW8: FI | AX8: Superior3SG | AY8: 0.55 | AZ8: 0 | BA8: 0 | BB8: 0.05 | BC8: 0.1 | BD8: 0.25 | BE8: 0 | BF8: 0.03 | BG8: 0.03 | BJ8: 3SG | BK8: PDO | BL8: 0.05 | BM8: 0.47 | BN8: 0.01 | BO8: 0.05 | BP8: 0.01 | BQ8: 0.01 | BR8: 0.21 | BS8: 0.15 | BT8: 0.02 | BU8: 0.04 | CB8: 4ST | CC8: 22 | CD8: 19 | CE8: 0.86 | CF8: 1792 | CG8: 0.0123 | CN8: 4ST | CO8: 9 | CP8: 6 | CQ8: 0.67 | CR8: 313 | CS8: 0.0288
B9: Superior | C9: 3ST | D9: FI | E9: Superior3ST | F9: -16.764 | G9: 1.067 | H9: 0.594 | I9: -8.953 | J9: 0.108 | K9: 0.292 | L9: 0.596 | M9: 0 | N9: 0 | O9: 0 | P9: 0 | Q9: 0 | R9: 0 | S9: -0.344 | T9: -0.326 | U9: -0.305 | V9: 0.046 | W9: 0.01 | X9: 0 | Y9: -0.404 | Z9: 1.451 | AA9: 1.023 | AD9: Superior | AE9: 3ST | AF9: FI | AG9: Superior3ST | AH9: -16.437 | AI9: 1.314 | AJ9: 0 | AK9: 0 | AL9: 0 | AM9: 0 | AN9: 0 | AO9: 0 | AP9: 0 | AQ9: 0.053 | AR9: 0.328 | AU9: Superior | AV9: 4SG | AW9: FI | AX9: Superior4SG | AY9: 0.36 | AZ9: 0.08 | BA9: 0.04 | BB9: 0 | BC9: 0.08 | BD9: 0.4 | BE9: 0.04 | BF9: 0 | BG9: 0 | BJ9: 3ST | BK9: PDO | BL9: 0.03 | BM9: 0.52 | BN9: 0 | BO9: 0.04 | BP9: 0 | BQ9: 0.01 | BR9: 0.19 | BS9: 0.17 | BT9: 0.02 | BU9: 0.02
B10: Superior | C10: 4SG | D10: FI | E10: Superior4SG | F10: -10.3 | G10: 0.831 | H10: 0.231 | I10: -8.204 | J10: 0.279 | K10: 0.196 | L10: 0.596 | M10: 0 | N10: 0 | O10: 0 | P10: 0 | Q10: 0 | R10: 0 | S10: -0.344 | T10: -0.326 | U10: 0 | V10: 0.068 | W10: 0.019 | X10: -0.301 | Y10: 0 | Z10: 3.821 | AA10: 5.183 | AD10: Superior | AE10: 4SG | AF10: FI | AG10: Superior4SG | AH10: -4.902 | AI10: 0.427 | AJ10: 0 | AK10: 0 | AL10: 0 | AM10: 0 | AN10: 0 | AO10: 0 | AP10: 0 | AQ10: 0.058 | AR10: 3.449 | AU10: Superior | AV10: 3ST | AW10: FI | AX10: Superior3ST | AY10: 0.32 | AZ10: 0.01 | BA10: 0.01 | BB10: 0.02 | BC10: 0.14 | BD10: 0.48 | BE10: 0.01 | BF10: 0 | BG10: 0.01 | BJ10: 4SG | BK10: PDO | BL10: 0.03 | BM10: 0.29 | BN10: 0.01 | BO10: 0.01 | BP10: 0.01 | BQ10: 0.02 | BR10: 0.38 | BS10: 0.21 | BT10: 0.01 | BU10: 0.03
B11: Superior | C11: 4ST | D11: FI | E11: Superior4ST | F11: -11.235 | G11: 0.677 | H11: 0.447 | I11: -7.585 | J11: 0.108 | K11: 0.292 | L11: 0.596 | M11: 0 | N11: 0 | O11: 0 | P11: 0 | Q11: 0 | R11: 0 | S11: -0.344 | T11: -0.326 | U11: -0.305 | V11: 0.046 | W11: 0.01 | X11: 0 | Y11: 0 | Z11: 1.354 | AA11: 1.023 | AD11: Superior | AE11: 4ST | AF11: FI | AG11: Superior4ST | AH11: -9.799 | AI11: 0.8 | AJ11: 0 | AK11: 0 | AL11: 0 | AM11: 0 | AN11: 0 | AO11: 0 | AP11: 0 | AQ11: 0.053 | AR11: 2.161 | AU11: Superior | AV11: 4ST | AW11: FI | AX11: Superior4ST | AY11: 0.21 | AZ11: 0 | BA11: 0 | BB11: 0 | BC11: 0.03 | BD11: 0.65 | BE11: 0.03 | BF11: 0.03 | BG11: 0.06 | BJ11: 4ST | BK11: PDO | BL11: 0.04 | BM11: 0.15 | BN11: 0.03 | BO11: 0 | BP11: 0 | BQ11: 0.02 | BR11: 0.48 | BS11: 0.23 | BT11: 0.02 | BU11: 0.03
B12: North | C12: 3SG | D12: FI | E12: North3SG | F12: -10.228 | G12: 0.831 | H12: 0.17 | I12: -10.205 | J12: 0.279 | K12: 0.45 | L12: 0 | M12: 0.447 | N12: 0 | O12: 0 | P12: 0 | Q12: 0 | R12: 0 | S12: -0.344 | T12: -0.326 | U12: 0 | V12: 0.068 | W12: 0.019 | X12: -0.301 | Y12: -0.067 | Z12: 2.123 | AA12: 0.938 | AD12: North | AE12: 3SG | AF12: FI | AG12: North3SG | AH12: -11.284 | AI12: 0.966 | AJ12: 0 | AK12: 0 | AL12: 0 | AM12: 0 | AN12: 0 | AO12: 0 | AP12: 0 | AQ12: 0.058 | AR12: 1.138 | AU12: North | AV12: 3SG | AW12: FI | AX12: North3SG | AY12: 0.33 | AZ12: 0.02 | BA12: 0.04 | BB12: 0.02 | BC12: 0.29 | BD12: 0.24 | BE12: 0.01 | BF12: 0.02 | BG12: 0.04
B13: North | C13: 3ST | D13: FI | E13: North3ST | F13: -16.764 | G13: 1.067 | H13: 0.594 | I13: -8.953 | J13: 0.108 | K13: 0.292 | L13: 0 | M13: 0.447 | N13: 0 | O13: 0 | P13: 0 | Q13: 0 | R13: 0 | S13: -0.344 | T13: -0.326 | U13: -0.305 | V13: 0.046 | W13: 0.01 | X13: 0 | Y13: -0.404 | Z13: 1.451 | AA13: 1.023 | AD13: North | AE13: 3ST | AF13: FI | AG13: North3ST | AH13: -16.437 | AI13: 1.314 | AJ13: 0 | AK13: 0 | AL13: 0 | AM13: 0 | AN13: 0 | AO13: 0 | AP13: 0 | AQ13: 0.053 | AR13: 0.328 | AU13: North | AV13: 4SG | AW13: FI | AX13: North4SG | AY13: 0.21 | AZ13: 0.04 | BA13: 0.04 | BB13: 0.04 | BC13: 0.33 | BD13: 0.25 | BE13: 0.04 | BF13: 0.04 | BG13: 0
B14: North | C14: 4SG | D14: FI | E14: North4SG | F14: -10.3 | G14: 0.831 | H14: 0.231 | I14: -8.204 | J14: 0.279 | K14: 0.196 | L14: 0 | M14: 0.447 | N14: 0 | O14: 0 | P14: 0 | Q14: 0 | R14: 0 | S14: -0.344 | T14: -0.326 | U14: 0 | V14: 0.068 | W14: 0.019 | X14: -0.301 | Y14: 0 | Z14: 3.821 | AA14: 5.183 | AD14: North | AE14: 4SG | AF14: FI | AG14: North4SG | AH14: -4.902 | AI14: 0.427 | AJ14: 0 | AK14: 0 | AL14: 0 | AM14: 0 | AN14: 0 | AO14: 0 | AP14: 0 | AQ14: 0.058 | AR14: 3.449 | AU14: North | AV14: 3ST | AW14: FI | AX14: North3ST | AY14: 0.4 | AZ14: 0.02 | BA14: 0.01 | BB14: 0.01 | BC14: 0.17 | BD14: 0.36 | BE14: 0.01 | BF14: 0.01 | BG14: 0.01
B15: North | C15: 4ST | D15: FI | E15: North4ST | F15: -11.235 | G15: 0.677 | H15: 0.447 | I15: -7.585 | J15: 0.108 | K15: 0.292 | L15: 0 | M15: 0.447 | N15: 0 | O15: 0 | P15: 0 | Q15: 0 | R15: 0 | S15: -0.344 | T15: -0.326 | U15: -0.305 | V15: 0.046 | W15: 0.01 | X15: 0 | Y15: 0 | Z15: 1.354 | AA15: 1.023 | AD15: North | AE15: 4ST | AF15: FI | AG15: North4ST | AH15: -9.799 | AI15: 0.8 | AJ15: 0 | AK15: 0 | AL15: 0 | AM15: 0 | AN15: 0 | AO15: 0 | AP15: 0 | AQ15: 0.053 | AR15: 2.161 | AU15: North | AV15: 4ST | AW15: FI | AX15: North4ST | AY15: 0.14 | AZ15: 0.02 | BA15: 0 | BB15: 0.02 | BC15: 0.14 | BD15: 0.64 | BE15: 0 | BF15: 0.02 | BG15: 0.03
B16: Grand | C16: 3SG | D16: FI | E16: Grand3SG | F16: -10.228 | G16: 0.831 | H16: 0.17 | I16: -10.205 | J16: 0.279 | K16: 0.45 | L16: 0 | M16: 0 | N16: 0.446 | O16: 0 | P16: 0 | Q16: 0 | R16: 0 | S16: -0.344 | T16: -0.326 | U16: 0 | V16: 0.068 | W16: 0.019 | X16: -0.301 | Y16: -0.067 | Z16: 2.123 | AA16: 0.938 | AD16: Grand | AE16: 3SG | AF16: FI | AG16: Grand3SG | AH16: -11.284 | AI16: 0.966 | AJ16: 0 | AK16: 0 | AL16: 0 | AM16: 0 | AN16: 0 | AO16: 0 | AP16: 0 | AQ16: 0.058 | AR16: 1.138 | AU16: Grand | AV16: 3SG | AW16: FI | AX16: Grand3SG | AY16: 0.56 | AZ16: 0.01 | BA16: 0 | BB16: 0.02 | BC16: 0.12 | BD16: 0.23 | BE16: 0.01 | BF16: 0.02 | BG16: 0.02
B17: Grand | C17: 3ST | D17: FI | E17: Grand3ST | F17: -16.764 | G17: 1.067 | H17: 0.594 | I17: -8.953 | J17: 0.108 | K17: 0.292 | L17: 0 | M17: 0 | N17: 0.446 | O17: 0 | P17: 0 | Q17: 0 | R17: 0 | S17: -0.344 | T17: -0.326 | U17: -0.305 | V17: 0.046 | W17: 0.01 | X17: 0 | Y17: -0.404 | Z17: 1.451 | AA17: 1.023 | AD17: Grand | AE17: 3ST | AF17: FI | AG17: Grand3ST | AH17: -16.437 | AI17: 1.314 | AJ17: 0 | AK17: 0 | AL17: 0 | AM17: 0 | AN17: 0 | AO17: 0 | AP17: 0 | AQ17: 0.053 | AR17: 0.328 | AU17: Grand | AV17: 4SG | AW17: FI | AX17: Grand4SG | AY17: 0.35 | AZ17: 0.04 | BA17: 0.08 | BB17: 0 | BC17: 0.19 | BD17: 0.27 | BE17: 0.04 | BF17: 0 | BG17: 0.04
B18: Grand | C18: 4SG | D18: FI | E18: Grand4SG | F18: -10.3 | G18: 0.831 | H18: 0.231 | I18: -8.204 | J18: 0.279 | K18: 0.196 | L18: 0 | M18: 0 | N18: 0.446 | O18: 0 | P18: 0 | Q18: 0 | R18: 0 | S18: -0.344 | T18: -0.326 | U18: 0 | V18: 0.068 | W18: 0.019 | X18: -0.301 | Y18: 0 | Z18: 3.821 | AA18: 5.183 | AD18: Grand | AE18: 4SG | AF18: FI | AG18: Grand4SG | AH18: -4.902 | AI18: 0.427 | AJ18: 0 | AK18: 0 | AL18: 0 | AM18: 0 | AN18: 0 | AO18: 0 | AP18: 0 | AQ18: 0.058 | AR18: 3.449 | AU18: Grand | AV18: 3ST | AW18: FI | AX18: Grand3ST | AY18: 0.39 | AZ18: 0.01 | BA18: 0.02 | BB18: 0.01 | BC18: 0.1 | BD18: 0.43 | BE18: 0.01 | BF18: 0 | BG18: 0.02
B19: Grand | C19: 4ST | D19: FI | E19: Grand4ST | F19: -11.235 | G19: 0.677 | H19: 0.447 | I19: -7.585 | J19: 0.108 | K19: 0.292 | L19: 0 | M19: 0 | N19: 0.446 | O19: 0 | P19: 0 | Q19: 0 | R19: 0 | S19: -0.344 | T19: -0.326 | U19: -0.305 | V19: 0.046 | W19: 0.01 | X19: 0 | Y19: 0 | Z19: 1.354 | AA19: 1.023 | AD19: Grand | AE19: 4ST | AF19: FI | AG19: Grand4ST | AH19: -9.799 | AI19: 0.8 | AJ19: 0 | AK19: 0 | AL19: 0 | AM19: 0 | AN19: 0 | AO19: 0 | AP19: 0 | AQ19: 0.053 | AR19: 2.161 | AU19: Grand | AV19: 4ST | AW19: FI | AX19: Grand4ST | AY19: 0.24 | AZ19: 0.04 | BA19: 0.01 | BB19: 0 | BC19: 0.11 | BD19: 0.52 | BE19: 0.03 | BF19: 0.02 | BG19: 0.04
B20: Bay | C20: 3SG | D20: FI | E20: Bay3SG | F20: -10.228 | G20: 0.831 | H20: 0.17 | I20: -10.205 | J20: 0.279 | K20: 0.45 | L20: 0 | M20: 0 | N20: 0 | O20: 0.444 | P20: 0 | Q20: 0 | R20: 0 | S20: -0.344 | T20: -0.326 | U20: 0 | V20: 0.068 | W20: 0.019 | X20: -0.301 | Y20: -0.067 | Z20: 2.123 | AA20: 0.938 | AD20: Bay | AE20: 3SG | AF20: FI | AG20: Bay3SG | AH20: -11.284 | AI20: 0.966 | AJ20: 0 | AK20: 0 | AL20: 0 | AM20: 0.642 | AN20: 0 | AO20: 0 | AP20: 0 | AQ20: 0.058 | AR20: 1.138 | AU20: Bay | AV20: 3SG | AW20: FI | AX20: Bay3SG | AY20: 0.48 | AZ20: 0 | BA20: 0.01 | BB20: 0.03 | BC20: 0.16 | BD20: 0.27 | BE20: 0.03 | BF20: 0.01 | BG20: 0
B21: Bay | C21: 3ST | D21: FI | E21: Bay3ST | F21: -16.764 | G21: 1.067 | H21: 0.594 | I21: -8.953 | J21: 0.108 | K21: 0.292 | L21: 0 | M21: 0 | N21: 0 | O21: 0.444 | P21: 0 | Q21: 0 | R21: 0 | S21: -0.344 | T21: -0.326 | U21: -0.305 | V21: 0.046 | W21: 0.01 | X21: 0 | Y21: -0.404 | Z21: 1.451 | AA21: 1.023 | AD21: Bay | AE21: 3ST | AF21: FI | AG21: Bay3ST | AH21: -16.437 | AI21: 1.314 | AJ21: 0 | AK21: 0 | AL21: 0 | AM21: 0.642 | AN21: 0 | AO21: 0 | AP21: 0 | AQ21: 0.053 | AR21: 0.328 | AU21: Bay | AV21: 4SG | AW21: FI | AX21: Bay4SG | AY21: 0.3 | AZ21: 0 | BA21: 0 | BB21: 0 | BC21: 0.2 | BD21: 0.3 | BE21: 0.1 | BF21: 0 | BG21: 0.1
B22: Bay | C22: 4SG | D22: FI | E22: Bay4SG | F22: -10.3 | G22: 0.831 | H22: 0.231 | I22: -8.204 | J22: 0.279 | K22: 0.196 | L22: 0 | M22: 0 | N22: 0 | O22: 0.444 | P22: 0 | Q22: 0 | R22: 0 | S22: -0.344 | T22: -0.326 | U22: 0 | V22: 0.068 | W22: 0.019 | X22: -0.301 | Y22: 0 | Z22: 3.821 | AA22: 5.183 | AD22: Bay | AE22: 4SG | AF22: FI | AG22: Bay4SG | AH22: -4.902 | AI22: 0.427 | AJ22: 0 | AK22: 0 | AL22: 0 | AM22: 0.642 | AN22: 0 | AO22: 0 | AP22: 0 | AQ22: 0.058 | AR22: 3.449 | AU22: Bay | AV22: 3ST | AW22: FI | AX22: Bay3ST | AY22: 0.35 | AZ22: 0.03 | BA22: 0.01 | BB22: 0.01 | BC22: 0.13 | BD22: 0.4 | BE22: 0.03 | BF22: 0.02 | BG22: 0.01
B23: Bay | C23: 4ST | D23: FI | E23: Bay4ST | F23: -11.235 | G23: 0.677 | H23: 0.447 | I23: -7.585 | J23: 0.108 | K23: 0.292 | L23: 0 | M23: 0 | N23: 0 | O23: 0.444 | P23: 0 | Q23: 0 | R23: 0 | S23: -0.344 | T23: -0.326 | U23: -0.305 | V23: 0.046 | W23: 0.01 | X23: 0 | Y23: 0 | Z23: 1.354 | AA23: 1.023 | AD23: Bay | AE23: 4ST | AF23: FI | AG23: Bay4ST | AH23: -9.799 | AI23: 0.8 | AJ23: 0 | AK23: 0 | AL23: 0 | AM23: 0.642 | AN23: 0 | AO23: 0 | AP23: 0 | AQ23: 0.053 | AR23: 2.161 | AU23: Bay | AV23: 4ST | AW23: FI | AX23: Bay4ST | AY23: 0.2 | AZ23: 0.04 | BA23: 0.02 | BB23: 0 | BC23: 0.08 | BD23: 0.6 | BE23: 0.04 | BF23: 0 | BG23: 0.02
B24: Southwest | C24: 3SG | D24: FI | E24: Southwest3SG | F24: -10.228 | G24: 0.831 | H24: 0.17 | I24: -10.205 | J24: 0.279 | K24: 0.45 | L24: 0 | M24: 0 | N24: 0 | O24: 0 | P24: 0.559 | Q24: 0 | R24: 0 | S24: -0.344 | T24: -0.326 | U24: 0 | V24: 0.068 | W24: 0.019 | X24: -0.301 | Y24: -0.067 | Z24: 2.123 | AA24: 0.938 | AD24: Southwest | AE24: 3SG | AF24: FI | AG24: Southwest3SG | AH24: -11.284 | AI24: 0.966 | AJ24: 0 | AK24: 0 | AL24: 0 | AM24: 0 | AN24: 0.694 | AO24: 0 | AP24: 0 | AQ24: 0.058 | AR24: 1.138 | AU24: Southwest | AV24: 3SG | AW24: FI | AX24: Southwest3SG | AY24: 0.42 | AZ24: 0.01 | BA24: 0 | BB24: 0.01 | BC24: 0.16 | BD24: 0.37 | BE24: 0.01 | BF24: 0.01 | BG24: 0.02
B25: Southwest | C25: 3ST | D25: FI | E25: Southwest3ST | F25: -16.764 | G25: 1.067 | H25: 0.594 | I25: -8.953 | J25: 0.108 | K25: 0.292 | L25: 0 | M25: 0 | N25: 0 | O25: 0 | P25: 0.559 | Q25: 0 | R25: 0 | S25: -0.344 | T25: -0.326 | U25: -0.305 | V25: 0.046 | W25: 0.01 | X25: 0 | Y25: -0.404 | Z25: 1.451 | AA25: 1.023 | AD25: Southwest | AE25: 3ST | AF25: FI | AG25: Southwest3ST | AH25: -16.437 | AI25: 1.314 | AJ25: 0 | AK25: 0 | AL25: 0 | AM25: 0 | AN25: 0.694 | AO25: 0 | AP25: 0 | AQ25: 0.053 | AR25: 0.328 | AU25: Southwest | AV25: 4SG | AW25: FI | AX25: Southwest4SG | AY25: 0.24 | AZ25: 0.12 | BA25: 0 | BB25: 0 | BC25: 0.16 | BD25: 0.44 | BE25: 0.04 | BF25: 0 | BG25: 0
B26: Southwest | C26: 4SG | D26: FI | E26: Southwest4SG | F26: -10.3 | G26: 0.831 | H26: 0.231 | I26: -8.204 | J26: 0.279 | K26: 0.196 | L26: 0 | M26: 0 | N26: 0 | O26: 0 | P26: 0.559 | Q26: 0 | R26: 0 | S26: -0.344 | T26: -0.326 | U26: 0 | V26: 0.068 | W26: 0.019 | X26: -0.301 | Y26: 0 | Z26: 3.821 | AA26: 5.183 | AD26: Southwest | AE26: 4SG | AF26: FI | AG26: Southwest4SG | AH26: -4.902 | AI26: 0.427 | AJ26: 0 | AK26: 0 | AL26: 0 | AM26: 0 | AN26: 0.694 | AO26: 0 | AP26: 0 | AQ26: 0.058 | AR26: 3.449 | AU26: Southwest | AV26: 3ST | AW26: FI | AX26: Southwest3ST | AY26: 0.52 | AZ26: 0.02 | BA26: 0.02 | BB26: 0.01 | BC26: 0.09 | BD26: 0.29 | BE26: 0.01 | BF26: 0.01 | BG26: 0.04
B27: Southwest | C27: 4ST | D27: FI | E27: Southwest4ST | F27: -11.235 | G27: 0.677 | H27: 0.447 | I27: -7.585 | J27: 0.108 | K27: 0.292 | L27: 0 | M27: 0 | N27: 0 | O27: 0 | P27: 0.559 | Q27: 0 | R27: 0 | S27: -0.344 | T27: -0.326 | U27: -0.305 | V27: 0.046 | W27: 0.01 | X27: 0 | Y27: 0 | Z27: 1.354 | AA27: 1.023 | AD27: Southwest | AE27: 4ST | AF27: FI | AG27: Southwest4ST | AH27: -9.799 | AI27: 0.8 | AJ27: 0 | AK27: 0 | AL27: 0 | AM27: 0 | AN27: 0.694 | AO27: 0 | AP27: 0 | AQ27: 0.053 | AR27: 2.161 | AU27: Southwest | AV27: 4ST | AW27: FI | AX27: Southwest4ST | AY27: 0.19 | AZ27: 0 | BA27: 0.03 | BB27: 0.02 | BC27: 0.07 | BD27: 0.64 | BE27: 0.02 | BF27: 0 | BG27: 0.03
B28: University | C28: 3SG | D28: FI | E28: University3SG | F28: -10.228 | G28: 0.831 | H28: 0.17 | I28: -10.205 | J28: 0.279 | K28: 0.45 | L28: 0 | M28: 0 | N28: 0 | O28: 0 | P28: 0 | Q28: 0.473 | R28: 0 | S28: -0.344 | T28: -0.326 | U28: 0 | V28: 0.068 | W28: 0.019 | X28: -0.301 | Y28: -0.067 | Z28: 2.123 | AA28: 0.938 | AD28: University | AE28: 3SG | AF28: FI | AG28: University3SG | AH28: -11.284 | AI28: 0.966 | AJ28: 0 | AK28: 0 | AL28: 0 | AM28: 0 | AN28: 0 | AO28: 0.49 | AP28: 0 | AQ28: 0.058 | AR28: 1.138 | AU28: University | AV28: 3SG | AW28: FI | AX28: University3SG | AY28: 0.47 | AZ28: 0.01 | BA28: 0 | BB28: 0.04 | BC28: 0.11 | BD28: 0.36 | BE28: 0.01 | BF28: 0 | BG28: 0.01
B29: University | C29: 3ST | D29: FI | E29: University3ST | F29: -16.764 | G29: 1.067 | H29: 0.594 | I29: -8.953 | J29: 0.108 | K29: 0.292 | L29: 0 | M29: 0 | N29: 0 | O29: 0 | P29: 0 | Q29: 0.473 | R29: 0 | S29: -0.344 | T29: -0.326 | U29: -0.305 | V29: 0.046 | W29: 0.01 | X29: 0 | Y29: -0.404 | Z29: 1.451 | AA29: 1.023 | AD29: University | AE29: 3ST | AF29: FI | AG29: University3ST | AH29: -16.437 | AI29: 1.314 | AJ29: 0 | AK29: 0 | AL29: 0 | AM29: 0 | AN29: 0 | AO29: 0.49 | AP29: 0 | AQ29: 0.053 | AR29: 0.328 | AU29: University | AV29: 4SG | AW29: FI | AX29: University4SG | AY29: 0.32 | AZ29: 0.05 | BA29: 0 | BB29: 0.11 | BC29: 0 | BD29: 0.53 | BE29: 0 | BF29: 0 | BG29: 0
B30: University | C30: 4SG | D30: FI | E30: University4SG | F30: -10.3 | G30: 0.831 | H30: 0.231 | I30: -8.204 | J30: 0.279 | K30: 0.196 | L30: 0 | M30: 0 | N30: 0 | O30: 0 | P30: 0 | Q30: 0.473 | R30: 0 | S30: -0.344 | T30: -0.326 | U30: 0 | V30: 0.068 | W30: 0.019 | X30: -0.301 | Y30: 0 | Z30: 3.821 | AA30: 5.183 | AD30: University | AE30: 4SG | AF30: FI | AG30: University4SG | AH30: -4.902 | AI30: 0.427 | AJ30: 0 | AK30: 0 | AL30: 0 | AM30: 0 | AN30: 0 | AO30: 0.49 | AP30: 0 | AQ30: 0.058 | AR30: 3.449 | AU30: University | AV30: 3ST | AW30: FI | AX30: University3ST | AY30: 0.39 | AZ30: 0.01 | BA30: 0.02 | BB30: 0.03 | BC30: 0.08 | BD30: 0.43 | BE30: 0.01 | BF30: 0 | BG30: 0.02
B31: University | C31: 4ST | D31: FI | E31: University4ST | F31: -11.235 | G31: 0.677 | H31: 0.447 | I31: -7.585 | J31: 0.108 | K31: 0.292 | L31: 0 | M31: 0 | N31: 0 | O31: 0 | P31: 0 | Q31: 0.473 | R31: 0 | S31: -0.344 | T31: -0.326 | U31: -0.305 | V31: 0.046 | W31: 0.01 | X31: 0 | Y31: 0 | Z31: 1.354 | AA31: 1.023 | AD31: University | AE31: 4ST | AF31: FI | AG31: University4ST | AH31: -9.799 | AI31: 0.8 | AJ31: 0 | AK31: 0 | AL31: 0 | AM31: 0 | AN31: 0 | AO31: 0.49 | AP31: 0 | AQ31: 0.053 | AR31: 2.161 | AU31: University | AV31: 4ST | AW31: FI | AX31: University4ST | AY31: 0.17 | AZ31: 0.01 | BA31: 0 | BB31: 0 | BC31: 0.07 | BD31: 0.69 | BE31: 0.04 | BF31: 0 | BG31: 0.01
B32: Metro | C32: 3SG | D32: FI | E32: Metro3SG | F32: -10.228 | G32: 0.831 | H32: 0.17 | I32: -10.205 | J32: 0.279 | K32: 0.45 | L32: 0 | M32: 0 | N32: 0 | O32: 0 | P32: 0 | Q32: 0 | R32: 0 | S32: -0.344 | T32: -0.326 | U32: 0 | V32: 0.068 | W32: 0.019 | X32: -0.301 | Y32: -0.067 | Z32: 2.123 | AA32: 0.938 | AD32: Metro | AE32: 3SG | AF32: FI | AG32: Metro3SG | AH32: -11.284 | AI32: 0.966 | AJ32: 0 | AK32: 0 | AL32: 0 | AM32: 0 | AN32: 0 | AO32: 0 | AP32: 0 | AQ32: 0.058 | AR32: 1.138 | AU32: Metro | AV32: 3SG | AW32: FI | AX32: Metro3SG | AY32: 0.59 | AZ32: 0 | BA32: 0.01 | BB32: 0.02 | BC32: 0.11 | BD32: 0.22 | BE32: 0.03 | BF32: 0.01 | BG32: 0.02
B33: Metro | C33: 3ST | D33: FI | E33: Metro3ST | F33: -16.764 | G33: 1.067 | H33: 0.594 | I33: -8.953 | J33: 0.108 | K33: 0.292 | L33: 0 | M33: 0 | N33: 0 | O33: 0 | P33: 0 | Q33: 0 | R33: 0 | S33: -0.344 | T33: -0.326 | U33: -0.305 | V33: 0.046 | W33: 0.01 | X33: 0 | Y33: -0.404 | Z33: 1.451 | AA33: 1.023 | AD33: Metro | AE33: 3ST | AF33: FI | AG33: Metro3ST | AH33: -16.437 | AI33: 1.314 | AJ33: 0 | AK33: 0 | AL33: 0 | AM33: 0 | AN33: 0 | AO33: 0 | AP33: 0 | AQ33: 0.053 | AR33: 0.328 | AU33: Metro | AV33: 4SG | AW33: FI | AX33: Metro4SG | AY33: 0.55 | AZ33: 0 | BA33: 0 | BB33: 0.09 | BC33: 0 | BD33: 0.36 | BE33: 0 | BF33: 0 | BG33: 0
B34: Metro | C34: 4SG | D34: FI | E34: Metro4SG | F34: -10.3 | G34: 0.831 | H34: 0.231 | I34: -8.204 | J34: 0.279 | K34: 0.196 | L34: 0 | M34: 0 | N34: 0 | O34: 0 | P34: 0 | Q34: 0 | R34: 0 | S34: -0.344 | T34: -0.326 | U34: 0 | V34: 0.068 | W34: 0.019 | X34: -0.301 | Y34: 0 | Z34: 3.821 | AA34: 5.183 | AD34: Metro | AE34: 4SG | AF34: FI | AG34: Metro4SG | AH34: -4.902 | AI34: 0.427 | AJ34: 0 | AK34: 0 | AL34: 0 | AM34: 0 | AN34: 0 | AO34: 0 | AP34: 0 | AQ34: 0.058 | AR34: 3.449 | AU34: Metro | AV34: 3ST | AW34: FI | AX34: Metro3ST | AY34: 0.46 | AZ34: 0.01 | BA34: 0.02 | BB34: 0.02 | BC34: 0.1 | BD34: 0.32 | BE34: 0.04 | BF34: 0 | BG34: 0.03
B35: Metro | C35: 4ST | D35: FI | E35: Metro4ST | F35: -11.235 | G35: 0.677 | H35: 0.447 | I35: -7.585 | J35: 0.108 | K35: 0.292 | L35: 0 | M35: 0 | N35: 0 | O35: 0 | P35: 0 | Q35: 0 | R35: 0 | S35: -0.344 | T35: -0.326 | U35: -0.305 | V35: 0.046 | W35: 0.01 | X35: 0 | Y35: 0 | Z35: 1.354 | AA35: 1.023 | AD35: Metro | AE35: 4ST | AF35: FI | AG35: Metro4ST | AH35: -9.799 | AI35: 0.8 | AJ35: 0 | AK35: 0 | AL35: 0 | AM35: 0 | AN35: 0 | AO35: 0 | AP35: 0 | AQ35: 0.053 | AR35: 2.161 | AU35: Metro | AV35: 4ST | AW35: FI | AX35: Metro4ST | AY35: 0.17 | AZ35: 0.06 | BA35: 0 | BB35: 0.06 | BC35: 0.09 | BD35: 0.51 | BE35: 0.09 | BF35: 0 | BG35: 0.03
B36: Statewide | C36: 3SG | D36: PDO | E36: Statewide3SG | F36: -9.172 | G36: 0.874 | H36: 0.218 | I36: -5.571 | J36: 0.16 | K36: 0.286 | L36: 0 | M36: 0 | N36: 0 | O36: 0 | P36: 0 | Q36: 0 | R36: 0 | S36: -0.246 | T36: -0.323 | U36: 0 | V36: 0.019 | W36: 0.01 | X36: -0.032 | Y36: -0.149 | Z36: 1.817 | AA36: 1.651 | AD36: Statewide | AE36: 3SG | AF36: PDO | AG36: Statewide3SG | AH36: -3.96 | AI36: 0.444 | AJ36: 0 | AK36: 0 | AL36: 0 | AM36: 0 | AN36: 0 | AO36: 0 | AP36: 0 | AQ36: 0.019 | AR36: 1.035 | AU36: Statewide | AV36: 3SG | AW36: PDO | AX36: Statewide3SG | AY36: 0.54 | AZ36: 0.02 | BA36: 0.03 | BB36: 0.01 | BC36: 0.04 | BD36: 0.21 | BE36: 0.1 | BF36: 0.02 | BG36: 0.03
B37: Statewide | C37: 3ST | D37: PDO | E37: Statewide3ST | F37: -16.328 | G37: 1.299 | H37: 0.459 | I37: -5.852 | J37: 0.001 | K37: 0.348 | L37: 0 | M37: 0 | N37: 0 | O37: 0 | P37: 0 | Q37: 0 | R37: 0 | S37: -0.246 | T37: -0.323 | U37: -0.153 | V37: 0.006 | W37: -0.01 | X37: 0 | Y37: -0.357 | Z37: 0.748 | AA37: 0.732 | AD37: Statewide | AE37: 3ST | AF37: PDO | AG37: Statewide3ST | AH37: -9.391 | AI37: 0.819 | AJ37: 0 | AK37: 0 | AL37: 0 | AM37: 0 | AN37: 0 | AO37: 0 | AP37: 0 | AQ37: -0.128 | AR37: 0.387 | AU37: Statewide | AV37: 4SG | AW37: PDO | AX37: Statewide4SG | AY37: 0.33 | AZ37: 0.04 | BA37: 0.04 | BB37: 0.01 | BC37: 0.04 | BD37: 0.38 | BE37: 0.1 | BF37: 0.01 | BG37: 0.04
B38: Statewide | C38: 4SG | D38: PDO | E38: Statewide4SG | F38: -9.291 | G38: 0.874 | H38: 0.273 | I38: -6.891 | J38: 0.16 | K38: 0.395 | L38: 0 | M38: 0 | N38: 0 | O38: 0 | P38: 0 | Q38: 0 | R38: 0 | S38: -0.246 | T38: -0.323 | U38: 0 | V38: 0.019 | W38: 0.01 | X38: -0.032 | Y38: 0 | Z38: 3.443 | AA38: 8.139 | AD38: Statewide | AE38: 4SG | AF38: PDO | AG38: Statewide4SG | AH38: -2.024 | AI38: 0.343 | AJ38: 0 | AK38: 0 | AL38: 0 | AM38: 0 | AN38: 0 | AO38: 0 | AP38: 0 | AQ38: 0.019 | AR38: 2.632 | AU38: Statewide | AV38: 3ST | AW38: PDO | AX38: Statewide3ST | AY38: 0.5 | AZ38: 0.02 | BA38: 0.03 | BB38: 0.01 | BC38: 0.05 | BD38: 0.24 | BE38: 0.11 | BF38: 0.02 | BG38: 0.03
B39: Statewide | C39: 4ST | D39: PDO | E39: Statewide4ST | F39: -8.615 | G39: 0.548 | H39: 0.466 | I39: -5.13 | J39: 0.001 | K39: 0.348 | L39: 0 | M39: 0 | N39: 0 | O39: 0 | P39: 0 | Q39: 0 | R39: 0 | S39: -0.246 | T39: -0.323 | U39: -0.153 | V39: 0.006 | W39: -0.01 | X39: 0 | Y39: 0 | Z39: 1.455 | AA39: 0.732 | AD39: Statewide | AE39: 4ST | AF39: PDO | AG39: Statewide4ST | AH39: -12.769 | AI39: 1.263 | AJ39: 0 | AK39: 0 | AL39: 0 | AM39: 0 | AN39: 0 | AO39: 0 | AP39: 0 | AQ39: -0.128 | AR39: 1.08 | AU39: Statewide | AV39: 4ST | AW39: PDO | AX39: Statewide4ST | AY39: 0.27 | AZ39: 0.02 | BA39: 0.03 | BB39: 0 | BC39: 0.04 | BD39: 0.46 | BE39: 0.1 | BF39: 0.02 | BG39: 0.05
B40: Superior | C40: 3SG | D40: PDO | E40: Superior3SG | F40: -10.731 | G40: 0.953 | H40: 0.233 | I40: -7.549 | J40: 0.287 | K40: 0.297 | L40: 0.633 | M40: 0 | N40: 0 | O40: 0 | P40: 0 | Q40: 0 | R40: 0 | S40: -0.237 | T40: -0.301 | U40: 0 | V40: 0.053 | W40: 0.006 | X40: -0.063 | Y40: -0.104 | Z40: 2.211 | AA40: 1.686 | AD40: Superior | AE40: 3SG | AF40: PDO | AG40: Superior3SG | AH40: -9.952 | AI40: 0.964 | AJ40: 0.972 | AK40: 0 | AL40: 0 | AM40: 0 | AN40: 0 | AO40: 0 | AP40: 0 | AQ40: 0.019 | AR40: 1.275 | AU40: Superior | AV40: 3SG | AW40: PDO | AX40: Superior3SG | AY40: 0.54 | AZ40: 0.01 | BA40: 0.05 | BB40: 0.01 | BC40: 0.05 | BD40: 0.2 | BE40: 0.1 | BF40: 0.02 | BG40: 0.02
B41: Superior | C41: 3ST | D41: PDO | E41: Superior3ST | F41: -17.258 | G41: 1.325 | H41: 0.462 | I41: -6.952 | J41: 0.049 | K41: 0.35 | L41: 0.633 | M41: 0 | N41: 0 | O41: 0 | P41: 0 | Q41: 0 | R41: 0 | S41: -0.237 | T41: -0.301 | U41: -0.137 | V41: 0.014 | W41: -0.01 | X41: 0 | Y41: -0.187 | Z41: 0.796 | AA41: 0.817 | AD41: Superior | AE41: 3ST | AF41: PDO | AG41: Superior3ST | AH41: -13.749 | AI41: 1.221 | AJ41: 0.972 | AK41: 0 | AL41: 0 | AM41: 0 | AN41: 0 | AO41: 0 | AP41: 0 | AQ41: -0.128 | AR41: 0.362 | AU41: Superior | AV41: 4SG | AW41: PDO | AX41: Superior4SG | AY41: 0.42 | AZ41: 0.04 | BA41: 0.11 | BB41: 0 | BC41: 0.06 | BD41: 0.22 | BE41: 0.11 | BF41: 0.01 | BG41: 0.02
B42: Superior | C42: 4SG | D42: PDO | E42: Superior4SG | F42: -10.882 | G42: 0.953 | H42: 0.287 | I42: -8.672 | J42: 0.287 | K42: 0.377 | L42: 0.633 | M42: 0 | N42: 0 | O42: 0 | P42: 0 | Q42: 0 | R42: 0 | S42: -0.237 | T42: -0.301 | U42: 0 | V42: 0.053 | W42: 0.006 | X42: -0.063 | Y42: 0 | Z42: 3.952 | AA42: 8.638 | AD42: Superior | AE42: 4SG | AF42: PDO | AG42: Superior4SG | AH42: -5.538 | AI42: 0.606 | AJ42: 0.972 | AK42: 0 | AL42: 0 | AM42: 0 | AN42: 0 | AO42: 0 | AP42: 0 | AQ42: 0.019 | AR42: 3.809 | AU42: Superior | AV42: 3ST | AW42: PDO | AX42: Superior3ST | AY42: 0.48 | AZ42: 0.02 | BA42: 0.02 | BB42: 0.01 | BC42: 0.05 | BD42: 0.27 | BE42: 0.1 | BF42: 0.02 | BG42: 0.03
B43: Superior | C43: 4ST | D43: PDO | E43: Superior4ST | F43: -9.891 | G43: 0.607 | H43: 0.483 | I43: -6.213 | J43: 0.049 | K43: 0.35 | L43: 0.633 | M43: 0 | N43: 0 | O43: 0 | P43: 0 | Q43: 0 | R43: 0 | S43: -0.237 | T43: -0.301 | U43: -0.137 | V43: 0.014 | W43: -0.01 | X43: 0 | Y43: 0 | Z43: 1.574 | AA43: 0.817 | AD43: Superior | AE43: 4ST | AF43: PDO | AG43: Superior4ST | AH43: -13.91 | AI43: 1.302 | AJ43: 0.972 | AK43: 0 | AL43: 0 | AM43: 0 | AN43: 0 | AO43: 0 | AP43: 0 | AQ43: -0.128 | AR43: 1.257 | AU43: Superior | AV43: 4ST | AW43: PDO | AX43: Superior4ST | AY43: 0.25 | AZ43: 0.03 | BA43: 0.02 | BB43: 0 | BC43: 0.05 | BD43: 0.5 | BE43: 0.08 | BF43: 0 | BG43: 0.05
B44: North | C44: 3SG | D44: PDO | E44: North3SG | F44: -10.731 | G44: 0.953 | H44: 0.233 | I44: -7.549 | J44: 0.287 | K44: 0.297 | L44: 0 | M44: 0.716 | N44: 0 | O44: 0 | P44: 0 | Q44: 0 | R44: 0 | S44: -0.237 | T44: -0.301 | U44: 0 | V44: 0.053 | W44: 0.006 | X44: -0.063 | Y44: -0.104 | Z44: 2.211 | AA44: 1.686 | AD44: North | AE44: 3SG | AF44: PDO | AG44: North3SG | AH44: -9.952 | AI44: 0.964 | AJ44: 0 | AK44: 0 | AL44: 0 | AM44: 0 | AN44: 0 | AO44: 0 | AP44: 0 | AQ44: 0.019 | AR44: 1.275 | AU44: North | AV44: 3SG | AW44: PDO | AX44: North3SG | AY44: 0.54 | AZ44: 0.01 | BA44: 0.05 | BB44: 0.01 | BC44: 0.05 | BD44: 0.2 | BE44: 0.1 | BF44: 0.02 | BG44: 0.02
B45: North | C45: 3ST | D45: PDO | E45: North3ST | F45: -17.258 | G45: 1.325 | H45: 0.462 | I45: -6.952 | J45: 0.049 | K45: 0.35 | L45: 0 | M45: 0.716 | N45: 0 | O45: 0 | P45: 0 | Q45: 0 | R45: 0 | S45: -0.237 | T45: -0.301 | U45: -0.137 | V45: 0.014 | W45: -0.01 | X45: 0 | Y45: -0.187 | Z45: 0.796 | AA45: 0.817 | AD45: North | AE45: 3ST | AF45: PDO | AG45: North3ST | AH45: -13.749 | AI45: 1.221 | AJ45: 0 | AK45: 0 | AL45: 0 | AM45: 0 | AN45: 0 | AO45: 0 | AP45: 0 | AQ45: -0.128 | AR45: 0.362 | AU45: North | AV45: 4SG | AW45: PDO | AX45: North4SG | AY45: 0.42 | AZ45: 0.04 | BA45: 0.11 | BB45: 0 | BC45: 0.06 | BD45: 0.22 | BE45: 0.11 | BF45: 0.01 | BG45: 0.02
B46: North | C46: 4SG | D46: PDO | E46: North4SG | F46: -10.882 | G46: 0.953 | H46: 0.287 | I46: -8.672 | J46: 0.287 | K46: 0.377 | L46: 0 | M46: 0.716 | N46: 0 | O46: 0 | P46: 0 | Q46: 0 | R46: 0 | S46: -0.237 | T46: -0.301 | U46: 0 | V46: 0.053 | W46: 0.006 | X46: -0.063 | Y46: 0 | Z46: 3.952 | AA46: 8.638 | AD46: North | AE46: 4SG | AF46: PDO | AG46: North4SG | AH46: -5.538 | AI46: 0.606 | AJ46: 0 | AK46: 0 | AL46: 0 | AM46: 0 | AN46: 0 | AO46: 0 | AP46: 0 | AQ46: 0.019 | AR46: 3.809 | AU46: North | AV46: 3ST | AW46: PDO | AX46: North3ST | AY46: 0.48 | AZ46: 0.02 | BA46: 0.02 | BB46: 0.01 | BC46: 0.05 | BD46: 0.27 | BE46: 0.1 | BF46: 0.02 | BG46: 0.03
B47: North | C47: 4ST | D47: PDO | E47: North4ST | F47: -9.891 | G47: 0.607 | H47: 0.483 | I47: -6.213 | J47: 0.049 | K47: 0.35 | L47: 0 | M47: 0.716 | N47: 0 | O47: 0 | P47: 0 | Q47: 0 | R47: 0 | S47: -0.237 | T47: -0.301 | U47: -0.137 | V47: 0.014 | W47: -0.01 | X47: 0 | Y47: 0 | Z47: 1.574 | AA47: 0.817 | AD47: North | AE47: 4ST | AF47: PDO | AG47: North4ST | AH47: -13.91 | AI47: 1.302 | AJ47: 0 | AK47: 0 | AL47: 0 | AM47: 0 | AN47: 0 | AO47: 0 | AP47: 0 | AQ47: -0.128 | AR47: 1.257 | AU47: North | AV47: 4ST | AW47: PDO | AX47: North4ST | AY47: 0.25 | AZ47: 0.03 | BA47: 0.02 | BB47: 0 | BC47: 0.05 | BD47: 0.5 | BE47: 0.08 | BF47: 0 | BG47: 0.05
B48: Grand | C48: 3SG | D48: PDO | E48: Grand3SG | F48: -10.731 | G48: 0.953 | H48: 0.233 | I48: -7.549 | J48: 0.287 | K48: 0.297 | L48: 0 | M48: 0 | N48: 0.589 | O48: 0 | P48: 0 | Q48: 0 | R48: 0 | S48: -0.237 | T48: -0.301 | U48: 0 | V48: 0.053 | W48: 0.006 | X48: -0.063 | Y48: -0.104 | Z48: 2.211 | AA48: 1.686 | AD48: Grand | AE48: 3SG | AF48: PDO | AG48: Grand3SG | AH48: -9.952 | AI48: 0.964 | AJ48: 0 | AK48: 0 | AL48: 0 | AM48: 0 | AN48: 0 | AO48: 0 | AP48: 0 | AQ48: 0.019 | AR48: 1.275 | AU48: Grand | AV48: 3SG | AW48: PDO | AX48: Grand3SG | AY48: 0.54 | AZ48: 0.01 | BA48: 0.05 | BB48: 0.01 | BC48: 0.05 | BD48: 0.2 | BE48: 0.1 | BF48: 0.02 | BG48: 0.02
B49: Grand | C49: 3ST | D49: PDO | E49: Grand3ST | F49: -17.258 | G49: 1.325 | H49: 0.462 | I49: -6.952 | J49: 0.049 | K49: 0.35 | L49: 0 | M49: 0 | N49: 0.589 | O49: 0 | P49: 0 | Q49: 0 | R49: 0 | S49: -0.237 | T49: -0.301 | U49: -0.137 | V49: 0.014 | W49: -0.01 | X49: 0 | Y49: -0.187 | Z49: 0.796 | AA49: 0.817 | AD49: Grand | AE49: 3ST | AF49: PDO | AG49: Grand3ST | AH49: -13.749 | AI49: 1.221 | AJ49: 0 | AK49: 0 | AL49: 0 | AM49: 0 | AN49: 0 | AO49: 0 | AP49: 0 | AQ49: -0.128 | AR49: 0.362 | AU49: Grand | AV49: 4SG | AW49: PDO | AX49: Grand4SG | AY49: 0.42 | AZ49: 0.04 | BA49: 0.11 | BB49: 0 | BC49: 0.06 | BD49: 0.22 | BE49: 0.11 | BF49: 0.01 | BG49: 0.02
B50: Grand | C50: 4SG | D50: PDO | E50: Grand4SG | F50: -10.882 | G50: 0.953 | H50: 0.287 | I50: -8.672 | J50: 0.287 | K50: 0.377 | L50: 0 | M50: 0 | N50: 0.589 | O50: 0 | P50: 0 | Q50: 0 | R50: 0 | S50: -0.237 | T50: -0.301 | U50: 0 | V50: 0.053 | W50: 0.006 | X50: -0.063 | Y50: 0 | Z50: 3.952 | AA50: 8.638 | AD50: Grand | AE50: 4SG | AF50: PDO | AG50: Grand4SG | AH50: -5.538 | AI50: 0.606 | AJ50: 0 | AK50: 0 | AL50: 0 | AM50: 0 | AN50: 0 | AO50: 0 | AP50: 0 | AQ50: 0.019 | AR50: 3.809 | AU50: Grand | AV50: 3ST | AW50: PDO | AX50: Grand3ST | AY50: 0.48 | AZ50: 0.02 | BA50: 0.02 | BB50: 0.01 | BC50: 0.05 | BD50: 0.27 | BE50: 0.1 | BF50: 0.02 | BG50: 0.03
B51: Grand | C51: 4ST | D51: PDO | E51: Grand4ST | F51: -9.891 | G51: 0.607 | H51: 0.483 | I51: -6.213 | J51: 0.049 | K51: 0.35 | L51: 0 | M51: 0 | N51: 0.589 | O51: 0 | P51: 0 | Q51: 0 | R51: 0 | S51: -0.237 | T51: -0.301 | U51: -0.137 | V51: 0.014 | W51: -0.01 | X51: 0 | Y51: 0 | Z51: 1.574 | AA51: 0.817 | AD51: Grand | AE51: 4ST | AF51: PDO | AG51: Grand4ST | AH51: -13.91 | AI51: 1.302 | AJ51: 0 | AK51: 0 | AL51: 0 | AM51: 0 | AN51: 0 | AO51: 0 | AP51: 0 | AQ51: -0.128 | AR51: 1.257 | AU51: Grand | AV51: 4ST | AW51: PDO | AX51: Grand4ST | AY51: 0.25 | AZ51: 0.03 | BA51: 0.02 | BB51: 0 | BC51: 0.05 | BD51: 0.5 | BE51: 0.08 | BF51: 0 | BG51: 0.05
B52: Bay | C52: 3SG | D52: PDO | E52: Bay3SG | F52: -10.731 | G52: 0.953 | H52: 0.233 | I52: -7.549 | J52: 0.287 | K52: 0.297 | L52: 0 | M52: 0 | N52: 0 | O52: 0.509 | P52: 0 | Q52: 0 | R52: 0 | S52: -0.237 | T52: -0.301 | U52: 0 | V52: 0.053 | W52: 0.006 | X52: -0.063 | Y52: -0.104 | Z52: 2.211 | AA52: 1.686 | AD52: Bay | AE52: 3SG | AF52: PDO | AG52: Bay3SG | AH52: -9.952 | AI52: 0.964 | AJ52: 0 | AK52: 0 | AL52: 0 | AM52: 0.771 | AN52: 0 | AO52: 0 | AP52: 0 | AQ52: 0.019 | AR52: 1.275 | AU52: Bay | AV52: 3SG | AW52: PDO | AX52: Bay3SG | AY52: 0.54 | AZ52: 0.01 | BA52: 0.05 | BB52: 0.01 | BC52: 0.05 | BD52: 0.2 | BE52: 0.1 | BF52: 0.02 | BG52: 0.02
B53: Bay | C53: 3ST | D53: PDO | E53: Bay3ST | F53: -17.258 | G53: 1.325 | H53: 0.462 | I53: -6.952 | J53: 0.049 | K53: 0.35 | L53: 0 | M53: 0 | N53: 0 | O53: 0.509 | P53: 0 | Q53: 0 | R53: 0 | S53: -0.237 | T53: -0.301 | U53: -0.137 | V53: 0.014 | W53: -0.01 | X53: 0 | Y53: -0.187 | Z53: 0.796 | AA53: 0.817 | AD53: Bay | AE53: 3ST | AF53: PDO | AG53: Bay3ST | AH53: -13.749 | AI53: 1.221 | AJ53: 0 | AK53: 0 | AL53: 0 | AM53: 0.771 | AN53: 0 | AO53: 0 | AP53: 0 | AQ53: -0.128 | AR53: 0.362 | AU53: Bay | AV53: 4SG | AW53: PDO | AX53: Bay4SG | AY53: 0.42 | AZ53: 0.04 | BA53: 0.11 | BB53: 0 | BC53: 0.06 | BD53: 0.22 | BE53: 0.11 | BF53: 0.01 | BG53: 0.02
B54: Bay | C54: 4SG | D54: PDO | E54: Bay4SG | F54: -10.882 | G54: 0.953 | H54: 0.287 | I54: -8.672 | J54: 0.287 | K54: 0.377 | L54: 0 | M54: 0 | N54: 0 | O54: 0.509 | P54: 0 | Q54: 0 | R54: 0 | S54: -0.237 | T54: -0.301 | U54: 0 | V54: 0.053 | W54: 0.006 | X54: -0.063 | Y54: 0 | Z54: 3.952 | AA54: 8.638 | AD54: Bay | AE54: 4SG | AF54: PDO | AG54: Bay4SG | AH54: -5.538 | AI54: 0.606 | AJ54: 0 | AK54: 0 | AL54: 0 | AM54: 0.771 | AN54: 0 | AO54: 0 | AP54: 0 | AQ54: 0.019 | AR54: 3.809 | AU54: Bay | AV54: 3ST | AW54: PDO | AX54: Bay3ST | AY54: 0.48 | AZ54: 0.02 | BA54: 0.02 | BB54: 0.01 | BC54: 0.05 | BD54: 0.27 | BE54: 0.1 | BF54: 0.02 | BG54: 0.03
B55: Bay | C55: 4ST | D55: PDO | E55: Bay4ST | F55: -9.891 | G55: 0.607 | H55: 0.483 | I55: -6.213 | J55: 0.049 | K55: 0.35 | L55: 0 | M55: 0 | N55: 0 | O55: 0.509 | P55: 0 | Q55: 0 | R55: 0 | S55: -0.237 | T55: -0.301 | U55: -0.137 | V55: 0.014 | W55: -0.01 | X55: 0 | Y55: 0 | Z55: 1.574 | AA55: 0.817 | AD55: Bay | AE55: 4ST | AF55: PDO | AG55: Bay4ST | AH55: -13.91 | AI55: 1.302 | AJ55: 0 | AK55: 0 | AL55: 0 | AM55: 0.771 | AN55: 0 | AO55: 0 | AP55: 0 | AQ55: -0.128 | AR55: 1.257 | AU55: Bay | AV55: 4ST | AW55: PDO | AX55: Bay4ST | AY55: 0.25 | AZ55: 0.03 | BA55: 0.02 | BB55: 0 | BC55: 0.05 | BD55: 0.5 | BE55: 0.08 | BF55: 0 | BG55: 0.05
B56: Southwest | C56: 3SG | D56: PDO | E56: Southwest3SG | F56: -10.731 | G56: 0.953 | H56: 0.233 | I56: -7.549 | J56: 0.287 | K56: 0.297 | L56: 0 | M56: 0 | N56: 0 | O56: 0 | P56: 0.775 | Q56: 0 | R56: 0 | S56: -0.237 | T56: -0.301 | U56: 0 | V56: 0.053 | W56: 0.006 | X56: -0.063 | Y56: -0.104 | Z56: 2.211 | AA56: 1.686 | AD56: Southwest | AE56: 3SG | AF56: PDO | AG56: Southwest3SG | AH56: -9.952 | AI56: 0.964 | AJ56: 0 | AK56: 0 | AL56: 0 | AM56: 0 | AN56: 1.109 | AO56: 0 | AP56: 0 | AQ56: 0.019 | AR56: 1.275 | AU56: Southwest | AV56: 3SG | AW56: PDO | AX56: Southwest3SG | AY56: 0.54 | AZ56: 0.01 | BA56: 0.05 | BB56: 0.01 | BC56: 0.05 | BD56: 0.2 | BE56: 0.1 | BF56: 0.02 | BG56: 0.02
B57: Southwest | C57: 3ST | D57: PDO | E57: Southwest3ST | F57: -17.258 | G57: 1.325 | H57: 0.462 | I57: -6.952 | J57: 0.049 | K57: 0.35 | L57: 0 | M57: 0 | N57: 0 | O57: 0 | P57: 0.775 | Q57: 0 | R57: 0 | S57: -0.237 | T57: -0.301 | U57: -0.137 | V57: 0.014 | W57: -0.01 | X57: 0 | Y57: -0.187 | Z57: 0.796 | AA57: 0.817 | AD57: Southwest | AE57: 3ST | AF57: PDO | AG57: Southwest3ST | AH57: -13.749 | AI57: 1.221 | AJ57: 0 | AK57: 0 | AL57: 0 | AM57: 0 | AN57: 1.109 | AO57: 0 | AP57: 0 | AQ57: -0.128 | AR57: 0.362 | AU57: Southwest | AV57: 4SG | AW57: PDO | AX57: Southwest4SG | AY57: 0.42 | AZ57: 0.04 | BA57: 0.11 | BB57: 0 | BC57: 0.06 | BD57: 0.22 | BE57: 0.11 | BF57: 0.01 | BG57: 0.02
B58: Southwest | C58: 4SG | D58: PDO | E58: Southwest4SG | F58: -10.882 | G58: 0.953 | H58: 0.287 | I58: -8.672 | J58: 0.287 | K58: 0.377 | L58: 0 | M58: 0 | N58: 0 | O58: 0 | P58: 0.775 | Q58: 0 | R58: 0 | S58: -0.237 | T58: -0.301 | U58: 0 | V58: 0.053 | W58: 0.006 | X58: -0.063 | Y58: 0 | Z58: 3.952 | AA58: 8.638 | AD58: Southwest | AE58: 4SG | AF58: PDO | AG58: Southwest4SG | AH58: -5.538 | AI58: 0.606 | AJ58: 0 | AK58: 0 | AL58: 0 | AM58: 0 | AN58: 1.109 | AO58: 0 | AP58: 0 | AQ58: 0.019 | AR58: 3.809 | AU58: Southwest | AV58: 3ST | AW58: PDO | AX58: Southwest3ST | AY58: 0.48 | AZ58: 0.02 | BA58: 0.02 | BB58: 0.01 | BC58: 0.05 | BD58: 0.27 | BE58: 0.1 | BF58: 0.02 | BG58: 0.03
B59: Southwest | C59: 4ST | D59: PDO | E59: Southwest4ST | F59: -9.891 | G59: 0.607 | H59: 0.483 | I59: -6.213 | J59: 0.049 | K59: 0.35 | L59: 0 | M59: 0 | N59: 0 | O59: 0 | P59: 0.775 | Q59: 0 | R59: 0 | S59: -0.237 | T59: -0.301 | U59: -0.137 | V59: 0.014 | W59: -0.01 | X59: 0 | Y59: 0 | Z59: 1.574 | AA59: 0.817 | AD59: Southwest | AE59: 4ST | AF59: PDO | AG59: Southwest4ST | AH59: -13.91 | AI59: 1.302 | AJ59: 0 | AK59: 0 | AL59: 0 | AM59: 0 | AN59: 1.109 | AO59: 0 | AP59: 0 | AQ59: -0.128 | AR59: 1.257 | AU59: Southwest | AV59: 4ST | AW59: PDO | AX59: Southwest4ST | AY59: 0.25 | AZ59: 0.03 | BA59: 0.02 | BB59: 0 | BC59: 0.05 | BD59: 0.5 | BE59: 0.08 | BF59: 0 | BG59: 0.05
B60: University | C60: 3SG | D60: PDO | E60: University3SG | F60: -10.731 | G60: 0.953 | H60: 0.233 | I60: -7.549 | J60: 0.287 | K60: 0.297 | L60: 0 | M60: 0 | N60: 0 | O60: 0 | P60: 0 | Q60: 0.533 | R60: 0 | S60: -0.237 | T60: -0.301 | U60: 0 | V60: 0.053 | W60: 0.006 | X60: -0.063 | Y60: -0.104 | Z60: 2.211 | AA60: 1.686 | AD60: University | AE60: 3SG | AF60: PDO | AG60: University3SG | AH60: -9.952 | AI60: 0.964 | AJ60: 0 | AK60: 0 | AL60: 0 | AM60: 0 | AN60: 0 | AO60: 0.886 | AP60: 0 | AQ60: 0.019 | AR60: 1.275 | AU60: University | AV60: 3SG | AW60: PDO | AX60: University3SG | AY60: 0.54 | AZ60: 0.01 | BA60: 0.05 | BB60: 0.01 | BC60: 0.05 | BD60: 0.2 | BE60: 0.1 | BF60: 0.02 | BG60: 0.02
B61: University | C61: 3ST | D61: PDO | E61: University3ST | F61: -17.258 | G61: 1.325 | H61: 0.462 | I61: -6.952 | J61: 0.049 | K61: 0.35 | L61: 0 | M61: 0 | N61: 0 | O61: 0 | P61: 0 | Q61: 0.533 | R61: 0 | S61: -0.237 | T61: -0.301 | U61: -0.137 | V61: 0.014 | W61: -0.01 | X61: 0 | Y61: -0.187 | Z61: 0.796 | AA61: 0.817 | AD61: University | AE61: 3ST | AF61: PDO | AG61: University3ST | AH61: -13.749 | AI61: 1.221 | AJ61: 0 | AK61: 0 | AL61: 0 | AM61: 0 | AN61: 0 | AO61: 0.886 | AP61: 0 | AQ61: -0.128 | AR61: 0.362 | AU61: University | AV61: 4SG | AW61: PDO | AX61: University4SG | AY61: 0.42 | AZ61: 0.04 | BA61: 0.11 | BB61: 0 | BC61: 0.06 | BD61: 0.22 | BE61: 0.11 | BF61: 0.01 | BG61: 0.02
B62: University | C62: 4SG | D62: PDO | E62: University4SG | F62: -10.882 | G62: 0.953 | H62: 0.287 | I62: -8.672 | J62: 0.287 | K62: 0.377 | L62: 0 | M62: 0 | N62: 0 | O62: 0 | P62: 0 | Q62: 0.533 | R62: 0 | S62: -0.237 | T62: -0.301 | U62: 0 | V62: 0.053 | W62: 0.006 | X62: -0.063 | Y62: 0 | Z62: 3.952 | AA62: 8.638 | AD62: University | AE62: 4SG | AF62: PDO | AG62: University4SG | AH62: -5.538 | AI62: 0.606 | AJ62: 0 | AK62: 0 | AL62: 0 | AM62: 0 | AN62: 0 | AO62: 0.886 | AP62: 0 | AQ62: 0.019 | AR62: 3.809 | AU62: University | AV62: 3ST | AW62: PDO | AX62: University3ST | AY62: 0.48 | AZ62: 0.02 | BA62: 0.02 | BB62: 0.01 | BC62: 0.05 | BD62: 0.27 | BE62: 0.1 | BF62: 0.02 | BG62: 0.03
B63: University | C63: 4ST | D63: PDO | E63: University4ST | F63: -9.891 | G63: 0.607 | H63: 0.483 | I63: -6.213 | J63: 0.049 | K63: 0.35 | L63: 0 | M63: 0 | N63: 0 | O63: 0 | P63: 0 | Q63: 0.533 | R63: 0 | S63: -0.237 | T63: -0.301 | U63: -0.137 | V63: 0.014 | W63: -0.01 | X63: 0 | Y63: 0 | Z63: 1.574 | AA63: 0.817 | AD63: University | AE63: 4ST | AF63: PDO | AG63: University4ST | AH63: -13.91 | AI63: 1.302 | AJ63: 0 | AK63: 0 | AL63: 0 | AM63: 0 | AN63: 0 | AO63: 0.886 | AP63: 0 | AQ63: -0.128 | AR63: 1.257 | AU63: University | AV63: 4ST | AW63: PDO | AX63: University4ST | AY63: 0.25 | AZ63: 0.03 | BA63: 0.02 | BB63: 0 | BC63: 0.05 | BD63: 0.5 | BE63: 0.08 | BF63: 0 | BG63: 0.05
B64: Metro | C64: 3SG | D64: PDO | E64: Metro3SG | F64: -10.731 | G64: 0.953 | H64: 0.233 | I64: -7.549 | J64: 0.287 | K64: 0.297 | L64: 0 | M64: 0 | N64: 0 | O64: 0 | P64: 0 | Q64: 0 | R64: 0 | S64: -0.237 | T64: -0.301 | U64: 0 | V64: 0.053 | W64: 0.006 | X64: -0.063 | Y64: -0.104 | Z64: 2.211 | AA64: 1.686 | AD64: Metro | AE64: 3SG | AF64: PDO | AG64: Metro3SG | AH64: -9.952 | AI64: 0.964 | AJ64: 0 | AK64: 0 | AL64: 0 | AM64: 0 | AN64: 0 | AO64: 0 | AP64: 0 | AQ64: 0.019 | AR64: 1.275 | AU64: Metro | AV64: 3SG | AW64: PDO | AX64: Metro3SG | AY64: 0.54 | AZ64: 0.01 | BA64: 0.05 | BB64: 0.01 | BC64: 0.05 | BD64: 0.2 | BE64: 0.1 | BF64: 0.02 | BG64: 0.02
B65: Metro | C65: 3ST | D65: PDO | E65: Metro3ST | F65: -17.258 | G65: 1.325 | H65: 0.462 | I65: -6.952 | J65: 0.049 | K65: 0.35 | L65: 0 | M65: 0 | N65: 0 | O65: 0 | P65: 0 | Q65: 0 | R65: 0 | S65: -0.237 | T65: -0.301 | U65: -0.137 | V65: 0.014 | W65: -0.01 | X65: 0 | Y65: -0.187 | Z65: 0.796 | AA65: 0.817 | AD65: Metro | AE65: 3ST | AF65: PDO | AG65: Metro3ST | AH65: -13.749 | AI65: 1.221 | AJ65: 0 | AK65: 0 | AL65: 0 | AM65: 0 | AN65: 0 | AO65: 0 | AP65: 0 | AQ65: -0.128 | AR65: 0.362 | AU65: Metro | AV65: 4SG | AW65: PDO | AX65: Metro4SG | AY65: 0.42 | AZ65: 0.04 | BA65: 0.11 | BB65: 0 | BC65: 0.06 | BD65: 0.22 | BE65: 0.11 | BF65: 0.01 | BG65: 0.02
B66: Metro | C66: 4SG | D66: PDO | E66: Metro4SG | F66: -10.882 | G66: 0.953 | H66: 0.287 | I66: -8.672 | J66: 0.287 | K66: 0.377 | L66: 0 | M66: 0 | N66: 0 | O66: 0 | P66: 0 | Q66: 0 | R66: 0 | S66: -0.237 | T66: -0.301 | U66: 0 | V66: 0.053 | W66: 0.006 | X66: -0.063 | Y66: 0 | Z66: 3.952 | AA66: 8.638 | AD66: Metro | AE66: 4SG | AF66: PDO | AG66: Metro4SG | AH66: -5.538 | AI66: 0.606 | AJ66: 0 | AK66: 0 | AL66: 0 | AM66: 0 | AN66: 0 | AO66: 0 | AP66: 0 | AQ66: 0.019 | AR66: 3.809 | AU66: Metro | AV66: 3ST | AW66: PDO | AX66: Metro3ST | AY66: 0.48 | AZ66: 0.02 | BA66: 0.02 | BB66: 0.01 | BC66: 0.05 | BD66: 0.27 | BE66: 0.1 | BF66: 0.02 | BG66: 0.03
B67: Metro | C67: 4ST | D67: PDO | E67: Metro4ST | F67: -9.891 | G67: 0.607 | H67: 0.483 | I67: -6.213 | J67: 0.049 | K67: 0.35 | L67: 0 | M67: 0 | N67: 0 | O67: 0 | P67: 0 | Q67: 0 | R67: 0 | S67: -0.237 | T67: -0.301 | U67: -0.137 | V67: 0.014 | W67: -0.01 | X67: 0 | Y67: 0 | Z67: 1.574 | AA67: 0.817 | AD67: Metro | AE67: 4ST | AF67: PDO | AG67: Metro4ST | AH67: -13.91 | AI67: 1.302 | AJ67: 0 | AK67: 0 | AL67: 0 | AM67: 0 | AN67: 0 | AO67: 0 | AP67: 0 | AQ67: -0.128 | AR67: 1.257 | AU67: Metro | AV67: 4ST | AW67: PDO | AX67: Metro4ST | AY67: 0.25 | AZ67: 0.03 | BA67: 0.02 | BB67: 0 | BC67: 0.05 | BD67: 0.5 | BE67: 0.08 | BF67: 0 | BG67: 0.05

Sheet Rural_MI_Tables (hidden)
B1: Rural 4ST Intersections | J1: Rural 3ST Intersections | R1: Coefficients for Region Unsignalized | W1: Coefficients for Region Signalized | AB1: Coefficients for Region Segments | AG1: Trunkline Segments | AP1: NonTrunkline Segments
C2: FI Crashes | F2: PDO Crashes | K2: FI Crashes | N2: PDO Crashes | R2: Type | S2: Region | T2: FI | U2: PDO | W2: Type | X2: Region | Y2: FI | Z2: PDO | AB2: Type | AC2: Region | AD2: FI | AE2: PDO | AG2: Category | AH2: Collision Type | AI2: Proportion of Crashes by Severity Level and Segment Type | AP2: Category | AQ2: Collision Type | AR2: Proportion of Crashes by Severity Level and Segment Type
B3: Parameter | C3: Est | D3: Std. err | E3: z-stat | F3: Est | G3: Std. err | H3: z-stat | J3: Parameter | K3: Est | L3: Std. err | M3: z-stat | N3: Est | O3: Std. err | P3: z-stat | R3: 3ST | S3: Superior | T3: 0 | U3: 0.13 | W3: 3SG | X3: Superior | Y3: 0 | Z3: 0 | AB3: 2U | AC3: Superior | AD3: -0.186 | AE3: 0 | AI3: 2U | AK3: 4U | AM3: 4D | AR3: 2PF | AT3: 2PN | AV3: 2GN
B4: Intercept | C4: -8.607 | D4: 0.258 | E4: -33.306 | F4: -7.178 | G4: 0.169 | H4: -42.548 | J4: Intercept | K4: -9.664 | L4: 0.337 | M4: -28.67 | N4: -7.226 | O4: 0.187 | P4: -38.722 | R4: 3ST | S4: North | T4: 0 | U4: 0.13 | W4: 3SG | X4: North | Y4: -0.273 | Z4: 0 | AB4: 2U | AC4: North | AD4: -0.186 | AE4: 0 | AI4: FI | AJ4: PDO | AK4: FI | AL4: PDO | AM4: FI | AN4: PDO | AR4: FI | AS4: PDO | AT4: FI | AU4: PDO | AV4: FI | AW4: PDO
B5: AADT Major | C5: 0.414 | D5: 0.035 | E5: 11.983 | F5: 0.497 | G5: 0.023 | H5: 22.007 | J5: AADT Major | K5: 0.617 | L5: 0.045 | M5: 13.843 | N5: 0.55 | O5: 0.026 | P5: 21.289 | R5: 3ST | S5: Grand | T5: 0.215 | U5: 0 | W5: 3SG | X5: Grand | Y5: 0 | Z5: 0 | AB5: 2U | AC5: Grand | AD5: 0 | AE5: 0.145 | AG5: Single Vehicle (Deer Excluded) | AH5: Bicycle | AI5: 0.01 | AJ5: 0 | AK5: 0.01 | AL5: 0 | AM5: 0.01 | AN5: 0 | AP5: Single Vehicle (Deer Excluded) | AQ5: Bicycle | AR5: 0.01 | AS5: 0 | AT5: 0.01 | AU5: 0 | AV5: 0.01 | AW5: 0
B6: AADT Minor | C6: 0.582 | D6: 0.033 | E6: 17.86 | F6: 0.397 | G6: 0.021 | H6: 19.257 | J6: AADT Minor | K6: 0.385 | L6: 0.037 | M6: 10.476 | N6: 0.31 | O6: 0.022 | P6: 14.189 | R6: 3ST | S6: Bay | T6: 0 | U6: 0 | W6: 3SG | X6: Bay | Y6: 0 | Z6: 0 | AB6: 2U | AC6: Bay | AD6: 0 | AE6: 0 | AH6: Pedestrian | AI6: 0.02 | AJ6: 0 | AK6: 0.05 | AL6: 0 | AM6: 0.02 | AN6: 0 | AQ6: Pedestrian | AR6: 0.01 | AS6: 0 | AT6: 0.04 | AU6: 0 | AV6: 0.01 | AW6: 0
B7: Added effect of Superior region | C7: -0.283 | D7: 0.114 | E7: -2.484 | F7: 0 | G7: -- | H7: -- | J7: Added effect of Superior region | K7: 0 | L7: -- | M7: -- | N7: 0.13 | O7: 0.047 | P7: 2.785 | R7: 3ST | S7: Southwest | T7: 0 | U7: 0 | W7: 3SG | X7: Southwest | Y7: 0 | Z7: 0 | AB7: 2U | AC7: Southwest | AD7: 0 | AE7: 0.145 | AH7: Overturned | AI7: 0.19 | AJ7: 0.1 | AK7: 0.1 | AL7: 0.06 | AM7: 0.21 | AN7: 0.08 | AQ7: Overturned | AR7: 0.21 | AS7: 0.12 | AT7: 0.17 | AU7: 0.08 | AV7: 0.27 | AW7: 0.12
B8: Added effect of North region | C8: 0 | D8: -- | E8: -- | F8: 0 | G8: -- | H8: -- | J8: Added effect of North region | K8: 0 | L8: -- | M8: -- | N8: 0.13 | O8: 0.047 | P8: 2.785 | R8: 3ST | S8: University | T8: 0 | U8: 0 | W8: 3SG | X8: University | Y8: 0 | Z8: 0 | AB8: 2U | AC8: University | AD8: 0 | AE8: 0 | AH8: Fixed object/other SV | AI8: 0.33 | AJ8: 0.55 | AK8: 0.21 | AL8: 0.47 | AM8: 0.32 | AN8: 0.53 | AQ8: Fixed object/other SV | AR8: 0.49 | AS8: 0.64 | AT8: 0.58 | AU8: 0.64 | AV8: 0.6 | AW8: 0.65
B9: Added effect of Grand region | C9: 0 | D9: -- | E9: -- | F9: 0 | G9: -- | H9: -- | J9: Added effect of Grand region | K9: 0.215 | L9: 0.083 | M9: 2.589 | N9: 0 | O9: -- | P9: -- | R9: 3ST | S9: Metro | T9: 0.215 | U9: 0 | W9: 3SG | X9: Metro | Y9: 0 | Z9: 0 | AB9: 2U | AC9: Metro | AD9: 0 | AE9: 0 | AG9: Multiple Vehicle | AH9: Angle | AI9: 0.05 | AJ9: 0.03 | AK9: 0.15 | AL9: 0.06 | AM9: 0.07 | AN9: 0.03 | AP9: Multiple Vehicle | AQ9: Angle | AR9: 0.03 | AS9: 0.03 | AT9: 0.05 | AU9: 0.04 | AV9: 0.02 | AW9: 0.05
B10: Added effect of Bay region | C10: 0.123 | D10: 0.058 | E10: 2.117 | F10: 0 | G10: -- | H10: -- | J10: Added effect of Bay region | K10: 0 | L10: -- | M10: -- | N10: 0 | O10: -- | P10: -- | R10: 4ST | S10: Superior | T10: -0.283 | U10: 0 | W10: 4SG | X10: Superior | Y10: 0 | Z10: 0 | AB10: 4D | AC10: Superior | AD10: 0 | AE10: 0 | AH10: Head-on | AI10: 0.1 | AJ10: 0.02 | AK10: 0.09 | AL10: 0.02 | AM10: 0.04 | AN10: 0.01 | AQ10: Head-on | AR10: 0.07 | AS10: 0.01 | AT10: 0.05 | AU10: 0.02 | AV10: 0.02 | AW10: 0.02
B11: Added effect of Southwest region | C11: 0 | D11: -- | E11: -- | F11: 0 | G11: -- | H11: -- | J11: Added effect of Southwest region | K11: 0 | L11: -- | M11: -- | N11: 0 | O11: -- | P11: -- | R11: 4ST | S11: North | T11: 0 | U11: 0 | W11: 4SG | X11: North | Y11: -0.273 | Z11: 0 | AB11: 4D | AC11: North | AD11: 0 | AE11: 0 | AH11: Read-end | AI11: 0.2 | AJ11: 0.16 | AK11: 0.23 | AL11: 0.16 | AM11: 0.25 | AN11: 0.14 | AQ11: Read-end | AR11: 0.09 | AS11: 0.09 | AT11: 0.05 | AU11: 0.08 | AV11: 0.02 | AW11: 0.04
B12: Added effect of University region | C12: 0 | D12: -- | E12: -- | F12: 0.094 | G12: 0.041 | H12: 2.254 | J12: Added effect of University region | K12: 0 | L12: -- | M12: -- | N12: 0 | O12: -- | P12: -- | R12: 4ST | S12: Grand | T12: 0 | U12: 0 | W12: 4SG | X12: Grand | Y12: 0 | Z12: 0 | AB12: 4D | AC12: Grand | AD12: 0 | AE12: 0 | AH12: Sideswipe | AI12: 0.07 | AJ12: 0.09 | AK12: 0.09 | AL12: 0.16 | AM12: 0.05 | AN12: 0.16 | AQ12: Sideswipe | AR12: 0.04 | AS12: 0.08 | AT12: 0.03 | AU12: 0.09 | AV12: 0.03 | AW12: 0.09
B13: Added effect of Metro region | C13: 0 | D13: -- | E13: -- | F13: 0.257 | G13: 0.116 | H13: 2.217 | J13: Added effect of Metro region | K13: 0.215 | L13: 0.083 | M13: 2.589 | N13: 0 | O13: -- | P13: -- | R13: 4ST | S13: Bay | T13: 0.123 | U13: 0 | W13: 4SG | X13: Bay | Y13: 0 | Z13: 0 | AB13: 4D | AC13: Bay | AD13: 0 | AE13: -0.197 | AH13: Other MV | AI13: 0.03 | AJ13: 0.06 | AK13: 0.06 | AL13: 0.06 | AM13: 0.03 | AN13: 0.05 | AQ13: Other MV | AR13: 0.02 | AS13: 0.04 | AT13: 0.02 | AU13: 0.05 | AV13: 0.01 | AW13: 0.03
B14: Added effect of intersection skew angle | C14: 0.092 | D14: 0.062 | E14: 1.483 | F14: 0.213 | G14: 0.04 | H14: 5.307 | J14: Constant inverse dispersion parameter | K14: 2.283 | L14: 0.396 | M14: 5.765 | N14: 2.555 | O14: 0.2 | P14: 12.775 | R14: 4ST | S14: Southwest | T14: 0 | U14: 0 | W14: 4SG | X14: Southwest | Y14: 0 | Z14: 0 | AB14: 4D | AC14: Southwest | AD14: 0 | AE14: 0
B15: Added effect of number of driveways | C15: 0.11 | D15: 0.052 | E15: 2.113 | F15: 0.034 | G15: 0.035 | H15: 0.974 | J15: Notes: | R15: 4ST | S15: University | T15: 0 | U15: 0.094 | W15: 4SG | X15: University | Y15: 0 | Z15: 0 | AB15: 4D | AC15: University | AD15: 0.388 | AE15: 0
B16: Constant inverse dispersion parameter | C16: 2.057 | D16: 0.181 | E16: 11.36 | F16: 4.001 | G16: 0.303 | H16: 13.205 | J16: a Single average estimate for both regions | R16: 4ST | S16: Metro | T16: 0 | U16: 0.257 | W16: 4SG | X16: Metro | Y16: 0 | Z16: 0 | AB16: 4D | AC16: Metro | AD16: 0 | AE16: 0
J17: b Single average estimate for both regions | AB17: 4U | AC17: Superior | AD17: 0 | AE17: 0
AB18: 4U | AC18: North | AD18: 0 | AE18: 0
AB19: 4U | AC19: Grand | AD19: 0 | AE19: 0
AB20: 4U | AC20: Bay | AD20: 0 | AE20: -0.197
AB21: 4U | AC21: Southwest | AD21: 0 | AE21: 0
AB22: 4U | AC22: University | AD22: 0.388 | AE22: 0
AB23: 4U | AC23: Metro | AD23: 0 | AE23: 0

Sheet Calibration Factors (hidden)
B2: Seg/Rur; 2-lane | D2: Seg/Rur; Multilane undivided | F2: Seg/Rur; Multilane divided | H2: Seg/Urb; 2-lane arterial | J2: Seg/Urb; Multilane divided | L2: Seg/Urb; One-way arterial | N2: Int/Rur; 3-leg minor-rd STOP | P2: Int/Rur; 3-leg signalized | R2: Int/Rur; 4-leg minor-rd STOP | T2: Int/Rur; 4-leg signalized | V2: Int/Urb; 3-leg minor-rd STOP | X2: Int/Urb; 3-leg signalized | Z2: Int/Urb; 4-leg minor-rd STOP | AB2: Int/Urb; 4-leg signalized | AD2: Seg/Urb; Multilane undivided
B3: Total | C3: KA | D3: Total | E3: KA | F3: Total | G3: KA | H3: Total | I3: KA | J3: Total | K3: KA | L3: Total | M3: KA | N3: Total | O3: KA | P3: Total | Q3: KA | R3: Total | S3: KA | T3: Total | U3: KA | V3: Total | W3: KA | X3: Total | Y3: KA | Z3: Total | AA3: KA | AB3: Total | AC3: KA | AD3: Total | AE3: KA
A4: 2005 | B4: 1.394361 | C4: 0.569092 | D4: 1.188175 | E4: 0.485768 | F4: 1.389342 | G4: 1.13659 | H4: 2.797524 | I4: 1.775254 | J4: 1.4317 | K4: 0.808278 | L4: 0.486769 | M4: 0.232724 | N4: 2.027178 | O4: 0.618952 | P4: 1.273292 | Q4: 0.618952 | R4: 1.799977 | S4: 0.851026 | T4: 2.070054 | U4: 1.209216 | V4: 1.54358 | W4: 0.720624 | X4: 1.483212 | Y4: 0.704727 | Z4: 1.657639 | AA4: 0.839789 | AB4: 1.937834 | AC4: 0.936626 | AD4: 0.887528 | AE4: 0.4484
A5: 2006 | B5: 1.358421 | C5: 0.527798 | D5: 1.219386 | E5: 0.481219 | F5: 1.293727 | G5: 0.866198 | H5: 2.676821 | I5: 1.569271 | J5: 1.3509 | K5: 0.752157 | L5: 0.535497 | M5: 0.322401 | N5: 1.847823 | O5: 0.747099 | P5: 1.397195 | Q5: 0.747099 | R5: 1.680257 | S5: 0.784145 | T5: 1.849131 | U5: 1.000213 | V5: 1.39182 | W5: 0.673937 | X5: 1.423381 | Y5: 0.70093 | Z5: 1.581931 | AA5: 0.812887 | AB5: 1.791863 | AC5: 0.878481 | AD5: 0.811509 | AE5: 0.4032
A6: 2007 | B6: 1.44242 | C6: 0.546016 | D6: 1.312394 | E6: 0.5714 | F6: 1.635164 | G6: 1.405463 | H6: 2.722696 | I6: 1.647329 | J6: 1.3067 | K6: 0.770946 | L6: 0.529742 | M6: 0.208313 | N6: 1.849128 | O6: 0.596554 | P6: 1.204493 | Q6: 0.596554 | R6: 1.680056 | S6: 0.775625 | T6: 1.869876 | U6: 0.991171 | V6: 1.417799 | W6: 0.656899 | X6: 1.332655 | Y6: 0.6302 | Z6: 1.553218 | AA6: 0.773641 | AB6: 1.771052 | AC6: 0.817133 | AD6: 0.797879 | AE6: 0.3757
A7: 2008 | B7: 1.492774 | C7: 0.540187 | D7: 1.237153 | E7: 0.530459 | F7: 1.774831 | G7: 1.482437 | H7: 2.949124 | I7: 1.577198 | J7: 1.3614 | K7: 0.742846 | L7: 0.476368 | M7: 0.271402 | N7: 1.943317 | O7: 0.572169 | P7: 1.223622 | Q7: 0.572169 | R7: 1.719744 | S7: 0.733321 | T7: 1.761661 | U7: 1.017209 | V7: 1.449687 | W7: 0.654022 | X7: 1.383056 | Y7: 0.624471 | Z7: 1.510804 | AA7: 0.732726 | AB7: 1.734538 | AC7: 0.771213 | AD7: 0.780672 | AE7: 0.366
A8: 2009 | B8: 1.419522 | C8: 0.479339 | D8: 1.187294 | E8: 0.432671 | F8: 1.656013 | G8: 0.767266 | H8: 2.772559 | I8: 1.46681 | J8: 1.3027 | K8: 0.772438 | L8: 0.446217 | M8: 0.242334 | N8: 1.826811 | O8: 0.444391 | P8: 1.21515 | Q8: 0.444391 | R8: 1.63137 | S8: 0.722482 | T8: 1.783137 | U8: 1.143322 | V8: 1.347915 | W8: 0.635374 | X8: 1.339419 | Y8: 0.580841 | Z8: 1.445442 | AA8: 0.703127 | AB8: 1.667189 | AC8: 0.801938 | AD8: 0.749738 | AE8: 0.3688
A9: 2010 | B9: 1.278012 | C9: 0.424111 | D9: 1.050345 | E9: 0.420697 | F9: 1.512825 | G9: 1.035771 | H9: 2.566515 | I9: 1.343123 | J9: 1.3017 | K9: 0.693757 | L9: 0.502569 | M9: 0.306594 | N9: 1.72489 | O9: 0.519669 | P9: 1.160094 | Q9: 0.519669 | R9: 1.528896 | S9: 0.72104 | T9: 1.628367 | U9: 1.000418 | V9: 1.302107 | W9: 0.633467 | X9: 1.34588 | Y9: 0.598708 | Z9: 1.42491 | AA9: 0.707561 | AB9: 1.698057 | AC9: 0.787409 | AD9: 0.732563 | AE9: 0.37

Sheet Crash Costs
B3: Crash Costs (Rural 2-Lane): | H3: Crash Costs (Urban & Suburban 2-Lane):
C4: Segment | D4: 3ST | E4: 4ST | F4: 4SG | I4: Segment | J4: 3ST | K4: 3SG | L4: 4ST | M4: 4SG
B5: K | C5: =INDIRECT(ADDRESS(ROW()+12,2+MATCH(Inputs!$B$2,$C$16:$G$16,0))) ->  | H5: K | I5: =INDIRECT(ADDRESS(31,36+MATCH(Inputs!$B$2,Tables!$AO$30:$AU$30,0),,,"Tables")) ->  | P5: =INDIRECT(ADDRESS(9,IF(Inputs!$B$3="HSM",5,8),,,"Tables"))+INDIRECT(ADDRESS(10,IF(Inputs!$B$3="HSM",5,8),,,"Tables"))+INDIRECT(ADDRESS(11,IF(Inputs!$B$3="HSM",5,8),,,"Tables"))+INDIRECT(ADDRESS(12,IF(Inputs!$B$3="HSM",5,8),,,"Tables")) -> 10.9
B6: A | C6: =INDIRECT(ADDRESS(ROW()+12,2+MATCH(Inputs!$B$2,$C$16:$G$16,0))) ->  | H6: A | I6: =INDIRECT(ADDRESS(32,36+MATCH(Inputs!$B$2,Tables!$AO$30:$AU$30,0),,,"Tables")) -> 
B7: B | C7: =INDIRECT(ADDRESS(ROW()+12,2+MATCH(Inputs!$B$2,$C$16:$G$16,0))) ->  | H7: B | I7: =INDIRECT(ADDRESS(33,36+MATCH(Inputs!$B$2,Tables!$AO$30:$AU$30,0),,,"Tables")) -> 
B8: C | C8: =INDIRECT(ADDRESS(ROW()+12,2+MATCH(Inputs!$B$2,$C$16:$G$16,0))) ->  | H8: C | I8: =INDIRECT(ADDRESS(34,36+MATCH(Inputs!$B$2,Tables!$AO$30:$AU$30,0),,,"Tables")) -> 
B9: O | C9: =INDIRECT(ADDRESS(ROW()+12,2+MATCH(Inputs!$B$2,$C$16:$G$16,0))) ->  | H9: O | I9: =INDIRECT(ADDRESS(35,36+MATCH(Inputs!$B$2,Tables!$AO$30:$AU$30,0),,,"Tables")) -> 
B11: KABC | C11: =ROUND((INDIRECT(ADDRESS(9,IF(Inputs!$B$3="HSM",5,8),,,"Tables"))*$C5+INDIRECT(ADDRESS(10,IF(Inputs!$B$3="HSM",5,8),,,"Tables"))*$C6+INDIRECT(ADDRESS(11,IF(Inputs!$B$3="HSM",5,8),,,"Tables"))*$C7+INDIRECT(ADDRESS(12,IF(Inputs!$B$3="HSM",5,8),,,"Tables"))*$C8)/(INDIRECT(ADDRESS(9,IF(Inputs!$B$3="HSM",5,8),,,"Tables"))+INDIRECT(ADDRESS(10,IF(Inputs!$B$3="HSM",5,8),,,"Tables"))+INDIRECT(ADDRESS(11,IF(Inputs!$B$3="HSM",5,8),,,"Tables"))+INDIRECT(ADDRESS(12,IF(Inputs!$B$3="HSM",5,8),,,"Tables"))),-3) ->  | D11: =ROUND((INDIRECT(ADDRESS(49,IF(Inputs!$B$3="HSM",5,11),,,"Tables"))*$C5+INDIRECT(ADDRESS(50,IF(Inputs!$B$3="HSM",5,11),,,"Tables"))*$C6+INDIRECT(ADDRESS(51,IF(Inputs!$B$3="HSM",5,11),,,"Tables"))*$C7+INDIRECT(ADDRESS(52,IF(Inputs!$B$3="HSM",5,11),,,"Tables"))*$C8)/(INDIRECT(ADDRESS(49,IF(Inputs!$B$3="HSM",5,11),,,"Tables"))+INDIRECT(ADDRESS(50,IF(Inputs!$B$3="HSM",5,11),,,"Tables"))+INDIRECT(ADDRESS(51,IF(Inputs!$B$3="HSM",5,11),,,"Tables"))+INDIRECT(ADDRESS(52,IF(Inputs!$B$3="HSM",5,11),,,"Tables"))),-3) ->  | E11: =ROUND((INDIRECT(ADDRESS(49,IF(Inputs!$B$3="HSM",7,13),,,"Tables"))*$C5+INDIRECT(ADDRESS(50,IF(Inputs!$B$3="HSM",7,13),,,"Tables"))*$C6+INDIRECT(ADDRESS(51,IF(Inputs!$B$3="HSM",7,13),,,"Tables"))*$C7+INDIRECT(ADDRESS(52,IF(Inputs!$B$3="HSM",7,13),,,"Tables"))*$C8)/(INDIRECT(ADDRESS(49,IF(Inputs!$B$3="HSM",7,13),,,"Tables"))+INDIRECT(ADDRESS(50,IF(Inputs!$B$3="HSM",7,13),,,"Tables"))+INDIRECT(ADDRESS(51,IF(Inputs!$B$3="HSM",7,13),,,"Tables"))+INDIRECT(ADDRESS(52,IF(Inputs!$B$3="HSM",7,13),,,"Tables"))),-3) ->  | F11: =ROUND((INDIRECT(ADDRESS(49,IF(Inputs!$B$3="HSM",9,15),,,"Tables"))*$C5+INDIRECT(ADDRESS(50,IF(Inputs!$B$3="HSM",9,15),,,"Tables"))*$C6+INDIRECT(ADDRESS(51,IF(Inputs!$B$3="HSM",9,15),,,"Tables"))*$C7+INDIRECT(ADDRESS(52,IF(Inputs!$B$3="HSM",9,15),,,"Tables"))*$C8)/(INDIRECT(ADDRESS(49,IF(Inputs!$B$3="HSM",9,15),,,"Tables"))+INDIRECT(ADDRESS(50,IF(Inputs!$B$3="HSM",9,15),,,"Tables"))+INDIRECT(ADDRESS(51,IF(Inputs!$B$3="HSM",9,15),,,"Tables"))+INDIRECT(ADDRESS(52,IF(Inputs!$B$3="HSM",9,15),,,"Tables"))),-3) ->  | H11: KABC | I11: =ROUND((Tables!L9*I5+Tables!L10*I6+Tables!L11*I7+Tables!L12*I8)/(Tables!L9+Tables!L10+Tables!L11+Tables!L12),-3) ->  | J11: =ROUND((Tables!L49*I5+Tables!L50*I6+Tables!L51*I7+Tables!L52*I8)/(Tables!L49+Tables!L50+Tables!L51+Tables!L52),-3) ->  | K11: =ROUND((Tables!M49*I5+Tables!M50*I6+Tables!M51*I7+Tables!M52*I8)/(Tables!M49+Tables!M50+Tables!M51+Tables!M52),-3) ->  | L11: =ROUND((Tables!N49*I5+Tables!N50*I6+Tables!N51*I7+Tables!N52*I8)/(Tables!N49+Tables!N50+Tables!N51+Tables!N52),-3) ->  | M11: =ROUND((Tables!P49*I5+Tables!P50*I6+Tables!P51*I7+Tables!P52*I8)/(Tables!P49+Tables!P50+Tables!P51+Tables!P52),-3) -> 
D14: ="'Tables'!$AK$30:"&ADDRESS(30,SUMPRODUCT(MAX((Tables!$AO$30:$AU$30<>"")*(COLUMN(Tables!$AO$30:$AU$30))))) -> 
B16: Crash Costs: | C16: National Safety Council | D16: MDOT
B17: K | C17: 1410000 | D17: 1410000
B18: A | C18: 69200 | D18: 69200
B19: B | C19: 22300 | D19: 22300
B20: C | C20: 12600 | D20: 12600
B21: O | C21: 2400 | D21: 2400

Sheet Additional CMFs
A1: Table 1. CMFs for Segments
A2: Countermeasure Information | C2: All Severities (KABCO) | D2: Fatal Injury (KABCO) | E2: All Severities (KABCO) Day | F2: All Severities (KABCO) Night | G2: All Severities 65yrs-and-Older | H2: All Severities 65yrs-and-Older Day | I2: All Severities 65yrs-and-Older Night
A3: Freeways | B3: Clearview & Fluorescent | C3: 0.759 (0.0190) | D3: 0.930 (0.0498) | E3: 0.798 (0.0261) | F3: 0.741 (0.0281) | G3: *0.899 (0.144) | H3: *0.912 (0.170) | I3: *0.902 (0.270)
B4: Fluorescent Only | C4: 0.851 (0.0294) | D4: 0.963 (0.0733) | E4: 0.819 (0.0367) | F4: 0.998 (0.0534) | G4: *0.998 (0.184) | H4: *0.938 (0.209) | I4: *0.913 (0.307)
B5: Clearview Only | C5: 0.892 | D5: 0.966 | E5: 0.974 | F5: 0.742 | G5: 0.9 | H5: 0.972 | I5: 0.988
A6: Urban Non-Freeways | B6: Clearview & Fluorescent | C6: 0.704 (0.0288) | D6: 0.711 (0.0602) | E6: 0.73 (0.0350) | F6: 0.657 (0.0514) | G6: 0.859 (0.0854) | H6: 0.895 (0.0975) | I6: *0.964 (0.143)
B7: Fluorescent Only | C7: 0.949 (0.0288) | D7: 0.917 (0.0578) | E7: 0.932 (0.0342) | F7: 0.993 (0.0523) | G7: 0.963 (0.0675) | H7: 0.965 (0.0740) | I7: *0.986 (0.0775)
B8: Clearview Only | C8: 0.742 | D8: 0.775 | E8: 0.783 | F8: 0.662 | G8: 0.892 | H8: 0.927 | I8: 0.978
A9: Rural Non-Freeways | B9: Clearview & Fluorescent | C9: 0.670 (0.0236) | D9: *0.927 (0.0261) | E9: 0.716 (0.0385) | F9: 0.667 (0.0310) | G9: 0.783 (0.0741) | H9: 0.941 (0.120) | I9: *0.977 (0.0835)
B10: Fluorescent Only | C10: 0.923 (0.0264) | D10: *0.972 (0.0185) | E10: 0.883 (0.0396) | F10: 0.973 (0.0355) | G10: 0.895 (0.0675) | H10: 0.993 (0.0977) | I10: *0.998 (0.0547)
B11: Clearview Only | C11: 0.726 | D11: 0.954 | E11: 0.811 | F11: 0.686 | G11: 0.875 | H11: 0.948 | I11: 0.979
A12: Arrow-Per-Lane | B12: All Crashes | C12: *0.578 (0.0845) | G12: *0.319 (0.0909)
A13: * Indicates CMFs estimated with Before-After with comparison groups method
A14: Numbers in parenthesis are standard errors estimated for the CMFs
A16: Table 2. CMFs for intersections
A17: Countermeasure Information | C17: All Severities (KABCO) | D17: Fatal Injury (KABCO) | E17: All Severities 65yrs-and-Older | F17: Fatal Injury 65yrs-and-Older
A18: Pedestrian Countdown Signal (PCS) | B18: All Drivers | C18: *0.946 (0.035) | D18: *0.927 (0.072) | E18: *0.849 (0.092) | F18: *0.477 (0.117)
B19: All Pedestrians | C19: *0.683 (0.173) | D19: *0.804 (0.223) | E19: *0.353 (0.211) | F19: *0.449 (0.266)
A20: Box Span Signal Installations | B20: All Crashes | C20: 0.975 (0.040) | D20: 0.897 (0.079) | E20: 1.097 (0.099) | F20: 0.888 (0.164)
B21: Angle Crashes | C21: 0.876 (0.070) | E21: 0.841 (0.133)
A22: * Indicates CMFs estimated with Before-After with comparison groups method
A23: Numbers in parenthesis are standard errors estimated for the CMFs

Sheet Construction - Do Not Delete (hidden)
B3: Lane Width | D3: Shoulder Width | F3: RHR
B4: 9 | D4: 0 | F4: 1
B5: 9.5 | D5: 1 | F5: 2
B6: 10 | D6: 2 | F6: 3
B7: 10.5 | D7: 3 | F7: 4
B8: 11 | D8: 4 | F8: 5
B9: 11.5 | D9: 5 | F9: 6
B10: 12 | D10: 6 | F10: 7
D11: 7
D12: 8
H15: Centerline | J15: Passing | L15: Local | N15: EB | P15: Terrain
B16: CDP | D16: Shoulder Type | F16: Spiral | H16: Rumble Strips | J16: Lane | L16: HSM | N16: Site | P16: Level
B17: Yes | D17: Paved | F17: NP | H17: NP | J17: NP | L17: Local | N17: Project | P17: Rolling
B18: No | D18: Gravel | F18: P | H18: P | J18: P1
D19: Composite | F19: 1 | J19: P2
D20: Turf
B22: Itype4 | F22: TWLTL | H22: Lighting | J22: SpEnforce
B23: 3SG | F23: NP | H23: NP | J23: NP
B24: 4SG | F24: P | H24: P | J24: P
B28: Itype2 | C28: Itype3 | D28: Itype | E28: Itype4 | F28: Lapproach | H28: Rapproach | J28: Ilight | L28: Differ | N28: Phasing2 | Q28: Itype5
B29: 3ST | C29: 3ST | D29: 3ST | E29: 4U | F29: 0 | H29: 0 | J29: NP | L29: Y | N29: N/A | Q29: Paved
B30: 3SG | C30: 4ST | D30: 4ST | E30: 4D | F30: 1 | H30: 1 | J30: P | L30: N | N30: Permissive | Q30: Gravel
B31: 4ST | D31: 4SG | F31: 2 | H31: 2 | N31: Protected
B32: 4SG | F32: 3 | H32: 3 | N32: Protected / Permissive
F33: 4 | H33: 4 | N33: Permissive / Protected
B36: Num | D36: Mwidth | F36: Division | H36: Sslope | J36: Shld2 | L36: Iapproach
B37: 1 | D37: 10 | F37: Divided | H37: 1:2 or Steeper | J37: 0 | L37: 0
B38: 2 | D38: 20 | F38: Undivided | H38: 1:4 | J38: 1 | L38: 1
B39: 3 | D39: 30 | H39: 1:5 | J39: 2 | L39: 2
B40: 4 | D40: 40 | H40: 1:6 | J40: 3
B41: 5 | D41: 50 | H41: 1:7 or Flatter | J41: 4
B42: 6 | D42: 60 | J42: 5
B43: 7 | D43: 70 | J43: 6
B44: 8 | D44: 80 | J44: 7
B45: 9 | D45: 90 | J45: 8
B46: 10 | D46: 100 | J46: 9
J47: 10
B50: Urban / Suburban Fields:
B53: Rtype | D53: UMedWidth | F53: PresOrNot | H53: OnStreetType | J53: OffsetFO | L53: Posted
B54: 2U55E | D54: NP | F54: NP | H54: None | J54: 2 | L54: Posted Speed 30 mph or Lower
B55: 2U55L | D55: 10 | F55: P | H55: Parallel (Residential) | J55: 5 | L55: Posted Speed Greater than 30 mph
B56: 3T | D56: 15 | H56: Parallel (Comm/Ind) | J56: 10
B57: 4U | D57: 20 | H57: Angle (Residential) | J57: 15
B58: 4D | D58: 30 | H58: Angle (Comm/Ind) | J58: 20
B59: 5T | D59: 40 | J59: 25
B60: 6D | D60: 50 | J60: ≥ 30
B61: 8D | D61: 60
B62: 2O | D62: 70
B63: 3O | D63: 80
B64: 4O | D64: 90
D65: 100
B69: Tlanes | F69: Phasing | H69: UnsigApproach | J69: RtApproach | L69: Shld3
B70: 0 | F70: Permissive | H70: 0 | J70: 0 | L70: 0
B71: 1 | F71: Protected | H71: 1 | J71: 1 | L71: 1
B72: 2 | F72: Protected / Permissive | H72: 2 | J72: 2 | L72: 2
B73: 3 | F73: Permissive / Protected | J73: 3 | L73: 3
B74: 4 | J74: 4 | L74: 4
L75: 5
L76: 6
L77: 7
L78: 8
B81: Michigan Specific Model Construction
B82: WSUIsectType | C82: Flow Type | D82: Major Road Speed Limit | E82: Major Road Median Presence | F82: Minor Road Median Presence | G82: Lighting Presence | H82: Right-Turn-on-Red Prohibition | I82: Major Street Left Turn | J82: MDOT Region | K82: County | L82: 1997 Region | M82: 2016 Region | N82: Economic Prosperity Region
B83: 3SG | C83: Two-Way | D83: 25 | E83: Present | F83: Present | G83: Present | H83: Permitted | I83: Present | J83: Superior | K83: Statewide | L83: Statewide | M83: Statewide | N83: Statewide
B84: 3ST | C84: One-Way | D84: 30 | E84: Not Present | F84: Not Present | G84: Not Present | H84: Prohibited | I84: Not Present | J84: North | K84: Alcona | L84: North | M84: North | N84: Northeast Prosperity Region
B85: 4SG | D85: 35 | H85: NA | J85: Grand | K85: Alger | L85: Superior | M85: Superior | N85: Central UP Prosperity Region
B86: 4ST | D86: 40 | J86: Bay | K86: Allegan | L86: Southwest | M86: Grand | N86: West Michigan Prosperity Region
D87: 45 | J87: Southwest | K87: Alpena | L87: North | M87: North | N87: Northeast Prosperity Region
D88: 50 | J88: University | K88: Antrim | L88: North | M88: North | N88: Northwest Prosperity Region
D89: 55 | J89: Metro | K89: Arenac | L89: Bay | M89: Bay | N89: East Central Michigan Prosperity Region
D90: 60 | K90: Baraga | L90: Superior | M90: Superior | N90: Western UP Prosperity Region
D91: 65 | K91: Barry | L91: Southwest | M91: Grand | N91: West Michigan Prosperity Region
D92: 70 | K92: Bay | L92: Bay | M92: Bay | N92: East Central Michigan Prosperity Region
K93: Benzie | L93: North | M93: North | N93: Northwest Prosperity Region
K94: Berrien | L94: Southwest | M94: Southwest | N94: Southwest Prosperity Region
K95: Branch | L95: Southwest | M95: Southwest | N95: Southwest Prosperity Region
K96: Calhoun | L96: Southwest | M96: Southwest | N96: Southwest Prosperity Region
K97: Cass | L97: Southwest | M97: Southwest | N97: Southwest Prosperity Region
K98: Charlevoix | L98: North | M98: North | N98: Northwest Prosperity Region
K99: Cheboygan | L99: North | M99: North | N99: Northeast Prosperity Region
K100: Chippewa | L100: Superior | M100: Superior | N100: Eastern UP Prosperity Region
K101: Clare | L101: Bay | M101: Bay | N101: East Central Michigan Prosperity Region
K102: Clinton | L102: University | M102: University | N102: South Central Prosperity Region
K103: Crawford | L103: North | M103: North | N103: Northeast Prosperity Region
K104: Delta | L104: Superior | M104: Superior | N104: Central UP Prosperity Region
K105: Dickinson | L105: Superior | M105: Superior | N105: Central UP Prosperity Region
K106: Eaton | L106: University | M106: University | N106: South Central Prosperity Region
K107: Emmet | L107: North | M107: North | N107: Northwest Prosperity Region
K108: Genesee | L108: Bay | M108: Bay | N108: East Michigan Prosperity Region
K109: Gladwin | L109: Bay | M109: Bay | N109: East Central Michigan Prosperity Region
K110: Gogebic | L110: Superior | M110: Superior | N110: Western UP Prosperity Region
K111: Grand Traverse | L111: North | M111: North | N111: Northwest Prosperity Region
K112: Gratiot | L112: Bay | M112: Bay | N112: East Central Michigan Prosperity Region
K113: Hillsdale | L113: University | M113: University | N113: Southeast Michigan Prosperity Region
K114: Houghton | L114: Superior | M114: Superior | N114: Western UP Prosperity Region
K115: Huron | L115: Bay | M115: Bay | N115: East Michigan Prosperity Region
K116: Ingham | L116: University | M116: University | N116: South Central Prosperity Region
K117: Ionia | L117: Grand | M117: Grand | N117: West Michigan Prosperity Region
K118: Iosco | L118: North | M118: North | N118: Northeast Prosperity Region
K119: Iron | L119: Superior | M119: Superior | N119: Western UP Prosperity Region
K120: Isabella | L120: Bay | M120: Bay | N120: East Central Michigan Prosperity Region
K121: Jackson | L121: University | M121: University | N121: Southeast Michigan Prosperity Region
K122: Kalamazoo | L122: Southwest | M122: Southwest | N122: Southwest Prosperity Region
K123: Kalkaska | L123: North | M123: North | N123: Northwest Prosperity Region
K124: Kent | L124: Grand | M124: Grand | N124: West Michigan Prosperity Region
K125: Keweenaw | L125: Superior | M125: Superior | N125: Western UP Prosperity Region
K126: Lake | L126: North | M126: Grand | N126: West Central Prosperity Region
K127: Lapeer | L127: Bay | M127: Bay | N127: East Michigan Prosperity Region
K128: Leelanau | L128: North | M128: North | N128: Northwest Prosperity Region
K129: Lenawee | L129: University | M129: University | N129: Southeast Michigan Prosperity Region
K130: Livingston | L130: University | M130: University | N130: Southeast Michigan Prosperity Region
K131: Luce | L131: Superior | M131: Superior | N131: Eastern UP Prosperity Region
K132: Mackinac | L132: Superior | M132: Superior | N132: Eastern UP Prosperity Region
K133: Macomb | L133: Metro | M133: Metro | N133: Detroit Metro Prosperity Region
K134: Manistee | L134: North | M134: North | N134: Northwest Prosperity Region
K135: Marquette | L135: Superior | M135: Superior | N135: Central UP Prosperity Region
K136: Mason | L136: North | M136: Grand | N136: West Central Prosperity Region
K137: Mecosta | L137: Grand | M137: Grand | N137: West Central Prosperity Region
K138: Menominee | L138: Superior | M138: Superior | N138: Central UP Prosperity Region
K139: Midland | L139: Bay | M139: Bay | N139: East Central Michigan Prosperity Region
K140: Missaukee | L140: North | M140: North | N140: Northwest Prosperity Region
K141: Monroe | L141: University | M141: University | N141: Southeast Michigan Prosperity Region
K142: Montcalm | L142: Grand | M142: Grand | N142: West Michigan Prosperity Region
K143: Montmorency | L143: North | M143: North | N143: Northeast Prosperity Region
K144: Muskegon | L144: Grand | M144: Grand | N144: West Michigan Prosperity Region
K145: Newaygo | L145: Grand | M145: Grand | N145: West Central Prosperity Region
K146: Oakland | L146: Metro | M146: Metro | N146: Detroit Metro Prosperity Region
K147: Oceana | L147: Grand | M147: Grand | N147: West Central Prosperity Region
K148: Ogemaw | L148: North | M148: North | N148: Northeast Prosperity Region
K149: Ontonagon | L149: Superior | M149: Superior | N149: Western UP Prosperity Region
K150: Osceola | L150: North | M150: Grand | N150: West Central Prosperity Region
K151: Oscoda | L151: North | M151: North | N151: Northeast Prosperity Region
K152: Otsego | L152: North | M152: North | N152: Northeast Prosperity Region
K153: Ottawa | L153: Grand | M153: Grand | N153: West Michigan Prosperity Region
K154: Presque Isle | L154: North | M154: North | N154: Northeast Prosperity Region
K155: Roscommon | L155: North | M155: North | N155: Northeast Prosperity Region
K156: Saginaw | L156: Bay | M156: Bay | N156: East Central Michigan Prosperity Region
K157: Sanilac | L157: Bay | M157: Bay | N157: East Michigan Prosperity Region
K158: Schoolcraft | L158: Superior | M158: Superior | N158: Central UP Prosperity Region
K159: Shiawassee | L159: University | M159: Bay | N159: East Michigan Prosperity Region
K160: St. Clair | L160: Metro | M160: Bay | N160: East Michigan Prosperity Region
K161: St. Joseph | L161: Southwest | M161: Southwest | N161: Southwest Prosperity Region
K162: Tuscola | L162: Bay | M162: Bay | N162: East Michigan Prosperity Region
K163: Van Buren | L163: Southwest | M163: Southwest | N163: Southwest Prosperity Region
K164: Washtenaw | L164: University | M164: University | N164: Southeast Michigan Prosperity Region
K165: Wayne | L165: Metro | M165: Metro | N165: Detroit Metro Prosperity Region
K166: Wexford | L166: North | M166: North | N166: Northwest Prosperity Region

Sheet AADTRanges
F2: Rural Segment AADT Ranges (MI Data) | J2: Rural Intersection AADT Ranges (MI Data)
B3: Urban/SuburbanSegment AADT Ranges | F3: Facility Type | G3: Min AADT | H3: Max AADT | J3: Facility Type | K3: Min AADT Major | L3: Max AADT Major | M3: Min AADT Minor | N3: Max AADT Minor
B4: Facility Type | C4: Min AADT | D4: Max AADT | F4: 2U | G4: 100 | H4: 23500 | J4: 3ST | K4: 25 | L4: 32000 | M4: 25 | N4: 6550
B5: 2U55E | C5: 200 | D5: 26900 | F5: 4U | G5: 1675 | H5: 32000 | J5: 4ST | K5: 50 | L5: 20275 | M5: 25 | N5: 6850
B6: 2U55L | C6: 600 | D6: 30200 | F6: 4D | G6: 3175 | H6: 29650 | J6: 3SG | K6: 3725 | L6: 16300 | M6: 125 | N6: 9750
B7: 3T | C7: 2400 | D7: 31100 | F7: 2PF | G7: 25 | H7: 12800 | J7: 4SG | K7: 1275 | L7: 21425 | M7: 50 | N7: 12150
B8: 4U | C8: 3700 | D8: 43900 | F8: 2PN | G8: 25 | H8: 12625
B9: 5T | C9: 4100 | D9: 51300 | F9: 2GN | G9: 25 | H9: 6300
B10: 4D | C10: 1800 | D10: 35900
B11: 6D | C11: 3400 | D11: 77600
B12: 8D | C12: 6000 | D12: 77600
B13: 2O | C13: 1200 | D13: 26200
B14: 3O | C14: 2200 | D14: 26200
B15: 4O | C15: 2900 | D15: 27100

Sheet Tables (hidden)
B2: Tables Affiliated with Crash Statistics: | AB2: Tables Affiliated with Crash Modification Factors: | AP2: Additional CMF's
B5: Table 10-3: Distribution for Crash Severity Level on Rural Two-Lane Two-Way Roadway Segments plus Locally-Derived Values | AB5: Table 10-10: Crash Modification Factors for Shoulder Types and Shoulder Widths on Roadway Segments (CMFtra) | AP5: Rural 2-Lane Segments | AR5: Rural Unsignalized Intersections | AT5: Rural Multilane Segments | AX5: Rural Signalized Intersections | AZ5: Urban & Suburban Segments | BB5: Urban & Suburban Intersections
AP6: N/A (1.000) | AQ6: 1 | AR6: N/A (1.000) | AS6: 1 | AT6: N/A (1.000) | AU6: 1 | AW6: 1 | AX6: N/A (1.000) | AY6: 1 | AZ6: N/A (1.000) | BA6: 1 | BB6: N/A (1.000) | BC6: 1
B7: Crash severity level | E7: Percentage of total roadway segment crashes | AB7: Shoulder Type | AC7: Shoulder width (ft) | AP7: Edgelines (0.921) | AQ7: 0.921 | AR7: Painted Left-turn channelization (0.670) | AS7: 0.67 | AT7: Edgelines (0.921) | AU7: 0.921 | AW7: 0.921 | AX7: Add left- or right-turn bypass lanes (0.850) | AY7: 0.85 | AZ7: Improve pavement friction (0.799) | BA7: 0.799 | BB7: Stop Control to Roundabout (0.560) | BC7: 0.56
E8: HSM-Provided Values | H8: Locally-Derived Values (Michigan) | AC8: 0 | AD8: 1 | AE8: 2 | AF8: 3 | AG8: 4 | AH8: 5 | AI8: 6 | AJ8: 7 | AK8: 8 | AP8: Wide (6") Edgelines (0.929) | AQ8: 0.929 | AR8: Raised/Curb Left-turn channelization (0.870) | AS8: 0.87 | AT8: Wide (6") Edgelines (0.929) | AU8: 0.929 | AW8: 0.929 | AX8: Convert to roundabout (0.330) | AY8: 0.33 | AZ8: (4U) 4-lane to 3-lane Road Diet (0.71) | BA8: 0.71 | BB8: Signalized Int. to Roundabout (0.520) | BC8: 0.52
B9: Fatal | E9: 1.3 | H9: 0.5 | AB9: Paved | AC9: 1 | AD9: 1 | AE9: 1 | AF9: 1 | AG9: 1 | AH9: =+(AG9+AI9)/2 -> 1 | AI9: 1 | AJ9: =+(AI9+AK9)/2 -> 1 | AK9: 1 | AP9: Shoulder Rumble Strips (0.840) | AQ9: 0.84 | AR9: Add left- or right-turn bypass lanes (0.950) | AS9: 0.95 | AT9: Shoulder Rumble Strips (0.840) | AU9: 0.84 | AW9: 0.84 | AX9: Improve pavement friction (3ST) (0.819) | AY9: 0.819 | AZ9: (2U) Provide a raised median (0.61) | BA9: 0.61 | BB9: Add 3" Retroreflective Backplates (0.850) | BC9: 0.85
B10: Incapacitating Injury | E10: 5.4 | H10: 1.8 | AB10: Gravel | AC10: 1 | AD10: 1 | AE10: 1.01 | AF10: 1.01 | AG10: 1.01 | AH10: =+(AG10+AI10)/2 -> 1.015 | AI10: 1.02 | AJ10: =+(AI10+AK10)/2 -> 1.02 | AK10: 1.02 | AP10: Improve pavement friction (0.799) | AQ10: 0.799 | AR10: Install a traffic signal (0.560) | AS10: 0.56 | AT10: Improve pavement friction (0.799) | AU10: 0.799 | AW10: 0.799 | AX10: Improve pavement friction (3SG) (0.667) | AY10: 0.667 | AZ10: Upgrade signs with Clearview font only (0.742) | BA10: 0.742 | BB10: Add signal (add'l primary head) (0.720) | BC10: 0.72
B11: Nonincapacitating Injury | E11: 10.9 | H11: 3.3 | AB11: Composite | AC11: 1 | AD11: 1.01 | AE11: 1.02 | AF11: 1.02 | AG11: 1.03 | AH11: =+(AG11+AI11)/2 -> 1.035 | AI11: 1.04 | AJ11: =+(AI11+AK11)/2 -> 1.05 | AK11: 1.06 | AP11: Upgrade signs with Clearview font only (0.670) | AQ11: 0.67 | AR11: Convert to roundabout from minor-road stop control (0.560) | AS11: 0.56 | AT11: Upgrade signs with Clearview font only (0.670) | AU11: 0.67 | AW11: 0.67 | AX11: Improve pavement friction (4SG) (0.797) | AY11: 0.797 | AZ11: Upgrade signs with fluorescent sheeting only (0.949) | BA11: 0.979 | BB11: Convert to roundabout from minor-road stop control (0.560) | BC11: 0.56
B12: Possible Injury | E12: 14.5 | H12: 5.3 | AB12: Turf | AC12: 1 | AD12: 1.01 | AE12: 1.03 | AF12: 1.04 | AG12: 1.05 | AH12: =+(AG12+AI12)/2 -> 1.065 | AI12: 1.08 | AJ12: =+(AI12+AK12)/2 -> 1.095 | AK12: 1.11 | AP12: Upgrade signs with fluorescent sheeting only (0..923) | AQ12: 0.923 | AR12: Convert minor-road stop control to all-way (0.520) | AS12: 0.52 | AT12: Upgrade signs with fluorescent sheeting only (0..923) | AU12: 0.923 | AW12: 0.923 | AZ12: Upgrade signs with both Clearview font and fluorescent sheeting (0.704) | BA12: 0.704 | BB12: Add flashing beacons at stop controlled intersections (0.950) | BC12: 0.95
B13: Total Fatal Plus Injury | E13: =SUM(E9:E12) -> 32.1 | H13: =SUM(H9:H12) -> 10.9 | AB13: Note: The values for composite shoulders in this exhibit represent a shoulder for which 50 percent of the shoulder width is paved and 50 percent of the shoulder width is turf. | AP13: Upgrade signs with both Clearview font and fluorescent sheeting (0.726) | AQ13: 0.726 | AR13: Add flashing beacons at stop controlled intersections (0.950) | AS13: 0.95 | AT13: Upgrade signs with both Clearview font and fluorescent sheeting (0.726) | AU13: 0.726 | AW13: 0.726 | BB13: Improve pavement friction (3ST) (0.819) | BC13: 0.819
B14: Property Damage Only | E14: =100-E13 -> 67.9 | H14: =100-H13 -> 89.1 | AP14: Add Passing Lanes (0.670) | AQ14: 0.67 | AR14: Improve pavement friction (3ST) (0.819) | AS14: 0.819 | BB14: Improve pavement friction (3SG) (0.667) | BC14: 0.667
B15: TOTAL | E15: =SUM(E13:E14) -> 100 | H15: =SUM(H13:H14) -> 100 | AP15: Centerline Rumble Strips (0.922) | AQ15: 0.922 | BB15: Improve pavement friction (4SG) (0.797) | BC15: 0.797
B16: Note: HSM-provided crash severity data based on HSIS data for Washington (2002-2006) | AB16: Table 10-13: CMF for Installation of Left-Turn Lanes on Intersection Approaches (CMF2i) | BB16: Upgrade pedestrian signals to include countdown timer (0.946) | BC16: 0.946
B18: Table 10-4: Default Distribution by Collision Type for Specific Crash Severity Levels on Rural Two-Lane Two-Way Roadway Segments plus Locally-Derived Values | AB18: Intersection type | AD18: Intersection traffic control | AF18: Number of approaches with left-turn lanes a
E20: Percentage of total roadway segment crashes by crash severity level | AF20: 1 | AG20: 2 | AH20: 3 | AI20: 4
E21: HSM-Provided Values | I21: Locally-Derived Values (Michigan)
B22: Collision type | E22: Total fatal and injury | F22: Property damage only | G22: TOTAL (all severity levels combined) | I22: Total fatal and injury | J22: Property damage only | K22: TOTAL (all severity levels combined) | AB22: Three-leg intersection | AD22: Minor road stop control b | AF22: 0.56 | AG22: 0.31 | AH22: 0.31 | AI22: 0.31
B24: SINGLE-VEHICLE CRASHES | AB24: Four-leg intersection | AD24: Minor road stop control b | AF24: 0.72 | AG24: 0.52 | AH24: 0.52 | AI24: 0.52
B25: Collision with animal | E25: 3.8 | F25: 18.4 | G25: 12.1 | I25: 14.2 | J25: 74.4 | K25: 68.5
B26: Collision with bicycle | E26: 0.4 | F26: 0.1 | G26: 0.2 | I26: 0.9 | J26: 0 | K26: 0.1 | AD26: Traffic signal | AF26: 0.82 | AG26: 0.67 | AH26: 0.55 | AI26: 0.45
B27: Collision with pedestrian | E27: 0.7 | F27: 0.1 | G27: 0.3 | I27: 1.3 | J27: 0 | K27: 0.2 | AB27: Note: | AC27: a Stop-controlled approaches are not considered in determing the number of approaches with left-turn lanes | AP27: x | AR27: x | AT27: x | AX27: x | AZ27: x
B28: Overturned | E28: 3.7 | F28: 1.5 | G28: 2.5 | I28: 16.2 | J28: 2.5 | K28: 4
B29: Ran off road | E29: 54.5 | F29: 50.5 | G29: 52.1 | I29: 26.7 | J29: 11.2 | K29: 12.9 | AC29: b Stop signs present on minor road approaches only.
B30: Other single-vehicle crash | E30: 0.7 | F30: 2.9 | G30: 2.1 | I30: =28-I29 -> 1.3 | J30: 2.9 | K30: =15.1-K29 -> 2.2
B31: Total single-vehicle crashes | E31: =SUM(E25:E30) -> 63.8 | F31: =SUM(F25:F30) -> 73.5 | G31: =SUM(G25:H30) -> 69.3 | I31: =SUM(I25:I30) -> 60.6 | J31: =SUM(J25:J30) -> 91 | K31: =SUM(K25:L30) -> 87.9
B32: MULTIPLE-VEHICLE CRASHES | AB32: Table 10-14: CMF for Installation of Right-Turn Lanes on Intersection Approaches (CMF3i)
B33: Angle collision | E33: 10 | F33: 7.2 | G33: 8.5 | I33: 4.3 | J33: 0.8 | K33: 1.1
B34: Head-on collision | E34: 3.4 | F34: 0.3 | G34: 1.6 | I34: 8.9 | J34: 0.5 | K34: 1.3 | AB34: Intersection type | AD34: Intersection traffic control | AF34: Number of approaches with left-turn lanes a
B35: Rear-end collision | E35: 16.4 | F35: 12.2 | G35: 14.2 | I35: 17.3 | J35: 4 | K35: 5.4
B36: Sideswipe collision | E36: 3.8 | F36: 3.8 | G36: 3.7 | I36: 5.9 | J36: 2.2 | K36: 2.6 | AF36: 1 | AG36: 2 | AH36: 3 | AI36: 4
B37: Other multiple-vehicle collision | E37: 2.6 | F37: 3 | G37: 2.7 | I37: 3 | J37: 1.5 | K37: 1.7
B38: Total multiple-vehicle crashes | E38: =SUM(E33:E37) -> 36.2 | F38: =SUM(F33:F37) -> 26.5 | G38: =SUM(G33:H37) -> 30.7 | I38: =SUM(I33:I37) -> 39.4 | J38: =SUM(J33:J37) -> 9 | K38: =SUM(K33:L37) -> 12.1 | AB38: Three-leg intersection | AD38: Minor road stop control b | AF38: 0.86 | AG38: 0.74 | AH38: 0.74 | AI38: 0.74
B39: TOTAL CRASHES | E39: =+E31+E38 -> 100 | F39: =+F31+F38 -> 100 | G39: 100 | I39: =+I31+I38 -> 100 | J39: =+J31+J38 -> 100 | K39: 100
B40: Note: HSM-provided values based on crash data for Washington (2002-2006); includes approximately 70 percent opposite-direction sideswipe and 30 percent same-direction sideswipe collisions. | AB40: Four-leg intersection | AD40: Minor road stop control b | AF40: 0.86 | AG40: 0.74 | AH40: 0.74 | AI40: 0.74
B42: Table 10-5: Default Distribution for Crash Severity Level at Rural Two-Lane Two-Way Intersections plus Locally-Derived Values | AD42: Traffic signal | AF42: 0.96 | AG42: 0.92 | AH42: 0.88 | AI42: 0.85
AB43: Note: | AC43: a Stop-controlled approaches are not considered in determing the number of approaches with right-turn lanes
B44: Collision type | E44: Percentage of total crashes
E45: HSM-Provided Values | K45: Locally-Derived Values | AC45: b Stop signs present on minor road approaches only.
E46: 3ST | G46: 4ST | I46: 4SG | K46: 3ST | M46: 4ST | O46: 4SG | Q46: 3SG
AB47: Table 12-24: Crash Modification Factor (CMF1i) for Installation of Left-Turn Lanes on Intersection Approaches
B49: Fatal | E49: 1.7 | G49: 1.8 | I49: 0.9 | K49: 0.5 | M49: 1.1 | O49: 0.3 | Q49: 0.3 | AB49: Intersection Type | AC49: Intersection traffic control | AE49: Number of approaches with left-turn lanes a
B50: Incapacitating injury | E50: 4 | G50: 4.3 | I50: 2.1 | K50: 2.7 | M50: 4.2 | O50: 1.9 | Q50: 2.4
B51: Nonincapacitating injury | E51: 16.6 | G51: 16.2 | I51: 10.5 | K51: 5.8 | M51: 7.6 | O51: 5.3 | Q51: 4.2 | AE51: One approach | AF51: Two approaches | AG51: Three approaches | AH51: Four approaches
B52: Possible injury | E52: 19.2 | G52: 20.8 | I52: 20.5 | K52: 11.1 | M52: 14.6 | O52: 15.5 | Q52: 13.9
B53: Total fatal plus injury | E53: =SUM(E49:E52) -> 41.5 | G53: =SUM(G49:G52) -> 43.1 | I53: =SUM(I49:I52) -> 34 | K53: =SUM(K49:K52) -> 20.1 | M53: =SUM(M49:M52) -> 27.5 | O53: =SUM(O49:O52) -> 23 | Q53: =SUM(Q49:Q52) -> 20.8 | AB53: 3ST | AC53: Minor-road STOP controlb | AE53: 0.67 | AF53: 0.45 | AG53: -- | AH53: --
B54: Property damage only | E54: =100-E53 -> 58.5 | G54: =100-G53 -> 56.9 | I54: =100-I53 -> 66 | K54: =100-K53 -> 79.9 | M54: =100-M53 -> 72.5 | O54: =100-O53 -> 77 | Q54: =100-Q53 -> 79.2 | AB54: 3SG | AC54: Traffic signal | AE54: 0.93 | AF54: 0.86 | AG54: 0.8 | AH54: 0.8
B55: TOTAL | E55: =SUM(E53:E54) -> 100 | G55: =SUM(G53:G54) -> 100 | I55: =SUM(I53:I54) -> 100 | K55: =SUM(K53:K54) -> 100 | M55: =SUM(M53:M54) -> 100 | O55: =SUM(O53:O54) -> 100 | Q55: =SUM(Q53:Q54) -> 100 | AB55: 4ST | AC55: Minor-road STOP controla | AE55: 0.73 | AF55: 0.53 | AG55: -- | AH55: --
B56: Note: HSM-Provided values based on HSIS data for California (2002-2006) | AB56: 4SG | AC56: Traffic signal | AE56: 0.9 | AF56: 0.81 | AG56: 0.73 | AH56: 0.66
AB57: a STOP-controlled approaches are not considered in determining the number of approaches with left-turn lanes.
B58: Table 10-6: Default Distribution for Collision Type and Manner of Collision at Rural Two-Way Intersections plus Locally-Derived Values | AB58: b Stop signs present on minor-road approaches only.
B60: Collision type | E60: Percentage of total crashes by collision type ( HSM Default Values) | N60: Percentage of total crashes by collision type (Locally Derived Values)
E61: Three-leg stop-controlled intersections | H61: Four-leg stop-controlled intersections | K61: Four-leg signalized intersections | N61: Three-leg stop-controlled intersections | Q61: Four-leg stop-controlled intersections | T61: Four-leg signalized intersections | W61: Three-leg signalized intersections
AB62: Table 12-26: Crash Modification Factor (CMF3i) for Installation of Right-Turn Lanes on Intersection Approaches
E63: Fatal and Injury | F63: Property damage only | G63: Total | H63: Fatal and injury | I63: Property damage only | J63: Total | K63: Fatal and injury | L63: Property damage only | M63: Total | N63: Fatal and Injury | O63: Property damage only | P63: Total | Q63: Fatal and injury | R63: Property damage only | S63: Total | T63: Fatal and injury | U63: Property damage only | V63: Total | W63: Fatal and injury | X63: Property damage only | Y63: Total
AB64: Intersection Type | AC64: Intersection traffic control | AE64: Number of approaches with right-turn lanes a
B65: SINGLE-VEHICLE CRASHES | N65: SINGLE-VEHICLE CRASHES
B66: Collision with animal | E66: 0.8 | F66: 2.6 | G66: 1.9 | H66: 0.6 | I66: 1.4 | J66: 1 | K66: 0 | L66: 0.3 | M66: 0.2 | N66: 2 | O66: 32.3 | P66: 26.1 | Q66: 1.2 | R66: 29 | S66: 21.3 | T66: 0 | U66: 3.9 | V66: 3 | W66: 0 | X66: 7 | Y66: 5.6 | AE66: One approach | AF66: Two approaches | AG66: Three approaches | AH66: Four approaches
B67: Collision with bicycle | E67: 0.1 | F67: 0.1 | G67: 0.1 | H67: 0.1 | I67: 0.1 | J67: 0.1 | K67: 0.1 | L67: 0.1 | M67: 0.1 | N67: 0.6 | O67: 0 | P67: 0.1 | Q67: 0.3 | R67: 0 | S67: 0.1 | T67: 2.2 | U67: 0.1 | V67: 0.6 | W67: 1.7 | X67: 0.4 | Y67: 0.7
B68: Collision with pedestrian | E68: 0.1 | F68: 0.1 | G68: 0.1 | H68: 0.1 | I68: 0.1 | J68: 0.1 | K68: 0.1 | L68: 0.1 | M68: 0.1 | N68: 0.4 | O68: 0 | P68: 0.1 | Q68: 0.8 | R68: 0 | S68: 0.3 | T68: 4.6 | U68: 0.1 | V68: 1.2 | W68: 3.3 | X68: 0.1 | Y68: 0.7 | AB68: 3ST | AC68: Minor-road STOP controlb | AE68: 0.86 | AF68: 0.74 | AG68: -- | AH68: --
B69: Overturned | E69: 2.2 | F69: 0.7 | G69: 1.3 | H69: 0.6 | I69: 0.4 | J69: 0.5 | K69: 0.3 | L69: 0.3 | M69: 0.3 | N69: 7.9 | O69: 2.2 | P69: 3.4 | Q69: 2.6 | R69: 1.5 | S69: 1.8 | T69: 1 | U69: 0.1 | V69: 0.4 | W69: 0 | X69: 0.9 | Y69: 0.7 | AB69: 3SG | AC69: Traffic signal | AE69: 0.96 | AF69: 0.92 | AG69: -- | AH69: --
B70: Ran off road | E70: 24 | F70: 24.7 | G70: 24.4 | H70: 9.4 | I70: 14.4 | J70: 12.2 | K70: 3.2 | L70: 8.1 | M70: 6.4 | N70: 18.8 | O70: 17.7 | P70: 17.9 | Q70: 7 | R70: 11.8 | S70: 11 | T70: 3.7 | U70: 5 | V70: 4.7 | W70: 3.7 | X70: 5 | Y70: 4.7 | AB70: 4ST | AC70: Minor-road STOP controla | AE70: 0.86 | AF70: 0.74 | AG70: -- | AH70: --
B71: Other single-vehicle crash | E71: 1.1 | F71: 2 | G71: 1.6 | H71: 0.4 | I71: 1 | J71: 0.8 | K71: 0.3 | L71: 1.8 | M71: 0.5 | N71: =32.9-18.8 -> 14.1 | O71: =28.1-17.7 -> 10.4 | P71: =29.1-17.9 -> 11.2 | Q71: 0 | R71: =14.4-R70 -> 2.6 | S71: 1.4 | T71: =3.9-T70 -> 0.2 | U71: =6.3-U70 -> 1.3 | V71: 0.9 | W71: =6.7-W70 -> 3 | X71: =6.6-X70 -> 1.6 | Y71: =6.6-Y70 -> 1.9 | AB71: 4SG | AC71: Traffic signal | AE71: 0.96 | AF71: 0.92 | AG71: 0.88 | AH71: 0.85
B72: Total single-vehicle crashes | E72: =SUM(E66:E71) -> 28.3 | F72: 30.2 | G72: 29.4 | H72: 11.2 | I72: 17.4 | J72: 14.7 | K72: 4 | L72: 10.7 | M72: 7.6 | N72: 43.8 | O72: 62.6 | P72: 58.8 | Q72: 11.9 | R72: 44.9 | S72: 35.9 | T72: 11.7 | U72: 10.5 | V72: 10.8 | W72: 11.7 | X72: 15 | Y72: 14.3 | AB72: a STOP-controlled approaches are not considered in determining the number of approaches with right-turn lanes.
B73: MULTIPLE-VEHICLE CRASHES | N73: MULTIPLE-VEHICLE CRASHES | AB73: b Stop signs present on minor-road approaches only.
B74: Angle collision | E74: 27.5 | F74: 21 | G74: 23.7 | H74: 53.2 | I74: 35.4 | J74: 43.1 | K74: 33.6 | L74: 24.2 | M74: 27.4 | N74: 19.3 | O74: 8.4 | P74: 10.6 | Q74: 53.8 | R74: 21.1 | S74: 30 | T74: 42.2 | U74: 22.5 | V74: 27 | W74: 16.7 | X74: 10 | Y74: 11.5
B75: Head-on collision | E75: 8.1 | F75: 3.2 | G75: 5.2 | H75: 6 | I75: 2.5 | J75: 4 | K75: 8 | L75: 4 | M75: 5.4 | N75: 9.3 | O75: 1.7 | P75: 3.2 | Q75: 9.1 | R75: 2 | S75: 4 | T75: 16.3 | U75: 6.7 | V75: 8.9 | W75: 11.7 | X75: 5.3 | Y75: 6.6 | AB75: Table 12-19: Values of fpk Used in Determing the CMF for On-Street Parking
B76: Rear-end collision | E76: 26 | F76: 29.2 | G76: 27.8 | H76: 21 | I76: 26.6 | J76: 24.2 | K76: 40.3 | L76: 43.8 | M76: 42.6 | N76: 19.6 | O76: 17.9 | P76: 18.3 | Q76: 19.3 | R76: 20.1 | S76: 19.8 | T76: 23.8 | U76: 40.6 | V76: 36.7 | W76: 53.3 | X76: 52 | Y76: 52.3
B77: Sideswipe collision | E77: 5.1 | F77: 13.1 | G77: 9.7 | H77: 4.4 | I77: 14.4 | J77: 10.1 | K77: 5.1 | L77: 15.3 | M77: 11.8 | N77: 5.3 | O77: 5.7 | P77: 5.6 | Q77: 3.4 | R77: 7.4 | S77: 6.3 | T77: 3.1 | U77: 14.3 | V77: 11.7 | W77: 3.3 | X77: 13.7 | Y77: 11.5 | AB77: Road Type | AC77: Type of Parking and Land Use
B78: Other multiple-vehicle collision | E78: 5 | F78: 3.3 | G78: 4.2 | H78: 4.2 | I78: 3.7 | J78: 3.9 | K78: 9 | L78: 2 | M78: 5.2 | N78: 2.7 | O78: 3.7 | P78: 3.5 | Q78: 2.5 | R78: 4.5 | S78: 4 | T78: 2.9 | U78: 5.4 | V78: 4.9 | W78: 3.3 | X78: 4 | Y78: 3.8 | AC78: Parallel Parking | AE78: Angle Parking
B79: Total multiple-vehicle crashes | E79: =SUM(E74:E78) -> 71.7 | F79: 69.8 | G79: 70.6 | H79: 88.8 | I79: 82.6 | J79: 85.3 | K79: 96 | L79: 89.3 | M79: 92.4 | N79: 56.2 | O79: 37.4 | P79: 41.2 | Q79: 88.1 | R79: 55.1 | S79: 64.1 | T79: 88.3 | U79: 89.5 | V79: 89.2 | W79: =SUM(W74:W78) -> 88.3 | X79: =SUM(X74:X78) -> 85 | Y79: =SUM(Y74:Y78) -> 85.7 | AC79: Residential/ Other | AD79: Commercial or Industrial/ Institutional | AE79: Residential/ Other | AF79: Commercial or Industrial/ Institutional
B80: TOTAL CRASHES | E80: =+E72+E79 -> 100 | F80: 100 | G80: 100 | H80: 100 | I80: 100 | J80: 100 | K80: 100 | L80: 100 | M80: 100 | N80: 100 | O80: 100 | P80: 100 | Q80: 100 | R80: 100 | S80: 100 | T80: 100 | U80: 100 | V80: 100 | W80: =+W72+W79 -> 100 | X80: =+X72+X79 -> 100 | Y80: =+Y72+Y79 -> 100
B81: Note: HSM-Provided values based on HSIS data for California (2002-2006)
AB82: 2U | AC82: 1.465 | AD82: 2.074 | AE82: 3.428 | AF82: 4.853
B83: Table 10-12: Nighttime Crash Proportions for Unlighted Roadway Segments plus Locally-Derived Values | AB83: 3T | AC83: 1.465 | AD83: 2.074 | AE83: 3.428 | AF83: 4.853
AB84: 4U | AC84: 1.1 | AD84: 1.709 | AE84: 2.574 | AF84: 3.999
B85: Roadway Type | C85: HSM Default Values | I85: Locally Derived Values | AB85: 4D | AC85: 1.1 | AD85: 1.709 | AE85: 2.574 | AF85: 3.999
F86: Proportion of crashes that occur at night | I86: Proportion of total nighttime crashes by severity level | L86: Proportion of crashes that occur at night | AB86: 5T | AC86: 1.1 | AD86: 1.709 | AE86: 2.574 | AF86: 3.999
C87: Proportion of total nighttime crashes by severity level
AB88: Table 12-20: Fixed-Object Offset Factor
C89: Fatal and Injury pinr | E89: PDO ppnr | F89: pnr | I89: Fatal and Injury pinr | K89: PDO ppnr | L89: pnr
B90: 2U | C90: 0.382 | E90: 0.618 | F90: 0.37 | I90: 0.27 | K90: 0.65 | L90: 0.463 | AB90: Offset to fixed objects | AD90: Fixed-Object Offset Factor
B91: Note: HSM-provided values based on HSIS data for Washington (2002-2006) | AB91: (Ofo) (ft) | AD91: (foffset)
AB92: 2 | AD92: 0.232
B93: Table 10-15: Nighttime Crash Proportions for Unlighted Intersections | AB93: 5 | AD93: 0.133
AB94: 10 | AD94: 0.087
B95: Intersection Type | E95: Proportion of crashes that occur at night, pni | AB95: 15 | AD95: 0.068
E96: HSM Provided Values | G96: Locally-Derived Values | AB96: 20 | AD96: 0.057
B97: 3ST | E97: 0.26 | G97: 0.248 | AB97: 25 | AD97: 0.049
B98: 4ST | E98: 0.244 | G98: 0.208 | AB98: ≥ 30 | AD98: 0.044
B99: 4SG | E99: 0.286 | G99: 0.188 | AB99: Note: Values from 2 to 30 can be estimated using the following equation:
B100: Note: HSM-Provided values based on HSIS data for California (2002-2006)
AB101: y=0.3566 x-0.614
B102: Table 12-11: Distribution of Multiple-Vehicle Collisions for Intersections by Collision Type
D104: Proportion of crashes by severity level for specific intersection types | AB104: Table 12-22: CMFs for Median Widths on Divided Roadway Segments without a Median Barrier (CMF3r)
D105: HSM-Provided Values
B106: Collision type | D106: 3ST | F106: 3SG | H106: 4ST | J106: 4SG
D107: FI | E107: PDO | F107: FI | G107: PDO | H107: FI | I107: PDO | J107: FI | K107: PDO
B108: Rear-end collision | D108: 0.421 | E108: 0.44 | F108: 0.549 | G108: 0.546 | H108: 0.338 | I108: 0.374 | J108: 0.45 | K108: 0.483 | AB108: Median Width (ft) | AD108: CMF
B109: Head-on collision | D109: 0.045 | E109: 0.023 | F109: 0.038 | G109: 0.02 | H109: 0.041 | I109: 0.03 | J109: 0.049 | K109: 0.03 | AB109: 10 | AD109: 1.01
B110: Angle collision | D110: 0.343 | E110: 0.262 | F110: 0.28 | G110: 0.204 | H110: 0.44 | I110: 0.335 | J110: 0.347 | K110: 0.244 | AB110: 15 | AD110: 1
B111: Sideswipe | D111: 0.126 | E111: 0.04 | F111: 0.076 | G111: 0.032 | H111: 0.121 | I111: 0.044 | J111: 0.099 | K111: 0.032 | AB111: 20 | AD111: 0.99
B112: Other multiple-vehicle collision | D112: 0.065 | E112: 0.235 | F112: 0.057 | G112: 0.198 | H112: 0.06 | I112: 0.217 | J112: 0.055 | K112: 0.211 | AB112: 30 | AD112: 0.98
B113: Source: HSIS data for Washington (2002-2006) | AB113: 40 | AD113: 0.97
B114: Collision type | D114: Locally-Derived Values | AB114: 50 | AD114: 0.96
D115: 3ST | F115: 3SG | H115: 4ST | J115: 4SG | AB115: 60 | AD115: 0.95
D116: FI | E116: PDO | F116: FI | G116: PDO | H116: FI | I116: PDO | J116: FI | K116: PDO | AB116: 70 | AD116: 0.94
B117: Rear-end collision | D117: 0.518 | E117: 0.464 | F117: 0.598 | G117: 0.575 | H117: 0.338 | I117: 0.361 | J117: 0.469 | K117: 0.493 | AB117: 80 | AD117: 0.93
B118: Head-on collision | D118: 0.085 | E118: 0.026 | F118: 0.095 | G118: 0.03 | H118: 0.086 | I118: 0.034 | J118: 0.099 | K118: 0.038 | AB118: 90 | AD118: 0.93
B119: Angle collision | D119: 0.244 | E119: 0.171 | F119: 0.208 | G119: 0.139 | H119: 0.446 | I119: 0.285 | J119: 0.335 | K119: 0.194 | AB119: 100 | AD119: 0.92
B120: Sideswipe | D120: 0.091 | E120: 0.254 | F120: 0.063 | G120: 0.206 | H120: 0.079 | I120: 0.225 | J120: 0.057 | K120: 0.209
B121: Other multiple-vehicle collision | D121: 0.061 | E121: 0.085 | F121: 0.037 | G121: 0.05 | H121: 0.05 | I121: 0.095 | J121: 0.04 | K121: 0.065
B122: Note: HSM-Provided values based on HSIS data for California (2002-2006) | AB122: Tables Affiliated with SPF Computation:
AB124: Table 12-10: SPF Coefficients for Multiple-Vehicle Collisions at Intersections
B125: Table 12-13: Distribution of Single-Vehicle Crashes for Intersections by Collision Type
AB126: Intersection type | AC126: Coefficients use in Eqn. 12-21 | AF126: Overdispersion parameter (k)
D127: Proportion of crashes by severity level for specific intersection types | AC127: Intercept | AD127: AADTmaj | AE127: AADTmin
D128: HSM-Provided Values | AC128: (a) | AD128: (b) | AE128: (c)
B129: Collision type | D129: 3ST | F129: 3SG | H129: 4ST | J129: 4SG | AB129: Total crashes
D130: FI | E130: PDO | F130: FI | G130: PDO | H130: FI | I130: PDO | J130: FI | K130: PDO | AB130: 3ST | AC130: -13.36 | AD130: 1.11 | AE130: 0.41 | AF130: 0.8
B131: Collision with parked vehicle | D131: 0.001 | E131: 0.003 | F131: 0.001 | G131: 0.001 | H131: 0.001 | I131: 0.001 | J131: 0.001 | K131: 0.001 | AB131: 3SG | AC131: -12.13 | AD131: 1.11 | AE131: 0.26 | AF131: 0.33
B132: Collision with animal | D132: 0.003 | E132: 0.018 | F132: 0.001 | G132: 0.003 | H132: 0.001 | I132: 0.026 | J132: 0.002 | K132: 0.002 | AB132: 4ST | AC132: -8.9 | AD132: 0.82 | AE132: 0.25 | AF132: 0.4
B133: Collision with fixed object | D133: 0.762 | E133: 0.8341 | F133: 0.653 | G133: 0.895 | H133: 0.679 | I133: 0.847 | J133: 0.744 | K133: 0.87 | AB133: 4SG | AC133: -10.99 | AD133: 1.07 | AE133: 0.23 | AF133: 0.39
B134: Collision with other object | D134: 0.09 | E134: 0.092 | F134: 0.091 | G134: 0.069 | H134: 0.089 | I134: 0.07 | J134: 0.072 | K134: 0.07 | AB134: Fatal-and-injury crashes
B135: Other single-vehicle collision | D135: 0.039 | E135: 0.023 | F135: 0.045 | G135: 0.018 | H135: 0.051 | I135: 0.007 | J135: 0.04 | K135: 0.023 | AB135: 3ST | AC135: -14.01 | AD135: 1.16 | AE135: 0.3 | AF135: 0.69
B136: Noncollision | D136: 0.105 | E136: 0.03 | F136: 0.209 | G136: 0.014 | H136: 0.179 | I136: 0.049 | J136: 0.141 | K136: 0.034 | AB136: 3SG | AC136: -11.58 | AD136: 1.02 | AE136: 0.17 | AF136: 0.3
B137: Source: HSM-Provided values base on HSIS data for California (2002-2006) | AB137: 4ST | AC137: -11.13 | AD137: 0.93 | AE137: 0.28 | AF137: 0.48
B138: Collision type | D138: Locally-Derived Values | AB138: 4SG | AC138: -13.14 | AD138: 1.18 | AE138: 0.22 | AF138: 0.33
D139: 3ST | F139: 3SG | H139: 4ST | J139: 4SG | AB139: Property-damage-only crashes
D140: FI | E140: PDO | F140: FI | G140: PDO | H140: FI | I140: PDO | J140: FI | K140: PDO | AB140: 3ST | AC140: -15.38 | AD140: 1.2 | AE140: 0.51 | AF140: 0.77
B141: Collision with parked vehicle | D141: 0.002 | E141: 0.001 | F141: 0 | G141: 0.002 | H141: 0.002 | I141: 0 | J141: 0 | K141: 0.001 | AB141: 3SG | AC141: -13.24 | AD141: 1.14 | AE141: 0.3 | AF141: 0.36
B142: Collision with animal | D142: 0.042 | E142: 0.415 | F142: 0.017 | G142: 0.254 | H142: 0.037 | I142: 0.39 | J142: 0.03 | K142: 0.18 | AB142: 4ST | AC142: -8.74 | AD142: 0.77 | AE142: 0.23 | AF142: 0.4
B143: Collision with fixed object | D143: 0.701 | E143: 0.469 | F143: 0.729 | G143: 0.589 | H143: 0.697 | I143: 0.499 | J143: 0.697 | K143: 0.641 | AB143: 4SG | AC143: -11.02 | AD143: 1.02 | AE143: 0.24 | AF143: 0.44
B144: Collision with other object | D144: 0.019 | E144: 0.036 | F144: 0.008 | G144: 0.05 | H144: 0.025 | I144: 0.04 | J144: 0.009 | K144: 0.055
B145: Other single-vehicle collision | D145: 0.133 | E145: 0.061 | F145: 0.158 | G145: 0.08 | H145: 0.126 | I145: 0.054 | J145: 0.179 | K145: 0.107 | AB145: Table 12-12: SPF Coefficients for Single-Vehicle Crashes at Intersections
B146: Noncollision | D146: 0.104 | E146: 0.018 | F146: 0.088 | G146: 0.025 | H146: 0.114 | I146: 0.018 | J146: 0.084 | K146: 0.016
AB147: Intersection type | AC147: Coefficients use in Eqn. 12-24 | AF147: Overdispersion parameter (k)
AC148: Intercept | AD148: AADTmaj | AE148: AADTmin
AC149: (a) | AD149: (b) | AE149: (c)
B150: Table 12-27: Nighttime Crash Proportions for Unlighted Intersections | AB150: Total crashes
AB151: 3ST | AC151: -6.81 | AD151: 0.16 | AE151: 0.51 | AF151: 1.14
D152: Proportion of crashes that occur at night, pni | AB152: 3SG | AC152: -9.02 | AD152: 0.42 | AE152: 0.4 | AF152: 0.36
D153: HSM-Provided Values | F153: Locally-Derived Values | AB153: 4ST | AC153: -5.33 | AD153: 0.33 | AE153: 0.12 | AF153: 0.65
B154: Intersection Type | AB154: 4SG | AC154: -10.21 | AD154: 0.68 | AE154: 0.27 | AF154: 0.36
B155: 3ST | D155: 0.238 | F155: 0.238 | I155: Replace these values with Michigan-Specific! | AB155: Fatal-and-injury crashes
B156: 4ST | D156: 0.229 | F156: 0.229 | AB156: 3ST | AC156: -- | AD156: -- | AE156: -- | AF156: --
B157: 3SG | D157: 0.235 | F157: 0.235 | AB157: 3SG | AC157: -9.75 | AD157: 0.27 | AE157: 0.51 | AF157: 0.24
B158: 4SG | D158: 0.235 | F158: 0.235 | AB158: 4ST | AC158: -- | AD158: -- | AE158: -- | AF158: --
AB159: 4SG | AC159: -9.25 | AD159: 0.43 | AE159: 0.29 | AF159: 0.09
AB160: Property-damage-only crashes
B161: Table 12-4: Distribution of Multiple-Vehicle Nondriveway Collisions for Roadway Segments by Manner of Collision Type | AB161: 3ST | AC161: -8.36 | AD161: 0.25 | AE161: 0.55 | AF161: 1.29
AB162: 3SG | AC162: -9.08 | AD162: 0.45 | AE162: 0.33 | AF162: 0.53
D163: Proportion of crashes by severity level for specific road types | AB163: 4ST | AC163: -7.04 | AD163: 0.36 | AE163: 0.25 | AF163: 0.54
D164: HSM-Provided Values | AB164: 4SG | AC164: -11.34 | AD164: 0.78 | AE164: 0.25 | AF164: 0.44
B165: Collision type | D165: 2U | F165: 3T | H165: 4U | J165: 4D | L165: 5T | AB165: Note: Where no models are available, Equations 12-27 is used.
D166: FI | E166: PDO | F166: FI | G166: PDO | H166: FI | I166: PDO | J166: FI | K166: PDO | L166: FI | M166: PDO | AB166: Equation 12-27:
B167: Rear-end collision | D167: 0.73 | E167: 0.778 | F167: 0.845 | G167: 0.842 | H167: 0.511 | I167: 0.506 | J167: 0.832 | K167: 0.662 | L167: 0.846 | M167: 0.651 | AB167: Nbisv(FI) = Nbisv(TOTAL) x fbisv
B168: Head-on collision | D168: 0.068 | E168: 0.004 | F168: 0.034 | G168: 0.02 | H168: 0.077 | I168: 0.004 | J168: 0.02 | K168: 0.007 | L168: 0.021 | M168: 0.004
B169: Angle collision | D169: 0.085 | E169: 0.079 | F169: 0.069 | G169: 0.02 | H169: 0.181 | I169: 0.13 | J169: 0.04 | K169: 0.036 | L169: 0.05 | M169: 0.059 | AB169: Table 12-14: SPF for Vehicle-Pedestrian Collisions at Signalized Intersections
B170: Sideswipe, same direction | D170: 0.015 | E170: 0.031 | F170: 0.001 | G170: 0.078 | H170: 0.093 | I170: 0.249 | J170: 0.05 | K170: 0.223 | L170: 0.061 | M170: 0.248
B171: Sideswipe, opposite direction | D171: 0.073 | E171: 0.055 | F171: 0.017 | G171: 0.02 | H171: 0.082 | I171: 0.031 | J171: 0.01 | K171: 0.001 | L171: 0.004 | M171: 0.009 | AB171: Intersection type | AC171: Coefficients use in Eqn. 12-29 | AH171: Overdispersion parameter (k)
B172: Other multiple-vehicle collision | D172: 0.029 | E172: 0.053 | F172: 0.034 | G172: 0.02 | H172: 0.056 | I172: 0.08 | J172: 0.048 | K172: 0.071 | L172: 0.018 | M172: 0.029 | AC172: Intercept | AD172: AADTtot | AE172: AADTmin/AADTmaj | AF172: PedVol | AG172: nlanesx
B173: Source: HSIS data for Washington (2002-2006) | AC173: (a) | AD173: (b) | AE173: (c) | AF173: (d) | AG173: (e)
B174: Collision type | D174: Locally-Derived Values | AB174: Total crashes
D175: 2U | F175: 3T | H175: 4U | J175: 4D | L175: 5T | AB175: 3SG | AC175: -6.6 | AD175: 0.05 | AE175: 0.24 | AF175: 0.41 | AG175: 0.09 | AH175: 0.52
D176: FI | E176: PDO | F176: FI | G176: PDO | H176: FI | I176: PDO | J176: FI | K176: PDO | L176: FI | M176: PDO | AB176: 4SG | AC176: -9.53 | AD176: 0.4 | AE176: 0.26 | AF176: 0.45 | AG176: 0.04 | AH176: 0.24
B177: Rear-end collision | D177: 0.468 | E177: 0.534 | F177: 0.515 | G177: 0.527 | H177: 0.455 | I177: 0.47 | J177: 0.588 | K177: 0.553 | L177: 0.484 | M177: 0.515
B178: Head-on collision | D178: 0.141 | E178: 0.046 | F178: 0.126 | G178: 0.052 | H178: 0.145 | I178: 0.056 | J178: 0.023 | K178: 0.008 | L178: 0.134 | M178: 0.049
B179: Angle collision | D179: 0.283 | E179: 0.205 | F179: 0.278 | G179: 0.215 | H179: 0.303 | I179: 0.219 | J179: 0.282 | K179: 0.157 | L179: 0.294 | M179: 0.194 | AB179: Table 12-3: SPF Coefficients for Multiple-Vehicle Nondriveway Collisions on Roadway Segments
B180: Sideswipe, same direction | D180: 0.031 | E180: 0.125 | F180: 0.027 | G180: 0.135 | H180: 0.044 | I180: 0.192 | J180: 0.069 | K180: 0.235 | L180: 0.042 | M180: 0.185
B181: Sideswipe, opposite direction | D181: 0.033 | E181: 0.037 | F181: 0.019 | G181: 0.03 | H181: 0.016 | I181: 0.028 | J181: 0.006 | K181: 0.011 | L181: 0.015 | M181: 0.022 | AB181: Road type | AC181: Coefficients use in Eqn. 12-10 | AE181: Overdispersion parameter (k)
B182: Other multiple-vehicle collision | D182: 0.044 | E182: 0.053 | F182: 0.036 | G182: 0.041 | H182: 0.036 | I182: 0.035 | J182: 0.033 | K182: 0.036 | L182: 0.031 | M182: 0.035 | AC182: Intercept | AD182: AADT
B183: Note: HSM-Provided values based on HSIS data for Washington (2002-2006) | AC183: (a) | AD183: (b)
AB184: Total crashes
AB185: 2U | AC185: -15.22 | AD185: 1.68 | AE185: 0.84
B186: Table 12-6: Distribution of Single-Vehicle Collisions for Roadway Segments by Collision Type | AB186: 3T | AC186: -12.4 | AD186: 1.41 | AE186: 0.66
AB187: 4U | AC187: -11.63 | AD187: 1.33 | AE187: 1.01
D188: Proportion of crashes by severity level for specific road types | AB188: 4D | AC188: -12.34 | AD188: 1.36 | AE188: 1.32
D189: HSM-Provided Values | AB189: 5T | AC189: -9.7 | AD189: 1.17 | AE189: 0.81
B190: Collision type | D190: 2U | F190: 3T | H190: 4U | J190: 4D | L190: 5T | AB190: Fatal-and-injury crashes
D191: FI | E191: PDO | F191: FI | G191: PDO | H191: FI | I191: PDO | J191: FI | K191: PDO | L191: FI | M191: PDO | AB191: 2U | AC191: -16.22 | AD191: 1.66 | AE191: 0.65
B192: Collision with animal | D192: 0.026 | E192: 0.066 | F192: 0.001 | G192: 0.001 | H192: 0.001 | I192: 0.001 | J192: 0.001 | K192: 0.063 | L192: 0.016 | M192: 0.049 | AB192: 3T | AC192: -16.45 | AD192: 1.69 | AE192: 0.59
B193: Collision with fixed object | D193: 0.723 | E193: 0.759 | F193: 0.688 | G193: 0.963 | H193: 0.612 | I193: 0.809 | J193: 0.5 | K193: 0.813 | L193: 0.398 | M193: 0.768 | AB193: 4U | AC193: -12.08 | AD193: 1.25 | AE193: 0.99
B194: Collision with other object | D194: 0.01 | E194: 0.013 | F194: 0.001 | G194: 0.001 | H194: 0.02 | I194: 0.029 | J194: 0.028 | K194: 0.016 | L194: 0.005 | M194: 0.061 | AB194: 4D | AC194: -12.76 | AD194: 1.28 | AE194: 1.31
B195: Other single-vehicle collision | D195: 0.241 | E195: 0.162 | F195: 0.31 | G195: 0.035 | H195: 0.367 | I195: 0.161 | J195: 0.471 | K195: 0.108 | L195: 0.581 | M195: 0.122 | AB195: 5T | AC195: -10.47 | AD195: 1.12 | AE195: 0.62
B196: Source: HSIS data for Washington (2002-2006) | AB196: Property-damage-only crashes
B197: Collision type | D197: Locally-Derived Values | AB197: 2U | AC197: -15.62 | AD197: 1.69 | AE197: 0.87
D198: 2U | F198: 3T | H198: 4U | J198: 4D | L198: 5T | AB198: 3T | AC198: -11.95 | AD198: 1.33 | AE198: 0.59
D199: FI | E199: PDO | F199: FI | G199: PDO | H199: FI | I199: PDO | J199: FI | K199: PDO | L199: FI | M199: PDO | AB199: 4U | AC199: -12.53 | AD199: 1.38 | AE199: 1.08
B200: Collision with animal | D200: 0.103 | E200: 0.682 | F200: 0.085 | G200: 0.602 | H200: 0.053 | I200: 0.439 | J200: 0.064 | K200: 0.383 | L200: 0.061 | M200: 0.457 | AB200: 4D | AC200: -12.81 | AD200: 1.38 | AE200: 1.34
B201: Collision with fixed object | D201: 0.602 | E201: 0.247 | F201: 0.65 | G201: 0.301 | H201: 0.668 | I201: 0.439 | J201: 0.64 | K201: 0.475 | L201: 0.666 | M201: 0.415 | AB201: 5T | AC201: -9.97 | AD201: 1.17 | AE201: 0.88
B202: Collision with other object | D202: 0.024 | E202: 0.024 | F202: 0.018 | G202: 0.038 | H202: 0.014 | I202: 0.052 | J202: 0.013 | K202: 0.046 | L202: 0.017 | M202: 0.056
B203: Other single-vehicle collision | D203: 0.271 | E203: 0.048 | F203: 0.247 | G203: 0.059 | H203: 0.265 | I203: 0.07 | J203: 0.284 | K203: 0.096 | L203: 0.257 | M203: 0.071 | AB203: Table 12-5: SPF Coefficients for Single-Vehicle Collisions on Roadway Segments
AB205: Road type | AC205: Coefficients use in Eqn. 12-11 | AE205: Overdispersion parameter (k)
AC206: Intercept | AD206: AADT
B207: Table 12-8: Pedestrian Crash Adjustment Factor for Roadway Segments | AC207: (a) | AD207: (b)
AB208: Total crashes
D209: Pedestrian Crash Adjustment Factor (fpedr) | AB209: 2U | AC209: -5.47 | AD209: 0.56 | AE209: 0.81
D210: HSM-Provided Values | H210: Locally-Derived Values | AB210: 3T | AC210: -5.74 | AD210: 0.54 | AE210: 1.37
B211: Road type | D211: Posted Speed 30 mph or Lower | F211: Posted Speed Greater than 30 mph | H211: Posted Speed 30 mph or Lower | J211: Posted Speed Greater than 30 mph | AB211: 4U | AC211: -7.99 | AD211: 0.81 | AE211: 0.91
B212: 2U | D212: 0.036 | F212: 0.005 | H212: 0.036 | J212: 0.005 | M212: Replace these values with Michigan-Specific! | AB212: 4D | AC212: -5.05 | AD212: 0.47 | AE212: 0.86
... 463 more rows

Sheet RankingExcess (hidden)
A1: =MATCH(LARGE(INDIRECT("'Rural 2-Lane Segments (MI)'!$AR$5:$AR$1005"),ROW()),INDIRECT("'Rural 2-Lane Segments (MI)'!$AR$5:$AR$1005"),0)+4 ->  | B1: ="(SEG) "&INDIRECT(ADDRESS($A1,2,,,"Rural 2-Lane Segments (MI)"))&", "&INDIRECT(ADDRESS($A1,3,,,"Rural 2-Lane Segments (MI)")) ->  | C1: =INDIRECT(ADDRESS($A1,4,,,"Rural 2-Lane Segments (MI)")) ->  | D1: ="Length = "&INDIRECT(ADDRESS($A1,7,,,"Rural 2-Lane Segments (MI)"))&" mi" ->  | E1: ="AADT: "&TEXT(INDIRECT(ADDRESS($A1,8,,,"Rural 2-Lane Segments (MI)")),"#,##0") ->  | F1: =IF(ISERROR(A1),"",INDIRECT(ADDRESS($A1,44,,,"Rural 2-Lane Segments (MI)"))) ->  | J1: =LARGE($F$1:$F$400,ROW()) ->  | K1: =MATCH(LARGE($F$1:$F$400,ROW()),$F$1:$F$400,0) -> 
A2: =IF(LARGE(INDIRECT("'Rural 2-Lane Segments (MI)'!$AR$5:$AR$1005"),ROW())=F1,MATCH(F1,INDIRECT("'Rural 2-Lane Segments (MI)'!$AR$"&A1+1&":$AR1005"),0)+A1,MATCH(LARGE(INDIRECT("'Rural 2-Lane Segments (MI)'!$AR$5:$AR$1005"),ROW()),INDIRECT("'Rural 2-Lane Segments (MI)'!$AR$5:$AR$1005"),0)+4) -> 
B33: ="(SEG) "&INDIRECT(ADDRESS($A33,2,,,"Rural 2-Lane Segments (MI)"))&", "&INDIRECT(ADDRESS($A33,3,,,"Rural 2-Lane Segments (MI)")) ->  | C33: =INDIRECT(ADDRESS($A33,4,,,"Rural 2-Lane Segments (MI)")) ->  | D33: ="Length = "&INDIRECT(ADDRESS($A33,7,,,"Rural 2-Lane Segments (MI)"))&" mi" ->  | E33: ="AADT: "&TEXT(INDIRECT(ADDRESS($A33,8,,,"Rural 2-Lane Segments (MI)")),"#,##0") ->  | F33: =IF(ISERROR(A33),"",INDIRECT(ADDRESS($A33,44,,,"Rural 2-Lane Segments (MI)"))) ->  | J33: =LARGE($F$1:$F$400,ROW()) ->  | K33: =MATCH(LARGE($F$1:$F$400,ROW()),$F$1:$F$400,0) -> 
A34: =IF(LARGE(INDIRECT("'Rural 2-Lane Segments (MI)'!$AR$5:$AR$1005"),ROW())=F33,MATCH(F33,INDIRECT("'Rural 2-Lane Segments (MI)'!$AR$"&A33+1&":$AR1005"),0)+A33,MATCH(LARGE(INDIRECT("'Rural 2-Lane Segments (MI)'!$AR$5:$AR$1005"),ROW()),INDIRECT("'Rural 2-Lane Segments (MI)'!$AR$5:$AR$1005"),0)+4) -> 
A51: =MATCH(LARGE(INDIRECT("'Rural County FA Segs (MI)'!$AM$5:$AM$1005"),ROW()-50),INDIRECT("'Rural County FA Segs (MI)'!$AM$5:$AM$1005"),0)+4 ->  | B51: ="(SEG) "&INDIRECT(ADDRESS($A51,2,,,"Rural County FA Segs (MI)"))&", "&INDIRECT(ADDRESS($A51,3,,,"Rural County FA Segs (MI)")) ->  | C51: =INDIRECT(ADDRESS($A51,4,,,"Rural County FA Segs (MI)")) ->  | D51: ="Length = "&INDIRECT(ADDRESS($A51,5,,,"Rural County FA Segs (MI)"))&" mi" ->  | E51: ="AADT: "&TEXT(INDIRECT(ADDRESS($A51,6,,,"Rural County FA Segs (MI)")),"#,##0") ->  | F51: =IF(ISERROR(A51),"",INDIRECT(ADDRESS($A51,39,,,"Rural County FA Segs (MI)"))) -> 
A52: =IF(LARGE(INDIRECT("'Rural County FA Segs (MI)'!$AM$5:$AM$1005"),ROW()-50)=F51,MATCH(F51,INDIRECT("'Rural County FA Segs (MI)'!$AM$"&A51+1&":$AM1005"),0)+A51,MATCH(LARGE(INDIRECT("'Rural County FA Segs (MI)'!$AM$5:$AM$1005"),ROW()-50),INDIRECT("'Rural County FA Segs (MI)'!$AM$5:$AM$1005"),0)+4) -> 
B83: ="(SEG) "&INDIRECT(ADDRESS($A83,2,,,"Rural County FA Segs (MI)"))&", "&INDIRECT(ADDRESS($A83,3,,,"Rural County FA Segs (MI)")) ->  | C83: =INDIRECT(ADDRESS($A83,4,,,"Rural County FA Segs (MI)")) ->  | D83: ="Length = "&INDIRECT(ADDRESS($A83,5,,,"Rural County FA Segs (MI)"))&" mi" ->  | E83: ="AADT: "&TEXT(INDIRECT(ADDRESS($A83,6,,,"Rural County FA Segs (MI)")),"#,##0") ->  | F83: =IF(ISERROR(A83),"",INDIRECT(ADDRESS($A83,39,,,"Rural County FA Segs (MI)"))) -> 
A84: =IF(LARGE(INDIRECT("'Rural County FA Segs (MI)'!$AM$5:$AM$1005"),ROW()-50)=F83,MATCH(F83,INDIRECT("'Rural County FA Segs (MI)'!$AM$"&A83+1&":$AM1005"),0)+A83,MATCH(LARGE(INDIRECT("'Rural County FA Segs (MI)'!$AM$5:$AM$1005"),ROW()-50),INDIRECT("'Rural County FA Segs (MI)'!$AM$5:$AM$1005"),0)+4) -> 
A101: =MATCH(LARGE(INDIRECT("'Rural County Non-FA Segs (MI)'!$Z$5:$Z$1005"),ROW()-100),INDIRECT("'Rural County Non-FA Segs (MI)'!$Z$5:$Z$1005"),0)+4 ->  | B101: ="(SEG) "&INDIRECT(ADDRESS($A101,2,,,"Rural County Non-FA Segs (MI)"))&", "&INDIRECT(ADDRESS($A101,3,,,"Rural County Non-FA Segs (MI)")) ->  | C101: =INDIRECT(ADDRESS($A101,4,,,"Rural County Non-FA Segs (MI)")) ->  | D101: ="Length = "&INDIRECT(ADDRESS($A101,6,,,"Rural County Non-FA Segs (MI)"))&" mi" ->  | E101: ="AADT: "&TEXT(INDIRECT(ADDRESS($A101,7,,,"Rural County Non-FA Segs (MI)")),"#,##0") ->  | F101: =IF(ISERROR(A101),"",INDIRECT(ADDRESS($A101,26,,,"Rural County Non-FA Segs (MI)"))) -> 
A102: =IF(LARGE(INDIRECT("'Rural County Non-FA Segs (MI)'!$Z$5:$Z$1005"),ROW()-100)=F101,MATCH(F101,INDIRECT("'Rural County Non-FA Segs (MI)'!$Z$"&A101+1&":$Z1005"),0)+A101,MATCH(LARGE(INDIRECT("'Rural County Non-FA Segs (MI)'!$Z$5:$Z$1005"),ROW()-100),INDIRECT("'Rural County Non-FA Segs (MI)'!$Z$5:$Z$1005"),0)+4) -> 
B133: ="(SEG) "&INDIRECT(ADDRESS($A133,2,,,"Rural County Non-FA Segs (MI)"))&", "&INDIRECT(ADDRESS($A133,3,,,"Rural County Non-FA Segs (MI)")) ->  | C133: =INDIRECT(ADDRESS($A133,4,,,"Rural County Non-FA Segs (MI)")) ->  | D133: ="Length = "&INDIRECT(ADDRESS($A133,6,,,"Rural County Non-FA Segs (MI)"))&" mi" ->  | E133: ="AADT: "&TEXT(INDIRECT(ADDRESS($A133,7,,,"Rural County Non-FA Segs (MI)")),"#,##0") ->  | F133: =IF(ISERROR(A133),"",INDIRECT(ADDRESS($A133,26,,,"Rural County Non-FA Segs (MI)"))) -> 
A134: =IF(LARGE(INDIRECT("'Rural County Non-FA Segs (MI)'!$Z$5:$Z$1005"),ROW()-100)=F133,MATCH(F133,INDIRECT("'Rural County Non-FA Segs (MI)'!$Z$"&A133+1&":$Z1005"),0)+A133,MATCH(LARGE(INDIRECT("'Rural County Non-FA Segs (MI)'!$Z$5:$Z$1005"),ROW()-100),INDIRECT("'Rural County Non-FA Segs (MI)'!$Z$5:$Z$1005"),0)+4) -> 
A151: =MATCH(LARGE(INDIRECT("'Rural Multilane Segments (MI)'!$AQ$5:$AQ$1005"),ROW()-150),INDIRECT("'Rural Multilane Segments (MI)'!$AQ$5:$AQ$1005"),0)+4 ->  | B151: ="(SEG) "&INDIRECT(ADDRESS($A151,2,,,"Rural Multilane Segments (MI)"))&", "&INDIRECT(ADDRESS($A151,3,,,"Rural Multilane Segments (MI)")) ->  | C151: =INDIRECT(ADDRESS($A151,4,,,"Rural Multilane Segments (MI)")) ->  | D151: ="Length = "&INDIRECT(ADDRESS($A151,8,,,"Rural Multilane Segments (MI)"))&" mi" ->  | E151: ="AADT: "&TEXT(INDIRECT(ADDRESS($A151,9,,,"Rural Multilane Segments (MI)")),"#,##0") ->  | F151: =IF(ISERROR(A151),"",INDIRECT(ADDRESS($A151,43,,,"Rural Multilane Segments (MI)"))) -> 
A152: =IF(LARGE(INDIRECT("'Rural Multilane Segments (MI)'!$AQ$5:$AQ$1005"),ROW()-150)=F151,MATCH(F151,INDIRECT("'Rural Multilane Segments (MI)'!$AQ$"&A151+1&":$AQ1005"),0)+A151,MATCH(LARGE(INDIRECT("'Rural Multilane Segments (MI)'!$AQ$5:$AQ$1005"),ROW()-150),INDIRECT("'Rural Multilane Segments (MI)'!$AQ$5:$AQ$1005"),0)+4) -> 
B183: ="(SEG) "&INDIRECT(ADDRESS($A183,2,,,"Rural Multilane Segments (MI)"))&", "&INDIRECT(ADDRESS($A183,3,,,"Rural Multilane Segments (MI)")) ->  | C183: =INDIRECT(ADDRESS($A183,4,,,"Rural Multilane Segments (MI)")) ->  | D183: ="Length = "&INDIRECT(ADDRESS($A183,8,,,"Rural Multilane Segments (MI)"))&" mi" ->  | E183: ="AADT: "&TEXT(INDIRECT(ADDRESS($A183,9,,,"Rural Multilane Segments (MI)")),"#,##0") ->  | F183: =IF(ISERROR(A183),"",INDIRECT(ADDRESS($A183,43,,,"Rural Multilane Segments (MI)"))) -> 
A184: =IF(LARGE(INDIRECT("'Rural Multilane Segments (MI)'!$AQ$5:$AQ$1005"),ROW()-150)=F183,MATCH(F183,INDIRECT("'Rural Multilane Segments (MI)'!$AQ$"&A183+1&":$AQ1005"),0)+A183,MATCH(LARGE(INDIRECT("'Rural Multilane Segments (MI)'!$AQ$5:$AQ$1005"),ROW()-150),INDIRECT("'Rural Multilane Segments (MI)'!$AQ$5:$AQ$1005"),0)+4) -> 
A201: =MATCH(LARGE(INDIRECT("'Rural Unsignalized Int (MI)'!$AC$5:$AC$1005"),ROW()-200),INDIRECT("'Rural Unsignalized Int (MI)'!$AC$5:$AC$1005"),0)+4 ->  | B201: ="(INT) "&INDIRECT(ADDRESS($A201,2,,,"Rural Unsignalized Int (MI)"))&" / "&INDIRECT(ADDRESS($A201,3,,,"Rural Unsignalized Int (MI)")) ->  | C201: =INDIRECT(ADDRESS($A201,4,,,"Rural Unsignalized Int (MI)")) ->  | D201: ="Type = "&INDIRECT(ADDRESS($A201,7,,,"Rural Unsignalized Int (MI)")) ->  | E201: ="AADT: "&TEXT(INDIRECT(ADDRESS($A201,8,,,"Rural Unsignalized Int (MI)")),"#,##0") & " / " & TEXT(INDIRECT(ADDRESS($A201,9,,,"Rural Unsignalized Int (MI)")),"#,##0") ->  | F201: =IF(ISERROR(A201),"",INDIRECT(ADDRESS($A201,29,,,"Rural Unsignalized Int (MI)"))) -> 
A202: =IF(LARGE(INDIRECT("'Rural Unsignalized Int (MI)'!$AC$5:$AC$1005"),ROW()-200)=F201,MATCH(F201,INDIRECT("'Rural Unsignalized Int (MI)'!$AC$"&A201+1&":$AC1005"),0)+A201,MATCH(LARGE(INDIRECT("'Rural Unsignalized Int (MI)'!$AC$5:$AC$1005"),ROW()-200),INDIRECT("'Rural Unsignalized Int (MI)'!$AC$5:$AC$1005"),0)+4) -> 
B233: ="(INT) "&INDIRECT(ADDRESS($A233,2,,,"Rural Unsignalized Int (MI)"))&" / "&INDIRECT(ADDRESS($A233,3,,,"Rural Unsignalized Int (MI)")) ->  | C233: =INDIRECT(ADDRESS($A233,4,,,"Rural Unsignalized Int (MI)")) ->  | D233: ="Type = "&INDIRECT(ADDRESS($A233,7,,,"Rural Unsignalized Int (MI)")) ->  | E233: ="AADT: "&TEXT(INDIRECT(ADDRESS($A233,8,,,"Rural Unsignalized Int (MI)")),"#,##0") & " / " & TEXT(INDIRECT(ADDRESS($A233,9,,,"Rural Unsignalized Int (MI)")),"#,##0") ->  | F233: =IF(ISERROR(A233),"",INDIRECT(ADDRESS($A233,29,,,"Rural Unsignalized Int (MI)"))) -> 
A234: =IF(LARGE(INDIRECT("'Rural Unsignalized Int (MI)'!$AC$5:$AC$1005"),ROW()-200)=F233,MATCH(F233,INDIRECT("'Rural Unsignalized Int (MI)'!$AC$"&A233+1&":$AC1005"),0)+A233,MATCH(LARGE(INDIRECT("'Rural Unsignalized Int (MI)'!$AC$5:$AC$1005"),ROW()-200),INDIRECT("'Rural Unsignalized Int (MI)'!$AC$5:$AC$1005"),0)+4) -> 
A251: =MATCH(LARGE(INDIRECT("'Rural Signalized Int (MI)'!$Y$5:$Y$1005"),ROW()-250),INDIRECT("'Rural Signalized Int (MI)'!$Y$5:$Y$1005"),0)+4 ->  | B251: ="(INT) "&INDIRECT(ADDRESS($A251,2,,,"Rural Signalized Int (MI)"))&" / "&INDIRECT(ADDRESS($A251,3,,,"Rural Signalized Int (MI)")) ->  | C251: =INDIRECT(ADDRESS($A251,4,,,"Rural Signalized Int (MI)")) ->  | D251: ="Type = "&INDIRECT(ADDRESS($A251,8,,,"Rural Signalized Int (MI)")) ->  | E251: ="AADT: "&TEXT(INDIRECT(ADDRESS($A251,9,,,"Rural Signalized Int (MI)")),"#,##0") & " / " & TEXT(INDIRECT(ADDRESS($A251,10,,,"Rural Signalized Int (MI)")),"#,##0") ->  | F251: =IF(ISERROR(A251),"",INDIRECT(ADDRESS($A251,25,,,"Rural Signalized Int (MI)"))) -> 
A252: =IF(LARGE(INDIRECT("'Rural Signalized Int (MI)'!$Y$5:$Y$1005"),ROW()-250)=F251,MATCH(F251,INDIRECT("'Rural Signalized Int (MI)'!$Y$"&A251+1&":$Y1005"),0)+A251,MATCH(LARGE(INDIRECT("'Rural Signalized Int (MI)'!$Y$5:$Y$1005"),ROW()-250),INDIRECT("'Rural Signalized Int (MI)'!$Y$5:$Y$1005"),0)+4) -> 
B283: ="(INT) "&INDIRECT(ADDRESS($A283,2,,,"Rural Signalized Int (MI)"))&" / "&INDIRECT(ADDRESS($A283,3,,,"Rural Signalized Int (MI)")) ->  | C283: =INDIRECT(ADDRESS($A283,4,,,"Rural Signalized Int (MI)")) ->  | D283: ="Type = "&INDIRECT(ADDRESS($A283,8,,,"Rural Signalized Int (MI)")) ->  | E283: ="AADT: "&TEXT(INDIRECT(ADDRESS($A283,9,,,"Rural Signalized Int (MI)")),"#,##0") & " / " & TEXT(INDIRECT(ADDRESS($A283,10,,,"Rural Signalized Int (MI)")),"#,##0") ->  | F283: =IF(ISERROR(A283),"",INDIRECT(ADDRESS($A283,25,,,"Rural Signalized Int (MI)"))) -> 
A284: =IF(LARGE(INDIRECT("'Rural Signalized Int (MI)'!$Y$5:$Y$1005"),ROW()-250)=F283,MATCH(F283,INDIRECT("'Rural Signalized Int (MI)'!$Y$"&A283+1&":$Y1005"),0)+A283,MATCH(LARGE(INDIRECT("'Rural Signalized Int (MI)'!$Y$5:$Y$1005"),ROW()-250),INDIRECT("'Rural Signalized Int (MI)'!$Y$5:$Y$1005"),0)+4) -> 
A301: =MATCH(LARGE(INDIRECT("'Urban & Suburban Segments (MI)'!$BC$5:$BC$1005"),ROW()-300),INDIRECT("'Urban & Suburban Segments (MI)'!$BC$5:$BC$1005"),0)+4 ->  | B301: ="(SEG) "&INDIRECT(ADDRESS($A301,2,,,"Urban & Suburban Segments (MI)"))&", "&INDIRECT(ADDRESS($A301,3,,,"Urban & Suburban Segments (MI)")) ->  | C301: =INDIRECT(ADDRESS($A301,4,,,"Urban & Suburban Segments (MI)")) ->  | D301: ="Length = "&INDIRECT(ADDRESS($A301,6,,,"Urban & Suburban Segments (MI)"))&" mi" ->  | E301: ="AADT: "&TEXT(INDIRECT(ADDRESS($A301,7,,,"Urban & Suburban Segments (MI)")),"#,##0") ->  | F301: =IF(ISERROR(A301),"",INDIRECT(ADDRESS($A301,55,,,"Urban & Suburban Segments (MI)"))) -> 
A302: =IF(LARGE(INDIRECT("'Urban & Suburban Segments (MI)'!$BC$5:$BC$1005"),ROW()-300)=F301,MATCH(F301,INDIRECT("'Urban & Suburban Segments (MI)'!$BC$"&A301+1&":$BC1005"),0)+A301,MATCH(LARGE(INDIRECT("'Urban & Suburban Segments (MI)'!$BC$5:$BC$1005"),ROW()-300),INDIRECT("'Urban & Suburban Segments (MI)'!$BC$5:$BC$1005"),0)+4) -> 
B333: ="(SEG) "&INDIRECT(ADDRESS($A333,2,,,"Urban & Suburban Segments (MI)"))&", "&INDIRECT(ADDRESS($A333,3,,,"Urban & Suburban Segments (MI)")) ->  | C333: =INDIRECT(ADDRESS($A333,4,,,"Urban & Suburban Segments (MI)")) ->  | D333: ="Length = "&INDIRECT(ADDRESS($A333,6,,,"Urban & Suburban Segments (MI)"))&" mi" ->  | E333: ="AADT: "&TEXT(INDIRECT(ADDRESS($A333,7,,,"Urban & Suburban Segments (MI)")),"#,##0") ->  | F333: =IF(ISERROR(A333),"",INDIRECT(ADDRESS($A333,55,,,"Urban & Suburban Segments (MI)"))) -> 
A334: =IF(LARGE(INDIRECT("'Urban & Suburban Segments (MI)'!$BC$5:$BC$1005"),ROW()-300)=F333,MATCH(F333,INDIRECT("'Urban & Suburban Segments (MI)'!$BC$"&A333+1&":$BC1005"),0)+A333,MATCH(LARGE(INDIRECT("'Urban & Suburban Segments (MI)'!$BC$5:$BC$1005"),ROW()-300),INDIRECT("'Urban & Suburban Segments (MI)'!$BC$5:$BC$1005"),0)+4) -> 
A351: =MATCH(LARGE(INDIRECT("'Urban & Suburban Ints (MI)'!$BC$5:$BC$1005"),ROW()-350),INDIRECT("'Urban & Suburban Ints (MI)'!$BC$5:$BC$1005"),0)+4 ->  | B351: ="(INT) "&INDIRECT(ADDRESS($A351,2,,,"Urban & Suburban Ints (MI)"))&" / "&INDIRECT(ADDRESS($A351,3,,,"Urban & Suburban Ints (MI)")) ->  | C351: =INDIRECT(ADDRESS($A351,4,,,"Urban & Suburban Ints (MI)")) ->  | D351: ="Type = "&INDIRECT(ADDRESS($A351,5,,,"Urban & Suburban Ints (MI)")) ->  | E351: ="AADT: "&TEXT(INDIRECT(ADDRESS($A351,8,,,"Urban & Suburban Ints (MI)")),"#,##0") & " / " & TEXT(INDIRECT(ADDRESS($A351,9,,,"Urban & Suburban Ints (MI)")),"#,##0") ->  | F351: =IF(ISERROR(A351),"",INDIRECT(ADDRESS($A351,55,,,"Urban & Suburban Ints (MI)"))) -> 
A352: =IF(LARGE(INDIRECT("'Urban & Suburban Ints (MI)'!$BC$5:$BC$1005"),ROW()-350)=F351,MATCH(F351,INDIRECT("'Urban & Suburban Ints (MI)'!$BC$"&A351+1&":$BC1005"),0)+A351,MATCH(LARGE(INDIRECT("'Urban & Suburban Ints (MI)'!$BC$5:$BC$1005"),ROW()-350),INDIRECT("'Urban & Suburban Ints (MI)'!$BC$5:$BC$1005"),0)+4) -> 
B383: ="(INT) "&INDIRECT(ADDRESS($A383,2,,,"Urban & Suburban Ints (MI)"))&" / "&INDIRECT(ADDRESS($A383,3,,,"Urban & Suburban Ints (MI)")) ->  | C383: =INDIRECT(ADDRESS($A383,4,,,"Urban & Suburban Ints (MI)")) ->  | D383: ="Type = "&INDIRECT(ADDRESS($A383,5,,,"Urban & Suburban Ints (MI)")) ->  | E383: ="AADT: "&TEXT(INDIRECT(ADDRESS($A383,8,,,"Urban & Suburban Ints (MI)")),"#,##0") & " / " & TEXT(INDIRECT(ADDRESS($A383,9,,,"Urban & Suburban Ints (MI)")),"#,##0") ->  | F383: =IF(ISERROR(A383),"",INDIRECT(ADDRESS($A383,55,,,"Urban & Suburban Ints (MI)"))) -> 
A384: =IF(LARGE(INDIRECT("'Urban & Suburban Ints (MI)'!$BC$5:$BC$1005"),ROW()-350)=F383,MATCH(F383,INDIRECT("'Urban & Suburban Ints (MI)'!$BC$"&A383+1&":$BC1005"),0)+A383,MATCH(LARGE(INDIRECT("'Urban & Suburban Ints (MI)'!$BC$5:$BC$1005"),ROW()-350),INDIRECT("'Urban & Suburban Ints (MI)'!$BC$5:$BC$1005"),0)+4) -> 

Sheet RankingExpectedAverage (hidden)
A1: =MATCH(LARGE(INDIRECT("'Rural 2-Lane Segments (MI)'!$AK$5:$AK$1005"),ROW()),INDIRECT("'Rural 2-Lane Segments (MI)'!$AK$5:$AK$1005"),0)+4 ->  | B1: ="(SEG) "&INDIRECT(ADDRESS($A1,2,,,"Rural 2-Lane Segments (MI)"))&", "&INDIRECT(ADDRESS($A1,3,,,"Rural 2-Lane Segments (MI)")) ->  | C1: =INDIRECT(ADDRESS($A1,4,,,"Rural 2-Lane Segments (MI)")) ->  | D1: ="Length = "&INDIRECT(ADDRESS($A1,7,,,"Rural 2-Lane Segments (MI)"))&" mi" ->  | E1: ="AADT: "&TEXT(INDIRECT(ADDRESS($A1,8,,,"Rural 2-Lane Segments (MI)")),"#,##0") ->  | F1: =IF(ISERROR(A1),"",INDIRECT(ADDRESS($A1,37,,,"Rural 2-Lane Segments (MI)"))) ->  | J1: =LARGE($F$1:$F$400,ROW()) ->  | K1: =MATCH(LARGE($F$1:$F$400,ROW()),$F$1:$F$400,0) ->  | M1: =LARGE(#REF!,ROW()) ->  | N1: =IF(M1>0,MATCH(LARGE(#REF!,ROW()),#REF!,0)+350,) -> 
A2: =IF(LARGE(INDIRECT("'Rural 2-Lane Segments (MI)'!$AK$5:$AK$1005"),ROW())=F1,MATCH(F1,INDIRECT("'Rural 2-Lane Segments (MI)'!$AK$"&A1+1&":$AK1005"),0)+A1,MATCH(LARGE(INDIRECT("'Rural 2-Lane Segments (MI)'!$AK$5:$AK$1005"),ROW()),INDIRECT("'Rural 2-Lane Segments (MI)'!$AK$5:$AK$1005"),0)+4) -> 
B33: ="(SEG) "&INDIRECT(ADDRESS($A33,2,,,"Rural 2-Lane Segments (MI)"))&", "&INDIRECT(ADDRESS($A33,3,,,"Rural 2-Lane Segments (MI)")) ->  | C33: =INDIRECT(ADDRESS($A33,4,,,"Rural 2-Lane Segments (MI)")) ->  | D33: ="Length = "&INDIRECT(ADDRESS($A33,7,,,"Rural 2-Lane Segments (MI)"))&" mi" ->  | E33: ="AADT: "&TEXT(INDIRECT(ADDRESS($A33,8,,,"Rural 2-Lane Segments (MI)")),"#,##0") ->  | F33: =IF(ISERROR(A33),"",INDIRECT(ADDRESS($A33,37,,,"Rural 2-Lane Segments (MI)"))) ->  | J33: =LARGE($F$1:$F$400,ROW()) ->  | K33: =MATCH(LARGE($F$1:$F$400,ROW()),$F$1:$F$400,0) -> 
A34: =IF(LARGE(INDIRECT("'Rural 2-Lane Segments (MI)'!$AK$5:$AK$1005"),ROW())=F33,MATCH(F33,INDIRECT("'Rural 2-Lane Segments (MI)'!$AK$"&A33+1&":$AK1005"),0)+A33,MATCH(LARGE(INDIRECT("'Rural 2-Lane Segments (MI)'!$AK$5:$AK$1005"),ROW()),INDIRECT("'Rural 2-Lane Segments (MI)'!$AK$5:$AK$1005"),0)+4) -> 
A51: =MATCH(LARGE(INDIRECT("'Rural County FA Segs (MI)'!$AF$5:$AF$1005"),ROW()-50),INDIRECT("'Rural County FA Segs (MI)'!$AF$5:$AF$1005"),0)+4 ->  | B51: ="(SEG) "&INDIRECT(ADDRESS($A51,2,,,"Rural County FA Segs (MI)"))&", "&INDIRECT(ADDRESS($A51,3,,,"Rural County FA Segs (MI)")) ->  | C51: =INDIRECT(ADDRESS($A51,4,,,"Rural County FA Segs (MI)")) ->  | D51: ="Length = "&INDIRECT(ADDRESS($A51,5,,,"Rural County FA Segs (MI)"))&" mi" ->  | E51: ="AADT: "&TEXT(INDIRECT(ADDRESS($A51,6,,,"Rural County FA Segs (MI)")),"#,##0") ->  | F51: =IF(ISERROR(A51),"",INDIRECT(ADDRESS($A51,32,,,"Rural County FA Segs (MI)"))) -> 
A52: =IF(LARGE(INDIRECT("'Rural County FA Segs (MI)'!$AF$5:$AF$1005"),ROW()-50)=F51,MATCH(F51,INDIRECT("'Rural County FA Segs (MI)'!$AF$"&A51+1&":$AF1005"),0)+A51,MATCH(LARGE(INDIRECT("'Rural County FA Segs (MI)'!$AF$5:$AF$1005"),ROW()-50),INDIRECT("'Rural County FA Segs (MI)'!$AF$5:$AF$1005"),0)+4) -> 
B83: ="(SEG) "&INDIRECT(ADDRESS($A83,2,,,"Rural County FA Segs (MI)"))&", "&INDIRECT(ADDRESS($A83,3,,,"Rural County FA Segs (MI)")) ->  | C83: =INDIRECT(ADDRESS($A83,4,,,"Rural County FA Segs (MI)")) ->  | D83: ="Length = "&INDIRECT(ADDRESS($A83,5,,,"Rural County FA Segs (MI)"))&" mi" ->  | E83: ="AADT: "&TEXT(INDIRECT(ADDRESS($A83,6,,,"Rural County FA Segs (MI)")),"#,##0") ->  | F83: =IF(ISERROR(A83),"",INDIRECT(ADDRESS($A83,32,,,"Rural County FA Segs (MI)"))) -> 
A84: =IF(LARGE(INDIRECT("'Rural County FA Segs (MI)'!$AF$5:$AF$1005"),ROW()-50)=F83,MATCH(F83,INDIRECT("'Rural County FA Segs (MI)'!$AF$"&A83+1&":$AF1005"),0)+A83,MATCH(LARGE(INDIRECT("'Rural County FA Segs (MI)'!$AF$5:$AF$1005"),ROW()-50),INDIRECT("'Rural County FA Segs (MI)'!$AF$5:$AF$1005"),0)+4) -> 
A101: =MATCH(LARGE(INDIRECT("'Rural County Non-FA Segs (MI)'!$W$5:$W$1005"),ROW()-100),INDIRECT("'Rural County Non-FA Segs (MI)'!$W$5:$W$1005"),0)+4 ->  | B101: ="(SEG) "&INDIRECT(ADDRESS($A101,2,,,"Rural County Non-FA Segs (MI)"))&", "&INDIRECT(ADDRESS($A101,3,,,"Rural County Non-FA Segs (MI)")) ->  | C101: =INDIRECT(ADDRESS($A101,4,,,"Rural County Non-FA Segs (MI)")) ->  | D101: ="Length = "&INDIRECT(ADDRESS($A101,6,,,"Rural County Non-FA Segs (MI)"))&" mi" ->  | E101: ="AADT: "&TEXT(INDIRECT(ADDRESS($A101,7,,,"Rural County Non-FA Segs (MI)")),"#,##0") ->  | F101: =IF(ISERROR(A101),"",INDIRECT(ADDRESS($A101,23,,,"Rural County Non-FA Segs (MI)"))) -> 
A102: =IF(LARGE(INDIRECT("'Rural County Non-FA Segs (MI)'!$W$5:$W$1005"),ROW()-100)=F101,MATCH(F101,INDIRECT("'Rural County Non-FA Segs (MI)'!$W$"&A101+1&":$W1005"),0)+A101,MATCH(LARGE(INDIRECT("'Rural County Non-FA Segs (MI)'!$W$5:$W$1005"),ROW()-100),INDIRECT("'Rural County Non-FA Segs (MI)'!$W$5:$W$1005"),0)+4) -> 
B133: ="(SEG) "&INDIRECT(ADDRESS($A133,2,,,"Rural County Non-FA Segs (MI)"))&", "&INDIRECT(ADDRESS($A133,3,,,"Rural County Non-FA Segs (MI)")) ->  | C133: =INDIRECT(ADDRESS($A133,4,,,"Rural County Non-FA Segs (MI)")) ->  | D133: ="Length = "&INDIRECT(ADDRESS($A133,6,,,"Rural County Non-FA Segs (MI)"))&" mi" ->  | E133: ="AADT: "&TEXT(INDIRECT(ADDRESS($A133,7,,,"Rural County Non-FA Segs (MI)")),"#,##0") ->  | F133: =IF(ISERROR(A133),"",INDIRECT(ADDRESS($A133,23,,,"Rural County Non-FA Segs (MI)"))) -> 
A134: =IF(LARGE(INDIRECT("'Rural County Non-FA Segs (MI)'!$W$5:$W$1005"),ROW()-100)=F133,MATCH(F133,INDIRECT("'Rural County Non-FA Segs (MI)'!$W$"&A133+1&":$W1005"),0)+A133,MATCH(LARGE(INDIRECT("'Rural County Non-FA Segs (MI)'!$W$5:$W$1005"),ROW()-100),INDIRECT("'Rural County Non-FA Segs (MI)'!$W$5:$W$1005"),0)+4) -> 
A151: =MATCH(LARGE(INDIRECT("'Rural Multilane Segments (MI)'!$AJ$5:$AJ$1005"),ROW()-150),INDIRECT("'Rural Multilane Segments (MI)'!$AJ$5:$AJ$1005"),0)+4 ->  | B151: ="(SEG) "&INDIRECT(ADDRESS($A151,2,,,"Rural Multilane Segments (MI)"))&", "&INDIRECT(ADDRESS($A151,3,,,"Rural Multilane Segments (MI)")) ->  | C151: =INDIRECT(ADDRESS($A151,4,,,"Rural Multilane Segments (MI)")) ->  | D151: ="Length = "&INDIRECT(ADDRESS($A151,8,,,"Rural Multilane Segments (MI)"))&" mi" ->  | E151: ="AADT: "&TEXT(INDIRECT(ADDRESS($A151,9,,,"Rural Multilane Segments (MI)")),"#,##0") ->  | F151: =IF(ISERROR(A151),"",INDIRECT(ADDRESS($A151,36,,,"Rural Multilane Segments (MI)"))) -> 
A152: =IF(LARGE(INDIRECT("'Rural Multilane Segments (MI)'!$AJ$5:$AJ$1005"),ROW()-150)=F151,MATCH(F151,INDIRECT("'Rural Multilane Segments (MI)'!$AJ$"&A151+1&":$AJ1005"),0)+A151,MATCH(LARGE(INDIRECT("'Rural Multilane Segments (MI)'!$AJ$5:$AJ$1005"),ROW()-150),INDIRECT("'Rural Multilane Segments (MI)'!$AJ$5:$AJ$1005"),0)+4) -> 
B183: ="(SEG) "&INDIRECT(ADDRESS($A183,2,,,"Rural Multilane Segments (MI)"))&", "&INDIRECT(ADDRESS($A183,3,,,"Rural Multilane Segments (MI)")) ->  | C183: =INDIRECT(ADDRESS($A183,4,,,"Rural Multilane Segments (MI)")) ->  | D183: ="Length = "&INDIRECT(ADDRESS($A183,8,,,"Rural Multilane Segments (MI)"))&" mi" ->  | E183: ="AADT: "&TEXT(INDIRECT(ADDRESS($A183,9,,,"Rural Multilane Segments (MI)")),"#,##0") ->  | F183: =IF(ISERROR(A183),"",INDIRECT(ADDRESS($A183,36,,,"Rural Multilane Segments (MI)"))) -> 
A184: =IF(LARGE(INDIRECT("'Rural Multilane Segments (MI)'!$AJ$5:$AJ$1005"),ROW()-150)=F183,MATCH(F183,INDIRECT("'Rural Multilane Segments (MI)'!$AJ$"&A183+1&":$AJ1005"),0)+A183,MATCH(LARGE(INDIRECT("'Rural Multilane Segments (MI)'!$AJ$5:$AJ$1005"),ROW()-150),INDIRECT("'Rural Multilane Segments (MI)'!$AJ$5:$AJ$1005"),0)+4) -> 
A201: =MATCH(LARGE(INDIRECT("'Rural Unsignalized Int (MI)'!$Z$5:$Z$1005"),ROW()-200),INDIRECT("'Rural Unsignalized Int (MI)'!$Z$5:$Z$1005"),0)+4 ->  | B201: ="(INT) "&INDIRECT(ADDRESS($A201,2,,,"Rural Unsignalized Int (MI)"))&" / "&INDIRECT(ADDRESS($A201,3,,,"Rural Unsignalized Int (MI)")) ->  | C201: =INDIRECT(ADDRESS($A201,4,,,"Rural Unsignalized Int (MI)")) ->  | D201: ="Type = "&INDIRECT(ADDRESS($A201,7,,,"Rural Unsignalized Int (MI)")) ->  | E201: ="AADT: "&TEXT(INDIRECT(ADDRESS($A201,8,,,"Rural Unsignalized Int (MI)")),"#,##0") & " / " & TEXT(INDIRECT(ADDRESS($A201,9,,,"Rural Unsignalized Int (MI)")),"#,##0") ->  | F201: =IF(ISERROR(A201),"",INDIRECT(ADDRESS($A201,26,,,"Rural Unsignalized Int (MI)"))) -> 
A202: =IF(LARGE(INDIRECT("'Rural Unsignalized Int (MI)'!$Z$5:$Z$1005"),ROW()-200)=F201,MATCH(F201,INDIRECT("'Rural Unsignalized Int (MI)'!$Z$"&A201+1&":$Z1005"),0)+A201,MATCH(LARGE(INDIRECT("'Rural Unsignalized Int (MI)'!$Z$5:$Z$1005"),ROW()-200),INDIRECT("'Rural Unsignalized Int (MI)'!$Z$5:$Z$1005"),0)+4) -> 
B233: ="(INT) "&INDIRECT(ADDRESS($A233,2,,,"Rural Unsignalized Int (MI)"))&" / "&INDIRECT(ADDRESS($A233,3,,,"Rural Unsignalized Int (MI)")) ->  | C233: =INDIRECT(ADDRESS($A233,4,,,"Rural Unsignalized Int (MI)")) ->  | D233: ="Type = "&INDIRECT(ADDRESS($A233,7,,,"Rural Unsignalized Int (MI)")) ->  | E233: ="AADT: "&TEXT(INDIRECT(ADDRESS($A233,8,,,"Rural Unsignalized Int (MI)")),"#,##0") & " / " & TEXT(INDIRECT(ADDRESS($A233,9,,,"Rural Unsignalized Int (MI)")),"#,##0") ->  | F233: =IF(ISERROR(A233),"",INDIRECT(ADDRESS($A233,26,,,"Rural Unsignalized Int (MI)"))) -> 
A234: =IF(LARGE(INDIRECT("'Rural Unsignalized Int (MI)'!$Z$5:$Z$1005"),ROW()-200)=F233,MATCH(F233,INDIRECT("'Rural Unsignalized Int (MI)'!$Z$"&A233+1&":$Z1005"),0)+A233,MATCH(LARGE(INDIRECT("'Rural Unsignalized Int (MI)'!$Z$5:$Z$1005"),ROW()-200),INDIRECT("'Rural Unsignalized Int (MI)'!$Z$5:$Z$1005"),0)+4) -> 
A251: =MATCH(LARGE(INDIRECT("'Rural Signalized Int (MI)'!$V$5:$V$1005"),ROW()-250),INDIRECT("'Rural Signalized Int (MI)'!$V$5:$V$1005"),0)+4 ->  | B251: ="(INT) "&INDIRECT(ADDRESS($A251,2,,,"Rural Signalized Int (MI)"))&" / "&INDIRECT(ADDRESS($A251,3,,,"Rural Signalized Int (MI)")) ->  | C251: =INDIRECT(ADDRESS($A251,4,,,"Rural Signalized Int (MI)")) ->  | D251: ="Type = "&INDIRECT(ADDRESS($A251,8,,,"Rural Signalized Int (MI)")) ->  | E251: ="AADT: "&TEXT(INDIRECT(ADDRESS($A251,9,,,"Rural Signalized Int (MI)")),"#,##0") & " / " & TEXT(INDIRECT(ADDRESS($A251,10,,,"Rural Signalized Int (MI)")),"#,##0") ->  | F251: =IF(ISERROR(A251),"",INDIRECT(ADDRESS($A251,22,,,"Rural Signalized Int (MI)"))) -> 
A252: =IF(LARGE(INDIRECT("'Rural Signalized Int (MI)'!$V$5:$V$1005"),ROW()-250)=F251,MATCH(F251,INDIRECT("'Rural Signalized Int (MI)'!$V$"&A251+1&":$V1005"),0)+A251,MATCH(LARGE(INDIRECT("'Rural Signalized Int (MI)'!$V$5:$V$1005"),ROW()-250),INDIRECT("'Rural Signalized Int (MI)'!$V$5:$V$1005"),0)+4) -> 
B283: ="(INT) "&INDIRECT(ADDRESS($A283,2,,,"Rural Signalized Int (MI)"))&" / "&INDIRECT(ADDRESS($A283,3,,,"Rural Signalized Int (MI)")) ->  | C283: =INDIRECT(ADDRESS($A283,4,,,"Rural Signalized Int (MI)")) ->  | D283: ="Type = "&INDIRECT(ADDRESS($A283,8,,,"Rural Signalized Int (MI)")) ->  | E283: ="AADT: "&TEXT(INDIRECT(ADDRESS($A283,9,,,"Rural Signalized Int (MI)")),"#,##0") & " / " & TEXT(INDIRECT(ADDRESS($A283,10,,,"Rural Signalized Int (MI)")),"#,##0") ->  | F283: =IF(ISERROR(A283),"",INDIRECT(ADDRESS($A283,22,,,"Rural Signalized Int (MI)"))) -> 
A284: =IF(LARGE(INDIRECT("'Rural Signalized Int (MI)'!$V$5:$V$1005"),ROW()-250)=F283,MATCH(F283,INDIRECT("'Rural Signalized Int (MI)'!$V$"&A283+1&":$V1005"),0)+A283,MATCH(LARGE(INDIRECT("'Rural Signalized Int (MI)'!$V$5:$V$1005"),ROW()-250),INDIRECT("'Rural Signalized Int (MI)'!$V$5:$V$1005"),0)+4) -> 
A301: =MATCH(LARGE(INDIRECT("'Urban & Suburban Segments (MI)'!$BB$5:$BB$1005"),ROW()-300),INDIRECT("'Urban & Suburban Segments (MI)'!$BB$5:$BB$1005"),0)+4 ->  | B301: ="(SEG) "&INDIRECT(ADDRESS($A301,2,,,"Urban & Suburban Segments (MI)"))&", "&INDIRECT(ADDRESS($A301,3,,,"Urban & Suburban Segments (MI)")) ->  | C301: =INDIRECT(ADDRESS($A301,4,,,"Urban & Suburban Segments (MI)")) ->  | D301: ="Length = "&INDIRECT(ADDRESS($A301,6,,,"Urban & Suburban Segments (MI)"))&" mi" ->  | E301: ="AADT: "&TEXT(INDIRECT(ADDRESS($A301,7,,,"Urban & Suburban Segments (MI)")),"#,##0") ->  | F301: =IF(ISERROR(A301),"",INDIRECT(ADDRESS($A301,54,,,"Urban & Suburban Segments (MI)"))) -> 
A302: =IF(LARGE(INDIRECT("'Urban & Suburban Segments (MI)'!$BB$5:$BB$1005"),ROW()-300)=F301,MATCH(F301,INDIRECT("'Urban & Suburban Segments (MI)'!$BB$"&A301+1&":$BB1005"),0)+A301,MATCH(LARGE(INDIRECT("'Urban & Suburban Segments (MI)'!$BB$5:$BB$1005"),ROW()-300),INDIRECT("'Urban & Suburban Segments (MI)'!$BB$5:$BB$1005"),0)+4) -> 
B333: ="(SEG) "&INDIRECT(ADDRESS($A333,2,,,"Urban & Suburban Segments (MI)"))&", "&INDIRECT(ADDRESS($A333,3,,,"Urban & Suburban Segments (MI)")) ->  | C333: =INDIRECT(ADDRESS($A333,4,,,"Urban & Suburban Segments (MI)")) ->  | D333: ="Length = "&INDIRECT(ADDRESS($A333,6,,,"Urban & Suburban Segments (MI)"))&" mi" ->  | E333: ="AADT: "&TEXT(INDIRECT(ADDRESS($A333,7,,,"Urban & Suburban Segments (MI)")),"#,##0") ->  | F333: =IF(ISERROR(A333),"",INDIRECT(ADDRESS($A333,54,,,"Urban & Suburban Segments (MI)"))) -> 
A334: =IF(LARGE(INDIRECT("'Urban & Suburban Segments (MI)'!$BB$5:$BB$1005"),ROW()-300)=F333,MATCH(F333,INDIRECT("'Urban & Suburban Segments (MI)'!$BB$"&A333+1&":$BB1005"),0)+A333,MATCH(LARGE(INDIRECT("'Urban & Suburban Segments (MI)'!$BB$5:$BB$1005"),ROW()-300),INDIRECT("'Urban & Suburban Segments (MI)'!$BB$5:$BB$1005"),0)+4) -> 
A351: =MATCH(LARGE(INDIRECT("'Urban & Suburban Ints (MI)'!$BB$5:$BB$1005"),ROW()-350),INDIRECT("'Urban & Suburban Ints (MI)'!$BB$5:$BB$1005"),0)+4 ->  | B351: ="(INT) "&INDIRECT(ADDRESS($A351,2,,,"Urban & Suburban Ints (MI)"))&" / "&INDIRECT(ADDRESS($A351,3,,,"Urban & Suburban Ints (MI)")) ->  | C351: =INDIRECT(ADDRESS($A351,4,,,"Urban & Suburban Ints (MI)")) ->  | D351: ="Type = "&INDIRECT(ADDRESS($A351,5,,,"Urban & Suburban Ints (MI)")) ->  | E351: ="AADT: "&TEXT(INDIRECT(ADDRESS($A351,8,,,"Urban & Suburban Ints (MI)")),"#,##0") & " / " & TEXT(INDIRECT(ADDRESS($A351,9,,,"Urban & Suburban Ints (MI)")),"#,##0") ->  | F351: =IF(ISERROR(A351),"",INDIRECT(ADDRESS($A351,54,,,"Urban & Suburban Ints (MI)"))) -> 
A352: =IF(LARGE(INDIRECT("'Urban & Suburban Ints (MI)'!$BB$5:$BB$1005"),ROW()-350)=F351,MATCH(F351,INDIRECT("'Urban & Suburban Ints (MI)'!$BB$"&A351+1&":$BB1005"),0)+A351,MATCH(LARGE(INDIRECT("'Urban & Suburban Ints (MI)'!$BB$5:$BB$1005"),ROW()-350),INDIRECT("'Urban & Suburban Ints (MI)'!$BB$5:$BB$1005"),0)+4) -> 
B383: ="(INT) "&INDIRECT(ADDRESS($A383,2,,,"Urban & Suburban Ints (MI)"))&" / "&INDIRECT(ADDRESS($A383,3,,,"Urban & Suburban Ints (MI)")) ->  | C383: =INDIRECT(ADDRESS($A383,4,,,"Urban & Suburban Ints (MI)")) ->  | D383: ="Type = "&INDIRECT(ADDRESS($A383,5,,,"Urban & Suburban Ints (MI)")) ->  | E383: ="AADT: "&TEXT(INDIRECT(ADDRESS($A383,8,,,"Urban & Suburban Ints (MI)")),"#,##0") & " / " & TEXT(INDIRECT(ADDRESS($A383,9,,,"Urban & Suburban Ints (MI)")),"#,##0") ->  | F383: =IF(ISERROR(A383),"",INDIRECT(ADDRESS($A383,54,,,"Urban & Suburban Ints (MI)"))) -> 
A384: =IF(LARGE(INDIRECT("'Urban & Suburban Ints (MI)'!$BB$5:$BB$1005"),ROW()-350)=F383,MATCH(F383,INDIRECT("'Urban & Suburban Ints (MI)'!$BB$"&A383+1&":$BB1005"),0)+A383,MATCH(LARGE(INDIRECT("'Urban & Suburban Ints (MI)'!$BB$5:$BB$1005"),ROW()-350),INDIRECT("'Urban & Suburban Ints (MI)'!$BB$5:$BB$1005"),0)+4) -> 

Sheet RankingPredictedFI (hidden)
A1: =MATCH(LARGE(INDIRECT("'Rural 2-Lane Segments (MI)'!$FB$5:$FB$1005"),ROW()),INDIRECT("'Rural 2-Lane Segments (MI)'!$FB$5:$FB$1005"),0)+4 ->  | B1: ="(SEG) "&INDIRECT(ADDRESS($A1,2,,,"Rural 2-Lane Segments (MI)"))&", "&INDIRECT(ADDRESS($A1,3,,,"Rural 2-Lane Segments (MI)")) ->  | C1: =INDIRECT(ADDRESS($A1,4,,,"Rural 2-Lane Segments (MI)")) ->  | D1: ="Length = "&INDIRECT(ADDRESS($A1,7,,,"Rural 2-Lane Segments (MI)"))&" mi" ->  | E1: ="AADT: "&TEXT(INDIRECT(ADDRESS($A1,8,,,"Rural 2-Lane Segments (MI)")),"#,##0") ->  | F1: =IF(ISERROR(A1),"",INDIRECT(ADDRESS($A1,158,,,"Rural 2-Lane Segments (MI)"))) ->  | J1: =LARGE($F$1:$F$400,ROW()) ->  | K1: =MATCH(LARGE($F$1:$F$400,ROW()),$F$1:$F$400,0) ->  | M1: =LARGE($F$350:$F$350,ROW()) ->  | N1: =IF(M1>0,MATCH(LARGE(#REF!,ROW()),#REF!,0)+350,) -> 
A2: =IF(LARGE(INDIRECT("'Rural 2-Lane Segments (MI)'!$FB$5:$FB$1005"),ROW())=F1,MATCH(F1,INDIRECT("'Rural 2-Lane Segments (MI)'!$FB$"&A1+1&":$FB1005"),0)+A1,MATCH(LARGE(INDIRECT("'Rural 2-Lane Segments (MI)'!$FB$5:$FB$1005"),ROW()),INDIRECT("'Rural 2-Lane Segments (MI)'!$FB$5:$FB$1005"),0)+4) -> 
B33: ="(SEG) "&INDIRECT(ADDRESS($A33,2,,,"Rural 2-Lane Segments (MI)"))&", "&INDIRECT(ADDRESS($A33,3,,,"Rural 2-Lane Segments (MI)")) ->  | C33: =INDIRECT(ADDRESS($A33,4,,,"Rural 2-Lane Segments (MI)")) ->  | D33: ="Length = "&INDIRECT(ADDRESS($A33,7,,,"Rural 2-Lane Segments (MI)"))&" mi" ->  | E33: ="AADT: "&TEXT(INDIRECT(ADDRESS($A33,8,,,"Rural 2-Lane Segments (MI)")),"#,##0") ->  | F33: =IF(ISERROR(A33),"",INDIRECT(ADDRESS($A33,158,,,"Rural 2-Lane Segments (MI)"))) ->  | J33: =LARGE($F$1:$F$400,ROW()) ->  | K33: =MATCH(LARGE($F$1:$F$400,ROW()),$F$1:$F$400,0) -> 
A34: =IF(LARGE(INDIRECT("'Rural 2-Lane Segments (MI)'!$FB$5:$FB$1005"),ROW())=F33,MATCH(F33,INDIRECT("'Rural 2-Lane Segments (MI)'!$FB$"&A33+1&":$FB1005"),0)+A33,MATCH(LARGE(INDIRECT("'Rural 2-Lane Segments (MI)'!$FB$5:$FB$1005"),ROW()),INDIRECT("'Rural 2-Lane Segments (MI)'!$FB$5:$FB$1005"),0)+4) -> 
A51: =MATCH(LARGE(INDIRECT("'Rural County FA Segs (MI)'!$DN$5:$DN$1005"),ROW()-50),INDIRECT("'Rural County FA Segs (MI)'!$DN$5:$DN$1005"),0)+4 ->  | B51: ="(SEG) "&INDIRECT(ADDRESS($A51,2,,,"Rural County FA Segs (MI)"))&", "&INDIRECT(ADDRESS($A51,3,,,"Rural County FA Segs (MI)")) ->  | C51: =INDIRECT(ADDRESS($A51,4,,,"Rural County FA Segs (MI)")) ->  | D51: ="Length = "&INDIRECT(ADDRESS($A51,5,,,"Rural County FA Segs (MI)"))&" mi" ->  | E51: ="AADT: "&TEXT(INDIRECT(ADDRESS($A51,6,,,"Rural County FA Segs (MI)")),"#,##0") ->  | F51: =IF(ISERROR(A51),"",INDIRECT(ADDRESS($A51,118,,,"Rural County FA Segs (MI)"))) -> 
A52: =IF(LARGE(INDIRECT("'Rural County FA Segs (MI)'!$DN$5:$DN$1005"),ROW()-50)=F51,MATCH(F51,INDIRECT("'Rural County FA Segs (MI)'!$DN$"&A51+1&":$DN1005"),0)+A51,MATCH(LARGE(INDIRECT("'Rural County FA Segs (MI)'!$DN$5:$DN$1005"),ROW()-50),INDIRECT("'Rural County FA Segs (MI)'!$DN$5:$DN$1005"),0)+4) -> 
B83: ="(SEG) "&INDIRECT(ADDRESS($A83,2,,,"Rural County FA Segs (MI)"))&", "&INDIRECT(ADDRESS($A83,3,,,"Rural County FA Segs (MI)")) ->  | C83: =INDIRECT(ADDRESS($A83,4,,,"Rural County FA Segs (MI)")) ->  | D83: ="Length = "&INDIRECT(ADDRESS($A83,5,,,"Rural County FA Segs (MI)"))&" mi" ->  | E83: ="AADT: "&TEXT(INDIRECT(ADDRESS($A83,6,,,"Rural County FA Segs (MI)")),"#,##0") ->  | F83: =IF(ISERROR(A83),"",INDIRECT(ADDRESS($A83,118,,,"Rural County FA Segs (MI)"))) -> 
A84: =IF(LARGE(INDIRECT("'Rural County FA Segs (MI)'!$DN$5:$DN$1005"),ROW()-50)=F83,MATCH(F83,INDIRECT("'Rural County FA Segs (MI)'!$DN$"&A83+1&":$DN1005"),0)+A83,MATCH(LARGE(INDIRECT("'Rural County FA Segs (MI)'!$DN$5:$DN$1005"),ROW()-50),INDIRECT("'Rural County FA Segs (MI)'!$DN$5:$DN$1005"),0)+4) -> 
A101: =MATCH(LARGE(INDIRECT("'Rural County Non-FA Segs (MI)'!$CP$5:$CP$1005"),ROW()-100),INDIRECT("'Rural County Non-FA Segs (MI)'!$CP$5:$CP$1005"),0)+4 ->  | B101: ="(SEG) "&INDIRECT(ADDRESS($A101,2,,,"Rural County Non-FA Segs (MI)"))&", "&INDIRECT(ADDRESS($A101,3,,,"Rural County Non-FA Segs (MI)")) ->  | C101: =INDIRECT(ADDRESS($A101,4,,,"Rural County Non-FA Segs (MI)")) ->  | D101: ="Length = "&INDIRECT(ADDRESS($A101,6,,,"Rural County Non-FA Segs (MI)"))&" mi" ->  | E101: ="AADT: "&TEXT(INDIRECT(ADDRESS($A101,7,,,"Rural County Non-FA Segs (MI)")),"#,##0") ->  | F101: =IF(ISERROR(A101),"",INDIRECT(ADDRESS($A101,94,,,"Rural County Non-FA Segs (MI)"))) -> 
A102: =IF(LARGE(INDIRECT("'Rural County Non-FA Segs (MI)'!$CP$5:$CP$1005"),ROW()-100)=F101,MATCH(F101,INDIRECT("'Rural County Non-FA Segs (MI)'!$CP$"&A101+1&":$CP1005"),0)+A101,MATCH(LARGE(INDIRECT("'Rural County Non-FA Segs (MI)'!$CP$5:$CP$1005"),ROW()-100),INDIRECT("'Rural County Non-FA Segs (MI)'!$CP$5:$CP$1005"),0)+4) -> 
B133: ="(SEG) "&INDIRECT(ADDRESS($A133,2,,,"Rural County Non-FA Segs (MI)"))&", "&INDIRECT(ADDRESS($A133,3,,,"Rural County Non-FA Segs (MI)")) ->  | C133: =INDIRECT(ADDRESS($A133,4,,,"Rural County Non-FA Segs (MI)")) ->  | D133: ="Length = "&INDIRECT(ADDRESS($A133,6,,,"Rural County Non-FA Segs (MI)"))&" mi" ->  | E133: ="AADT: "&TEXT(INDIRECT(ADDRESS($A133,7,,,"Rural County Non-FA Segs (MI)")),"#,##0") ->  | F133: =IF(ISERROR(A133),"",INDIRECT(ADDRESS($A133,94,,,"Rural County Non-FA Segs (MI)"))) -> 
A134: =IF(LARGE(INDIRECT("'Rural County Non-FA Segs (MI)'!$CP$5:$CP$1005"),ROW()-100)=F133,MATCH(F133,INDIRECT("'Rural County Non-FA Segs (MI)'!$CP$"&A133+1&":$CP1005"),0)+A133,MATCH(LARGE(INDIRECT("'Rural County Non-FA Segs (MI)'!$CP$5:$CP$1005"),ROW()-100),INDIRECT("'Rural County Non-FA Segs (MI)'!$CP$5:$CP$1005"),0)+4) -> 
A151: =MATCH(LARGE(INDIRECT("'Rural Multilane Segments (MI)'!$DS$5:$DS$1005"),ROW()-150),INDIRECT("'Rural Multilane Segments (MI)'!$DS$5:$DS$1005"),0)+4 ->  | B151: ="(SEG) "&INDIRECT(ADDRESS($A151,2,,,"Rural Multilane Segments (MI)"))&", "&INDIRECT(ADDRESS($A151,3,,,"Rural Multilane Segments (MI)")) ->  | C151: =INDIRECT(ADDRESS($A151,4,,,"Rural Multilane Segments (MI)")) ->  | D151: ="Length = "&INDIRECT(ADDRESS($A151,8,,,"Rural Multilane Segments (MI)"))&" mi" ->  | E151: ="AADT: "&TEXT(INDIRECT(ADDRESS($A151,9,,,"Rural Multilane Segments (MI)")),"#,##0") ->  | F151: =IF(ISERROR(A151),"",INDIRECT(ADDRESS($A151,123,,,"Rural Multilane Segments (MI)"))) -> 
A152: =IF(LARGE(INDIRECT("'Rural Multilane Segments (MI)'!$DS$5:$DS$1005"),ROW()-150)=F151,MATCH(F151,INDIRECT("'Rural Multilane Segments (MI)'!$DS$"&A151+1&":$DS1005"),0)+A151,MATCH(LARGE(INDIRECT("'Rural Multilane Segments (MI)'!$DS$5:$DS$1005"),ROW()-150),INDIRECT("'Rural Multilane Segments (MI)'!$DS$5:$DS$1005"),0)+4) -> 
B183: ="(SEG) "&INDIRECT(ADDRESS($A183,2,,,"Rural Multilane Segments (MI)"))&", "&INDIRECT(ADDRESS($A183,3,,,"Rural Multilane Segments (MI)")) ->  | C183: =INDIRECT(ADDRESS($A183,4,,,"Rural Multilane Segments (MI)")) ->  | D183: ="Length = "&INDIRECT(ADDRESS($A183,8,,,"Rural Multilane Segments (MI)"))&" mi" ->  | E183: ="AADT: "&TEXT(INDIRECT(ADDRESS($A183,9,,,"Rural Multilane Segments (MI)")),"#,##0") ->  | F183: =IF(ISERROR(A183),"",INDIRECT(ADDRESS($A183,123,,,"Rural Multilane Segments (MI)"))) -> 
A184: =IF(LARGE(INDIRECT("'Rural Multilane Segments (MI)'!$DS$5:$DS$1005"),ROW()-150)=F183,MATCH(F183,INDIRECT("'Rural Multilane Segments (MI)'!$DS$"&A183+1&":$DS1005"),0)+A183,MATCH(LARGE(INDIRECT("'Rural Multilane Segments (MI)'!$DS$5:$DS$1005"),ROW()-150),INDIRECT("'Rural Multilane Segments (MI)'!$DS$5:$DS$1005"),0)+4) -> 
A201: =MATCH(LARGE(INDIRECT("'Rural Unsignalized Int (MI)'!$EV$5:$EV$1005"),ROW()-200),INDIRECT("'Rural Unsignalized Int (MI)'!$EV$5:$EV$1005"),0)+4 ->  | B201: ="(INT) "&INDIRECT(ADDRESS($A201,2,,,"Rural Unsignalized Int (MI)"))&" / "&INDIRECT(ADDRESS($A201,3,,,"Rural Unsignalized Int (MI)")) ->  | C201: =INDIRECT(ADDRESS($A201,4,,,"Rural Unsignalized Int (MI)")) ->  | D201: ="Type = "&INDIRECT(ADDRESS($A201,7,,,"Rural Unsignalized Int (MI)")) ->  | E201: ="AADT: "&TEXT(INDIRECT(ADDRESS($A201,8,,,"Rural Unsignalized Int (MI)")),"#,##0") & " / " & TEXT(INDIRECT(ADDRESS($A201,9,,,"Rural Unsignalized Int (MI)")),"#,##0") ->  | F201: =IF(ISERROR(A201),"",INDIRECT(ADDRESS($A201,152,,,"Rural Unsignalized Int (MI)"))) -> 
A202: =IF(LARGE(INDIRECT("'Rural Unsignalized Int (MI)'!$EV$5:$EV$1005"),ROW()-200)=F201,MATCH(F201,INDIRECT("'Rural Unsignalized Int (MI)'!$EV$"&A201+1&":$EV1005"),0)+A201,MATCH(LARGE(INDIRECT("'Rural Unsignalized Int (MI)'!$EV$5:$EV$1005"),ROW()-200),INDIRECT("'Rural Unsignalized Int (MI)'!$EV$5:$EV$1005"),0)+4) -> 
B233: ="(INT) "&INDIRECT(ADDRESS($A233,2,,,"Rural Unsignalized Int (MI)"))&" / "&INDIRECT(ADDRESS($A233,3,,,"Rural Unsignalized Int (MI)")) ->  | C233: =INDIRECT(ADDRESS($A233,4,,,"Rural Unsignalized Int (MI)")) ->  | D233: ="Type = "&INDIRECT(ADDRESS($A233,7,,,"Rural Unsignalized Int (MI)")) ->  | E233: ="AADT: "&TEXT(INDIRECT(ADDRESS($A233,8,,,"Rural Unsignalized Int (MI)")),"#,##0") & " / " & TEXT(INDIRECT(ADDRESS($A233,9,,,"Rural Unsignalized Int (MI)")),"#,##0") ->  | F233: =IF(ISERROR(A233),"",INDIRECT(ADDRESS($A233,152,,,"Rural Unsignalized Int (MI)"))) -> 
A234: =IF(LARGE(INDIRECT("'Rural Unsignalized Int (MI)'!$EV$5:$EV$1005"),ROW()-200)=F233,MATCH(F233,INDIRECT("'Rural Unsignalized Int (MI)'!$EV$"&A233+1&":$EV1005"),0)+A233,MATCH(LARGE(INDIRECT("'Rural Unsignalized Int (MI)'!$EV$5:$EV$1005"),ROW()-200),INDIRECT("'Rural Unsignalized Int (MI)'!$EV$5:$EV$1005"),0)+4) -> 
A251: =MATCH(LARGE(INDIRECT("'Rural Signalized Int (MI)'!$ER$5:$ER$1005"),ROW()-250),INDIRECT("'Rural Signalized Int (MI)'!$ER$5:$ER$1005"),0)+4 ->  | B251: ="(INT) "&INDIRECT(ADDRESS($A251,2,,,"Rural Signalized Int (MI)"))&" / "&INDIRECT(ADDRESS($A251,3,,,"Rural Signalized Int (MI)")) ->  | C251: =INDIRECT(ADDRESS($A251,4,,,"Rural Signalized Int (MI)")) ->  | D251: ="Type = "&INDIRECT(ADDRESS($A251,8,,,"Rural Signalized Int (MI)")) ->  | E251: ="AADT: "&TEXT(INDIRECT(ADDRESS($A251,9,,,"Rural Signalized Int (MI)")),"#,##0") & " / " & TEXT(INDIRECT(ADDRESS($A251,10,,,"Rural Signalized Int (MI)")),"#,##0") ->  | F251: =IF(ISERROR(A251),"",INDIRECT(ADDRESS($A251,148,,,"Rural Signalized Int (MI)"))) -> 
A252: =IF(LARGE(INDIRECT("'Rural Signalized Int (MI)'!$ER$5:$ER$1005"),ROW()-250)=F251,MATCH(F251,INDIRECT("'Rural Signalized Int (MI)'!$ER$"&A251+1&":$ER1005"),0)+A251,MATCH(LARGE(INDIRECT("'Rural Signalized Int (MI)'!$ER$5:$ER$1005"),ROW()-250),INDIRECT("'Rural Signalized Int (MI)'!$ER$5:$ER$1005"),0)+4) -> 
B283: ="(INT) "&INDIRECT(ADDRESS($A283,2,,,"Rural Signalized Int (MI)"))&" / "&INDIRECT(ADDRESS($A283,3,,,"Rural Signalized Int (MI)")) ->  | C283: =INDIRECT(ADDRESS($A283,4,,,"Rural Signalized Int (MI)")) ->  | D283: ="Type = "&INDIRECT(ADDRESS($A283,8,,,"Rural Signalized Int (MI)")) ->  | E283: ="AADT: "&TEXT(INDIRECT(ADDRESS($A283,9,,,"Rural Signalized Int (MI)")),"#,##0") & " / " & TEXT(INDIRECT(ADDRESS($A283,10,,,"Rural Signalized Int (MI)")),"#,##0") ->  | F283: =IF(ISERROR(A283),"",INDIRECT(ADDRESS($A283,148,,,"Rural Signalized Int (MI)"))) -> 
A284: =IF(LARGE(INDIRECT("'Rural Signalized Int (MI)'!$ER$5:$ER$1005"),ROW()-250)=F283,MATCH(F283,INDIRECT("'Rural Signalized Int (MI)'!$ER$"&A283+1&":$ER1005"),0)+A283,MATCH(LARGE(INDIRECT("'Rural Signalized Int (MI)'!$ER$5:$ER$1005"),ROW()-250),INDIRECT("'Rural Signalized Int (MI)'!$ER$5:$ER$1005"),0)+4) -> 
A301: =MATCH(LARGE(INDIRECT("'Urban & Suburban Segments (MI)'!$HT$5:$HT$1005"),ROW()-300),INDIRECT("'Urban & Suburban Segments (MI)'!$HT$5:$HT$1005"),0)+4 ->  | B301: ="(SEG) "&INDIRECT(ADDRESS($A301,2,,,"Urban & Suburban Segments (MI)"))&", "&INDIRECT(ADDRESS($A301,3,,,"Urban & Suburban Segments (MI)")) ->  | C301: =INDIRECT(ADDRESS($A301,4,,,"Urban & Suburban Segments (MI)")) ->  | D301: ="Length = "&INDIRECT(ADDRESS($A301,6,,,"Urban & Suburban Segments (MI)"))&" mi" ->  | E301: ="AADT: "&TEXT(INDIRECT(ADDRESS($A301,7,,,"Urban & Suburban Segments (MI)")),"#,##0") ->  | F301: =IF(ISERROR(A301),"",INDIRECT(ADDRESS($A301,228,,,"Urban & Suburban Segments (MI)"))) -> 
A302: =IF(LARGE(INDIRECT("'Urban & Suburban Segments (MI)'!$HT$5:$HT$1005"),ROW()-300)=F301,MATCH(F301,INDIRECT("'Urban & Suburban Segments (MI)'!$HT$"&A301+1&":$HT1005"),0)+A301,MATCH(LARGE(INDIRECT("'Urban & Suburban Segments (MI)'!$HT$5:$HT$1005"),ROW()-300),INDIRECT("'Urban & Suburban Segments (MI)'!$HT$5:$HT$1005"),0)+4) -> 
B333: ="(SEG) "&INDIRECT(ADDRESS($A333,2,,,"Urban & Suburban Segments (MI)"))&", "&INDIRECT(ADDRESS($A333,3,,,"Urban & Suburban Segments (MI)")) ->  | C333: =INDIRECT(ADDRESS($A333,4,,,"Urban & Suburban Segments (MI)")) ->  | D333: ="Length = "&INDIRECT(ADDRESS($A333,6,,,"Urban & Suburban Segments (MI)"))&" mi" ->  | E333: ="AADT: "&TEXT(INDIRECT(ADDRESS($A333,7,,,"Urban & Suburban Segments (MI)")),"#,##0") ->  | F333: =IF(ISERROR(A333),"",INDIRECT(ADDRESS($A333,228,,,"Urban & Suburban Segments (MI)"))) -> 
A334: =IF(LARGE(INDIRECT("'Urban & Suburban Segments (MI)'!$HT$5:$HT$1005"),ROW()-300)=F333,MATCH(F333,INDIRECT("'Urban & Suburban Segments (MI)'!$HT$"&A333+1&":$HT1005"),0)+A333,MATCH(LARGE(INDIRECT("'Urban & Suburban Segments (MI)'!$HT$5:$HT$1005"),ROW()-300),INDIRECT("'Urban & Suburban Segments (MI)'!$HT$5:$HT$1005"),0)+4) -> 
A351: =MATCH(LARGE(INDIRECT("'Urban & Suburban Ints (MI)'!$DN$5:$DN$1005"),ROW()-350),INDIRECT("'Urban & Suburban Ints (MI)'!$DN$5:$DN$1005"),0)+4 ->  | B351: ="(INT) "&INDIRECT(ADDRESS($A351,2,,,"Urban & Suburban Ints (MI)"))&" / "&INDIRECT(ADDRESS($A351,3,,,"Urban & Suburban Ints (MI)")) ->  | C351: =INDIRECT(ADDRESS($A351,4,,,"Urban & Suburban Ints (MI)")) ->  | D351: ="Type = "&INDIRECT(ADDRESS($A351,5,,,"Urban & Suburban Ints (MI)")) ->  | E351: ="AADT: "&TEXT(INDIRECT(ADDRESS($A351,8,,,"Urban & Suburban Ints (MI)")),"#,##0") & " / " & TEXT(INDIRECT(ADDRESS($A351,9,,,"Urban & Suburban Ints (MI)")),"#,##0") ->  | F351: =IF(ISERROR(A351),"",INDIRECT(ADDRESS($A351,118,,,"Urban & Suburban Ints (MI)"))) -> 
A352: =IF(LARGE(INDIRECT("'Urban & Suburban Ints (MI)'!$DN$5:$DN$1005"),ROW()-350)=F351,MATCH(F351,INDIRECT("'Urban & Suburban Ints (MI)'!$DN$"&A351+1&":$DN1005"),0)+A351,MATCH(LARGE(INDIRECT("'Urban & Suburban Ints (MI)'!$DN$5:$DN$1005"),ROW()-350),INDIRECT("'Urban & Suburban Ints (MI)'!$DN$5:$DN$1005"),0)+4) -> 
B383: ="(INT) "&INDIRECT(ADDRESS($A383,2,,,"Urban & Suburban Ints (MI)"))&" / "&INDIRECT(ADDRESS($A383,3,,,"Urban & Suburban Ints (MI)")) ->  | C383: =INDIRECT(ADDRESS($A383,4,,,"Urban & Suburban Ints (MI)")) ->  | D383: ="Type = "&INDIRECT(ADDRESS($A383,5,,,"Urban & Suburban Ints (MI)")) ->  | E383: ="AADT: "&TEXT(INDIRECT(ADDRESS($A383,8,,,"Urban & Suburban Ints (MI)")),"#,##0") & " / " & TEXT(INDIRECT(ADDRESS($A383,9,,,"Urban & Suburban Ints (MI)")),"#,##0") ->  | F383: =IF(ISERROR(A383),"",INDIRECT(ADDRESS($A383,118,,,"Urban & Suburban Ints (MI)"))) -> 
A384: =IF(LARGE(INDIRECT("'Urban & Suburban Ints (MI)'!$DN$5:$DN$1005"),ROW()-350)=F383,MATCH(F383,INDIRECT("'Urban & Suburban Ints (MI)'!$DN$"&A383+1&":$DN1005"),0)+A383,MATCH(LARGE(INDIRECT("'Urban & Suburban Ints (MI)'!$DN$5:$DN$1005"),ROW()-350),INDIRECT("'Urban & Suburban Ints (MI)'!$DN$5:$DN$1005"),0)+4) -> 

Sheet RankingPredictedTotal (hidden)
A1: =MATCH(LARGE(INDIRECT("'Rural 2-Lane Segments (MI)'!$FE$5:$FE$1005"),ROW()),INDIRECT("'Rural 2-Lane Segments (MI)'!$FE$5:$FE$1005"),0)+4 ->  | B1: ="(SEG) "&INDIRECT(ADDRESS($A1,2,,,"Rural 2-Lane Segments (MI)"))&", "&INDIRECT(ADDRESS($A1,3,,,"Rural 2-Lane Segments (MI)")) ->  | C1: =INDIRECT(ADDRESS($A1,4,,,"Rural 2-Lane Segments (MI)")) ->  | D1: ="Length = "&INDIRECT(ADDRESS($A1,7,,,"Rural 2-Lane Segments (MI)"))&" mi" ->  | E1: ="AADT: "&TEXT(INDIRECT(ADDRESS($A1,8,,,"Rural 2-Lane Segments (MI)")),"#,##0") ->  | F1: =IF(ISERROR(A1),"",INDIRECT(ADDRESS($A1,161,,,"Rural 2-Lane Segments (MI)"))) ->  | J1: =LARGE($F$1:$F$400,ROW()) ->  | K1: =MATCH(LARGE($F$1:$F$400,ROW()),$F$1:$F$400,0) ->  | M1: =LARGE(#REF!,ROW()) ->  | N1: =IF(M1>0,MATCH(LARGE(#REF!,ROW()),#REF!,0)+350,) -> 
A2: =IF(LARGE(INDIRECT("'Rural 2-Lane Segments (MI)'!$FE$5:$FE$1005"),ROW())=F1,MATCH(F1,INDIRECT("'Rural 2-Lane Segments (MI)'!$FE$"&A1+1&":$FE1005"),0)+A1,MATCH(LARGE(INDIRECT("'Rural 2-Lane Segments (MI)'!$FE$5:$FE$1005"),ROW()),INDIRECT("'Rural 2-Lane Segments (MI)'!$FE$5:$FE$1005"),0)+4) -> 
B33: ="(SEG) "&INDIRECT(ADDRESS($A33,2,,,"Rural 2-Lane Segments (MI)"))&", "&INDIRECT(ADDRESS($A33,3,,,"Rural 2-Lane Segments (MI)")) ->  | C33: =INDIRECT(ADDRESS($A33,4,,,"Rural 2-Lane Segments (MI)")) ->  | D33: ="Length = "&INDIRECT(ADDRESS($A33,7,,,"Rural 2-Lane Segments (MI)"))&" mi" ->  | E33: ="AADT: "&TEXT(INDIRECT(ADDRESS($A33,8,,,"Rural 2-Lane Segments (MI)")),"#,##0") ->  | F33: =IF(ISERROR(A33),"",INDIRECT(ADDRESS($A33,161,,,"Rural 2-Lane Segments (MI)"))) ->  | J33: =LARGE($F$1:$F$400,ROW()) ->  | K33: =MATCH(LARGE($F$1:$F$400,ROW()),$F$1:$F$400,0) -> 
A34: =IF(LARGE(INDIRECT("'Rural 2-Lane Segments (MI)'!$FE$5:$FE$1005"),ROW())=F33,MATCH(F33,INDIRECT("'Rural 2-Lane Segments (MI)'!$FE$"&A33+1&":$FE1005"),0)+A33,MATCH(LARGE(INDIRECT("'Rural 2-Lane Segments (MI)'!$FE$5:$FE$1005"),ROW()),INDIRECT("'Rural 2-Lane Segments (MI)'!$FE$5:$FE$1005"),0)+4) -> 
A51: =MATCH(LARGE(INDIRECT("'Rural County FA Segs (MI)'!$DQ$5:$DQ$1005"),ROW()-50),INDIRECT("'Rural County FA Segs (MI)'!$DQ$5:$DQ$1005"),0)+4 ->  | B51: ="(SEG) "&INDIRECT(ADDRESS($A51,2,,,"Rural County FA Segs (MI)"))&", "&INDIRECT(ADDRESS($A51,3,,,"Rural County FA Segs (MI)")) ->  | C51: =INDIRECT(ADDRESS($A51,4,,,"Rural County FA Segs (MI)")) ->  | D51: ="Length = "&INDIRECT(ADDRESS($A51,5,,,"Rural County FA Segs (MI)"))&" mi" ->  | E51: ="AADT: "&TEXT(INDIRECT(ADDRESS($A51,6,,,"Rural County FA Segs (MI)")),"#,##0") ->  | F51: =IF(ISERROR(A51),"",INDIRECT(ADDRESS($A51,121,,,"Rural County FA Segs (MI)"))) -> 
A52: =IF(LARGE(INDIRECT("'Rural County FA Segs (MI)'!$DQ$5:$DQ$1005"),ROW()-50)=F51,MATCH(F51,INDIRECT("'Rural County FA Segs (MI)'!$DQ$"&A51+1&":$DQ1005"),0)+A51,MATCH(LARGE(INDIRECT("'Rural County FA Segs (MI)'!$DQ$5:$DQ$1005"),ROW()-50),INDIRECT("'Rural County FA Segs (MI)'!$DQ$5:$DQ$1005"),0)+4) -> 
B83: ="(SEG) "&INDIRECT(ADDRESS($A83,2,,,"Rural County FA Segs (MI)"))&", "&INDIRECT(ADDRESS($A83,3,,,"Rural County FA Segs (MI)")) ->  | C83: =INDIRECT(ADDRESS($A83,4,,,"Rural County FA Segs (MI)")) ->  | D83: ="Length = "&INDIRECT(ADDRESS($A83,5,,,"Rural County FA Segs (MI)"))&" mi" ->  | E83: ="AADT: "&TEXT(INDIRECT(ADDRESS($A83,6,,,"Rural County FA Segs (MI)")),"#,##0") ->  | F83: =IF(ISERROR(A83),"",INDIRECT(ADDRESS($A83,121,,,"Rural County FA Segs (MI)"))) -> 
A84: =IF(LARGE(INDIRECT("'Rural County FA Segs (MI)'!$DQ$5:$DQ$1005"),ROW()-50)=F83,MATCH(F83,INDIRECT("'Rural County FA Segs (MI)'!$DQ$"&A83+1&":$DQ1005"),0)+A83,MATCH(LARGE(INDIRECT("'Rural County FA Segs (MI)'!$DQ$5:$DQ$1005"),ROW()-50),INDIRECT("'Rural County FA Segs (MI)'!$DQ$5:$DQ$1005"),0)+4) -> 
A101: =MATCH(LARGE(INDIRECT("'Rural County Non-FA Segs (MI)'!$CS$5:$CS$1005"),ROW()-100),INDIRECT("'Rural County Non-FA Segs (MI)'!$CS$5:$CS$1005"),0)+4 ->  | B101: ="(SEG) "&INDIRECT(ADDRESS($A101,2,,,"Rural County Non-FA Segs (MI)"))&", "&INDIRECT(ADDRESS($A101,3,,,"Rural County Non-FA Segs (MI)")) ->  | C101: =INDIRECT(ADDRESS($A101,4,,,"Rural County Non-FA Segs (MI)")) ->  | D101: ="Length = "&INDIRECT(ADDRESS($A101,6,,,"Rural County Non-FA Segs (MI)"))&" mi" ->  | E101: ="AADT: "&TEXT(INDIRECT(ADDRESS($A101,7,,,"Rural County Non-FA Segs (MI)")),"#,##0") ->  | F101: =IF(ISERROR(A101),"",INDIRECT(ADDRESS($A101,97,,,"Rural County Non-FA Segs (MI)"))) -> 
A102: =IF(LARGE(INDIRECT("'Rural County Non-FA Segs (MI)'!$CS$5:$CS$1005"),ROW()-100)=F101,MATCH(F101,INDIRECT("'Rural County Non-FA Segs (MI)'!$CS$"&A101+1&":$CS1005"),0)+A101,MATCH(LARGE(INDIRECT("'Rural County Non-FA Segs (MI)'!$CS$5:$CS$1005"),ROW()-100),INDIRECT("'Rural County Non-FA Segs (MI)'!$CS$5:$CS$1005"),0)+4) -> 
B133: ="(SEG) "&INDIRECT(ADDRESS($A133,2,,,"Rural County Non-FA Segs (MI)"))&", "&INDIRECT(ADDRESS($A133,3,,,"Rural County Non-FA Segs (MI)")) ->  | C133: =INDIRECT(ADDRESS($A133,4,,,"Rural County Non-FA Segs (MI)")) ->  | D133: ="Length = "&INDIRECT(ADDRESS($A133,6,,,"Rural County Non-FA Segs (MI)"))&" mi" ->  | E133: ="AADT: "&TEXT(INDIRECT(ADDRESS($A133,7,,,"Rural County Non-FA Segs (MI)")),"#,##0") ->  | F133: =IF(ISERROR(A133),"",INDIRECT(ADDRESS($A133,97,,,"Rural County Non-FA Segs (MI)"))) -> 
A134: =IF(LARGE(INDIRECT("'Rural County Non-FA Segs (MI)'!$CS$5:$CS$1005"),ROW()-100)=F133,MATCH(F133,INDIRECT("'Rural County Non-FA Segs (MI)'!$CS$"&A133+1&":$CS1005"),0)+A133,MATCH(LARGE(INDIRECT("'Rural County Non-FA Segs (MI)'!$CS$5:$CS$1005"),ROW()-100),INDIRECT("'Rural County Non-FA Segs (MI)'!$CS$5:$CS$1005"),0)+4) -> 
A151: =MATCH(LARGE(INDIRECT("'Rural Multilane Segments (MI)'!$DV$5:$DV$1005"),ROW()-150),INDIRECT("'Rural Multilane Segments (MI)'!$DV$5:$DV$1005"),0)+4 ->  | B151: ="(SEG) "&INDIRECT(ADDRESS($A151,2,,,"Rural Multilane Segments (MI)"))&", "&INDIRECT(ADDRESS($A151,3,,,"Rural Multilane Segments (MI)")) ->  | C151: =INDIRECT(ADDRESS($A151,4,,,"Rural Multilane Segments (MI)")) ->  | D151: ="Length = "&INDIRECT(ADDRESS($A151,8,,,"Rural Multilane Segments (MI)"))&" mi" ->  | E151: ="AADT: "&TEXT(INDIRECT(ADDRESS($A151,9,,,"Rural Multilane Segments (MI)")),"#,##0") ->  | F151: =IF(ISERROR(A151),"",INDIRECT(ADDRESS($A151,126,,,"Rural Multilane Segments (MI)"))) -> 
A152: =IF(LARGE(INDIRECT("'Rural Multilane Segments (MI)'!$DV$5:$DV$1005"),ROW()-150)=F151,MATCH(F151,INDIRECT("'Rural Multilane Segments (MI)'!$DV$"&A151+1&":$DV1005"),0)+A151,MATCH(LARGE(INDIRECT("'Rural Multilane Segments (MI)'!$DV$5:$DV$1005"),ROW()-150),INDIRECT("'Rural Multilane Segments (MI)'!$DV$5:$DV$1005"),0)+4) -> 
B183: ="(SEG) "&INDIRECT(ADDRESS($A183,2,,,"Rural Multilane Segments (MI)"))&", "&INDIRECT(ADDRESS($A183,3,,,"Rural Multilane Segments (MI)")) ->  | C183: =INDIRECT(ADDRESS($A183,4,,,"Rural Multilane Segments (MI)")) ->  | D183: ="Length = "&INDIRECT(ADDRESS($A183,8,,,"Rural Multilane Segments (MI)"))&" mi" ->  | E183: ="AADT: "&TEXT(INDIRECT(ADDRESS($A183,9,,,"Rural Multilane Segments (MI)")),"#,##0") ->  | F183: =IF(ISERROR(A183),"",INDIRECT(ADDRESS($A183,126,,,"Rural Multilane Segments (MI)"))) -> 
A184: =IF(LARGE(INDIRECT("'Rural Multilane Segments (MI)'!$DV$5:$DV$1005"),ROW()-150)=F183,MATCH(F183,INDIRECT("'Rural Multilane Segments (MI)'!$DV$"&A183+1&":$DV1005"),0)+A183,MATCH(LARGE(INDIRECT("'Rural Multilane Segments (MI)'!$DV$5:$DV$1005"),ROW()-150),INDIRECT("'Rural Multilane Segments (MI)'!$DV$5:$DV$1005"),0)+4) -> 
A201: =MATCH(LARGE(INDIRECT("'Rural Unsignalized Int (MI)'!$EW$5:$EW$1005"),ROW()-200),INDIRECT("'Rural Unsignalized Int (MI)'!$EW$5:$EW$1005"),0)+4 ->  | B201: ="(INT) "&INDIRECT(ADDRESS($A201,2,,,"Rural Unsignalized Int (MI)"))&" / "&INDIRECT(ADDRESS($A201,3,,,"Rural Unsignalized Int (MI)")) ->  | C201: =INDIRECT(ADDRESS($A201,4,,,"Rural Unsignalized Int (MI)")) ->  | D201: ="Type = "&INDIRECT(ADDRESS($A201,7,,,"Rural Unsignalized Int (MI)")) ->  | E201: ="AADT: "&TEXT(INDIRECT(ADDRESS($A201,8,,,"Rural Unsignalized Int (MI)")),"#,##0") & " / " & TEXT(INDIRECT(ADDRESS($A201,9,,,"Rural Unsignalized Int (MI)")),"#,##0") ->  | F201: =IF(ISERROR(A201),"",INDIRECT(ADDRESS($A201,153,,,"Rural Unsignalized Int (MI)"))) -> 
A202: =IF(LARGE(INDIRECT("'Rural Unsignalized Int (MI)'!$EW$5:$EW$1005"),ROW()-200)=F201,MATCH(F201,INDIRECT("'Rural Unsignalized Int (MI)'!$EW$"&A201+1&":$EW1005"),0)+A201,MATCH(LARGE(INDIRECT("'Rural Unsignalized Int (MI)'!$EW$5:$EW$1005"),ROW()-200),INDIRECT("'Rural Unsignalized Int (MI)'!$EW$5:$EW$1005"),0)+4) -> 
B233: ="(INT) "&INDIRECT(ADDRESS($A233,2,,,"Rural Unsignalized Int (MI)"))&" / "&INDIRECT(ADDRESS($A233,3,,,"Rural Unsignalized Int (MI)")) ->  | C233: =INDIRECT(ADDRESS($A233,4,,,"Rural Unsignalized Int (MI)")) ->  | D233: ="Type = "&INDIRECT(ADDRESS($A233,7,,,"Rural Unsignalized Int (MI)")) ->  | E233: ="AADT: "&TEXT(INDIRECT(ADDRESS($A233,8,,,"Rural Unsignalized Int (MI)")),"#,##0") & " / " & TEXT(INDIRECT(ADDRESS($A233,9,,,"Rural Unsignalized Int (MI)")),"#,##0") ->  | F233: =IF(ISERROR(A233),"",INDIRECT(ADDRESS($A233,153,,,"Rural Unsignalized Int (MI)"))) -> 
A234: =IF(LARGE(INDIRECT("'Rural Unsignalized Int (MI)'!$EW$5:$EW$1005"),ROW()-200)=F233,MATCH(F233,INDIRECT("'Rural Unsignalized Int (MI)'!$EW$"&A233+1&":$EW1005"),0)+A233,MATCH(LARGE(INDIRECT("'Rural Unsignalized Int (MI)'!$EW$5:$EW$1005"),ROW()-200),INDIRECT("'Rural Unsignalized Int (MI)'!$EW$5:$EW$1005"),0)+4) -> 
A251: =MATCH(LARGE(INDIRECT("'Rural Signalized Int (MI)'!$ES$5:$ES$1005"),ROW()-250),INDIRECT("'Rural Signalized Int (MI)'!$ES$5:$ES$1005"),0)+4 ->  | B251: ="(INT) "&INDIRECT(ADDRESS($A251,2,,,"Rural Signalized Int (MI)"))&" / "&INDIRECT(ADDRESS($A251,3,,,"Rural Signalized Int (MI)")) ->  | C251: =INDIRECT(ADDRESS($A251,4,,,"Rural Signalized Int (MI)")) ->  | D251: ="Type = "&INDIRECT(ADDRESS($A251,8,,,"Rural Signalized Int (MI)")) ->  | E251: ="AADT: "&TEXT(INDIRECT(ADDRESS($A251,9,,,"Rural Signalized Int (MI)")),"#,##0") & " / " & TEXT(INDIRECT(ADDRESS($A251,10,,,"Rural Signalized Int (MI)")),"#,##0") ->  | F251: =IF(ISERROR(A251),"",INDIRECT(ADDRESS($A251,149,,,"Rural Signalized Int (MI)"))) -> 
